Workbook

Sheet Data Entry
A1: Petitioner | C1: Judicial Circuit | D1: 2nd | H1: 01/01/2026-09/29/2026 | I1: Y | J1: S | K1: Median Income from ref page | O1: Shared Cust. Calc? (1 = Yes, 0 = No) | P1: =IF(AND(B18>0.199,C18>0.199),1,0) -> 0 | Q1: MOM (Actual Income)
A2: Respondent | C2: County | D2: Leon | H2: 09/30/2025-12/31/2025 | I2: N | J2: M | K2: ='Min Wage + Poverty Reference'!N5 -> 4531.25 | O2: Split Cust. Calc? | P2: =IF(AND(B19<>"",C19<>""),"Yes","No") -> No | Q2: MOM (Imputed Income)
A3: CC# | C3: # of Printed Copies | D3: 1 | H3: 01/01/2025-09/29/2025 | M3: Monthly Support Obligation | O3: Low Income Problem | P3: =IF(AND(D5="",OR(Worksheet!B32<800,Worksheet!C32<800)),"Yes","No") -> No | Q3: DAD (Actual Income)
A4: Tax Year (Example: 1997, Not 97) | B4: 01/01/2026-09/29/2026 | C4: Round? (Y/N) | D4: N | H4: 09/30/2024-12/31/2024 | M4: Weekly Support Obligation | O4: Low Income Calc | P4: =IF(OR(AND(D5="DAD",Worksheet!C32<800),AND(Worksheet!B32<800,'Data Entry'!D5="MOM")),"Yes","No") -> No | Q4: DAD (Imputed Income)
A5: Number of Kids | B5: 1 | C5: Obligor (who will pay?) | H5: 01/01/2024-09/29/2024
A6: Parent's income imputed or actual? | B6: MOM (Actual Income) | C6: DAD (Actual Income) | D6: Non-Parent Cust. | H6: 09/30/2023-12/31/2023 | I6: CP Name | M6: Standard GL
A7: Filling Status (S = Single, M = Married) | B7: s | C7: s | H7: 01/01/2023-09/29/2023 | I7: NCP Name | M7: mom | N7: dad | Q7: MOM
A8: Withholding Allowances | B8: 2 | C8: 1 | H8: 09/30/2022-12/31/2022 | I8: CP Address | M8: =IF($A20="Weekly Support Obligation",Worksheet!B48,Worksheet!B47) -> 440.13 | N8: =IF($A20="Weekly Support Obligation",Worksheet!C48,Worksheet!C47) -> 422.87 | Q8: DAD
A9: Gross Monthly (Non-Taxable) Income | H9: 01/01/2022-09/29/2022 | I9: L2
A10: Gross Monthly (Taxable) Income | B10: 2426.67 | C10: 2426.67 | H10: 09/30/2021-12/31/2021 | I10: City, State Zip | M10: Shared custody GL | O10: SS Wage Base Test
A11: Legally Ordered Child Support | H11: 01/01/2021-09/29/2021 | M11: mom | N11: dad | O11: 0.062 | P11: =ROUND(B10*0.062,2) -> 150.45 | Q11: =ROUND(C10*0.062,2) -> 150.45
A12: Other Allowable Ded. / Smith-Speed Dev. | H12: 2020 | I12: Sort | J12: Child Name | K12: DOB | M12: =IF($A20="Weekly Support Obligation",'Shared Parenting'!B54,'Shared Parenting'!B53) -> 0 | N12: =IF($A20="Weekly Support Obligation",'Shared Parenting'!C54,'Shared Parenting'!C53) -> 0 | O12: Med | P12: =ROUND(B10*0.0145,2) -> 35.19 | Q12: =ROUND(C10*0.0145,2) -> 35.19
A13: Self Employed? (yes: 1, no: blank) | H13: 2019 | O13: sum | P13: =P11+P12 -> 185.64 | Q13: =Q11+Q12 -> 185.64
A14: Health Care Deduction | H14: 2018 | M14: =IF($A20="Weekly Support Obligation","Weekly","Monthly") -> Monthly | O14: SS | P14: =B28-P12 -> 150.45 | Q14: =C28-Q12 -> 150.45
A15: Health Care Cost for Child(ren) | H15: 2017
A16: Day Care | H16: 2016 | M16: Split Custody GL
A17: SSD/SSR Benefits Paid to Children | H17: 2015 | M17: mom | N17: dad
A18: % Nights Child(ren) in HH (example: .71) | H18: 2014 | M18: =IF($A20="Weekly Support Obligation",'Split Custody'!B32,'Split Custody'!B31) -> 0 | N18: =IF($A20="Weekly Support Obligation",'Split Custody'!C32,'Split Custody'!C31) -> 0 | O18: Error Check & Messages:
A19: # Kids in household (split custody only) | E19: =P21 ->  | H19: 2013 | O19: Split Pay | P19: =IF(AND(P2="Yes",B5<>B19+C19),"NOTE: The number of children entered in row 19 must add up to the number of kids entered in cell B5","N/A") -> N/A
A20: Monthly Support Obligation | B20: =IF(P3="Yes","Who's the obligor?",IF(AND(P4="Yes",D5="MOM"),M27,IF(P1>0,M12,IF(P2="Yes",M18,M8)))) -> 440.13 | C20: =IF(P3="Yes","Who's the obligor?",IF(AND(P4="Yes",D5="DAD"),M27,IF(P1>0,N12,IF(P2="Yes",N18,N8)))) -> 422.87 | H20: 2012 | I20: CSE Case Number | O20: Shared/Split Combo | P20: =IF(AND(B18<>"",B19<>"",C18<>"",C19<>""),"NOTE: I can't consider a split custody and shared parenting at the same time. Please delete data entered in row 18 or 19.","N/A") -> N/A
A21: 20% of Current Support | B21: =IF(ISERROR(IF($D4="N",ROUND(B20*0.2,2),ROUND(B20*0.2,0)))=TRUE,"",IF($D4="N",ROUND(B20*0.2,2),ROUND(B20*0.2,0))) -> 88.03 | C21: =IF(ISERROR(IF($D4="N",ROUND(C20*0.2,2),ROUND(C20*0.2,0)))=TRUE,"",IF($D4="N",ROUND(C20*0.2,2),ROUND(C20*0.2,0))) -> 84.57 | H21: 2011 | I21: CC# | M21: GL for Low Income Worksheet | O21: Total | P21: =IF(P19<>"N/A",P19,IF(P20<>"N/A",P20,"")) -> 
A22: Current + 20% arrs pymt | B22: =IF(B21="","",B20+B21) -> 528.16 | C22: =IF(C21="","",C20+C21) -> 507.44 | H22: 2010 | M22: Dad | N22: =IF(P$1=1,'Shared Parenting'!C$53,IF('Data Entry'!P$2="Yes",'Split Custody'!C$31,Worksheet!C$47)) -> 422.87
H23: 2009.4
A24: **Please note: If income is entered on the "Income Breakdown" page, wages entered on this page will be ignored. | H24: 2009 | M24: Mom | N24: =IF(P$1=1,'Shared Parenting'!B$53,IF('Data Entry'!P$2="Yes",'Split Custody'!B$31,Worksheet!B$47)) -> 440.13
A25: Source of income for calculation: | B25: =IF('Income Breakdown'!B23:C23="NO","This Page","Income Breakdown Page") -> This Page | H25: 2008
A26: Calculated (Monthly) Taxes | H26: 2007 | I26: Link | J26: Child Name | K26: DOB | M26: Low Income GL
A27: Federal Withholding | B27: =Worksheet!B26 -> 109.62 | C27: =Worksheet!C26 -> 152.58 | D27: =IF(Worksheet!B32<800,"Someone's net income is less than $800. Please make sure the obligor field (D5) has been updated",IF(Worksheet!C32<800,"Someone's net income is less than $800. Please make sure the obligor field (D5) has been updated","")) ->  | H27: 2006 | M27: =IF($A20="Weekly Support Obligation",'Low Income'!C26,'Low Income'!C24) -> -981.52
A28: FICA | B28: =Worksheet!B27 -> 185.64 | C28: =Worksheet!C27 -> 185.64 | H28: 2005
A29: Net Income (from worksheet) | B29: =Worksheet!B32 -> 2131.41 | C29: =Worksheet!C32 -> 2088.45 | H29: 2004
A30: Development Tests: | F30: self empl | H30: 2003.7
A31: ="Gross x "&E31&+" (SS FICA - no limit)" ->  | B31: =B10*E31 ->  | C31: =C10*E31 ->  | D31: SS FICA Rate | E31: =VLOOKUP(B4,Tables!U3:V39,2) ->  | F31: =VLOOKUP(B4,Tables!AE3:AI42,2) ->  | H31: 2003
A32: FICA SS (from Tables) | B32: =SUM(Tables!L3:L43,Tables!N3:N43) -> 0 | C32: =SUM(Tables!M3:M43,Tables!O3:O43) -> 0 | D32: SS FICA Max wage/mn | E32: =VLOOKUP(B4,Tables!U3:X43,4) ->  | F32: =VLOOKUP(B4,Tables!AE3:AI43,4) ->  | H32: 2002
A33: FICA Med (from Tables) | B33: =SUM(Tables!P12:P15,Tables!R12:R15) -> 35.19 | C33: =SUM(Tables!Q12:Q15,Tables!S12:S15) -> 35.19 | D33: SS FICA Max ded/mn | E33: =VLOOKUP(B4,Tables!U3:Y43,5) ->  | F33: =VLOOKUP(B4,Tables!AE3:AI43,5) ->  | H33: 2001.7 | J33: =COUNTA(J13:J18) -> 0
A34: Sum from Tables | B34: =SUM(B32:B33) -> 35.19 | C34: =SUM(C32:C33) -> 35.19 | H34: 2001
H35: 2000
A36: Development Tests (self empl): | H36: 1999
A37: ="Gross x "&E37&+" (SS FICA - no limit)" -> Gross x (SS FICA - no limit) | B37: =B10*F31 ->  | C37: =C10*F31 ->  | H37: 1998
A38: FICA SS (from Tables) | B38: =SUM(Tables!L3:L43,Tables!N3:N43) -> 0 | C38: =SUM(Tables!M3:M43,Tables!O3:O43) -> 0 | H38: 1997
A39: FICA Med (from Tables) | B39: =SUM(Tables!P12:P15,Tables!R12:R15) -> 35.19 | C39: =SUM(Tables!Q12:Q15,Tables!S12:S15) -> 35.19 | H39: 1996
A40: Sum from Tables | B40: =SUM(B38:B39) -> 35.19 | C40: =SUM(C38:C39) -> 35.19 | H40: 1995
H41: 1994
H42: 1993
H43: 1992
H44: 1990
H45: 1989
H46: 1988
H47: 1987
H48: 1986
H49: 1985
H50: 1984
H51: 1983
H52: 1982

Sheet Instructions
B1: INSTRUCTIONS
B2: EXCEL GUIDELINE SPREADSHEET
B3: Introduction / Worksheets Defined / Navigation
B4: This spreadsheet is designed to automate the calculation of current and retroactive support, based on ch. 61, Florida Statutes. The worksheets labeled "Data Entry", "Retro Data", and "Income Breakdown" are the worksheets you use most for completing support calculations. Most of the other worksheets contain forms, tables and formulas; which are necessary for the spreadsheet to perform accurate guideline calculations . As a safeguard, this information is protected and you will be unable to make changes to it. UNDER NO CIRCUMSTANCES SHOULD YOU EVER UNPROTECT AND/OR CHANGE PROTECTED CELLS. DOING SO WILL AFFECT THIS SPREADSHEET'S ABILITY TO MAKE ACCURATE CALCULATIONS. Data Entry is where you complete individual guideline calculations. Retro Data is where you will complete a retroactive support calaculations. If it becomes necessary to itemize several types of income, the "Income Breakdown" worksheet should be used. If income information is entered on both the "Data Entry" and "Income Breakdown" sheets, the spreadsheet will only consider income entered on the "Income Breakdown" worksheet.
B5: These instructions start with what should be entered in the fields (or cells) of each worksheet, and conclude with a description of the navigation buttons you'll see on the worksheets you'll be using.
B6: NOTE: BEFORE USING THE SPREADSHEET FOR CALCULATIONS: replace the Judicial Circuit with the appropriate circuit in field D1 and replace the county with the appropriate county in filed D2. Save the file to retain this information. Whenever possible, it is best to navigate within the program (that is, to switch between the displayed worksheets) using the “Go To” navigation buttons contained within the worksheet rather than the worksheet tabs at the bottom of the screen.
B7: ** IMPORTANT NOTE: This spreadsheet is designed to calculate Federal Withholding and Federal Insurance deductions (Social Security and Medicare). THIS SPREADSHEET DOES NOT AUTOMATICALLY CALCULATE STATE OR LOCAL TAXES. If it is appropriate for either party to be given a deduction for state or local taxes, this amount needs to be manually entered in the "Other Allowable Deductions" field (which will be described in further detail below).
B8: Data Entry Worksheet Field Descriptions and Functions
B9: Use this worksheet to enter data for the calculation of current support.
B10: Cell | C10: FIELD | D10: WHAT DO I DO? | E10: WHAT DOES IT DO? | F10: SPECIAL NOTES/WHAT TO EXPECT.
B11: B1 | C11: Petitioner | D11: Enter the CP's name as indicated in the style of your court case. | E11: Displays the information on the printed guidelines worksheet. | F11: Entry in these fields only affects the way this information appears In corresponding fields on the printed guideline form.
B12: B2 | C12: Respondent | D12: Enter the NCP's name as indicated in the style of your court case.
B13: B3 | C13: Court Case # | D13: Enter the Court Case #
B14: D1 | C14: Jud. Circuit | D14: Enter the correct Judicial Circuit (1st, 6th, etc)
B15: D2 | C15: County | D15: Enter the county in which the court proceeding is taking place.
B16: D4 | C16: NOTE: If you want GL figures to be rounded to the nearest whole dollar, place a "Y" in this cell ("Round? (Y/N)).
B17: D5 | C17: Obligor (who will pay?) | D17: Select "MOM" or "DAD" | E17: Tells the spreadsheet how to calculate support when one of the parties' net income is less than $850 per month | F17: Makes no difference to the guideline calculation unless someone's net income is less than $850... At which point the "Low Income Worksheet" will be used by the spreadsheet to determine the amount of support sought.
B18: B4 | C18: Tax Year | D18: Enter the appropriate year. 2001, 2003, and 2009 had mid-year changes to the Federal Withholding formulas. To calculate withholding after the change, enter the tax year as YYYY.M (2001.7, 2003.7, or 2009.4). To calculate withholding prior to the change, enter the tax year as YYYY. | E18: Calculates Federal withholding and FICA payroll deductions using the appropriate federal tax tables for the entered tax year, and for appropriate types of income. | F18: The entry of a year in this cell will prompt this program to calculate federal withholding (using the "percentage method") and FICA as indicated by IRS Publication 15, Circular E- for the entered tax year .
B19: B5 | C19: Number of Children | D19: Enter the appropriate # of children. The field will accept 1-20. | E19: Calculates the base minimum need for the # of children entered. | F19: The minimum needs chart pursuant to (Chapter 61.3 F.S.) only provides for a maximum of 6 children. For entries exceeding 6 children, the minimum need is calculated as described by policy. The percent increase from 5 to 6 kids is calculated by dividing the amount for 6 by the amount for 5. This percentage increase is then applied to the amount for 6 to get the hypothetical table amount for 7 kids.
B20: B7-C7 | C20: Filing Status | D20: Enter "S" for a filing status of "Single", and "M" for a filing status of"Married" | E20: Uses this information for the calculation of Federal Withholding. | F20: A "single" filing status usually results in a larger Federal Withholding deduction.
B21: B8-C8 | C21: Withholding Allowances | D21: Enter the # of people the individual claims as a dependent on their tax return. The individual should be included in this count. | F21: More withholding allowances routinely result in higher net incomes; conversely, fewer withholding allowances tend to result in lower net incomes.
B22: B9-B10 | C22: Gross Monthly (Non-Taxable) Income. **See Below. | D22: Enter the amount of non-taxable income (i.e.: SSI, SSD, etc). It is not necessary to enter the $ sign. This formatting has already been incorporated into the program for you and will display entered data in currency format. | E22: Incorporates this figure into calculations, but does not perform taxes deductions. | F22: Note: do not include any SSD/SSR benefits paid to either party for the child(ren). SSD/SSR benefits paid to either party for support of the child will be entered in another cell (and accounted for correctly on the printed worksheet).
B23: B10-C10 | C23: Gross Monthly (Taxable) Income. **See Below. | D23: Enter the amount of taxable income. | E23: Calculates the appropriate tax and FICA deductions from the applicable tax tables (based on data entered in previous fields) on the printed guidelines worksheet.
B24: B11-C11 | C24: Legally Ordered Child Support | D24: Enter the amount of any Legally Ordered child support obligation actually paid for other children of an order not before the court. | E24: Deducts this amount from the individuals gross income on the printed guidelines worksheet.
B25: B12-C12 | C25: Other Allowable Deductions | D25: Enter all allowable deductions other than legally ordered child support paid, health insurance, and federal taxes that are incurred by the individual. | E25: Makes the appropriate deductions on the printed guidelines worksheet. | F25: These may include: State or local taxes (example: party resides in a state with a state income tax), Mandatory Union Dues (when employment is contingent upon membership and the dues are paid), Federal and State garnishment for past due taxes, Court Ordered Spousal Support (alimony) which is actually paid, Mandatory Retirement Payments.
B26: B13-C13 | C26: Self-Employed | D26: Enter the number 1 if the individual is self employed. Leave this field blank if the individual is not self employed. | E26: The entry of a 1 calculates the appropriate adjustments in federal tax deductions for self employed individuals. | F26: The federal tax deduction is increased for the self employed.
B27: B14-C14 | C27: Health Care Deduction | D27: Enter the amount that the individual pays, excluding the cost to cover the child(ren) of this action. | E27: Deducts this amount from the individuals gross income on the printed guidelines worksheet.
B28: B15-C15 | C28: Health Care Cost for Child(ren) | D28: Enter the cost to care for the child(ren) of this action only. | E28: Adds this amount to the minimum monthly need of the child(ren).
B29: B16-C16 | C29: Day Care | D29: Enter the total amount of appropriate day care expense this individual pays for the child(ren) of this action only. | E29: Calculates 75% of this amount and adds it to the minimum monthly need of the child(ren).
B30: B17-C17 | C30: SSD/SSR Benefits Paid to Children | D30: Enter the amount of SSD/SSR (social security disability or retirement benefits) paid to the child on behalf of the above individual. | E30: Adds this amount to the monthly net income of the individual from whom the benefits derive. It will subtract the benefit from the amount of support being sought if the NCP is the recipient of SSD/SSR benefits. | F30: IMPORTANT NOTE: This amount is not necessarily entered under the individual who receives the benefit on behalf of the child (usually the CP), but under whose benefit the support derives from. For example: if the NCP receives SSD, and the child receives a derivitive benefit, this amount would be entered under the NCP.
B31: B18-C18 | C31: % Nights Child(ren) in HH (example: .71) | D31: In cases where the NCP excercises "substantial" visitation (at least 20% of the "overnight stays"), enter the percentage of the "overnight stays" over the course of a year that the child(ren) stays with the parent. Leave these fields blank if the NCP does not excersise "substantial visitation". | E31: If data is entered in these fields, the spreadsheet is prompted to print (when the print button is clicked) a different guideline worksheet, one that follows the statute change 7/2001, concerning shared parental custody, and revised by the 2010 legislative session (eff 1/1/11). | F31: According to 2001 and 2010 changes to Ch. 61.3 FS.
B32: B19-C19 | C32: # Kids in household (split custody only) | D32: In cases where the parties split the custody of multiple children (for example: there are three children; two of which live with the father and one of which lives with the mother), enter the number of children (of the action) that reside with each parent. Leave these fields blank if the parties do not split the custody of multiple children. The total number of children should still be entered in cell B6. | E32: If data is entered in these fields, the spreadsheet is prompted to print (when the print button is clicked) an additional worksheet (in addition to the standard guideline worksheet). This additional worksheet attempts to replicate the calculation set forth in Rooney v. Rooney (750 So.2d 118). | F32: **NOTE: On these cases, the standard guideline worksheet is printed for reference only - to show where the figures on the "Split Custody" worksheet come from. - See Rooney v. Rooney (750 So.2d 118)
B33: A20 | C33: Monthly / Weekly Support Obligation | D33: Select cell, in drop-down menu, select Monthly or Weekly Support Obligation | E33: If weekly is selected, an extra row is added to the bottom of the printed worksheet, indicating the weekly obligation. Also, retro will be calculated weekly, using a different worksheet (when you click the retro related buttons on the data entry page). | F33: Note: the instructions below refer to the monthly retro worksheet.
B34: ** | C34: If you are not sure how either parties' income is taxed, IT IS STRONGLY RECOMMENDED YOU ENTER BOTH PARTIES INCOME ON THE "Income Breakdown" PAGE. Whenever income is entered on the "Income Breakdown" page, the spreadsheet will disregard entries relating to income on the "Data Entry" page. All other entries (deductions, parties names, etc.) should still be made on the "Data Entry" page.
B36: DATA ENTRY WORKSHEET buttons:
B37: Reset: removes entries from all worksheets, returns all cells to their "default" values, and prepares the spreadsheet for new data.
B38: Print: Prints the completed guideline worksheet.
B39: Create a Minimum Wage GL: pastes the minimum wage in the Gross income field for both parties (for the year entered in the Tax Year field).
B41: Insert US Census Median Income (FL): gives user the option of inserting the most recently reported median income for a single wage earner in the State of Florida, according to the US Census Bureau - into either mom, dad, or both parent's gross monthly income fields.
B42: Send Mom's Obl. To Retro Worksheet: exports the guideline support amount to the appropriate field (on the Retro Data worksheet) for use in the Retro data sheet.
B43: Send Dad's Obl. To Retro Worksheet: exports the guideline support amount to the appropriate field (on the Retro Data worksheet) for use in the Retro data sheet.
B44: Go to Payment Conversion: Brings the user to a page which displays the monthly, semi-monthly, biweekly, and weekly payment amounts.
B45: Go to Retro Data: takes you to the Retro Data worksheet (used for calculating retroactive support).
B46: Go To Income Breakdown: Brings the user to a page which describes which kinds of income are taxed, which kinds are not; and which allows the user to itemize each parties' income. When income is entered on the Income Breakdown page, the spreadsheet assumes it will be ignoring the income fields on the "Data Entry" page.
B47: Display Support Schedule: Calculates reducing obligations for remaining children as each child is no longer eligible to receive child support using the existing information. When multiple withholding allowances are indicated for a parent, the number of allowances is reduced by 1 when calculating the reduced obligations.
B48: Clear Support: Removes the support schedule to allow for recalculation when information on the data entry section is changed or added.
B50: Retro Data Worksheet Field Descriptions and Functions
B51: The purpose of this worksheet is to enter data that will offer justification for the establishment of retro support and to perform certain retro calculations for you. These instructions only refer to the monthly calculation of retroactive support.
B52: Cell | C52: FIELDS | D52: WHAT DO I DO? | E52: WHAT DOES IT DO? | F52: SPECIAL NOTES/WHAT TO EXPECT.
B53: B3 | C53: Date of Filing | D53: Enter the date the Case was filed in your Court. | E53: Provides information on the printed Retro Worksheet. | F53: These fields do not affect the retro guidelines calculation
B54: B4 | C54: DOB/DOS | D54: Enter the date of birth(DOB) for a child or child(ren) in this case if the NCP never resided with them. Separate your entries with a "," Enter the date of Separation (DOS) if the NCP previously resided with the child(ren).
B55: B5 | C55: 1st pay date | D55: Enter the date the first support payment was/is due.
B56: B7 | C56: NCP Payments to CP During Retro Period | D56: Enter the payments the NCP has made to the CP during the retro time period. | E56: This amount will be deducted from the gross amount of retro support owed (based on guidelines). | F56: The "Total Retro" field on the right hand side of this screen will show the "net" amount of retro support due (guidelines - payments made).
B57: B10 - C14 | C57: Incarceration | D57: Enter the "from" date and the "to" date In the fields provided. | E57: This information will display on the printed Retro worksheet. It is for information only and will not affect the retro calculation.
B58: B16 - C20 | C58: Co-Habitation
B59: H3 - H20 | C59: Guideline amount | D59: You can manually input this figure , but the spreadsheet will copy and past the guideline support amount from the data worksheet for you. (See navigation instructions). | E59: Total retro support is calculated using this figure. This will be displayed on the printed retro worksheet. | F59: This entry can be made for each guideline calculation you do for different periods of time. (See navigation instructions.)
B60: D3 - G20 | C60: "From" and "Thru" | D60: Enter the month and year to indicate the period of time for which the guideline amount should be retroactively calculated. This field can only be used to calculate retro monthly. | E60: The total retro amount will be calculated and displayed in column I of the worksheet. This will also be displayed on the printed Retro worksheet, together with the time frame you enter in these date fields . | F60: The NA/PA figures will display on the retro data sheet, but these figures must be manually recorded to retain them as they will not appear on the printed retro worksheet.
B62: RETRO DATA WORKSHEET buttons:
B63: Reset: removes entries from the Retro Data worksheet only, and prepares the sheet for new data.
B64: Print: Prints the completed retro worksheet.
B65: Go to Data Entry- Takes you to the Data Entry worksheet.
B67: Pymt Convert Worksheet Field Descriptions and Functions
B68: The purpose of this worksheet is to provide a quick reference for monthly guideline amounts converted to weekly, biweekly, and semi-monthly amounts; as well as to help determine when a modification of child support may be warranted.
B69: Cell | C69: FIELDS | D69: WHAT DO I DO? | E69: WHAT DOES IT DO? | F69: SPECIAL NOTES/WHAT TO EXPECT.
B70: C20 | C70: Current Obligation Freq. | D70: Enter the frequency of the current obligation. | E70: see below
B71: C21 | C71: Current Obligation Amt. | D71: Enter the amount of the current obligation. | E71: The spreadsheet will convert this amount to a monthly figure. If nothing is entered in the frequency field, the spreadsheet will assume the frequency is monthly.
B72: C24 | C72: New Obligation Amt/MN | D72: Enter the new monthly obligation, per guidelines. | E72: The spreadsheet will compare the old and new amounts and will provide the percent change.
B74: Pymt Convert WORKSHEET buttons:
B75: Go to Data Entry- takes you to the Data Entry worksheet.
B79: FINAL NOTE: YOU SHOULD NEVER SAVE THE GUIDELINES FILE WHEN YOU EXIT. If for any reason, it has been saved upon exit, simply re-open and reset the appropriate worksheets using the reset button.

Sheet Min Wage + Poverty Reference
A1: Minimum Wage Reference | H1: Federal Poverty Guidelines | M1: Median Income
B3: Federal Rate | E3: Florida Rate
A4: Effective Date | B4: Hourly | C4: Mthly Avg | E4: Hourly | F4: Mthly Avg | H4: Year | I4: Individual | J4: Avg / MN | K4: Link to details | M4: Individual | N4: Avg / MN
A5: 2026-09-30 | B5: 7.25 | C5: 1256.67 | E5: 15 | F5: =ROUND(E5*40*52/12,2) -> 2600 | H5: 09/30/2026-12/31/2026 | I5: 12490 | J5: =ROUND(I5/12,2) -> 1040.83 | M5: 54375 | N5: =ROUND(M5/12,2) -> 4531.25
A6: 2026-01-01 | B6: 7.25 | C6: 1256.67 | E6: 14 | F6: =ROUND(E6*40*52/12,2) -> 2426.67 | H6: 01/01/2026-09/29/2026 | I6: 12490 | J6: 1040.83 | K6: 2021 Guidelines
A7: 2025-09-30 | B7: 7.25 | C7: 1256.67 | E7: 14 | F7: =ROUND(E7*40*52/12,2) -> 2426.67 | H7: 09/30/2025-12/31/2025 | I7: 12490 | J7: 1040.83 | K7: All Prior Years
A8: 2025-01-01 | B8: 7.25 | C8: 1256.67 | E8: 13 | F8: =ROUND(E8*40*52/12,2) -> 2253.33 | H8: 01/01/2025-09/29/2025 | I8: 12490 | J8: 1040.83
A9: 2024-09-30 | B9: 7.25 | C9: 1256.67 | E9: 13 | F9: =ROUND(E9*40*52/12,2) -> 2253.33 | H9: 09/30/2024-12/31/2024 | I9: 12490 | J9: 1040.83
A10: 2024-01-01 | B10: 7.25 | C10: 1256.67 | E10: 12 | F10: =ROUND(E10*40*52/12,2) -> 2080 | H10: 01/01/2024-09/29/2024 | I10: 12490 | J10: 1040.83
A11: 2023-09-30 | B11: 7.25 | C11: 1256.67 | E11: 12 | F11: =ROUND(E11*40*52/12,2) -> 2080 | H11: 09/30/2023-12/31/2023 | I11: 12490 | J11: =ROUND(I11/12,2) -> 1040.83
A12: 2023-01-01 | B12: 7.25 | C12: 1256.67 | E12: 11 | F12: =ROUND(E12*40*52/12,2) -> 1906.67 | H12: 01/01/2023-09/29/2023 | I12: 12490 | J12: 1040.83
A13: 2022-09-30 | B13: 7.25 | C13: 1256.67 | E13: 11 | F13: =ROUND(E13*40*52/12,2) -> 1906.67 | H13: 09/30/2022-12/31/2022 | I13: 12490 | J13: =ROUND(I13/12,2) -> 1040.83
A14: 2022-01-01 | B14: 7.25 | C14: 1256.67 | E14: 10 | F14: =ROUND(E14*40*52/12,2) -> 1733.33 | H14: 01/01/2022-09/29/2022 | I14: 12490 | J14: =ROUND(I14/12,2) -> 1040.83
A15: 2021-09-30 | B15: 7.25 | C15: 1256.67 | E15: 10 | F15: =ROUND(E15*40*52/12,2) -> 1733.33 | H15: 09/30/2021-12/31/2021 | I15: 12490 | J15: =ROUND(I15/12,2) -> 1040.83
A16: 2021-01-01 | B16: 7.25 | C16: 1256.67 | E16: 8.65 | F16: 1499.33 | H16: 01/01/2021-09/29/2021 | I16: 12490 | J16: 1040.83
A17: 2020-01-01 | B17: 7.25 | C17: 1256.67 | E17: 8.56 | F17: 1483.73 | H17: 2020 | I17: 12490 | J17: 1040.83
A18: 2019-01-01 | B18: 7.25 | C18: 1256.67 | E18: 8.46 | F18: 1466.4 | H18: 2019 | I18: 12490 | J18: 1040.83
A19: 2018-01-01 | B19: 7.25 | C19: 1256.67 | E19: 8.25 | F19: 1430 | H19: 2018 | I19: 12140 | J19: 1011.67
A20: 2017-01-01 | B20: 7.25 | C20: 1256.67 | E20: 8.1 | F20: 1404 | H20: 2017 | I20: 12060 | J20: 1005
A21: 2016-01-01 | B21: 7.25 | C21: 1256.67 | E21: 8.05 | F21: 1395.33 | H21: 2016 | I21: 11880 | J21: 990
A22: 2015-01-01 | B22: 7.25 | C22: 1256.67 | E22: 8.05 | F22: 1395.33 | H22: 2015 | I22: 11770 | J22: 980.83
A23: 2014-01-01 | B23: 7.25 | C23: 1256.67 | E23: 7.93 | F23: =ROUND(E23*40*52/12,2) -> 1374.53 | H23: 2014 | I23: 11670 | J23: =ROUND(I23/12,2) -> 972.5
A24: 2013-01-01 | B24: 7.25 | C24: 1256.67 | E24: 7.79 | F24: =ROUND(E24*40*52/12,2) -> 1350.27 | H24: 2013 | I24: 11490 | J24: =ROUND(I24/12,2) -> 957.5
A25: 2012-01-01 | B25: 7.25 | C25: =ROUND(B25*40*52/12,2) -> 1256.67 | E25: 7.67 | F25: =ROUND(E25*40*52/12,2) -> 1329.47 | H25: 2012 | I25: 11170 | J25: =ROUND(I25/12,2) -> 930.83
A26: 2011-06-01 | B26: 7.25 | C26: 1256.67 | E26: 7.31 | F26: =ROUND(E26*40*52/12,2) -> 1267.07 | H26: 2011 | I26: 10890 | J26: 907.5
A27: 2011-01-01 | B27: 7.25 | C27: 1256.67 | D27: Same as Federal | H27: 2010 | I27: 10830 | J27: 902.5
A28: 2009-07-24 | B28: 7.25 | C28: 1256.67 | E28: 7.21 | F28: 1249.73 | H28: 2009 | I28: 10830 | J28: =ROUND(I28/12,2) -> 902.5
A29: 2009-01-01 | B29: 6.55 | C29: 1135.33 | E29: 7.21 | F29: =ROUND(E29*40*52/12,2) -> 1249.73 | H29: 2008 | I29: 10400 | J29: =ROUND(I29/12,2) -> 866.67
A30: 2008-07-24 | B30: 6.55 | C30: 1135.33 | E30: 6.79 | F30: 1176.93 | H30: 2007 | I30: 10210 | J30: 850.83
A31: 2008-01-01 | B31: 5.85 | C31: 1014 | E31: 6.79 | F31: =ROUND(E31*40*52/12,2) -> 1176.93 | H31: 2006 | I31: 9800 | J31: 816.67
A32: 2007-07-24 | B32: 5.85 | C32: 1014 | E32: 6.67 | F32: =ROUND(E32*40*52/12,2) -> 1156.13 | H32: 2005 | I32: 9570 | J32: 797.5
A33: 2007-01-01 | B33: 5.15 | C33: 892.67 | E33: 6.67 | F33: =ROUND(E33*40*52/12,2) -> 1156.13 | H33: 2004 | I33: 9310 | J33: 775.83
A34: 2006-01-01 | B34: 5.15 | C34: =ROUND(B34*40*52/12,2) -> 892.67 | E34: 6.4 | F34: =ROUND(E34*40*52/12,2) -> 1109.33 | H34: 2003 | I34: 8980 | J34: 748.33
A35: 2005-05-02 | B35: 5.15 | C35: 892.67 | E35: 6.15 | F35: =ROUND(E35*40*52/12,2) -> 1066 | H35: 2002 | I35: 8860 | J35: 738.33
A36: 1997-09-01 | B36: 5.15 | C36: 892.67 | D36: Same as Federal | H36: 2001 | I36: 8590 | J36: 715.83
A37: 1996-10-01 | B37: 4.75 | C37: 823.33 | D37: Same as Federal | H37: 2000 | I37: 8350 | J37: 695.83
A38: 1991-04-01 | B38: 4.25 | C38: 736.67 | D38: Same as Federal | H38: 1999 | I38: 8240 | J38: 686.67
A39: 1990-01-01 | B39: 3.85 | C39: 667.33 | D39: Same as Federal | H39: 1998 | I39: 8050 | J39: 670.83
A40: 1981-01-01 | B40: 3.35 | C40: 580.67 | D40: Same as Federal | H40: 1997 | I40: 7890 | J40: 657.5
H41: 1996 | I41: 7740 | J41: 645
H42: 1995 | I42: 7470 | J42: 622.5
H43: 1994 | I43: 7360 | J43: 613.33
H44: 1993 | I44: 6970 | J44: 580.83
H45: 1992 | I45: 6810 | J45: 567.5
H46: 1991 | I46: 6620 | J46: 551.67
H47: 1990 | I47: 6280 | J47: 523.33
H48: 1989 | I48: 5980 | J48: 498.33
H49: 1988 | I49: 5770 | J49: 480.83
H50: 1987 | I50: 5500 | J50: 458.33
H51: 1986 | I51: 5360 | J51: 446.67
H52: 1985 | I52: 5250 | J52: 437.5
H53: 1984 | I53: 4980 | J53: 415
H54: 1983 | I54: 4860 | J54: 405
H55: 1982 | I55: 4860 | J55: 405

Sheet Worksheet
A1: FLORIDA DEPARTMENT OF REVENUE
A2: CHILD SUPPORT PROGRAM
A3: CHILD SUPPORT GUIDELINES WORKSHEET
A4: ="IN THE CIRCUIT COURT OF THE "&+'Data Entry'!D1&" JUDICIAL CIRCUIT" -> IN THE CIRCUIT COURT OF THE 2nd JUDICIAL CIRCUIT
A5: ="IN AND FOR "&+'Data Entry'!D2&" COUNTY, FLORIDA" -> IN AND FOR Leon COUNTY, FLORIDA
A7: =IF('Data Entry'!B1="","",'Data Entry'!B1&", Petitioner") -> 
A8: vs. | C8: ="cc#: "&+'Data Entry'!B3 -> cc#:
A9: =IF('Data Entry'!B2="","",'Data Entry'!B2&", Respondent") -> 
A11: Legal/Alleged Obligor(s): [ ]Mother [ ]Legal/Alleged Father
A12: Obligee: [ ]Mother [ ]Legal/Alleged Father [ ]Nonparent Custodian
A14: Tax Year (**See Note Below) | B14: ='Data Entry'!B4 -> 01/01/2026-09/29/2026
A15: Number of Children | B15: ='Data Entry'!B5 -> 1
B16: MOTHER | C16: FATHER | D16: Non-Parent
A17: Filing Status (s = single, m = married) | B17: ='Data Entry'!B7 -> s | C17: ='Data Entry'!C7 -> s | D17: Custodian
A18: Withholding Allowances Claimed | B18: ='Data Entry'!B8 -> 2 | C18: ='Data Entry'!C8 -> 1
A20: Child Care | B20: =ROUND('Data Entry'!B16,2) -> 0 | C20: =ROUND('Data Entry'!C16,2) -> 0 | D20: =ROUND('Data Entry'!D16,2) -> 0
A21: Health Care Cost for Child(ren) | B21: =ROUND('Data Entry'!B15,2) -> 0 | C21: =ROUND('Data Entry'!C15,2) -> 0 | D21: =ROUND('Data Entry'!D15,2) -> 0
A22: SSD/SSR Benefits Paid to Children | B22: =ROUND('Data Entry'!B17,2) -> 0 | C22: =ROUND('Data Entry'!C17,2) -> 0
A23: Actual or Imputed Income | B23: =IF('Data Entry'!B6="MOM (Actual Income)","actual","imputed") -> actual | C23: =IF('Data Entry'!C6="DAD (Actual Income)","actual","imputed") -> actual
A24: Gross Monthly (Non-Taxable) Income | B24: =IF('Income Breakdown'!B23="YES",'Income Breakdown'!B19-'Income Breakdown'!B20,ROUND('Data Entry'!B9,2)) -> 0 | C24: =IF('Income Breakdown'!B23="YES",'Income Breakdown'!C19-'Income Breakdown'!C20,ROUND('Data Entry'!C9,2)) -> 0
A25: Gross Monthly (Taxable) Income | B25: =IF('Income Breakdown'!B23="YES",'Income Breakdown'!B20,ROUND('Data Entry'!B10,2)) -> 2426.67 | C25: =IF('Income Breakdown'!B23="YES",'Income Breakdown'!C20,ROUND('Data Entry'!C10,2)) -> 2426.67
A26: Federal Withholding | B26: =ROUND(Withholding!B14,2) -> 109.62 | C26: =ROUND(Withholding!B15,2) -> 152.58
A27: FICA | B27: =ROUND(Tables!T3,2) -> 185.64 | C27: =ROUND(Tables!T5,2) -> 185.64
A28: Health Care Costs (minus costs for child) | B28: =ROUND('Data Entry'!B14,2) -> 0 | C28: =ROUND('Data Entry'!C14,2) -> 0
A29: Legally Ordered Child Support | B29: =ROUND('Data Entry'!B11,2) -> 0 | C29: =ROUND('Data Entry'!C11,2) -> 0
A30: Other Allowable Deductions | B30: =ROUND('Data Entry'!B12,2) -> 0 | C30: =ROUND('Data Entry'!C12,2) -> 0
A31: Self Employed? (yes: 1, no: 0) | B31: ='Data Entry'!B13 -> 0 | C31: ='Data Entry'!C13 -> 0
A32: Net Monthly Inc. | B32: =SUM(B24:B25,B22)-SUM(B26:B30) -> 2131.41 | C32: =SUM(C24:C25,C22)-SUM(C26:C30) -> 2088.45
A33: Combined Net Monthly Inc. | B33: =B32+C32 -> 4219.86 | C33: =B33 -> 4219.86
A34: Share of Support | B34: =ROUND(B32/B33,Tables!BJ2) -> 0.51 | C34: =ROUND(C32/C33,Tables!BJ2) -> 0.49
A35: Income Over $10,000 | B35: =IF(B33>10000,B33-10000,0) -> 0 | C35: =B35 -> 0
A37: Table A Support Need | B37: =IF(B15>6,Tables!AQ18,Tables!B7) -> 863 | C37: =B37 -> 863 | D37: =IF(B33<800,"*Note: Combined net income less than $800. Table value based on DOR policy.","") -> 
A38: Child Care Expense | B38: =ROUND(+SUM(B20:D20),2) -> 0 | C38: =B38 -> 0
A39: Health Care Cost for Children | B39: =ROUND(SUM(B21:D21),2) -> 0 | C39: =B39 -> 0
A40: Add. Sup. Need For Inc. > $10,000 | B40: =ROUND(+IF(B15=1,B35*0.05,0)+IF(B15=2,B35*0.075,0)+IF(B15=3,B35*0.095,0)+IF(B15=4,B35*0.11,0)+IF(B15=5,B35*0.12,0)+IF(B15=6,B35*0.125,0),2) -> 0 | C40: =B40 -> 0
A41: Total Monthly Support Need | B41: =SUM(B37:B40) -> 863 | C41: =B41 -> 863
A43: Basic Support Obligation | B43: =ROUND(B41*B34,2) -> 440.13 | C43: =ROUND(C41*C34,2) -> 422.87
A44: Credit For Child's Health Care | B44: =ROUND('Data Entry'!B15,2) -> 0 | C44: =ROUND('Data Entry'!C15,2) -> 0
A45: Credit For Child Care | B45: =B20 -> 0 | C45: =C20 -> 0
A46: Credit For SSD/SSR Benefits | B46: =B22 -> 0 | C46: =C22 -> 0
A47: =IF(AND('Data Entry'!$D$4="Y",'Data Entry'!$A$20="Monthly Support Obligation"),"Monthly Support Obligation (rounded)","Monthly Child Support Obligation") -> Monthly Child Support Obligation | B47: =IF('Data Entry'!$A20="Weekly Support Obligation",B43-SUM(B44:B46),IF('Data Entry'!$D4="N",B43-SUM(B44:B46),ROUND(B43-SUM(B44:B46),0))) -> 440.13 | C47: =IF('Data Entry'!$A20="Weekly Support Obligation",C43-SUM(C44:C46),IF('Data Entry'!$D4="N",C43-SUM(C44:C46),ROUND(C43-SUM(C44:C46),0))) -> 422.87
A48: =IF('Data Entry'!A$20="Weekly Support Obligation"," - Converted to Weekly Payments:","") ->  | B48: =IF('Data Entry'!$A$20="Monthly Support Obligation","",IF('Data Entry'!$D$4="N",ROUND(B47*12/52,2),ROUND(B47*12/52,0))) ->  | C48: =IF('Data Entry'!$A$20="Monthly Support Obligation","",IF('Data Entry'!$D$4="N",ROUND(C47*12/52,2),ROUND(C47*12/52,0))) -> 
A49: Name/Title:_______________________________________________ | C49: Date: | D49: =TODAY() -> 2026-01-07
A50: =IF('Data Entry'!P2="Yes","See SPLIT CUSTODY WORKSHEET for Respondent's obligation","") -> 
A51: =IF('Pymt Convert'!C22=0,"","Old Monthly Obligation: $"&+'Pymt Convert'!C22) ->  | B51: =IF('Pymt Convert'!C22=0,"","New Monthly Obligation: $"&+ROUND('Pymt Convert'!C24,2)) ->  | D51: =IF('Pymt Convert'!C22=0,"","Change: "&+'Pymt Convert'!F22*100&"%") -> 

Sheet Tables (hidden)
A1: Combined Net Income | B1: =FLOOR(Worksheet!B33,50) -> 4200 | C1: Com Inc | D1: 1 child | E1: 2 kids | F1: 3 kids | G1: 4kids | H1: 5kids | I1: 6 kids | K1: FICA-SS | N1: FICA-SS - Self Employed | P1: FICA-Med | R1: FICA-Med - Self Empl. | T1: TOTAL FICA | U1: FICA RATES - Employed | AE1: FICA RATES - Self Employed | AO1: Table a - 5 kids | AP1: =AP23 -> 2023 | AS1: Data Saved from Data Entry | AW1: =IF(COUNTBLANK(AT1:AU2)=4,"Blank","") -> Blank | AX1: Poverty Guidelines | AZ1: Year | BA1: One Person (yr) | BB1: Avg / MN | BC1: Link to details | BD1: Year specified? | BE1: Today's Date | BI1: Round Percentages to 3 places? | BM1: Shared parenting percentages
A2: - table income | B2: =IF(B1>10000,10000,B1) -> 4200 | C2: <649 | D2: 41 | E2: 45 | F2: 49 | G2: 53 | H2: 57 | I2: 62 | K2: Year | L2: Mom | M2: Dad | N2: Mom | O2: Dad | P2: Mom | Q2: Dad | R2: Mom | S2: Dad | T2: MOM | U2: Year | V2: FICA-SS Rate | W2: Wage Base/YR | X2: Wage Base/MN | Y2: Max/MN | Z2: Med Rate | AA2: Wage Bs./YR | AB2: MN threshhold | AC2: Adj MN Tax | AE2: Year | AF2: FICA-SS Rate | AG2: Wage Base/YR | AH2: Wage Base/MN | AI2: Max/MN | AJ2: Med Rate | AK2: Wage Bs./YR | AL2: Wage bs/MN | AM2: Max/MN | AO2: Table a - 6 kids | AP2: =AP29 -> 2163 | AX2: ='Data Entry'!B4 -> 01/01/2026-09/29/2026 | AY2: =SUM(BD1:BD44) -> 1040.83 | AZ2: 09/30/2026-12/31/2026 | BA2: ='Min Wage + Poverty Reference'!I5 -> 12490 | BB2: =ROUND(BA2/12,2) -> 1040.83 | BD2: =IF(AX$2=AZ2,BB2,0) -> 0 | BE2: =TODAY() -> 2026-01-07 | BG2: January | BH2: Y | BI2: N | BJ2: =IF(BI2="Y",3,2) -> 2 | BM2: a week | BN2: 7
C3: 650-749 | D3: 64 | E3: 01/01/2026-09/29/2026 | F3: 0.062 | G3: 184500 | H3: =G3/12 -> 15375 | I3: =ROUND(H3*F3,2) -> 953.25 | J3: 0.0145 | K3: Unlimited | L3: =IF('Data Entry'!$B$4<>K5,0,IF(T$9>$X3,$Y3,ROUND(T$9*$V3,2))) -> 0 | M3: =IF('Data Entry'!$B$4<>K5,0,IF(T$11>$X3,$Y3,ROUND(T$11*$V3,2))) -> 0 | N3: =IF('Data Entry'!$B$4<>K5,0,IF(T$14>$AH3,$AI3,ROUND(T$14*$AF3,2))) -> 0 | O3: =IF('Data Entry'!$B$4<>K5,0,IF(T$16>$AH3,$AI3,ROUND(T$16*$AF3,2))) -> 0 | T3: =SUM(L3:L56,N3:N56,P3:P56,R3:R56) -> 185.64 | U3: 1982 | V3: 0.067 | W3: 32400 | X3: =W3/12 -> 2700 | Y3: =ROUND(X3*V3,2) -> 180.9 | Z3: N/A | AE3: 1982 | AF3: 0.0935 | AG3: 32400 | AH3: =AG3/12 -> 2700 | AI3: =ROUND(AH3*AF3,2) -> 252.45 | AZ3: 01/01/2026-09/29/2026 | BA3: ='Min Wage + Poverty Reference'!I6 -> 12490 | BB3: 1040.83 | BD3: =IF(AX$2=AZ3,BB3,0) -> 1040.83 | BE3: =DAY(BE2) -> 7 | BF3: =IF(OR(BE3=1,BE3=21,BE3=31),"st",IF(OR(BE3=2,BE3=22),"nd",IF(OR(BE3=3,BE3=23),"rd","th"))) -> th | BG3: February | BH3: N | BM3: a year | BN3: 365
A4: Table A Row | B4: =IF((B2-800)/50<0,0,(B2-800)/50) -> 68 | C4: 750 | D4: 99 | E4: 09/30/2026-12/31/2026 | F4: 0.062 | G4: 184500 | H4: =G4/12 -> 15375 | I4: 953.25 | J4: 0.0145 | K4: Unlimited | L4: =IF('Data Entry'!$B$4<>K6,0,IF(T$9>$X4,$Y4,ROUND(T$9*$V4,2))) -> 0 | M4: =IF('Data Entry'!$B$4<>K6,0,IF(T$11>$X4,$Y4,ROUND(T$11*$V4,2))) -> 0 | N4: =IF('Data Entry'!$B$4<>K6,0,IF(T$14>$AH4,$AI4,ROUND(T$14*$AF4,2))) -> 0 | O4: =IF('Data Entry'!$B$4<>K6,0,IF(T$16>$AH4,$AI4,ROUND(T$16*$AF4,2))) -> 0 | T4: DAD | U4: =U3+1 -> 1983 | V4: 0.067 | W4: 35700 | X4: 2975 | Y4: 199.33 | Z4: N/A | AE4: =AE3+1 -> 1983 | AF4: 0.0935 | AG4: 35700 | AH4: 2975 | AI4: 278.16 | AO4: 7 | AP4: =AP2/AP1*AP2 -> 2312.688581 | AQ4: =IF('Data Entry'!B5=7,AP4,0) -> 0 | AS4: Data Saved from Income Breakdown | AW4: =IF(COUNTBLANK(AT4:AU19)=32,"Blank","") -> Blank | AX4: DAD | AY4: =IF(Worksheet!C32<850,ROUND((Tables!AY2-Worksheet!C32)*0.9,2),"") ->  | AZ4: 09/30/2025-12/31/2025 | BA4: ='Min Wage + Poverty Reference'!I7 -> 12490 | BB4: =ROUND(BA4/12,2) -> 1040.83 | BD4: =IF(AX$2=AZ4,BB4,0) -> 0 | BE4: =BE3&+BF3 -> 7th | BG4: March | BM4: two weeks | BN4: 14
A5: Table A Column | B5: ='Data Entry'!B5-1 -> 0 | C5: 800 | D5: 190 | E5: 72 | F5: 81 | G5: 90 | H5: 99 | I5: 111 | K5: 1982 | L5: =IF('Data Entry'!$B$4<>K7,0,IF(T$9>$X5,$Y5,ROUND(T$9*$V5,2))) -> 0 | M5: =IF('Data Entry'!$B$4<>K7,0,IF(T$11>$X5,$Y5,ROUND(T$11*$V5,2))) -> 0 | N5: =IF('Data Entry'!$B$4<>K7,0,IF(T$14>$AH5,$AI5,ROUND(T$14*$AF5,2))) -> 0 | O5: =IF('Data Entry'!$B$4<>K7,0,IF(T$16>$AH5,$AI5,ROUND(T$16*$AF5,2))) -> 0 | T5: =SUM(M3:M56,O3:O56,Q3:Q56,S3:S56) -> 185.64 | U5: =U4+1 -> 1984 | V5: 0.067 | W5: 37800 | X5: 3150 | Y5: 211.05 | Z5: N/A | AE5: =AE4+1 -> 1984 | AF5: 0.113 | AG5: 37800 | AH5: 3150 | AI5: 355.95 | AO5: 8 | AP5: =AP4/AP2*AP4 -> 2472.736234 | AQ5: =IF('Data Entry'!B5=8,AP5,0) -> 0 | AX5: MOM | AY5: =IF(Worksheet!B32<850,ROUND((Tables!AY2-Worksheet!B32)*0.9,2),"") ->  | AZ5: 01/01/2025-09/29/2025 | BA5: ='Min Wage + Poverty Reference'!I8 -> 12490 | BB5: 1040.83 | BD5: =IF(AX$2=AZ5,BB5,0) -> 0 | BE5: =MONTH(BE2) -> 1 | BG5: April
C6: 850 | D6: 202 | E6: 116 | F6: 134 | G6: 153 | H6: 173 | I6: 199 | K6: =K5+1 -> 1983 | L6: =IF('Data Entry'!$B$4<>K8,0,IF(T$9>$X6,$Y6,ROUND(T$9*$V6,2))) -> 0 | M6: =IF('Data Entry'!$B$4<>K8,0,IF(T$11>$X6,$Y6,ROUND(T$11*$V6,2))) -> 0 | N6: =IF('Data Entry'!$B$4<>K8,0,IF(T$14>$AH6,$AI6,ROUND(T$14*$AF6,2))) -> 0 | O6: =IF('Data Entry'!$B$4<>K8,0,IF(T$16>$AH6,$AI6,ROUND(T$16*$AF6,2))) -> 0 | U6: 1985 | V6: 0.0705 | W6: 39600 | X6: 3300 | Y6: 232.65 | Z6: N/A | AE6: 1985 | AF6: 0.118 | AG6: 39600 | AH6: 3300 | AI6: 389.4 | AO6: 9 | AP6: =AP5/AP4*AP5 -> 2643.859849 | AQ6: =IF('Data Entry'!B5=9,AP6,0) -> 0 | AZ6: 09/30/2024-12/31/2024 | BA6: 12490 | BB6: 1040.83 | BD6: =IF(AX$2=AZ6,BB6,0) -> 0 | BE6: =INDEX(BG2:BG13,BE5) -> January | BG6: May | BM6: period | BN6: ='Pymt Convert'!I24 -> two weeks
A7: Table A Support | B7: =IF(B2<800,B8,INDEX(D5:I189,(B4+1),(B5+1))) -> 863 | C7: 900 | D7: 213 | E7: 211 | F7: 213 | G7: 216 | H7: 218 | I7: 220 | K7: =K6+1 -> 1984 | L7: =IF('Data Entry'!$B$4<>K9,0,IF(T$9>$X7,$Y7,ROUND(T$9*$V7,2))) -> 0 | M7: =IF('Data Entry'!$B$4<>K9,0,IF(T$11>$X7,$Y7,ROUND(T$11*$V7,2))) -> 0 | N7: =IF('Data Entry'!$B$4<>K9,0,IF(T$14>$AH7,$AI7,ROUND(T$14*$AF7,2))) -> 0 | O7: =IF('Data Entry'!$B$4<>K9,0,IF(T$16>$AH7,$AI7,ROUND(T$16*$AF7,2))) -> 0 | U7: 1986 | V7: 0.0715 | W7: 42000 | X7: 3500 | Y7: 250.25 | Z7: N/A | AE7: 1986 | AF7: 0.123 | AG7: 42000 | AH7: 3500 | AI7: 430.5 | AO7: 10 | AP7: =AP6/AP5*AP6 -> 2826.825928 | AQ7: =IF('Data Entry'!B5=10,AP7,0) -> 0 | AX7: GL Amounts | AZ7: 01/01/2024-09/29/2024 | BA7: 12490 | BB7: 1040.83 | BD7: 0 | BE7: =YEAR(BE2) -> 2026 | BG7: June | BM7: nights | BN7: mom | BO7: dad
A8: - Less than table? | B8: =SUM(B9:B11) -> 0 | C8: 950 | D8: 224 | E8: 257 | F8: 259 | G8: 262 | H8: 265 | I8: 268 | K8: 1985 | L8: =IF('Data Entry'!$B$4<>K10,0,IF(T$9>$X8,$Y8,ROUND(T$9*$V8,2))) -> 0 | M8: =IF('Data Entry'!$B$4<>K10,0,IF(T$11>$X8,$Y8,ROUND(T$11*$V8,2))) -> 0 | N8: =IF('Data Entry'!$B$4<>K10,0,IF(T$14>$AH8,$AI8,ROUND(T$14*$AF8,2))) -> 0 | O8: =IF('Data Entry'!$B$4<>K10,0,IF(T$16>$AH8,$AI8,ROUND(T$16*$AF8,2))) -> 0 | T8: Mom's FICA Inc | U8: 1987 | V8: 0.0715 | W8: 43800 | X8: 3650 | Y8: 260.98 | Z8: N/A | AE8: 1987 | AF8: 0.123 | AG8: 43800 | AH8: 3650 | AI8: 448.95 | AO8: 11 | AP8: 3022.45402 | AQ8: =IF('Data Entry'!B5=11,AP8,0) -> 0 | AX8: DAD | AY8: =Worksheet!C47 -> 422.87 | AZ8: 09/30/2023-12/31/2023 | BA8: 12490 | BB8: 1040.83 | BD8: 0 | BE8: =BE6&+", "&BE7 -> January, 2026 | BG8: July | BN8: ='Pymt Convert'!I22 -> 0 | BO8: ='Pymt Convert'!K22 -> 0
A9: 750? | B9: =IF(B$2=750,INDEX(D4:I4,0,(B$5+1)),0) -> 0 | C9: 1000 | D9: 235 | E9: 302 | F9: 305 | G9: 309 | H9: 312 | I9: 315 | K9: 1986 | L9: =IF('Data Entry'!$B$4<>K11,0,IF(T$9>$X9,$Y9,ROUND(T$9*$V9,2))) -> 0 | M9: =IF('Data Entry'!$B$4<>K11,0,IF(T$11>$X9,$Y9,ROUND(T$11*$V9,2))) -> 0 | N9: =IF('Data Entry'!$B$4<>K11,0,IF(T$14>$AH9,$AI9,ROUND(T$14*$AF9,2))) -> 0 | O9: =IF('Data Entry'!$B$4<>K11,0,IF(T$16>$AH9,$AI9,ROUND(T$16*$AF9,2))) -> 0 | T9: =IF('Income Breakdown'!B23="YES",'Income Breakdown'!B21,IF('Data Entry'!B13<>1,Worksheet!B25,0)) -> 2426.67 | U9: 1988 | V9: 0.0751 | W9: 45000 | X9: 3750 | Y9: 281.63 | Z9: N/A | AE9: 1988 | AF9: 0.1302 | AG9: 45000 | AH9: 3750 | AI9: 488.25 | AO9: 12 | AP9: 3231.620388 | AQ9: =IF('Data Entry'!B5=12,AP9,0) -> 0 | AX9: MOM | AY9: =Worksheet!B47 -> 440.13 | AZ9: 01/01/2023-09/29/2023 | BA9: 12490 | BB9: 1040.83 | BD9: 0 | BG9: August | BM9: Period days | BN9: =LOOKUP(BN6,BM2:BN4) -> 14
A10: 650-749? | B10: =IF(OR(B$2=700,B2=650),INDEX(D3:I3,0,(B$5+1)),0) -> 0 | C10: 1050 | D10: 246 | E10: 347 | F10: 351 | G10: 355 | H10: 359 | I10: 363 | K10: 1987 | L10: =IF('Data Entry'!$B$4<>K12,0,IF(T$9>$X10,$Y10,ROUND(T$9*$V10,2))) -> 0 | M10: =IF('Data Entry'!$B$4<>K12,0,IF(T$11>$X10,$Y10,ROUND(T$11*$V10,2))) -> 0 | N10: =IF('Data Entry'!$B$4<>K12,0,IF(T$14>$AH10,$AI10,ROUND(T$14*$AF10,2))) -> 0 | O10: =IF('Data Entry'!$B$4<>K12,0,IF(T$16>$AH10,$AI10,ROUND(T$16*$AF10,2))) -> 0 | T10: Dad's FICA Inc | U10: 1989 | V10: 0.0751 | W10: 48000 | X10: 4000 | Y10: 300.4 | Z10: N/A | AE10: 1989 | AF10: 0.1302 | AG10: 48000 | AH10: 4000 | AI10: 520.8 | AO10: 13 | AP10: 3455.261938 | AQ10: =IF('Data Entry'!B5=13,AP10,0) -> 0 | AZ10: 09/30/2022-12/31/2022 | BA10: 12490 | BB10: 1040.83 | BD10: 0 | BG10: September
A11: <649 | B11: =IF(B$2<650,INDEX(D2:I2,0,(B$5+1)),0) -> 0 | C11: 1100 | D11: 258 | E11: 365 | F11: 397 | G11: 402 | H11: 406 | I11: 410 | K11: 1988 | L11: =IF('Data Entry'!$B$4<>K13,0,IF(T$9>$X11,$Y11,ROUND(T$9*$V11,2))) -> 0 | M11: =IF('Data Entry'!$B$4<>K13,0,IF(T$11>$X11,$Y11,ROUND(T$11*$V11,2))) -> 0 | N11: =IF('Data Entry'!$B$4<>K13,0,IF(T$14>$AH11,$AI11,ROUND(T$14*$AF11,2))) -> 0 | O11: =IF('Data Entry'!$B$4<>K13,0,IF(T$16>$AH11,$AI11,ROUND(T$16*$AF11,2))) -> 0 | T11: =IF('Income Breakdown'!B23="YES",'Income Breakdown'!C21,IF('Data Entry'!C13<>1,Worksheet!C25,0)) -> 2426.67 | U11: 1990 | V11: 0.0765 | W11: 51300 | X11: 4275 | Y11: 327.04 | Z11: N/A | AE11: 1990 | AF11: =0.0765*2 -> 0.153 | AG11: 51300 | AH11: 4275 | AI11: 654.08 | AO11: 14 | AP11: 3694.380411 | AQ11: =IF('Data Entry'!B5=14,AP11,0) -> 0 | AX11: Poverty v GL | AZ11: 01/01/2022-09/29/2022 | BA11: 12490 | BB11: 1040.83 | BC11: 2015 Guidelines | BD11: 0 | BG11: October | BM11: Percentage | BN11: =ROUND(BN8/$BN9,2) -> 0 | BO11: =ROUND(BO8/$BN9,2) -> 0
C12: 1150 | D12: 269 | E12: 382 | F12: 443 | G12: 448 | H12: 453 | I12: 458 | K12: 1989 | L12: =IF('Data Entry'!$B$4<>K14,0,IF(T$9>$X12,$Y12,ROUND(T$9*$V12,2))) -> 0 | M12: =IF('Data Entry'!$B$4<>K14,0,IF(T$11>$X12,$Y12,ROUND(T$11*$V12,2))) -> 0 | N12: =IF('Data Entry'!$B$4<>K14,0,IF(T$14>$AH12,$AI12,ROUND(T$14*$AF12,2))) -> 0 | O12: =IF('Data Entry'!$B$4<>K14,0,IF(T$16>$AH12,$AI12,ROUND(T$16*$AF12,2))) -> 0 | P12: =IF('Data Entry'!$B$4<>$K14,0,IF(T$9>$AB12,$AC12,ROUND(T$9*$Z12,2))) -> 0 | Q12: =IF('Data Entry'!$B$4<>$K14,0,IF(T$11>$AB12,$AC12,ROUND(T$11*$Z12,2))) -> 0 | R12: =IF('Data Entry'!$B$4<>$K14,0,IF(T$14>$AL12,$AM12,ROUND(T$14*$AJ12,2))) -> 0 | S12: =IF('Data Entry'!$B$4<>$K14,0,IF(T$16>$AL12,$AM12,ROUND(T$16*$AJ12,2))) -> 0 | U12: 1991 | V12: 0.062 | W12: 53400 | X12: 4450 | Y12: 275.9 | Z12: 0.0145 | AA12: 125000 | AB12: =ROUND(AA12/12,2) -> 10416.67 | AC12: =ROUND(AB12*Z12,2) -> 151.04 | AE12: 1991 | AF12: 0.124 | AG12: 53400 | AH12: 4450 | AI12: 551.8 | AJ12: 0.029 | AK12: 125000 | AL12: =ROUND(AK12/12,2) -> 10416.67 | AM12: =ROUND(AL12*AJ12,2) -> 302.08 | AO12: 15 | AP12: 3950.046875 | AQ12: =IF('Data Entry'!B5=15,AP12,0) -> 0 | AX12: DAD | AY12: =IF(AY4="",AY8,IF(AY4<AY8,AY4,AY8)) -> 422.87 | AZ12: 09/30/2021-12/31/2021 | BA12: 12490 | BB12: 1040.83 | BC12: 2014 Guidelines | BD12: 0 | BG12: November | BM12: totals match? | BN12: =IF(BN8+BO8=BN9,"Yes","No") -> No
C13: 1200 | D13: 280 | E13: 400 | F13: 489 | G13: 495 | H13: 500 | I13: 505 | K13: 1990 | L13: =IF('Data Entry'!$B$4<>K15,0,IF(T$9>$X13,$Y13,ROUND(T$9*$V13,2))) -> 0 | M13: =IF('Data Entry'!$B$4<>K15,0,IF(T$11>$X13,$Y13,ROUND(T$11*$V13,2))) -> 0 | N13: =IF('Data Entry'!$B$4<>K15,0,IF(T$14>$AH13,$AI13,ROUND(T$14*$AF13,2))) -> 0 | O13: =IF('Data Entry'!$B$4<>K15,0,IF(T$16>$AH13,$AI13,ROUND(T$16*$AF13,2))) -> 0 | P13: =IF('Data Entry'!$B$4<>$K15,0,IF(T$9>$AB13,$AC13,ROUND(T$9*$Z13,2))) -> 0 | Q13: =IF('Data Entry'!$B$4<>$K15,0,IF(T$11>$AB13,$AC13,ROUND(T$11*$Z13,2))) -> 0 | R13: =IF('Data Entry'!$B$4<>$K15,0,IF(T$14>$AL13,$AM13,ROUND(T$14*$AJ13,2))) -> 0 | S13: =IF('Data Entry'!$B$4<>$K15,0,IF(T$16>$AL13,$AM13,ROUND(T$16*$AJ13,2))) -> 0 | T13: Mom's Self Emp Inc | U13: 1992 | V13: 0.062 | W13: 55500 | X13: 4625 | Y13: 286.75 | Z13: 0.0145 | AA13: 130000 | AB13: =ROUND(AA13/12,2) -> 10833.33 | AC13: =ROUND(AB13*Z13,2) -> 157.08 | AE13: 1992 | AF13: 0.124 | AG13: 55500 | AH13: 4625 | AI13: 573.5 | AJ13: 0.029 | AK13: 130000 | AL13: =ROUND(AK13/12,2) -> 10833.33 | AM13: =ROUND(AL13*AJ13,2) -> 314.17 | AO13: 16 | AP13: 4223.406521 | AQ13: =IF('Data Entry'!B5=16,AP13,0) -> 0 | AX13: MOM | AY13: =IF(AY5="",AY9,IF(AY5<AY9,AY5,AY9)) -> 440.13 | AZ13: 01/01/2021-09/29/2021 | BA13: ='Min Wage + Poverty Reference'!I16 -> 12490 | BB13: =ROUND(BA13/12,2) -> 1040.83 | BC13: 2013 Guidelines | BD13: 0 | BG13: December | BM13: =IF(BN12="No","Error! Mom and Dad's total over-nights must equal " &+BN9,"") -> Error! Mom and Dad's total over-nights must equal 14
C14: 1250 | D14: 290 | E14: 417 | F14: 522 | G14: 541 | H14: 547 | I14: 553 | K14: 1991 | L14: =IF('Data Entry'!$B$4<>K16,0,IF(T$9>$X14,$Y14,ROUND(T$9*$V14,2))) -> 0 | M14: =IF('Data Entry'!$B$4<>K16,0,IF(T$11>$X14,$Y14,ROUND(T$11*$V14,2))) -> 0 | N14: =IF('Data Entry'!$B$4<>K16,0,IF(T$14>$AH14,$AI14,ROUND(T$14*$AF14,2))) -> 0 | O14: =IF('Data Entry'!$B$4<>K16,0,IF(T$16>$AH14,$AI14,ROUND(T$16*$AF14,2))) -> 0 | P14: =IF('Data Entry'!$B$4<>$K16,0,IF(T$9>$AB14,$AC14,ROUND(T$9*$Z14,2))) -> 0 | Q14: =IF('Data Entry'!$B$4<>$K16,0,IF(T$11>$AB14,$AC14,ROUND(T$11*$Z14,2))) -> 0 | R14: =IF('Data Entry'!$B$4<>$K16,0,IF(T$14>$AL14,$AM14,ROUND(T$14*$AJ14,2))) -> 0 | S14: =IF('Data Entry'!$B$4<>$K16,0,IF(T$16>$AL14,$AM14,ROUND(T$16*$AJ14,2))) -> 0 | T14: =IF('Income Breakdown'!B23="YES",'Income Breakdown'!B22,IF('Data Entry'!B13=1,Worksheet!B25,0)) -> 0 | U14: 1993 | V14: 0.062 | W14: 57600 | X14: 4800 | Y14: 297.6 | Z14: 0.0145 | AA14: 135000 | AB14: =ROUND(AA14/12,2) -> 11250 | AC14: =ROUND(AB14*Z14,2) -> 163.13 | AE14: 1993 | AF14: 0.124 | AG14: 57600 | AH14: 4800 | AI14: 595.2 | AJ14: 0.029 | AK14: 135000 | AL14: =ROUND(AK14/12,2) -> 11250 | AM14: =ROUND(AL14*AJ14,2) -> 326.25 | AO14: 17 | AP14: 4515.683789 | AQ14: =IF('Data Entry'!B5=17,AP14,0) -> 0 | AZ14: 2020 | BA14: ='Min Wage + Poverty Reference'!I17 -> 12490 | BB14: 1040.83 | BC14: 2012 Guidelines | BD14: 0
C15: 1300 | D15: 300 | E15: 435 | F15: 544 | G15: 588 | H15: 594 | I15: 600 | K15: 1992 | L15: =IF('Data Entry'!$B$4<>K17,0,IF(T$9>$X15,$Y15,ROUND(T$9*$V15,2))) -> 0 | M15: =IF('Data Entry'!$B$4<>K17,0,IF(T$11>$X15,$Y15,ROUND(T$11*$V15,2))) -> 0 | N15: =IF('Data Entry'!$B$4<>K17,0,IF(T$14>$AH15,$AI15,ROUND(T$14*$AF15,2))) -> 0 | O15: =IF('Data Entry'!$B$4<>K17,0,IF(T$16>$AH15,$AI15,ROUND(T$16*$AF15,2))) -> 0 | P15: =IF('Data Entry'!$B$4<1994,0,ROUND(T$9*0.0145,2)) -> 35.19 | Q15: =IF('Data Entry'!$B$4<1994,0,ROUND(T$11*0.0145,2)) -> 35.19 | R15: =IF('Data Entry'!$B$4<1994,0,ROUND(T$14*0.029,2)) -> 0 | S15: =IF('Data Entry'!$B$4<1994,0,ROUND(T$16*0.029,2)) -> 0 | T15: Dad's Self Emp Inc | U15: 1994 | V15: 0.062 | W15: 60600 | X15: 5050 | Y15: 313.1 | Z15: 0.0145 | AA15: Unlimited | AE15: 1994 | AF15: 0.124 | AG15: 60600 | AH15: 5050 | AI15: 626.2 | AJ15: 0.029 | AK15: Unlimited | AO15: 18 | AP15: 4828.187857 | AQ15: =IF('Data Entry'!B5=18,AP15,0) -> 0 | AZ15: 2019 | BA15: ='Min Wage + Poverty Reference'!I18 -> 12490 | BB15: 1040.83 | BC15: 2011 Guidelines | BD15: 0
C16: 1350 | D16: 310 | E16: 451 | F16: 565 | G16: 634 | H16: 641 | I16: 648 | K16: 1993 | L16: =IF('Data Entry'!$B$4<>K18,0,IF(T$9>$X16,$Y16,ROUND(T$9*$V16,2))) -> 0 | M16: =IF('Data Entry'!$B$4<>K18,0,IF(T$11>$X16,$Y16,ROUND(T$11*$V16,2))) -> 0 | N16: =IF('Data Entry'!$B$4<>K18,0,IF(T$14>$AH16,$AI16,ROUND(T$14*$AF16,2))) -> 0 | O16: =IF('Data Entry'!$B$4<>K18,0,IF(T$16>$AH16,$AI16,ROUND(T$16*$AF16,2))) -> 0 | T16: =IF('Income Breakdown'!B23="YES",'Income Breakdown'!C22,IF('Data Entry'!C13=1,Worksheet!C25,0)) -> 0 | U16: 1995 | V16: 0.062 | W16: 61200 | X16: 5100 | Y16: 316.2 | Z16: 0.0145 | AA16: Unlimited | AE16: 1995 | AF16: 0.124 | AG16: 61200 | AH16: 5100 | AI16: 632.4 | AJ16: 0.029 | AK16: Unlimited | AO16: 19 | AP16: 5162.318505 | AQ16: =IF('Data Entry'!B5=19,AP16,0) -> 0 | AZ16: 2018 | BA16: ='Min Wage + Poverty Reference'!I19 -> 12140 | BB16: 1011.67 | BC16: 2010 Guidelines | BD16: 0
C17: 1400 | D17: 320 | E17: 467 | F17: 584 | G17: 659 | H17: 688 | I17: 695 | K17: 1994 | L17: =IF('Data Entry'!$B$4<>K19,0,IF(T$9>$X17,$Y17,ROUND(T$9*$V17,2))) -> 0 | M17: =IF('Data Entry'!$B$4<>K19,0,IF(T$11>$X17,$Y17,ROUND(T$11*$V17,2))) -> 0 | N17: =IF('Data Entry'!$B$4<>K19,0,IF(T$14>$AH17,$AI17,ROUND(T$14*$AF17,2))) -> 0 | O17: =IF('Data Entry'!$B$4<>K19,0,IF(T$16>$AH17,$AI17,ROUND(T$16*$AF17,2))) -> 0 | U17: 1996 | V17: 0.062 | W17: 62700 | X17: 5225 | Y17: 323.95 | Z17: 0.0145 | AA17: Unlimited | AE17: 1996 | AF17: 0.124 | AG17: 62700 | AH17: 5225 | AI17: 647.9 | AJ17: 0.029 | AK17: Unlimited | AO17: 20 | AP17: 5519.57238 | AQ17: =IF('Data Entry'!B5=20,AP17,0) -> 0 | AZ17: 2017 | BA17: ='Min Wage + Poverty Reference'!I20 -> 12060 | BB17: 1005 | BC17: 2009 Guidelines | BD17: 0
C18: 1450 | D18: 330 | E18: 482 | F18: 603 | G18: 681 | H18: 735 | I18: 743 | K18: 1995 | L18: =IF('Data Entry'!$B$4<>K20,0,IF(T$9>$X18,$Y18,ROUND(T$9*$V18,2))) -> 0 | M18: =IF('Data Entry'!$B$4<>K20,0,IF(T$11>$X18,$Y18,ROUND(T$11*$V18,2))) -> 0 | N18: =IF('Data Entry'!$B$4<>K20,0,IF(T$14>$AH18,$AI18,ROUND(T$14*$AF18,2))) -> 0 | O18: =IF('Data Entry'!$B$4<>K20,0,IF(T$16>$AH18,$AI18,ROUND(T$16*$AF18,2))) -> 0 | U18: 1997 | V18: 0.062 | W18: 65400 | X18: 5450 | Y18: 337.9 | Z18: 0.0145 | AA18: Unlimited | AE18: 1997 | AF18: 0.124 | AG18: 65400 | AH18: 5450 | AI18: 675.8 | AJ18: 0.029 | AK18: Unlimited | AO18: Total | AQ18: =ROUND(SUM(AQ4:AQ17),2) -> 0 | AZ18: 2016 | BA18: 11880 | BB18: 990 | BC18: 2008 Guidelines | BD18: 0
C19: 1500 | D19: 340 | E19: 498 | F19: 623 | G19: 702 | H19: 765 | I19: 790 | K19: 1996 | L19: =IF('Data Entry'!$B$4<>K21,0,IF(T$9>$X19,$Y19,ROUND(T$9*$V19,2))) -> 0 | M19: =IF('Data Entry'!$B$4<>K21,0,IF(T$11>$X19,$Y19,ROUND(T$11*$V19,2))) -> 0 | N19: =IF('Data Entry'!$B$4<>K21,0,IF(T$14>$AH19,$AI19,ROUND(T$14*$AF19,2))) -> 0 | O19: =IF('Data Entry'!$B$4<>K21,0,IF(T$16>$AH19,$AI19,ROUND(T$16*$AF19,2))) -> 0 | U19: 1998 | V19: 0.062 | W19: 68400 | X19: 5700 | Y19: 353.4 | Z19: 0.0145 | AA19: Unlimited | AE19: 1998 | AF19: 0.124 | AG19: 68400 | AH19: 5700 | AI19: 706.8 | AJ19: 0.029 | AK19: Unlimited | AZ19: 2015 | BA19: 11770 | BB19: 980.83 | BC19: 2007 Guidelines | BD19: 0
C20: 1550 | D20: 350 | E20: 513 | F20: 642 | G20: 724 | H20: 789 | I20: 838 | K20: 1997 | L20: =IF('Data Entry'!$B$4<>K22,0,IF(T$9>$X20,$Y20,ROUND(T$9*$V20,2))) -> 0 | M20: =IF('Data Entry'!$B$4<>K22,0,IF(T$11>$X20,$Y20,ROUND(T$11*$V20,2))) -> 0 | N20: =IF('Data Entry'!$B$4<>K22,0,IF(T$14>$AH20,$AI20,ROUND(T$14*$AF20,2))) -> 0 | O20: =IF('Data Entry'!$B$4<>K22,0,IF(T$16>$AH20,$AI20,ROUND(T$16*$AF20,2))) -> 0 | U20: 1999 | V20: 0.062 | W20: 72600 | X20: 6050 | Y20: 375.1 | Z20: 0.0145 | AA20: Unlimited | AE20: 1999 | AF20: 0.124 | AG20: 72600 | AH20: 6050 | AI20: 750.2 | AJ20: 0.029 | AK20: Unlimited | AZ20: 2014 | BA20: 11670 | BB20: 972.5 | BC20: 2006 Guidelines | BD20: 0
C21: 1600 | D21: 360 | E21: 529 | F21: 662 | G21: 746 | H21: 813 | I21: 869 | K21: 1998 | L21: =IF('Data Entry'!$B$4<>K23,0,IF(T$9>$X21,$Y21,ROUND(T$9*$V21,2))) -> 0 | M21: =IF('Data Entry'!$B$4<>K23,0,IF(T$11>$X21,$Y21,ROUND(T$11*$V21,2))) -> 0 | N21: =IF('Data Entry'!$B$4<>K23,0,IF(T$14>$AH21,$AI21,ROUND(T$14*$AF21,2))) -> 0 | O21: =IF('Data Entry'!$B$4<>K23,0,IF(T$16>$AH21,$AI21,ROUND(T$16*$AF21,2))) -> 0 | U21: 2000 | V21: 0.062 | W21: 76200 | X21: 6350 | Y21: 393.7 | Z21: 0.0145 | AA21: Unlimited | AE21: 2000 | AF21: 0.124 | AG21: 76200 | AH21: 6350 | AI21: 787.4 | AJ21: 0.029 | AK21: Unlimited | AZ21: 2013 | BA21: 11490 | BB21: 957.5 | BC21: 2005 Guidelines | BD21: 0
C22: 1650 | D22: 370 | E22: 544 | F22: 681 | G22: 768 | H22: 836 | I22: 895 | K22: 1999 | L22: =IF('Data Entry'!$B$4<>K24,0,IF(T$9>$X22,$Y22,ROUND(T$9*$V22,2))) -> 0 | M22: =IF('Data Entry'!$B$4<>K24,0,IF(T$11>$X22,$Y22,ROUND(T$11*$V22,2))) -> 0 | N22: =IF('Data Entry'!$B$4<>K24,0,IF(T$14>$AH22,$AI22,ROUND(T$14*$AF22,2))) -> 0 | O22: =IF('Data Entry'!$B$4<>K24,0,IF(T$16>$AH22,$AI22,ROUND(T$16*$AF22,2))) -> 0 | U22: 2001 | V22: 0.062 | W22: 80400 | X22: 6700 | Y22: 415.4 | Z22: 0.0145 | AA22: Unlimited | AE22: 2001 | AF22: 0.124 | AG22: 80400 | AH22: 6700 | AI22: 830.8 | AJ22: 0.029 | AK22: Unlimited | AZ22: 2012 | BA22: 11170 | BB22: 930.83 | BC22: 2004 Guidelines | BD22: 0
C23: 1700 | D23: 380 | E23: 560 | F23: 701 | G23: 790 | H23: 860 | I23: 920 | K23: 2000 | L23: =IF('Data Entry'!$B$4<>K25,0,IF(T$9>$X23,$Y23,ROUND(T$9*$V23,2))) -> 0 | M23: =IF('Data Entry'!$B$4<>K25,0,IF(T$11>$X23,$Y23,ROUND(T$11*$V23,2))) -> 0 | N23: =IF('Data Entry'!$B$4<>K25,0,IF(T$14>$AH23,$AI23,ROUND(T$14*$AF23,2))) -> 0 | O23: =IF('Data Entry'!$B$4<>K25,0,IF(T$16>$AH23,$AI23,ROUND(T$16*$AF23,2))) -> 0 | U23: 2001.7 | V23: 0.062 | W23: 80400 | X23: 6700 | Y23: 415.4 | Z23: 0.0145 | AA23: Unlimited | AE23: 2001.7 | AF23: 0.124 | AG23: 80400 | AH23: 6700 | AI23: 830.8 | AJ23: 0.029 | AK23: Unlimited | AO23: Table a - 5 | AP23: =IF(B2<800,B8,INDEX(D5:I189,(B4+1),5)) -> 2023 | AZ23: 2011 | BA23: 10890 | BB23: 907.5 | BC23: 2003 Guidelines | BD23: 0
C24: 1750 | D24: 390 | E24: 575 | F24: 720 | G24: 812 | H24: 884 | I24: 945 | K24: 2001 | L24: =IF('Data Entry'!$B$4<>K26,0,IF(T$9>$X24,$Y24,ROUND(T$9*$V24,2))) -> 0 | M24: =IF('Data Entry'!$B$4<>K26,0,IF(T$11>$X24,$Y24,ROUND(T$11*$V24,2))) -> 0 | N24: =IF('Data Entry'!$B$4<>K26,0,IF(T$14>$AH24,$AI24,ROUND(T$14*$AF24,2))) -> 0 | O24: =IF('Data Entry'!$B$4<>K26,0,IF(T$16>$AH24,$AI24,ROUND(T$16*$AF24,2))) -> 0 | U24: 2002 | V24: 0.062 | W24: 84900 | X24: 7075 | Y24: 438.65 | Z24: 0.0145 | AA24: Unlimited | AE24: 2002 | AF24: 0.124 | AG24: 84900 | AH24: 7075 | AI24: 877.3 | AJ24: 0.029 | AK24: Unlimited | AO24: - Less than table? | AP24: =SUM(AP25:AP27) -> 0 | AZ24: 2010 | BA24: 10830 | BB24: 902.5 | BC24: 2002 Guidelines | BD24: 0
C25: 1800 | D25: 400 | E25: 591 | F25: 740 | G25: 833 | H25: 907 | I25: 971 | K25: 2001.7 | L25: =IF('Data Entry'!$B$4<>K27,0,IF(T$9>$X25,$Y25,ROUND(T$9*$V25,2))) -> 0 | M25: =IF('Data Entry'!$B$4<>K27,0,IF(T$11>$X25,$Y25,ROUND(T$11*$V25,2))) -> 0 | N25: =IF('Data Entry'!$B$4<>K27,0,IF(T$14>$AH25,$AI25,ROUND(T$14*$AF25,2))) -> 0 | O25: =IF('Data Entry'!$B$4<>K27,0,IF(T$16>$AH25,$AI25,ROUND(T$16*$AF25,2))) -> 0 | U25: 2003 | V25: 0.062 | W25: 87000 | X25: 7250 | Y25: 449.5 | Z25: 0.0145 | AA25: Unlimited | AE25: 2003 | AF25: 0.124 | AG25: 87000 | AH25: 7250 | AI25: 899 | AJ25: 0.029 | AK25: Unlimited | AO25: 750? | AP25: =IF(B$2=750,INDEX(D4:I4,0,5),0) -> 0 | AZ25: 2009 | BA25: 10830 | BB25: 902.5 | BC25: 2001 Guidelines | BD25: 0
C26: 1850 | D26: 410 | E26: 606 | F26: 759 | G26: 855 | H26: 931 | I26: 996 | K26: 2002 | L26: =IF('Data Entry'!$B$4<>K28,0,IF(T$9>$X26,$Y26,ROUND(T$9*$V26,2))) -> 0 | M26: =IF('Data Entry'!$B$4<>K28,0,IF(T$11>$X26,$Y26,ROUND(T$11*$V26,2))) -> 0 | N26: =IF('Data Entry'!$B$4<>K28,0,IF(T$14>$AH26,$AI26,ROUND(T$14*$AF26,2))) -> 0 | O26: =IF('Data Entry'!$B$4<>K28,0,IF(T$16>$AH26,$AI26,ROUND(T$16*$AF26,2))) -> 0 | U26: 2003.7 | V26: 0.062 | W26: 87000 | X26: 7250 | Y26: 449.5 | Z26: 0.0145 | AA26: Unlimited | AE26: 2003.7 | AF26: 0.124 | AG26: 87000 | AH26: 7250 | AI26: 899 | AJ26: 0.029 | AK26: Unlimited | AO26: 650-749? | AP26: =IF(OR(B$2=700,B2=650),INDEX(D3:I3,0,5),0) -> 0 | AZ26: 2008 | BA26: 10400 | BB26: 866.67 | BC26: 2000 Guidelines | BD26: 0
C27: 1900 | D27: 421 | E27: 622 | F27: 779 | G27: 877 | H27: 955 | I27: 1022 | K27: 2003 | L27: =IF('Data Entry'!$B$4<>K29,0,IF(T$9>$X27,$Y27,ROUND(T$9*$V27,2))) -> 0 | M27: =IF('Data Entry'!$B$4<>K29,0,IF(T$11>$X27,$Y27,ROUND(T$11*$V27,2))) -> 0 | N27: =IF('Data Entry'!$B$4<>K29,0,IF(T$14>$AH27,$AI27,ROUND(T$14*$AF27,2))) -> 0 | O27: =IF('Data Entry'!$B$4<>K29,0,IF(T$16>$AH27,$AI27,ROUND(T$16*$AF27,2))) -> 0 | U27: 2004 | V27: 0.062 | W27: 87900 | X27: 7325 | Y27: 454.15 | Z27: 0.0145 | AA27: Unlimited | AE27: 2004 | AF27: 0.124 | AG27: 87900 | AH27: 7325 | AI27: 908.3 | AJ27: 0.029 | AK27: Unlimited | AO27: <649 | AP27: =IF(B$2<650,INDEX(D2:I2,0,5),0) -> 0 | AZ27: 2007 | BA27: 10210 | BB27: 850.83 | BC27: 1999 Guidelines | BD27: 0
C28: 1950 | D28: 431 | E28: 638 | F28: 798 | G28: 900 | H28: 979 | I28: 1048 | K28: 2003.7 | L28: =IF('Data Entry'!$B$4<>K30,0,IF(T$9>$X28,$Y28,ROUND(T$9*$V28,2))) -> 0 | M28: =IF('Data Entry'!$B$4<>K30,0,IF(T$11>$X28,$Y28,ROUND(T$11*$V28,2))) -> 0 | N28: =IF('Data Entry'!$B$4<>K30,0,IF(T$14>$AH28,$AI28,ROUND(T$14*$AF28,2))) -> 0 | O28: =IF('Data Entry'!$B$4<>K30,0,IF(T$16>$AH28,$AI28,ROUND(T$16*$AF28,2))) -> 0 | U28: 2005 | V28: 0.062 | W28: 90000 | X28: 7500 | Y28: 465 | Z28: 0.0145 | AA28: Unlimited | AE28: 2005 | AF28: 0.124 | AG28: 90000 | AH28: 7500 | AI28: 930 | AJ28: 0.029 | AK28: Unlimited | AZ28: 2006 | BA28: 9800 | BB28: 816.67 | BC28: 1998 Guidelines | BD28: 0
C29: 2000 | D29: 442 | E29: 654 | F29: 818 | G29: 923 | H29: 1004 | I29: 1074 | K29: 2004 | L29: =IF('Data Entry'!$B$4<>K31,0,IF(T$9>$X29,$Y29,ROUND(T$9*$V29,2))) -> 0 | M29: =IF('Data Entry'!$B$4<>K31,0,IF(T$11>$X29,$Y29,ROUND(T$11*$V29,2))) -> 0 | N29: =IF('Data Entry'!$B$4<>K31,0,IF(T$14>$AH29,$AI29,ROUND(T$14*$AF29,2))) -> 0 | O29: =IF('Data Entry'!$B$4<>K31,0,IF(T$16>$AH29,$AI29,ROUND(T$16*$AF29,2))) -> 0 | U29: 2006 | V29: 0.062 | W29: 94200 | X29: 7850 | Y29: 486.7 | Z29: 0.0145 | AA29: Unlimited | AE29: 2006 | AF29: 0.124 | AG29: 94200 | AH29: 7850 | AI29: 973.4 | AJ29: 0.029 | AK29: Unlimited | AO29: Table a - 6 | AP29: =IF(B2<800,B8,INDEX(D5:I189,(B4+1),6)) -> 2163 | AZ29: 2005 | BA29: 9570 | BB29: 797.5 | BC29: 1997 Guidelines | BD29: 0
C30: 2050 | D30: 452 | E30: 670 | F30: 839 | G30: 946 | H30: 1029 | I30: 1101 | K30: 2005 | L30: =IF('Data Entry'!$B$4<>K32,0,IF(T$9>$X30,$Y30,ROUND(T$9*$V30,2))) -> 0 | M30: =IF('Data Entry'!$B$4<>K32,0,IF(T$11>$X30,$Y30,ROUND(T$11*$V30,2))) -> 0 | N30: =IF('Data Entry'!$B$4<>K32,0,IF(T$14>$AH30,$AI30,ROUND(T$14*$AF30,2))) -> 0 | O30: =IF('Data Entry'!$B$4<>K32,0,IF(T$16>$AH30,$AI30,ROUND(T$16*$AF30,2))) -> 0 | U30: 2007 | V30: 0.062 | W30: 97500 | X30: 8125 | Y30: 503.75 | Z30: 0.0145 | AA30: Unlimited | AE30: 2007 | AF30: 0.124 | AG30: 97500 | AH30: 8125 | AI30: 1007.5 | AJ30: 0.029 | AK30: Unlimited | AO30: - Less than table? | AP30: =SUM(AP31:AP33) -> 0 | AZ30: 2004 | BA30: 9310 | BB30: 775.83 | BC30: 1996 Guidelines | BD30: 0
C31: 2100 | D31: 463 | E31: 686 | F31: 859 | G31: 968 | H31: 1054 | I31: 1128 | K31: 2006 | L31: =IF('Data Entry'!$B$4<>K33,0,IF(T$9>$X31,$Y31,ROUND(T$9*$V31,2))) -> 0 | M31: =IF('Data Entry'!$B$4<>K33,0,IF(T$11>$X31,$Y31,ROUND(T$11*$V31,2))) -> 0 | N31: =IF('Data Entry'!$B$4<>K33,0,IF(T$14>$AH31,$AI31,ROUND(T$14*$AF31,2))) -> 0 | O31: =IF('Data Entry'!$B$4<>K33,0,IF(T$16>$AH31,$AI31,ROUND(T$16*$AF31,2))) -> 0 | U31: 2008 | V31: 0.062 | W31: 102000 | X31: 8500 | Y31: 527 | Z31: 0.0145 | AA31: Unlimited | AE31: 2008 | AF31: 0.124 | AG31: 102000 | AH31: 8500 | AI31: 1054 | AJ31: 0.029 | AK31: Unlimited | AO31: 750? | AP31: =IF(B$2=750,INDEX(D4:I4,0,5),0) -> 0 | AZ31: 2003 | BA31: 8980 | BB31: 748.33 | BD31: 0
C32: 2150 | D32: 473 | E32: 702 | F32: 879 | G32: 991 | H32: 1079 | I32: 1154 | K32: 2007 | L32: =IF('Data Entry'!$B$4<>K34,0,IF(T$9>$X32,$Y32,ROUND(T$9*$V32,2))) -> 0 | M32: =IF('Data Entry'!$B$4<>K34,0,IF(T$11>$X32,$Y32,ROUND(T$11*$V32,2))) -> 0 | N32: =IF('Data Entry'!$B$4<>K34,0,IF(T$14>$AH32,$AI32,ROUND(T$14*$AF32,2))) -> 0 | O32: =IF('Data Entry'!$B$4<>K34,0,IF(T$16>$AH32,$AI32,ROUND(T$16*$AF32,2))) -> 0 | U32: 2009 | V32: 0.062 | W32: 106800 | X32: 8900 | Y32: 551.8 | Z32: 0.0145 | AA32: Unlimited | AE32: 2009 | AF32: 0.124 | AG32: 106800 | AH32: 8900 | AI32: 1103.6 | AJ32: 0.029 | AK32: Unlimited | AO32: 650-749? | AP32: =IF(OR(B$2=700,B2=650),INDEX(D3:I3,0,6),0) -> 0 | AZ32: 2002 | BA32: 8860 | BB32: 738.33 | BD32: 0
C33: 2200 | D33: 484 | E33: 718 | F33: 899 | G33: 1014 | H33: 1104 | I33: 1181 | K33: 2008 | L33: =IF('Data Entry'!$B$4<>K35,0,IF(T$9>$X33,$Y33,ROUND(T$9*$V33,2))) -> 0 | M33: =IF('Data Entry'!$B$4<>K35,0,IF(T$11>$X33,$Y33,ROUND(T$11*$V33,2))) -> 0 | N33: =IF('Data Entry'!$B$4<>K35,0,IF(T$14>$AH33,$AI33,ROUND(T$14*$AF33,2))) -> 0 | O33: =IF('Data Entry'!$B$4<>K35,0,IF(T$16>$AH33,$AI33,ROUND(T$16*$AF33,2))) -> 0 | U33: 2009.4 | V33: 0.062 | W33: 106800 | X33: 8900 | Y33: 551.8 | Z33: 0.0145 | AA33: Unlimited | AE33: 2009.4 | AF33: 0.124 | AG33: 106800 | AH33: 8900 | AI33: 1103.6 | AJ33: 0.029 | AK33: Unlimited | AO33: <649 | AP33: =IF(B$2<650,INDEX(D2:I2,0,6),0) -> 0 | AZ33: 2001 | BA33: 8590 | BB33: 715.83 | BD33: 0
C34: 2250 | D34: 494 | E34: 734 | F34: 919 | G34: 1037 | H34: 1129 | I34: 1207 | K34: 2009 | L34: =IF('Data Entry'!$B$4<>K36,0,IF(T$9>$X34,$Y34,ROUND(T$9*$V34,2))) -> 0 | M34: =IF('Data Entry'!$B$4<>K36,0,IF(T$11>$X34,$Y34,ROUND(T$11*$V34,2))) -> 0 | N34: =IF('Data Entry'!$B$4<>K36,0,IF(T$14>$AH34,$AI34,ROUND(T$14*$AF34,2))) -> 0 | O34: =IF('Data Entry'!$B$4<>K36,0,IF(T$16>$AH34,$AI34,ROUND(T$16*$AF34,2))) -> 0 | U34: 2010 | V34: 0.062 | W34: 106800 | X34: 8900 | Y34: 551.8 | Z34: 0.0145 | AA34: Unlimited | AE34: 2010 | AF34: 0.124 | AG34: 106800 | AH34: 8900 | AI34: 1103.6 | AJ34: 0.029 | AK34: Unlimited | AZ34: 2000 | BA34: 8350 | BB34: 695.83 | BD34: 0
C35: 2300 | D35: 505 | E35: 751 | F35: 940 | G35: 1060 | H35: 1154 | I35: 1234 | K35: 2009.4 | L35: =IF('Data Entry'!$B$4<>K37,0,IF(T$9>$X35,$Y35,ROUND(T$9*$V35,2))) -> 0 | M35: =IF('Data Entry'!$B$4<>K37,0,IF(T$11>$X35,$Y35,ROUND(T$11*$V35,2))) -> 0 | N35: =IF('Data Entry'!$B$4<>K37,0,IF(T$14>$AH35,$AI35,ROUND(T$14*$AF35,2))) -> 0 | O35: =IF('Data Entry'!$B$4<>K37,0,IF(T$16>$AH35,$AI35,ROUND(T$16*$AF35,2))) -> 0 | U35: 2011 | V35: 0.042 | W35: 106800 | X35: 8900 | Y35: 373.8 | Z35: 0.0145 | AA35: Unlimited | AE35: 2011 | AF35: 0.104 | AG35: 106800 | AH35: 8900 | AI35: 925.6 | AJ35: 0.029 | AK35: Unlimited | AZ35: 1999 | BA35: 8240 | BB35: 686.67 | BD35: 0
C36: 2350 | D36: 515 | E36: 767 | F36: 960 | G36: 1082 | H36: 1179 | I36: 1261 | K36: 2010 | L36: =IF('Data Entry'!$B$4<>K38,0,IF(T$9>$X36,$Y36,ROUND(T$9*$V36,2))) -> 0 | M36: =IF('Data Entry'!$B$4<>K38,0,IF(T$11>$X36,$Y36,ROUND(T$11*$V36,2))) -> 0 | N36: =IF('Data Entry'!$B$4<>K38,0,IF(T$14>$AH36,$AI36,ROUND(T$14*$AF36,2))) -> 0 | O36: =IF('Data Entry'!$B$4<>K38,0,IF(T$16>$AH36,$AI36,ROUND(T$16*$AF36,2))) -> 0 | U36: 2012 | V36: 0.042 | W36: 110100 | X36: 9175 | Y36: 385.35 | Z36: 0.0145 | AA36: Unlimited | AE36: 2012 | AF36: 0.104 | AG36: 110100 | AH36: 9175 | AI36: 954.2 | AJ36: 0.029 | AK36: Unlimited | AZ36: 1998 | BA36: 8050 | BB36: 670.83 | BD36: 0
C37: 2400 | D37: 526 | E37: 783 | F37: 980 | G37: 1105 | H37: 1204 | I37: 1287 | K37: 2011 | L37: =IF('Data Entry'!$B$4<>K39,0,IF(T$9>$X37,$Y37,ROUND(T$9*$V37,2))) -> 0 | M37: =IF('Data Entry'!$B$4<>K39,0,IF(T$11>$X37,$Y37,ROUND(T$11*$V37,2))) -> 0 | N37: =IF('Data Entry'!$B$4<>K39,0,IF(T$14>$AH37,$AI37,ROUND(T$14*$AF37,2))) -> 0 | O37: =IF('Data Entry'!$B$4<>K39,0,IF(T$16>$AH37,$AI37,ROUND(T$16*$AF37,2))) -> 0 | U37: 2013 | V37: 0.062 | W37: 113700 | X37: 9475 | Y37: 587.45 | Z37: 0.0145 | AA37: Unlimited | AE37: 2013 | AF37: 0.124 | AG37: 113700 | AH37: 9475 | AI37: 1174.9 | AJ37: 0.029 | AK37: Unlimited | AZ37: 1997 | BA37: 7890 | BB37: 657.5 | BD37: 0
C38: 2450 | D38: 536 | E38: 799 | F38: 1000 | G38: 1128 | H38: 1229 | I38: 1314 | K38: 2012 | L38: =IF('Data Entry'!$B$4<>K40,0,IF(T$9>$X38,$Y38,ROUND(T$9*$V38,2))) -> 0 | M38: =IF('Data Entry'!$B$4<>K40,0,IF(T$11>$X38,$Y38,ROUND(T$11*$V38,2))) -> 0 | N38: =IF('Data Entry'!$B$4<>K40,0,IF(T$14>$AH38,$AI38,ROUND(T$14*$AF38,2))) -> 0 | O38: =IF('Data Entry'!$B$4<>K40,0,IF(T$16>$AH38,$AI38,ROUND(T$16*$AF38,2))) -> 0 | U38: 2014 | V38: 0.062 | W38: 117000 | X38: 9750 | Y38: 604.5 | Z38: 0.0145 | AA38: Unlimited | AE38: 2014 | AF38: 0.124 | AG38: =W38 -> 117000 | AH38: 9750 | AI38: 1209 | AJ38: 0.029 | AK38: Unlimited | AZ38: 1996 | BA38: 7740 | BB38: 645 | BD38: 0
C39: 2500 | D39: 547 | E39: 815 | F39: 1020 | G39: 1151 | H39: 1254 | I39: 1340 | K39: 2013 | L39: =IF('Data Entry'!$B$4<>K41,0,IF(T$9>$X39,$Y39,ROUND(T$9*$V39,2))) -> 0 | M39: =IF('Data Entry'!$B$4<>K41,0,IF(T$11>$X39,$Y39,ROUND(T$11*$V39,2))) -> 0 | N39: =IF('Data Entry'!$B$4<>K41,0,IF(T$14>$AH39,$AI39,ROUND(T$14*$AF39,2))) -> 0 | O39: =IF('Data Entry'!$B$4<>K41,0,IF(T$16>$AH39,$AI39,ROUND(T$16*$AF39,2))) -> 0 | U39: 2015 | V39: 0.062 | W39: 118500 | X39: 9875 | Y39: 612.25 | Z39: 0.0145 | AA39: Unlimited | AE39: 2015 | AF39: 0.124 | AG39: =W39 -> 118500 | AH39: 9875 | AI39: 1224.5 | AJ39: 0.029 | AK39: Unlimited | AZ39: 1995 | BA39: 7470 | BB39: 622.5 | BD39: 0
C40: 2550 | D40: 557 | E40: 831 | F40: 1041 | G40: 1174 | H40: 1279 | I40: 1367 | K40: 2014 | L40: =IF('Data Entry'!$B$4<>K42,0,IF(T$9>$X40,$Y40,ROUND(T$9*$V40,2))) -> 0 | M40: =IF('Data Entry'!$B$4<>K42,0,IF(T$11>$X40,$Y40,ROUND(T$11*$V40,2))) -> 0 | N40: =IF('Data Entry'!$B$4<>K42,0,IF(T$14>$AH40,$AI40,ROUND(T$14*$AF40,2))) -> 0 | O40: =IF('Data Entry'!$B$4<>K42,0,IF(T$16>$AH40,$AI40,ROUND(T$16*$AF40,2))) -> 0 | U40: 2016 | V40: 0.062 | W40: 118500 | X40: 9875 | Y40: 612.25 | Z40: 0.0145 | AA40: Unlimited | AE40: 2016 | AF40: 0.124 | AG40: 118500 | AH40: 9875 | AI40: 1224.5 | AJ40: 0.029 | AK40: Unlimited | AZ40: 1994 | BA40: 7360 | BB40: 613.33 | BD40: 0
C41: 2600 | D41: 568 | E41: 847 | F41: 1061 | G41: 1196 | H41: 1304 | I41: 1394 | K41: 2015 | L41: =IF('Data Entry'!$B$4<>K43,0,IF(T$9>$X41,$Y41,ROUND(T$9*$V41,2))) -> 0 | M41: =IF('Data Entry'!$B$4<>K43,0,IF(T$11>$X41,$Y41,ROUND(T$11*$V41,2))) -> 0 | N41: =IF('Data Entry'!$B$4<>K43,0,IF(T$14>$AH41,$AI41,ROUND(T$14*$AF41,2))) -> 0 | O41: =IF('Data Entry'!$B$4<>K43,0,IF(T$16>$AH41,$AI41,ROUND(T$16*$AF41,2))) -> 0 | U41: 2017 | V41: 0.062 | W41: 118500 | X41: 9875 | Y41: 612.25 | Z41: 0.0145 | AA41: Unlimited | AE41: 2017 | AF41: 0.124 | AG41: 118500 | AH41: 9875 | AI41: 1224.5 | AJ41: 0.029 | AK41: Unlimited | AZ41: 1993 | BA41: 6970 | BB41: 580.83 | BD41: 0
C42: 2650 | D42: 578 | E42: 864 | F42: 1081 | G42: 1219 | H42: 1329 | I42: 1420 | K42: 2016 | L42: =IF('Data Entry'!$B$4<>K44,0,IF(T$9>$X42,$Y42,ROUND(T$9*$V42,2))) -> 0 | M42: =IF('Data Entry'!$B$4<>K44,0,IF(T$11>$X42,$Y42,ROUND(T$11*$V42,2))) -> 0 | N42: =IF('Data Entry'!$B$4<>K44,0,IF(T$14>$AH42,$AI42,ROUND(T$14*$AF42,2))) -> 0 | O42: =IF('Data Entry'!$B$4<>K44,0,IF(T$16>$AH42,$AI42,ROUND(T$16*$AF42,2))) -> 0 | U42: 2018 | V42: 0.062 | W42: 128400 | X42: 10700 | Y42: 663.4 | Z42: 0.0145 | AA42: Unlimited | AE42: 2018 | AF42: 0.124 | AG42: 128400 | AH42: 10700 | AI42: 1326.8 | AJ42: 0.029 | AK42: Unlimited | AZ42: 1992 | BA42: 6810 | BB42: 567.5 | BD42: 0
C43: 2700 | D43: 588 | E43: 880 | F43: 1101 | G43: 1242 | H43: 1354 | I43: 1447 | K43: 2017 | L43: =IF('Data Entry'!$B$4<>K45,0,IF(T$9>$X43,$Y43,ROUND(T$9*$V43,2))) -> 0 | M43: =IF('Data Entry'!$B$4<>K45,0,IF(T$11>$X43,$Y43,ROUND(T$11*$V43,2))) -> 0 | N43: =IF('Data Entry'!$B$4<>K45,0,IF(T$14>$AH43,$AI43,ROUND(T$14*$AF43,2))) -> 0 | O43: =IF('Data Entry'!$B$4<>K45,0,IF(T$16>$AH43,$AI43,ROUND(T$16*$AF43,2))) -> 0 | U43: 2019 | V43: 0.062 | W43: 132900 | X43: 11075 | Y43: 686.65 | Z43: 0.0145 | AA43: Unlimited | AE43: 2019 | AF43: 0.124 | AG43: 132900 | AH43: 11075 | AI43: 1373.3 | AJ43: 0.029 | AK43: Unlimited | AZ43: 1991 | BA43: 6620 | BB43: 551.67 | BD43: 0
C44: 2750 | D44: 597 | E44: 896 | F44: 1121 | G44: 1265 | H44: 1379 | I44: 1473 | K44: 2018 | L44: =IF('Data Entry'!$B$4<>K46,0,IF(T$9>$X44,$Y44,ROUND(T$9*$V44,2))) -> 0 | M44: =IF('Data Entry'!$B$4<>K46,0,IF(T$11>$X44,$Y44,ROUND(T$11*$V44,2))) -> 0 | N44: =IF('Data Entry'!$B$4<>K46,0,IF(T$14>$AH44,$AI44,ROUND(T$14*$AF44,2))) -> 0 | O44: =IF('Data Entry'!$B$4<>K46,0,IF(T$16>$AH44,$AI44,ROUND(T$16*$AF44,2))) -> 0 | U44: 2020 | V44: 0.062 | W44: 137700 | X44: 11475 | Y44: 711.45 | Z44: 0.0145 | AA44: Unlimited | AE44: 2020 | AF44: 0.124 | AG44: 137700 | AH44: 11475 | AI44: 1422.9 | AJ44: 0.029 | AK44: Unlimited | AZ44: 1990 | BA44: 6280 | BB44: 523.33 | BD44: 0
C45: 2800 | D45: 607 | E45: 912 | F45: 1141 | G45: 1287 | H45: 1403 | I45: 1500 | K45: 2019 | L45: =IF('Data Entry'!$B$4<>K47,0,IF(T$9>$X45,$Y45,ROUND(T$9*$V45,2))) -> 0 | M45: =IF('Data Entry'!$B$4<>K47,0,IF(T$11>$X45,$Y45,ROUND(T$11*$V45,2))) -> 0 | N45: =IF('Data Entry'!$B$4<>K47,0,IF(T$14>$AH45,$AI45,ROUND(T$14*$AF45,2))) -> 0 | O45: =IF('Data Entry'!$B$4<>K47,0,IF(T$16>$AH45,$AI45,ROUND(T$16*$AF45,2))) -> 0 | U45: 01/01/2021-09/29/2021 | V45: 0.062 | W45: 142800 | X45: 11900 | Y45: 737.8 | Z45: 0.0145 | AA45: Unlimited | AE45: 01/01/2021-09/29/2021 | AF45: 0.124 | AG45: 142800 | AH45: 11900 | AI45: 1475.6 | AJ45: 0.029 | AK45: Unlimited | AZ45: 1989 | BA45: 5980 | BB45: 498.33 | BD45: 0
C46: 2850 | D46: 616 | E46: 927 | F46: 1160 | G46: 1308 | H46: 1426 | I46: 1524 | K46: 2020 | L46: =IF('Data Entry'!$B$4<>K48,0,IF(T$9>$X46,$Y46,ROUND(T$9*$V46,2))) -> 0 | M46: =IF('Data Entry'!$B$4<>K48,0,IF(T$11>$X46,$Y46,ROUND(T$11*$V46,2))) -> 0 | N46: =IF('Data Entry'!$B$4<>K48,0,IF(T$14>$AH46,$AI46,ROUND(T$14*$AF46,2))) -> 0 | O46: =IF('Data Entry'!$B$4<>K48,0,IF(T$16>$AH46,$AI46,ROUND(T$16*$AF46,2))) -> 0 | U46: 09/30/2021-12/31/2021 | V46: 0.062 | W46: 142800 | X46: 11900 | Y46: 737.8 | Z46: 0.0145 | AA46: Unlimited | AE46: 09/30/2021-12/31/2021 | AF46: 0.124 | AG46: 142800 | AH46: 11900 | AI46: 1475.6 | AJ46: 0.029 | AK46: Unlimited | AZ46: 1988 | BA46: 5770 | BB46: 480.83 | BD46: 0
C47: 2900 | D47: 626 | E47: 941 | F47: 1178 | G47: 1328 | H47: 1448 | I47: 1549 | K47: 01/01/2021-09/29/2021 | L47: =IF('Data Entry'!$B$4<>K49,0,IF(T$9>$X47,$Y47,ROUND(T$9*$V47,2))) -> 0 | M47: =IF('Data Entry'!$B$4<>K49,0,IF(T$11>$X47,$Y47,ROUND(T$11*$V47,2))) -> 0 | N47: =IF('Data Entry'!$B$4<>K49,0,IF(T$14>$AH47,$AI47,ROUND(T$14*$AF47,2))) -> 0 | O47: =IF('Data Entry'!$B$4<>K49,0,IF(T$16>$AH47,$AI47,ROUND(T$16*$AF47,2))) -> 0 | U47: 01/01/2022-09/29/2022 | V47: 0.062 | W47: 147000 | X47: 12250 | Y47: 759.5 | Z47: 0.0145 | AA47: Unlimited | AE47: 01/01/2022-09/29/2022 | AF47: 0.124 | AG47: 147000 | AH47: 12250 | AI47: 1519 | AJ47: 0.029 | AK47: Unlimited | AZ47: 1987 | BA47: 5500 | BB47: 458.33 | BD47: 0
C48: 2950 | D48: 635 | E48: 956 | F48: 1197 | G48: 1349 | H48: 1471 | I48: 1573 | K48: 09/30/2021-12/31/2021 | L48: =IF('Data Entry'!$B$4<>K50,0,IF(T$9>$X48,$Y48,ROUND(T$9*$V48,2))) -> 0 | M48: =IF('Data Entry'!$B$4<>K50,0,IF(T$11>$X48,$Y48,ROUND(T$11*$V48,2))) -> 0 | N48: =IF('Data Entry'!$B$4<>K50,0,IF(T$14>$AH48,$AI48,ROUND(T$14*$AF48,2))) -> 0 | O48: =IF('Data Entry'!$B$4<>K50,0,IF(T$16>$AH48,$AI48,ROUND(T$16*$AF48,2))) -> 0 | U48: 09/30/2022-12/31/2022 | V48: 0.062 | W48: 147000 | X48: 12250 | Y48: 759.5 | Z48: 0.0145 | AA48: Unlimited | AE48: 09/30/2022-12/31/2022 | AF48: 0.124 | AG48: 147000 | AH48: 12250 | AI48: 1519 | AJ48: 0.029 | AK48: Unlimited | AZ48: 1986 | BA48: 5360 | BB48: 446.67 | BD48: 0
C49: 3000 | D49: 644 | E49: 971 | F49: 1215 | G49: 1370 | H49: 1494 | I49: 1598 | K49: 01/01/2022-09/29/2022 | L49: =IF('Data Entry'!$B$4<>K51,0,IF(T$9>$X49,$Y49,ROUND(T$9*$V49,2))) -> 0 | M49: =IF('Data Entry'!$B$4<>K51,0,IF(T$11>$X49,$Y49,ROUND(T$11*$V49,2))) -> 0 | N49: =IF('Data Entry'!$B$4<>K51,0,IF(T$14>$AH49,$AI49,ROUND(T$14*$AF49,2))) -> 0 | O49: =IF('Data Entry'!$B$4<>K51,0,IF(T$16>$AH49,$AI49,ROUND(T$16*$AF49,2))) -> 0 | U49: 01/01/2023-09/29/2023 | V49: 0.062 | W49: 160200 | X49: 13350 | Y49: 827.7 | Z49: 0.0145 | AA49: Unlimited | AE49: 01/01/2023-09/29/2023 | AF49: 0.124 | AG49: 160200 | AH49: 13350 | AI49: 1655.4 | AJ49: 0.029 | AK49: Unlimited | AZ49: 1985 | BA49: 5250 | BB49: 437.5
C50: 3050 | D50: 654 | E50: 986 | F50: 1234 | G50: 1391 | H50: 1517 | I50: 1622 | K50: 09/30/2022-12/31/2022 | L50: =IF('Data Entry'!$B$4<>K52,0,IF(T$9>$X50,$Y50,ROUND(T$9*$V50,2))) -> 0 | M50: =IF('Data Entry'!$B$4<>K52,0,IF(T$11>$X50,$Y50,ROUND(T$11*$V50,2))) -> 0 | N50: =IF('Data Entry'!$B$4<>K52,0,IF(T$14>$AH50,$AI50,ROUND(T$14*$AF50,2))) -> 0 | O50: =IF('Data Entry'!$B$4<>K52,0,IF(T$16>$AH50,$AI50,ROUND(T$16*$AF50,2))) -> 0 | U50: 09/30/2023-12/31/2023 | V50: 0.062 | W50: 160200 | X50: 13350 | Y50: 827.7 | Z50: 0.0145 | AA50: Unlimited | AE50: 09/30/2023-12/31/2023 | AF50: 0.124 | AG50: 160200 | AH50: 13350 | AI50: 1655.4 | AJ50: 0.029 | AK50: Unlimited | AZ50: 1984 | BA50: 4980 | BB50: 415
C51: 3100 | D51: 663 | E51: 1001 | F51: 1252 | G51: 1412 | H51: 1540 | I51: 1647 | K51: 01/01/2023-09/29/2023 | L51: =IF('Data Entry'!$B$4<>K53,0,IF(T$9>$X51,$Y51,ROUND(T$9*$V51,2))) -> 0 | M51: =IF('Data Entry'!$B$4<>K53,0,IF(T$11>$X51,$Y51,ROUND(T$11*$V51,2))) -> 0 | N51: =IF('Data Entry'!$B$4<>K53,0,IF(T$14>$AH51,$AI51,ROUND(T$14*$AF51,2))) -> 0 | O51: =IF('Data Entry'!$B$4<>K53,0,IF(T$16>$AH51,$AI51,ROUND(T$16*$AF51,2))) -> 0 | U51: 01/01/2024-09/29/2024 | V51: 0.062 | W51: 168600 | X51: 14050 | Y51: 871.1 | Z51: 0.0145 | AA51: Unlimited | AE51: 01/01/2024-09/29/2024 | AF51: 0.124 | AG51: 168600 | AH51: 14050 | AI51: 1742.2 | AJ51: 0.029 | AK51: Unlimited | AZ51: 1983 | BA51: 4860 | BB51: 405
C52: 3150 | D52: 673 | E52: 1016 | F52: 1271 | G52: 1433 | H52: 1563 | I52: 1671 | K52: 09/30/2023-12/31/2023 | L52: =IF('Data Entry'!$B$4<>K54,0,IF(T$9>$X52,$Y52,ROUND(T$9*$V52,2))) -> 0 | M52: =IF('Data Entry'!$B$4<>K54,0,IF(T$11>$X52,$Y52,ROUND(T$11*$V52,2))) -> 0 | N52: =IF('Data Entry'!$B$4<>K54,0,IF(T$14>$AH52,$AI52,ROUND(T$14*$AF52,2))) -> 0 | O52: =IF('Data Entry'!$B$4<>K54,0,IF(T$16>$AH52,$AI52,ROUND(T$16*$AF52,2))) -> 0 | U52: 09/30/2024-12/31/2024 | V52: 0.062 | W52: 168600 | X52: 14050 | Y52: 871.1 | Z52: 0.0145 | AA52: Unlimited | AE52: 09/30/2024-12/31/2024 | AF52: 0.124 | AG52: 168600 | AH52: 14050 | AI52: 1742.2 | AJ52: 0.029 | AK52: Unlimited | AZ52: 1982 | BA52: 4860 | BB52: 405
C53: 3200 | D53: 682 | E53: 1031 | F53: 1289 | G53: 1453 | H53: 1586 | I53: 1695 | K53: 01/01/2024-09/29/2024 | L53: =IF('Data Entry'!$B$4<>K55,0,IF(T$9>$X53,$Y53,ROUND(T$9*$V53,2))) -> 0 | M53: =IF('Data Entry'!$B$4<>K55,0,IF(T$11>$X53,$Y53,ROUND(T$11*$V53,2))) -> 0 | N53: =IF('Data Entry'!$B$4<>K55,0,IF(T$14>$AH53,$AI53,ROUND(T$14*$AF53,2))) -> 0 | O53: =IF('Data Entry'!$B$4<>K55,0,IF(T$16>$AH53,$AI53,ROUND(T$16*$AF53,2))) -> 0 | U53: 01/01/2025-09/29/2025 | V53: 0.062 | W53: =X53*12 -> 176100 | X53: 14675 | Y53: 909.85 | Z53: 0.0145 | AA53: Unlimited | AE53: 01/01/2025-09/29/2025 | AF53: 0.124 | AG53: =AH53*12 -> 176100 | AH53: 14675 | AI53: 1819.7 | AJ53: 0.029 | AK53: Unlimited
C54: 3250 | D54: 691 | E54: 1045 | F54: 1308 | G54: 1474 | H54: 1608 | I54: 1720 | K54: 09/30/2024-12/31/2024 | L54: =IF('Data Entry'!$B$4<>K56,0,IF(T$9>$X54,$Y54,ROUND(T$9*$V54,2))) -> 0 | M54: =IF('Data Entry'!$B$4<>K56,0,IF(T$11>$X54,$Y54,ROUND(T$11*$V54,2))) -> 0 | N54: =IF('Data Entry'!$B$4<>K56,0,IF(T$14>$AH54,$AI54,ROUND(T$14*$AF54,2))) -> 0 | O54: =IF('Data Entry'!$B$4<>K56,0,IF(T$16>$AH54,$AI54,ROUND(T$16*$AF54,2))) -> 0 | U54: 09/30/2025-12/31/2025 | V54: 0.062 | W54: =X54*12 -> 176100 | X54: 14675 | Y54: 909.85 | Z54: 0.0145 | AA54: Unlimited | AE54: 09/30/2025-12/31/2025 | AF54: 0.124 | AG54: =AH54*12 -> 176100 | AH54: 14675 | AI54: 1819.7 | AJ54: 0.029 | AK54: Unlimited
C55: 3300 | D55: 701 | E55: 1060 | F55: 1327 | G55: 1495 | H55: 1631 | I55: 1744 | K55: 01/01/2025-09/29/2025 | L55: =IF('Data Entry'!$B$4<>K57,0,IF(T$9>$X55,$Y55,ROUND(T$9*$V55,2))) -> 150.45 | M55: =IF('Data Entry'!$B$4<>K57,0,IF(T$11>$X55,$Y55,ROUND(T$11*$V55,2))) -> 150.45 | N55: =IF('Data Entry'!$B$4<>K57,0,IF(T$14>$AH55,$AI55,ROUND(T$14*$AF55,2))) -> 0 | O55: =IF('Data Entry'!$B$4<>K57,0,IF(T$16>$AH55,$AI55,ROUND(T$16*$AF55,2))) -> 0 | U55: 01/01/2026-09/29/2026 | V55: 0.062 | W55: 184500 | X55: =W55/12 -> 15375 | Y55: 953.25 | Z55: 0.0145 | AA55: Unlimited | AE55: 01/01/2026-09/29/2026 | AF55: 0.124 | AG55: =W55 -> 184500 | AH55: =AG55/12 -> 15375 | AI55: 1906.5 | AJ55: 0.029 | AK55: Unlimited
C56: 3350 | D56: 710 | E56: 1075 | F56: 1345 | G56: 1516 | H56: 1654 | I56: 1769 | K56: 09/30/2025-12/31/2025 | L56: =IF('Data Entry'!$B$4<>K58,0,IF(T$9>$X56,$Y56,ROUND(T$9*$V56,2))) -> 0 | M56: =IF('Data Entry'!$B$4<>K58,0,IF(T$11>$X56,$Y56,ROUND(T$11*$V56,2))) -> 0 | N56: =IF('Data Entry'!$B$4<>K58,0,IF(T$14>$AH56,$AI56,ROUND(T$14*$AF56,2))) -> 0 | O56: =IF('Data Entry'!$B$4<>K58,0,IF(T$16>$AH56,$AI56,ROUND(T$16*$AF56,2))) -> 0 | U56: 09/30/2026-12/31/2026 | V56: 0.062 | W56: 184500 | X56: =W56/12 -> 15375 | Y56: 953.25 | Z56: 0.0145 | AA56: Unlimited | AE56: 09/30/2026-12/31/2026 | AF56: 0.124 | AG56: =W56 -> 184500 | AH56: =AG56/12 -> 15375 | AI56: 1906.5 | AJ56: 0.029 | AK56: Unlimited
C57: 3400 | D57: 720 | E57: 1090 | F57: 1364 | G57: 1537 | H57: 1677 | I57: 1793 | K57: 01/01/2026-09/29/2026
C58: 3450 | D58: 729 | E58: 1105 | F58: 1382 | G58: 1558 | H58: 1700 | I58: 1818 | K58: 09/30/2026-12/31/2026
C59: 3500 | D59: 738 | E59: 1120 | F59: 1401 | G59: 1579 | H59: 1723 | I59: 1842
C60: 3550 | D60: 748 | E60: 1135 | F60: 1419 | G60: 1599 | H60: 1745 | I60: 1867
C61: 3600 | D61: 757 | E61: 1149 | F61: 1438 | G61: 1620 | H61: 1768 | I61: 1891
C62: 3650 | D62: 767 | E62: 1164 | F62: 1456 | G62: 1641 | H62: 1791 | I62: 1915
C63: 3700 | D63: 776 | E63: 1179 | F63: 1475 | G63: 1662 | H63: 1814 | I63: 1940
C64: 3750 | D64: 784 | E64: 1194 | F64: 1493 | G64: 1683 | H64: 1837 | I64: 1964
C65: 3800 | D65: 793 | E65: 1208 | F65: 1503 | G65: 1702 | H65: 1857 | I65: 1987
C66: 3850 | D66: 802 | E66: 1221 | F66: 1520 | G66: 1721 | H66: 1878 | I66: 2009
C67: 3900 | D67: 811 | E67: 1234 | F67: 1536 | G67: 1740 | H67: 1899 | I67: 2031
C68: 3950 | D68: 819 | E68: 1248 | F68: 1553 | G68: 1759 | H68: 1920 | I68: 2053
C69: 4000 | D69: 828 | E69: 1261 | F69: 1570 | G69: 1778 | H69: 1940 | I69: 2075
C70: 4050 | D70: 837 | E70: 1275 | F70: 1587 | G70: 1797 | H70: 1961 | I70: 2097
C71: 4100 | D71: 846 | E71: 1288 | F71: 1603 | G71: 1816 | H71: 1982 | I71: 2119
C72: 4150 | D72: 854 | E72: 1302 | F72: 1620 | G72: 1835 | H72: 2002 | I72: 2141
C73: 4200 | D73: 863 | E73: 1315 | F73: 1637 | G73: 1854 | H73: 2023 | I73: 2163
C74: 4250 | D74: 872 | E74: 1329 | F74: 1654 | G74: 1873 | H74: 2044 | I74: 2185
C75: 4300 | D75: 881 | E75: 1342 | F75: 1670 | G75: 1892 | H75: 2064 | I75: 2207
C76: 4350 | D76: 889 | E76: 1355 | F76: 1687 | G76: 1911 | H76: 2085 | I76: 2229
C77: 4400 | D77: 898 | E77: 1369 | F77: 1704 | G77: 1930 | H77: 2106 | I77: 2251
C78: 4450 | D78: 907 | E78: 1382 | F78: 1721 | G78: 1949 | H78: 2127 | I78: 2273
C79: 4500 | D79: 916 | E79: 1396 | F79: 1737 | G79: 1968 | H79: 2147 | I79: 2295
C80: 4550 | D80: 924 | E80: 1409 | F80: 1754 | G80: 1987 | H80: 2168 | I80: 2317
C81: 4600 | D81: 933 | E81: 1423 | F81: 1771 | G81: 2006 | H81: 2189 | I81: 2339
C82: 4650 | D82: 942 | E82: 1436 | F82: 1788 | G82: 2024 | H82: 2209 | I82: 2361
C83: 4700 | D83: 951 | E83: 1450 | F83: 1804 | G83: 2043 | H83: 2230 | I83: 2384
C84: 4750 | D84: 959 | E84: 1463 | F84: 1821 | G84: 2062 | H84: 2251 | I84: 2406
C85: 4800 | D85: 968 | E85: 1477 | F85: 1838 | G85: 2081 | H85: 2271 | I85: 2428
C86: 4850 | D86: 977 | E86: 1490 | F86: 1855 | G86: 2100 | H86: 2292 | I86: 2450
C87: 4900 | D87: 986 | E87: 1503 | F87: 1871 | G87: 2119 | H87: 2313 | I87: 2472
C88: 4950 | D88: 993 | E88: 1517 | F88: 1888 | G88: 2138 | H88: 2334 | I88: 2494
C89: 5000 | D89: 1000 | E89: 1530 | F89: 1905 | G89: 2157 | H89: 2354 | I89: 2516
C90: 5050 | D90: 1006 | E90: 1542 | F90: 1927 | G90: 2174 | H90: 2372 | I90: 2535
C91: 5100 | D91: 1013 | E91: 1551 | F91: 1939 | G91: 2188 | H91: 2387 | I91: 2551
C92: 5150 | D92: 1019 | E92: 1561 | F92: 1952 | G92: 2202 | H92: 2402 | I92: 2567
C93: 5200 | D93: 1025 | E93: 1571 | F93: 1964 | G93: 2215 | H93: 2417 | I93: 2583
C94: 5250 | D94: 1032 | E94: 1580 | F94: 1976 | G94: 2229 | H94: 2432 | I94: 2599
C95: 5300 | D95: 1038 | E95: 1590 | F95: 1988 | G95: 2243 | H95: 2447 | I95: 2615
C96: 5350 | D96: 1045 | E96: 1599 | F96: 2000 | G96: 2256 | H96: 2462 | I96: 2631
C97: 5400 | D97: 1051 | E97: 1609 | F97: 2012 | G97: 2270 | H97: 2477 | I97: 2647
C98: 5450 | D98: 1057 | E98: 1619 | F98: 2024 | G98: 2283 | H98: 2492 | I98: 2663
C99: 5500 | D99: 1064 | E99: 1628 | F99: 2037 | G99: 2297 | H99: 2507 | I99: 2679
C100: 5550 | D100: 1070 | E100: 1638 | F100: 2049 | G100: 2311 | H100: 2522 | I100: 2695
C101: 5600 | D101: 1077 | E101: 1647 | F101: 2061 | G101: 2324 | H101: 2537 | I101: 2711
C102: 5650 | D102: 1083 | E102: 1657 | F102: 2073 | G102: 2338 | H102: 2552 | I102: 2727
C103: 5700 | D103: 1089 | E103: 1667 | F103: 2085 | G103: 2352 | H103: 2567 | I103: 2743
C104: 5750 | D104: 1096 | E104: 1676 | F104: 2097 | G104: 2365 | H104: 2582 | I104: 2759
C105: 5800 | D105: 1102 | E105: 1686 | F105: 2109 | G105: 2379 | H105: 2597 | I105: 2775
C106: 5850 | D106: 1107 | E106: 1695 | F106: 2122 | G106: 2393 | H106: 2612 | I106: 2791
C107: 5900 | D107: 1111 | E107: 1705 | F107: 2134 | G107: 2406 | H107: 2627 | I107: 2807
C108: 5950 | D108: 1116 | E108: 1713 | F108: 2144 | G108: 2418 | H108: 2639 | I108: 2820
C109: 6000 | D109: 1121 | E109: 1721 | F109: 2155 | G109: 2429 | H109: 2651 | I109: 2833
C110: 6050 | D110: 1126 | E110: 1729 | F110: 2165 | G110: 2440 | H110: 2663 | I110: 2847
C111: 6100 | D111: 1131 | E111: 1737 | F111: 2175 | G111: 2451 | H111: 2676 | I111: 2860
C112: 6150 | D112: 1136 | E112: 1746 | F112: 2185 | G112: 2462 | H112: 2688 | I112: 2874
C113: 6200 | D113: 1141 | E113: 1754 | F113: 2196 | G113: 2473 | H113: 2700 | I113: 2887
C114: 6250 | D114: 1145 | E114: 1762 | F114: 2206 | G114: 2484 | H114: 2712 | I114: 2900
C115: 6300 | D115: 1150 | E115: 1770 | F115: 2216 | G115: 2495 | H115: 2724 | I115: 2914
C116: 6350 | D116: 1155 | E116: 1778 | F116: 2227 | G116: 2506 | H116: 2737 | I116: 2927
C117: 6400 | D117: 1160 | E117: 1786 | F117: 2237 | G117: 2517 | H117: 2749 | I117: 2941
C118: 6450 | D118: 1165 | E118: 1795 | F118: 2247 | G118: 2529 | H118: 2761 | I118: 2954
C119: 6500 | D119: 1170 | E119: 1803 | F119: 2258 | G119: 2540 | H119: 2773 | I119: 2967
C120: 6550 | D120: 1175 | E120: 1811 | F120: 2268 | G120: 2551 | H120: 2785 | I120: 2981
C121: 6600 | D121: 1179 | E121: 1819 | F121: 2278 | G121: 2562 | H121: 2798 | I121: 2994
C122: 6650 | D122: 1184 | E122: 1827 | F122: 2288 | G122: 2573 | H122: 2810 | I122: 3008
C123: 6700 | D123: 1189 | E123: 1835 | F123: 2299 | G123: 2584 | H123: 2822 | I123: 3021
C124: 6750 | D124: 1193 | E124: 1843 | F124: 2309 | G124: 2595 | H124: 2834 | I124: 3034
C125: 6800 | D125: 1196 | E125: 1850 | F125: 2317 | G125: 2604 | H125: 2845 | I125: 3045
C126: 6850 | D126: 1200 | E126: 1856 | F126: 2325 | G126: 2613 | H126: 2854 | I126: 3055
C127: 6900 | D127: 1204 | E127: 1862 | F127: 2332 | G127: 2621 | H127: 2863 | I127: 3064
C128: 6950 | D128: 1208 | E128: 1868 | F128: 2340 | G128: 2630 | H128: 2872 | I128: 3074
C129: 7000 | D129: 1212 | E129: 1873 | F129: 2347 | G129: 2639 | H129: 2882 | I129: 3084
C130: 7050 | D130: 1216 | E130: 1879 | F130: 2355 | G130: 2647 | H130: 2891 | I130: 3094
C131: 7100 | D131: 1220 | E131: 1885 | F131: 2362 | G131: 2656 | H131: 2900 | I131: 3103
C132: 7150 | D132: 1224 | E132: 1891 | F132: 2370 | G132: 2664 | H132: 2909 | I132: 3113
C133: 7200 | D133: 1228 | E133: 1897 | F133: 2378 | G133: 2673 | H133: 2919 | I133: 3123
C134: 7250 | D134: 1232 | E134: 1903 | F134: 2385 | G134: 2681 | H134: 2928 | I134: 3133
C135: 7300 | D135: 1235 | E135: 1909 | F135: 2393 | G135: 2690 | H135: 2937 | I135: 3142
C136: 7350 | D136: 1239 | E136: 1915 | F136: 2400 | G136: 2698 | H136: 2946 | I136: 3152
C137: 7400 | D137: 1243 | E137: 1921 | F137: 2408 | G137: 2707 | H137: 2956 | I137: 3162
C138: 7450 | D138: 1247 | E138: 1927 | F138: 2415 | G138: 2716 | H138: 2965 | I138: 3172
C139: 7500 | D139: 1251 | E139: 1933 | F139: 2423 | G139: 2724 | H139: 2974 | I139: 3181
C140: 7550 | D140: 1255 | E140: 1939 | F140: 2430 | G140: 2733 | H140: 2983 | I140: 3191
C141: 7600 | D141: 1259 | E141: 1945 | F141: 2438 | G141: 2741 | H141: 2993 | I141: 3201
C142: 7650 | D142: 1263 | E142: 1951 | F142: 2446 | G142: 2750 | H142: 3002 | I142: 3211
C143: 7700 | D143: 1267 | E143: 1957 | F143: 2453 | G143: 2758 | H143: 3011 | I143: 3220
C144: 7750 | D144: 1271 | E144: 1963 | F144: 2461 | G144: 2767 | H144: 3020 | I144: 3230
C145: 7800 | D145: 1274 | E145: 1969 | F145: 2468 | G145: 2775 | H145: 3030 | I145: 3240
C146: 7850 | D146: 1278 | E146: 1975 | F146: 2476 | G146: 2784 | H146: 3039 | I146: 3250
C147: 7900 | D147: 1282 | E147: 1981 | F147: 2483 | G147: 2792 | H147: 3048 | I147: 3259
C148: 7950 | D148: 1286 | E148: 1987 | F148: 2491 | G148: 2801 | H148: 3057 | I148: 3269
C149: 8000 | D149: 1290 | E149: 1992 | F149: 2498 | G149: 2810 | H149: 3067 | I149: 3279
C150: 8050 | D150: 1294 | E150: 1998 | F150: 2506 | G150: 2818 | H150: 3076 | I150: 3289
C151: 8100 | D151: 1298 | E151: 2004 | F151: 2513 | G151: 2827 | H151: 3085 | I151: 3298
C152: 8150 | D152: 1302 | E152: 2010 | F152: 2521 | G152: 2835 | H152: 3094 | I152: 3308
C153: 8200 | D153: 1306 | E153: 2016 | F153: 2529 | G153: 2844 | H153: 3104 | I153: 3318
C154: 8250 | D154: 1310 | E154: 2022 | F154: 2536 | G154: 2852 | H154: 3113 | I154: 3328
C155: 8300 | D155: 1313 | E155: 2028 | F155: 2544 | G155: 2861 | H155: 3122 | I155: 3337
C156: 8350 | D156: 1317 | E156: 2034 | F156: 2551 | G156: 2869 | H156: 3131 | I156: 3347
C157: 8400 | D157: 1321 | E157: 2040 | F157: 2559 | G157: 2878 | H157: 3141 | I157: 3357
C158: 8450 | D158: 1325 | E158: 2046 | F158: 2566 | G158: 2887 | H158: 3150 | I158: 3367
C159: 8500 | D159: 1329 | E159: 2052 | F159: 2574 | G159: 2895 | H159: 3159 | I159: 3376
C160: 8550 | D160: 1333 | E160: 2058 | F160: 2581 | G160: 2904 | H160: 3168 | I160: 3386
C161: 8600 | D161: 1337 | E161: 2064 | F161: 2589 | G161: 2912 | H161: 3178 | I161: 3396
C162: 8650 | D162: 1341 | E162: 2070 | F162: 2597 | G162: 2921 | H162: 3187 | I162: 3406
C163: 8700 | D163: 1345 | E163: 2076 | F163: 2604 | G163: 2929 | H163: 3196 | I163: 3415
C164: 8750 | D164: 1349 | E164: 2082 | F164: 2612 | G164: 2938 | H164: 3205 | I164: 3425
C165: 8800 | D165: 1352 | E165: 2088 | F165: 2619 | G165: 2946 | H165: 3215 | I165: 3435
C166: 8850 | D166: 1356 | E166: 2094 | F166: 2627 | G166: 2955 | H166: 3224 | I166: 3445
C167: 8900 | D167: 1360 | E167: 2100 | F167: 2634 | G167: 2963 | H167: 3233 | I167: 3454
C168: 8950 | D168: 1364 | E168: 2106 | F168: 2642 | G168: 2972 | H168: 3242 | I168: 3464
C169: 9000 | D169: 1368 | E169: 2111 | F169: 2649 | G169: 2981 | H169: 3252 | I169: 3474
C170: 9050 | D170: 1372 | E170: 2117 | F170: 2657 | G170: 2989 | H170: 3261 | I170: 3484
C171: 9100 | D171: 1376 | E171: 2123 | F171: 2664 | G171: 2998 | H171: 3270 | I171: 3493
C172: 9150 | D172: 1380 | E172: 2129 | F172: 2672 | G172: 3006 | H172: 3279 | I172: 3503
C173: 9200 | D173: 1384 | E173: 2135 | F173: 2680 | G173: 3015 | H173: 3289 | I173: 3513
C174: 9250 | D174: 1388 | E174: 2141 | F174: 2687 | G174: 3023 | H174: 3298 | I174: 3523
C175: 9300 | D175: 1391 | E175: 2147 | F175: 2695 | G175: 3032 | H175: 3307 | I175: 3532
C176: 9350 | D176: 1395 | E176: 2153 | F176: 2702 | G176: 3040 | H176: 3316 | I176: 3542
C177: 9400 | D177: 1399 | E177: 2159 | F177: 2710 | G177: 3049 | H177: 3326 | I177: 3552
C178: 9450 | D178: 1403 | E178: 2165 | F178: 2717 | G178: 3058 | H178: 3335 | I178: 3562
C179: 9500 | D179: 1407 | E179: 2171 | F179: 2725 | G179: 3066 | H179: 3344 | I179: 3571
C180: 9550 | D180: 1411 | E180: 2177 | F180: 2732 | G180: 3075 | H180: 3353 | I180: 3581
C181: 9600 | D181: 1415 | E181: 2183 | F181: 2740 | G181: 3083 | H181: 3363 | I181: 3591
C182: 9650 | D182: 1419 | E182: 2189 | F182: 2748 | G182: 3092 | H182: 3372 | I182: 3601
C183: 9700 | D183: 1422 | E183: 2195 | F183: 2755 | G183: 3100 | H183: 3381 | I183: 3610
C184: 9750 | D184: 1425 | E184: 2201 | F184: 2763 | G184: 3109 | H184: 3390 | I184: 3620
C185: 9800 | D185: 1427 | E185: 2206 | F185: 2767 | G185: 3115 | H185: 3396 | I185: 3628
C186: 9850 | D186: 1430 | E186: 2210 | F186: 2772 | G186: 3121 | H186: 3402 | I186: 3634
C187: 9900 | D187: 1432 | E187: 2213 | F187: 2776 | G187: 3126 | H187: 3408 | I187: 3641
C188: 9950 | D188: 1435 | E188: 2217 | F188: 2781 | G188: 3132 | H188: 3414 | I188: 3647
C189: 10000 | D189: 1437 | E189: 2221 | F189: 2786 | G189: 3137 | H189: 3420 | I189: 3653
E190: 2225 | F190: 2791 | G190: 3143 | H190: 3426 | I190: 3659
E191: 2228 | F191: 2795 | G191: 3148 | H191: 3432 | I191: 3666

Sheet Withholding
A1: Tax Year | B1: =Worksheet!B14 -> 01/01/2026-09/29/2026 | C1: Mom's Tax Inc. 98 | D1: Dad's Tax Inc 98 | E1: Mom's Tax Inc. 97 | F1: Dad's Tax Inc. 97 | H1: Mom's Tax Inc. 96 | I1: Dad's Tax Inc. 96 | K1: Mom's Tax Inc. 95 | L1: Dad's Tax Inc. 95 | N1: Mom's Tax Inc. 94 | O1: Dad's Tax Inc. 94 | Q1: Mom's Tax Inc. 93 | R1: Dad's Tax Inc. 93 | T1: Mom's Tax Inc. 92 | U1: Dad's Tax Inc. 92 | W1: Mom's Tax Inc. 91 | X1: Dad's Tax Inc. 91 | Z1: Mom's Tax Inc. 90 | AA1: Dad's Tax Inc. 90 | AC1: Mom's Tax Inc. 89 | AD1: Dad's Tax Inc. 89 | AF1: Mom's Tax Inc. 88 | AG1: Dad's Tax Inc. 88 | AI1: Mom's Tax Inc. 87 | AJ1: Dad's Tax Inc. 87 | AL1: Mom's Tax Inc. 86 | AM1: Dad's Tax Inc. 86 | AO1: Mom's Tax Inc. 85 | AP1: Dad's Tax Inc. 85 | AR1: Mom's Tax Inc. 84 | AS1: Dad's Tax Inc. 84 | AU1: Mom's Tax Inc. 83 | AV1: Dad's Tax Inc. 83 | AX1: Mom's Tax Inc. 82 | AY1: Dad's Tax Inc. 82 | BA1: Mom's Tax Inc. 99 | BB1: Dad's Tax Inc. 99 | BD1: Mom's Tax Inc. 2000 | BE1: Dad's Tax Inc. 2000 | BG1: Mom's Tax Inc. 2001 | BH1: Dad's Tax Inc. 2001 | BJ1: WH Allowance | BM1: After | BN1: Mom's Tax Inc. 2001.7 | BO1: Dad's Tax Inc. 2001.7 | BQ1: WH Allowance | BV1: Mom's Tax Inc. 2002 | BW1: Dad's Tax Inc. 2002 | BY1: WH Allowance | CD1: Mom's Tax Inc. 2003 | CE1: Dad's Tax Inc. 2003 | CG1: WH Allowance | CK1: After 7/1/2003: | CM1: Mom's Tax Inc. 2003.7 | CN1: Dad's Tax Inc. 2003.7 | CP1: WH Allowance | CU1: Mom's Tax Inc. 2004 | CV1: Dad's Tax Inc. 2004 | CX1: WH Allowance | DC1: Mom's Tax Inc. 2005 | DD1: Dad's Tax Inc. 2005 | DF1: WH Allowance | DK1: Mom's Tax Inc. 2006 | DL1: Dad's Tax Inc. 2006 | DN1: WH Allowance | DS1: Mom's Tax Inc. 2007 | DT1: Dad's Tax Inc. 2007 | DV1: WH Allowance | EA1: Mom's Tax Inc. 2008 | EB1: Dad's Tax Inc. 2008 | ED1: WH Allowance | EL1: Mom's Tax Inc. 2009 | EM1: Dad's Tax Inc. 2009 | EO1: WH Allowance | EW1: Mom's Tax Inc. 2009.4 | EX1: Dad's Tax Inc. 2009.4 | EZ1: WH Allowance | FH1: Mom's Tax Inc. 2010 | FI1: Dad's Tax Inc. 2010 | FK1: WH Allowance | FS1: Mom's Tax Inc. 2011 | FT1: Dad's Tax Inc. 2011 | FV1: WH Allowance | GD1: Mom's Tax Inc. 2012 | GE1: Dad's Tax Inc. 2012 | GG1: WH Allowance | GO1: Mom's Tax Inc. 2013 | GP1: Dad's Tax Inc. 2013 | GR1: WH Allowance | GZ1: Mom's Tax Inc. 2014 | HA1: Dad's Tax Inc. 2014 | HC1: WH Allowance | HK1: Mom's Tax Inc. 2015 | HL1: Dad's Tax Inc. 2015 | HN1: WH Allowance | HW1: Mom's Tax Inc. 2016 | HX1: Dad's Tax Inc. 2016 | HZ1: WH Allowance | IJ1: Mom's Tax Inc. 2017 | IK1: Dad's Tax Inc. 2017 | IM1: WH Allowance | IW1: Mom's Tax Inc. 2018 | IX1: Dad's Tax Inc. 2018 | IZ1: WH Allowance | JI1: Mom's Tax Inc. 2019 | JJ1: Dad's Tax Inc. 2019 | JL1: WH Allowance | JU1: Mom's Tax Inc. 2020 | JV1: Dad's Tax Inc. 2020 | JX1: WH Allowance | KG1: Mom's Tax Inc. 2021 | KH1: Dad's Tax Inc. 2021 | KJ1: WH Allowance | KS1: Mom's Tax Inc. 2021 | KT1: Dad's Tax Inc. 2021 | KV1: WH Allowance | LF1: Mom's Tax Inc. 2022 | LG1: Dad's Tax Inc. 2022 | LI1: WH Allowance | LS1: Mom's Tax Inc. 2022 | LT1: Dad's Tax Inc. 2022 | LV1: WH Allowance | MF1: Mom's Tax Inc. 2023 | MG1: Dad's Tax Inc. 2023 | MI1: WH Allowance | MS1: Mom's Tax Inc. 2023 | MT1: Dad's Tax Inc. 2023 | MV1: WH Allowance | NF1: Mom's Tax Inc. 2024 | NG1: Dad's Tax Inc. 2024 | NI1: WH Allowance | NS1: Mom's Tax Inc. 2024 | NT1: Dad's Tax Inc. 2024 | NV1: WH Allowance | OE1: Mom's Tax Inc. 2025 | OF1: Dad's Tax Inc. 2025 | OH1: WH Allowance | OR1: Mom's Tax Inc. 2025 | OS1: Dad's Tax Inc. 2025 | OU1: WH Allowance | PD1: Mom's Tax Inc. 2025 | PE1: Dad's Tax Inc. 2026 | PG1: WH Allowance | PQ1: Mom's Tax Inc. 2026 | PR1: Dad's Tax Inc. 2026 | PT1: WH Allowance
C2: =IF(B1=1998,B3-(B5*225),0) -> 0 | D2: =IF(B1=1998,B7-(B9*225),0) -> 0 | E2: =IF(B1=1997,B3-(B5*220.83),0) -> 0 | F2: =IF(B1=1997,B7-(B9*220.83),0) -> 0 | H2: =IF(B1=1996,B3-(B5*212.5),0) -> 0 | I2: =IF(B1=1996,B7-(B9*212.5),0) -> 0 | K2: =IF(B1=1995,B3-(B5*208.33),0) -> 0 | L2: =IF(B1=1995,B7-(B9*208.33),0) -> 0 | N2: =IF(B1=1994,B3-(B5*204.17),0) -> 0 | O2: =IF(B1=1994,B7-(B9*204.17),0) -> 0 | Q2: =IF(B1=1993,B3-(B5*195.83),0) -> 0 | R2: =IF(B1=1993,B7-(B9*195.83),0) -> 0 | T2: =IF(B1=1992,B3-(B5*191.67),0) -> 0 | U2: =IF(B1=1992,B7-(B9*191.67),0) -> 0 | W2: =IF(B1=1991,B3-(B5*179.17),0) -> 0 | X2: =IF(B1=1991,B7-(B9*179.17),0) -> 0 | Z2: =IF(B1=1990,B3-(B5*170.83),0) -> 0 | AA2: =IF(B1=1990,B7-(B9*170.83),0) -> 0 | AC2: =IF(B1=1989,B3-(B5*166.67),0) -> 0 | AD2: =IF(B1=1989,B7-(B9*166.67),0) -> 0 | AF2: =IF(B1=1988,B3-(B5*158.33),0) -> 0 | AG2: =IF(B1=1988,B7-(B9*158.33),0) -> 0 | AI2: =IF(B1=1987,B3-(B5*158.33),0) -> 0 | AJ2: =IF(B1=1987,B7-(B9*158.33),0) -> 0 | AL2: =IF(B1=1986,B3-(B5*90),0) -> 0 | AM2: =IF(B1=1986,B7-(B9*90),0) -> 0 | AO2: =IF(B1=1985,B3-(B5*86.67),0) -> 0 | AP2: =IF(B1=1985,B7-(B9*86.67),0) -> 0 | AR2: =IF(B1=1984,B3-(B5*83.33),0) -> 0 | AS2: =IF(B1=1984,B7-(B9*83.33),0) -> 0 | AU2: =IF(B1=1983,B3-(B5*83.33),0) -> 0 | AV2: =IF(B1=1983,B7-(B9*83.33),0) -> 0 | AX2: =IF(B1=1982,B3-(B5*83.33),0) -> 0 | AY2: =IF(B1=1982,B7-(B9*83.33),0) -> 0 | BA2: =IF(B1=1999,B3-(B5*229.17),0) -> 0 | BB2: =IF(B1=1999,B7-(B9*229.17),0) -> 0 | BD2: =IF($B$1=2000,$B$3-($B5*233.33),0) -> 0 | BE2: =IF($B$1=2000,$B$7-($B9*233.33),0) -> 0 | BG2: =IF($B$1=2001,$B$3-($B5*BJ2),0) -> 0 | BH2: =IF($B$1=2001,$B$7-($B9*BJ2),0) -> 0 | BJ2: 241.67 | BM2: 7/1/2001: | BN2: =IF($B$1=2001.7,$B$3-($B5*BQ2),0) -> 0 | BO2: =IF($B$1=2001.7,$B$7-($B9*BQ2),0) -> 0 | BQ2: 241.67 | BV2: =IF($B$1=2002,$B$3-($B5*BY2),0) -> 0 | BW2: =IF($B$1=2002,$B$7-($B9*BY2),0) -> 0 | BY2: 250 | CD2: =IF($B$1=2003,$B$3-($B5*CG2),0) -> 0 | CE2: =IF($B$1=2003,$B$7-($B9*CG2),0) -> 0 | CG2: 254.17 | CM2: =IF($B$1=2003.7,$B$3-($B5*CP2),0) -> 0 | CN2: =IF($B$1=2003.7,$B$7-($B9*CP2),0) -> 0 | CP2: 258.33 | CU2: =IF($B$1=2004,$B$3-($B5*CX2),0) -> 0 | CV2: =IF($B$1=2004,$B$7-($B9*CX2),0) -> 0 | CX2: 258.33 | DC2: =IF($B$1=2005,$B$3-($B5*DF2),0) -> 0 | DD2: =IF($B$1=2005,$B$7-($B9*DF2),0) -> 0 | DF2: 266.67 | DK2: =IF($B$1=2006,$B$3-($B5*DN2),0) -> 0 | DL2: =IF($B$1=2006,$B$7-($B9*DN2),0) -> 0 | DN2: 275 | DS2: =IF($B$1=2007,$B$3-($B5*DV2),0) -> 0 | DT2: =IF($B$1=2007,$B$7-($B9*DV2),0) -> 0 | DV2: 283.33 | EA2: =IF($B$1=2008,$B$3-($B5*ED2),0) -> 0 | EB2: =IF($B$1=2008,$B$7-($B9*ED2),0) -> 0 | ED2: 291.67 | EL2: =IF($B$1=2009,$B$3-($B5*EO2),0) -> 0 | EM2: =IF($B$1=2009,$B$7-($B9*EO2),0) -> 0 | EO2: 304.17 | EW2: =IF($B$1=2009.4,$B$3-($B5*EZ2),0) -> 0 | EX2: =IF($B$1=2009.4,$B$7-($B9*EZ2),0) -> 0 | EZ2: 304.17 | FH2: =IF($B$1=2010,$B$3-($B5*FK2),0) -> 0 | FI2: =IF($B$1=2010,$B$7-($B9*FK2),0) -> 0 | FK2: 304.17 | FS2: =IF($B$1=2011,$B$3-($B5*FV2),0) -> 0 | FT2: =IF($B$1=2011,$B$7-($B9*FV2),0) -> 0 | FV2: 308.33 | GD2: =IF($B$1=2012,$B$3-($B5*GG2),0) -> 0 | GE2: =IF($B$1=2012,$B$7-($B9*GG2),0) -> 0 | GG2: 316.67 | GO2: =IF($B$1=GO3,$B$3-($B5*GR2),0) -> 0 | GP2: =IF($B$1=GP3,$B$7-($B9*GR2),0) -> 0 | GR2: 325 | GZ2: =IF($B$1=GZ3,$B$3-($B5*HC2),0) -> 0 | HA2: =IF($B$1=HA3,$B$7-($B9*HC2),0) -> 0 | HC2: 329.2 | HK2: =IF($B$1=HK3,$B$3-($B5*HN2),0) -> 0 | HL2: =IF($B$1=HL3,$B$7-($B9*HN2),0) -> 0 | HN2: 333.3 | HW2: =IF($B$1=HW3,$B$3-($B5*HZ2),0) -> 0 | HX2: =IF($B$1=HX3,$B$7-($B9*HZ2),0) -> 0 | HZ2: 337.5 | IJ2: =IF($B$1=IJ3,$B$3-($B5*IM2),0) -> 0 | IK2: =IF($B$1=IK3,$B$7-($B9*IM2),0) -> 0 | IM2: 337.5 | IW2: =IF($B$1=IW3,$B$3-($B5*IZ2),0) -> 0 | IX2: =IF($B$1=IX3,$B$7-($B9*IZ2),0) -> 0 | IZ2: 345.8 | JI2: =IF($B$1=JI3,$B$3-($B5*JL2),0) -> 0 | JJ2: =IF($B$1=JJ3,$B$7-($B9*JL2),0) -> 0 | JL2: 350 | JU2: =IF($B$1=JU3,$B$3-($B5*JX2),0) -> 0 | JV2: =IF($B$1=JV3,$B$7-($B9*JX2),0) -> 0 | JX2: 358 | KG2: =IF($B$1=KG3,$B$3-($B5*KJ2),0) -> 0 | KH2: =IF($B$1=KH3,$B$7-($B9*KJ2),0) -> 0 | KJ2: 358 | KS2: =IF($B$1=KS3,$B$3-($B5*KV2),0) -> 0 | KT2: =IF($B$1=KT3,$B$7-($B9*KV2),0) -> 0 | KV2: 358 | LF2: =IF($B$1=LF3,$B$3-($B5*LI2),0) -> 0 | LG2: =IF($B$1=LG3,$B$7-($B9*LI2),0) -> 0 | LI2: 358 | LS2: =IF($B$1=LS3,$B$3-($B5*LV2),0) -> 0 | LT2: =IF($B$1=LT3,$B$7-($B9*LV2),0) -> 0 | LV2: 358 | MF2: =IF($B$1=MF3,$B$3-($B5*MI2),0) -> 0 | MG2: =IF($B$1=MG3,$B$7-($B9*MI2),0) -> 0 | MI2: 358 | MS2: =IF($B$1=MS3,$B$3-($B5*MV2),0) -> 0 | MT2: =IF($B$1=MT3,$B$7-($B9*MV2),0) -> 0 | MV2: 358 | NF2: =IF($B$1=NF3,$B$3-($B5*NI2),0) -> 0 | NG2: =IF($B$1=NG3,$B$7-($B9*NI2),0) -> 0 | NI2: 358 | NS2: =IF($B$1=NS3,$B$3-($B5*NV2),0) -> 0 | NT2: =IF($B$1=NT3,$B$7-($B9*NV2),0) -> 0 | NV2: 358 | OE2: =IF($B$1=OE3,$B$3-($B5*OH2),0) -> 0 | OF2: =IF($B$1=OF3,$B$7-($B9*OH2),0) -> 0 | OH2: 358 | OR2: =IF($B$1=OR3,$B$3-($B5*OU2),0) -> 0 | OS2: =IF($B$1=OS3,$B$7-($B9*OU2),0) -> 0 | OU2: 358 | PD2: =IF($B$1=PD3,$B$3-($B5*PG2),0) -> 1710.67 | PE2: =IF($B$1=PE3,$B$7-($B9*PG2),0) -> 2068.67 | PG2: 358 | PQ2: =IF($B$1=PQ3,$B$3-($B5*PT2),0) -> 0 | PR2: =IF($B$1=PR3,$B$7-($B9*PT2),0) -> 0 | PT2: 358
A3: Mom's Inc. | B3: =IF('Income Breakdown'!B23="YES",'Income Breakdown'!B20,Worksheet!B25) -> 2426.67 | GO3: 2013 | GP3: 2013 | GZ3: 2014 | HA3: 2014 | HK3: 2015 | HL3: 2015 | HW3: 2016 | HX3: 2016 | IJ3: 2017 | IK3: 2017 | IW3: 2018 | IX3: 2018 | JI3: 2019 | JJ3: 2019 | JU3: 2020 | JV3: 2020 | KG3: 01/01/2021-09/29/2021 | KH3: 01/01/2021-09/29/2021 | KS3: 09/30/2021-12/31/2021 | KT3: 09/30/2021-12/31/2021 | LF3: 01/01/2022-09/29/2022 | LG3: 01/01/2022-09/29/2022 | LS3: 09/30/2022-12/31/2022 | LT3: 09/30/2022-12/31/2022 | MF3: 01/01/2023-09/29/2023 | MG3: 01/01/2023-09/29/2023 | MS3: 09/30/2023-12/31/2023 | MT3: 09/30/2023-12/31/2023 | NF3: 01/01/2024-09/29/2024 | NG3: 01/01/2024-09/29/2024 | NS3: 09/30/2024-12/31/2024 | NT3: 09/30/2024-12/31/2024 | OE3: 01/01/2025-09/29/2025 | OF3: 01/01/2025-09/29/2025 | OR3: 09/30/2025-12/31/2025 | OS3: 09/30/2025-12/31/2025 | PD3: 01/01/2026-09/29/2026 | PE3: 01/01/2026-09/29/2026 | PQ3: 09/30/2026-12/31/2026 | PR3: 09/30/2026-12/31/2026
A4: Mom's Status | B4: =Worksheet!B17 -> s | C4: Mom Single Tax | D4: Dad Single Tax | E4: Mom Single Tax | F4: Dad Single Tax | H4: Mom Single Tax | I4: Dad Single Tax | K4: Mom Single Tax | L4: Dad Single Tax | N4: Mom Single Tax | O4: Dad Single Tax | Q4: Mom Single Tax | R4: Dad Single Tax | T4: Mom Single Tax | U4: Dad Single Tax | W4: Mom Single Tax | X4: Dad Single Tax | Z4: Mom Single Tax | AA4: Dad Single Tax | AC4: Mom Single Tax | AD4: Dad Single Tax | AF4: Mom Single Tax | AG4: Dad Single Tax | AI4: Mom Single Tax | AJ4: Dad Single Tax | AL4: Mom Single Tax | AM4: Dad Single Tax | AO4: Mom Single Tax | AP4: Dad Single Tax | AR4: Mom Single Tax | AS4: Dad Single Tax | AU4: Mom Single Tax | AV4: Dad Single Tax | AX4: Mom Single Tax | AY4: Dad Single Tax | BA4: Mom Single Tax | BB4: Dad Single Tax | BD4: Mom Single Tax | BE4: Dad Single Tax | BG4: Mom Single Tax | BH4: Dad Single Tax | BI4: Over | BJ4: Not Over | BK4: Percent | BL4: Minus | BN4: Mom Single Tax | BO4: Dad Single Tax | BP4: Over | BQ4: Not Over | BR4: Percent | BS4: Minus | BT4: Plus | BV4: Mom Single Tax | BW4: Dad Single Tax | BX4: Over | BY4: Not Over | BZ4: Percent | CA4: Minus | CB4: Plus | CD4: Mom Single Tax | CE4: Dad Single Tax | CF4: Over | CG4: Not Over | CH4: Percent | CI4: Minus | CJ4: Plus | CM4: Mom Single Tax | CN4: Dad Single Tax | CO4: Over | CP4: Not Over | CQ4: Percent | CR4: Minus | CS4: Plus | CU4: Mom Single Tax | CV4: Dad Single Tax | CW4: Over | CX4: Not Over | CY4: Percent | CZ4: Minus | DA4: Plus | DC4: Mom Single Tax | DD4: Dad Single Tax | DE4: Over | DF4: Not Over | DG4: Percent | DH4: Minus | DI4: Plus | DK4: Mom Single Tax | DL4: Dad Single Tax | DM4: Over | DN4: Not Over | DO4: Percent | DP4: Minus | DQ4: Plus | DS4: Mom Single Tax | DT4: Dad Single Tax | DU4: Over | DV4: Not Over | DW4: Percent | DX4: Minus | DY4: Plus | EA4: Mom Single Tax | EB4: Dad Single Tax | EC4: Over | ED4: Not Over | EE4: Percent | EF4: Minus | EG4: Plus | EI4: test (@ 0 allowances) | EJ4: correct? | EL4: Mom Single Tax | EM4: Dad Single Tax | EN4: Over | EO4: Not Over | EP4: Percent | EQ4: Minus | ER4: Plus | ET4: test (@ 0 allowances) | EU4: correct? | EW4: Mom Single Tax | EX4: Dad Single Tax | EY4: Over | EZ4: Not Over | FA4: Percent | FB4: Minus | FC4: Plus | FE4: test (@ 0 allowances) | FF4: correct? | FH4: Mom Single Tax | FI4: Dad Single Tax | FJ4: Over | FK4: Not Over | FL4: Percent | FM4: Minus | FN4: Plus | FP4: test @ 0 allowances | FQ4: correct? | FS4: Mom Single Tax | FT4: Dad Single Tax | FU4: Over | FV4: Not Over | FW4: Percent | FX4: Minus | FY4: Plus | GA4: test @ 0 allowances | GB4: correct? | GD4: Mom Single Tax | GE4: Dad Single Tax | GF4: Over | GG4: Not Over | GH4: Percent | GI4: Minus | GJ4: Plus | GL4: test @ 0 allowances | GM4: correct? | GO4: Mom Single Tax | GP4: Dad Single Tax | GQ4: Over | GR4: Not Over | GS4: Percent | GT4: Minus | GU4: Plus | GW4: test @ 0 allowances | GX4: correct? | GZ4: Mom Single Tax | HA4: Dad Single Tax | HB4: Over | HC4: Not Over | HD4: Percent | HE4: Minus | HF4: Plus | HH4: test @ 0 allowances | HI4: correct? | HK4: Mom Single Tax | HL4: Dad Single Tax | HM4: Over | HN4: Not Over | HO4: Percent | HP4: Minus | HQ4: Plus | HS4: test @ 0 allowances | HT4: correct? | HU4: Percent match? | HW4: Mom Single Tax | HX4: Dad Single Tax | HY4: Over | HZ4: Not Over | IA4: Percent | IB4: Minus | IC4: Plus | IE4: test @ 0 allowances | IF4: correct? | IG4: Percent match? | IJ4: Mom Single Tax | IK4: Dad Single Tax | IL4: Over | IM4: Not Over | IN4: Percent | IO4: Minus | IP4: Plus | IR4: test @ 0 allowances | IS4: correct? | IT4: Percent match? | IW4: Mom Single Tax | IX4: Dad Single Tax | IY4: Over | IZ4: Not Over | JA4: Percent | JB4: Minus | JC4: Plus | JE4: test @ 0 allowances | JF4: correct? | JG4: Percent match? | JI4: Mom Single Tax | JJ4: Dad Single Tax | JK4: Over | JL4: Not Over | JM4: Percent | JN4: Minus | JO4: Plus | JQ4: test @ 0 allowances | JR4: correct? | JS4: Percent match? | JU4: Mom Single Tax | JV4: Dad Single Tax | JW4: Over | JX4: Not Over | JY4: Percent | JZ4: Minus | KA4: Plus | KC4: test @ 0 allowances | KD4: correct? | KE4: Percent match? | KG4: Mom Single Tax | KH4: Dad Single Tax | KI4: Over | KJ4: Not Over | KK4: Percent | KL4: Minus | KM4: Plus | KO4: test @ 0 allowances | KP4: correct? | KQ4: Percent match? | KS4: Mom Single Tax | KT4: Dad Single Tax | KU4: Over | KV4: Not Over | KW4: Percent | KX4: Minus | KY4: Plus | LA4: test @ 0 allowances | LB4: correct? | LC4: Percent match? | LF4: Mom Single Tax | LG4: Dad Single Tax | LH4: Over | LI4: Not Over | LJ4: Percent | LK4: Minus | LL4: Plus | LN4: test @ 0 allowances | LO4: correct? | LP4: Percent match? | LS4: Mom Single Tax | LT4: Dad Single Tax | LU4: Over | LV4: Not Over | LW4: Percent | LX4: Minus | LY4: Plus | MA4: test @ 0 allowances | MB4: correct? | MC4: Percent match? | MF4: Mom Single Tax | MG4: Dad Single Tax | MH4: Over | MI4: Not Over | MJ4: Percent | MK4: Minus | ML4: Plus | MN4: test @ 0 allowances | MO4: correct? | MP4: Percent match? | MS4: Mom Single Tax | MT4: Dad Single Tax | MU4: Over | MV4: Not Over | MW4: Percent | MX4: Minus | MY4: Plus | NA4: test @ 0 allowances | NB4: correct? | NC4: Percent match? | NF4: Mom Single Tax | NG4: Dad Single Tax | NH4: Over | NI4: Not Over | NJ4: Percent | NK4: Minus | NL4: Plus | NN4: test @ 0 allowances | NO4: correct? | NP4: Percent match? | NS4: Mom Single Tax | NT4: Dad Single Tax | NU4: Over | NV4: Not Over | NW4: Percent | NX4: Minus | NY4: Plus | OA4: test @ 0 allowances | OB4: correct? | OC4: Percent match? | OE4: Mom Single Tax | OF4: Dad Single Tax | OG4: Over | OH4: Not Over | OI4: Percent | OJ4: Minus | OK4: Plus | OM4: test @ 0 allowances | ON4: correct? | OO4: Percent match? | OR4: Mom Single Tax | OS4: Dad Single Tax | OT4: Over | OU4: Not Over | OV4: Percent | OW4: Minus | OX4: Plus | OZ4: test @ 0 allowances | PA4: correct? | PB4: Percent match? | PD4: Mom Single Tax | PE4: Dad Single Tax | PF4: Over | PG4: Not Over | PH4: Percent | PI4: Minus | PJ4: Plus | PL4: test @ 0 allowances | PM4: correct? | PN4: Percent match? | PQ4: Mom Single Tax | PR4: Dad Single Tax | PS4: Over | PT4: Not Over | PU4: Percent | PV4: Minus | PW4: Plus | PY4: test @ 0 allowances | PZ4: correct? | QA4: Percent match?
A5: Mom's Exempts | B5: =Worksheet!B18 -> 2 | C5: =IF(B4="s",IF(AND(C2>221,C2<2242.01),(C2-221)*0.15,0),0) -> 0 | D5: =IF(B8="s",IF(AND(D2>221,D2<2242.01),(D2-221)*0.15,0),0) -> 0 | E5: =IF(B4="s",IF(AND(E2>221,E2<2179.01),(E2-221)*0.15,0),0) -> 0 | F5: =IF(B8="s",IF(AND(F2>221,F2<2179.01),(F2-221)*0.15,0),0) -> 0 | H5: =IF(B4="s",IF(AND(H2>219,H2<2121.01),(H2-219)*0.15,0),0) -> 0 | I5: =IF(B8="s",IF(AND(I2>219,I2<2121.01),(I2-219)*0.15,0),0) -> 0 | K5: =IF(B4="s",IF(AND(K2>217,K2<2063.01),(K2-217)*0.15,0),0) -> 0 | L5: =IF(B8="s",IF(AND(L2>217,L2<2063.01),(L2-217)*0.15,0),0) -> 0 | N5: =IF(B4="s",IF(AND(N2>215,N2<2008.01),(N2-215)*0.15,0),0) -> 0 | O5: =IF(B8="s",IF(AND(O2>215,O2<2008.01),(O2-215)*0.15,0),0) -> 0 | Q5: =IF(B4="s",IF(AND(Q2>210,Q2<1954.01),(Q2-210)*0.15,0),0) -> 0 | R5: =IF(B8="s",IF(AND(R2>210,R2<1954.01),(R2-210)*0.15,0),0) -> 0 | T5: =IF(B4="s",IF(AND(T2>204,T2<1896.01),(T2-204)*0.15,0),0) -> 0 | U5: =IF(B8="s",IF(AND(U2>204,U2<1896.01),(U2-204)*0.15,0),0) -> 0 | W5: =IF(B4="s",IF(AND(W2>104,W2<1800.01),(W2-104)*0.15,0),0) -> 0 | X5: =IF(B8="s",IF(AND(X2>104,X2<1800.01),(X2-104)*0.15,0),0) -> 0 | Z5: =IF(B4="s",IF(AND(Z2>100,Z2<1721.01),(Z2-100)*0.15,0),0) -> 0 | AA5: =IF(B8="s",IF(AND(AA2>100,AA2<1721.01),(AA2-100)*0.15,0),0) -> 0 | AC5: =IF(B4="s",IF(AND(AC2>92,AC2<1638.01),(AC2-92)*0.15,0),0) -> 0 | AD5: =IF(B8="s",IF(AND(AD2>92,AD2<1638.01),(AD2-92)*0.15,0),0) -> 0 | AF5: =IF(B4="s",IF(AND(AF2>53,AF2<203.01),(AF2-53)*0.11,0),0) -> 0 | AG5: =IF(B8="s",IF(AND(AG2>53,AG2<203.01),(AG2-53)*0.11,0),0) -> 0 | AI5: =IF(B4="s",IF(AND(AI2>53,AI2<203.01),(AI2-53)*0.11,0),0) -> 0 | AJ5: =IF(B8="s",IF(AND(AJ2>53,AJ2<203.01),(AJ2-53)*0.11,0),0) -> 0 | AL5: =IF(B4="s",IF(AND(AL2>123,AL2<375.01),(AL2-123)*0.12,0),0) -> 0 | AM5: =IF(B8="s",IF(AND(AM2>123,AM2<375.01),(AM2-123)*0.12,0),0) -> 0 | AO5: =IF(B4="s",IF(AND(AO2>118,AO2<364.01),(AO2-118)*0.12,0),0) -> 0 | AP5: =IF(B8="s",IF(AND(AP2>118,AP2<364.01),(AP2-118)*0.12,0),0) -> 0 | AR5: =IF(B4="s",IF(AND(AR2>117,AR2<342.01),(AR2-117)*0.12,0),0) -> 0 | AS5: =IF(B8="s",IF(AND(AS2>117,AS2<342.01),(AS2-117)*0.12,0),0) -> 0 | AU5: =IF(B4="s",IF(AND(AU2>117,AU2<267.01),(AU2-117)*0.12,0),0) -> 0 | AV5: =IF(B8="s",IF(AND(AV2>117,AV2<267.01),(AV2-117)*0.12,0),0) -> 0 | AX5: =IF(B4="s",IF(AND(AX2>117,AX2<267.01),(AX2-117)*0.12,0),0) -> 0 | AY5: =IF(B8="s",IF(AND(AY2>117,AY2<267.01),(AY2-117)*0.12,0),0) -> 0 | BA5: =IF(B4="s",IF(AND(BA2>221,BA2<2275.01),(BA2-221)*0.15,0),0) -> 0 | BB5: =IF(B8="s",IF(AND(BB2>221,BB2<2275.01),(BB2-221)*0.15,0),0) -> 0 | BD5: =IF($B4="s",IF(AND(BD2>221,BD2<2321.01),(BD2-221)*0.15,0),0) -> 0 | BE5: =IF($B8="s",IF(AND(BE2>221,BE2<2321.01),(BE2-221)*0.15,0),0) -> 0 | BG5: =IF($B$4="s",IF(AND($BG$2>BI5,$BG$2<BJ5),($BG$2-BL5)*BK5,0),0) -> 0 | BH5: =IF($B$8="s",IF(AND($BH$2>BI5,$BH$2<BJ5),($BH$2-BL5)*BK5,0),0) -> 0 | BI5: 221 | BJ5: 2392.01 | BK5: 0.15 | BL5: 221 | BN5: =IF($B$4="s",IF(AND(BN$2>BP5,BN$2<BQ5),((BN$2-BS5)*BR5)+BT5,0),0) -> 0 | BO5: =IF($B$8="s",IF(AND(BO$2>BP5,BO$2<BQ5),((BO$2-BS5)*BR5)+BT5,0),0) -> 0 | BP5: 221 | BQ5: 2392.01 | BR5: 0.15 | BS5: =BP5 -> 221 | BV5: =IF($B$4="s",IF(AND(BV$2>BX5,BV$2<BY5),((BV$2-CA5)*BZ5)+CB5,0),0) -> 0 | BW5: =IF($B$8="s",IF(AND(BW$2>BX5,BW$2<BY5),((BW$2-CA5)*BZ5)+CB5,0),0) -> 0 | BX5: 221 | BY5: =BX6+0.01 -> 713.01 | BZ5: 0.1 | CA5: =BX5 -> 221 | CD5: =IF($B$4="s",IF(AND(CD$2>CF5,CD$2<CG5),((CD$2-CI5)*CH5)+CJ5,0),0) -> 0 | CE5: =IF($B$8="s",IF(AND(CE$2>CF5,CE$2<CG5),((CE$2-CI5)*CH5)+CJ5,0),0) -> 0 | CF5: 221 | CG5: =CF6+0.01 -> 713.01 | CH5: 0.1 | CI5: =CF5 -> 221 | CM5: =IF($B$4="s",IF(AND(CM$2>CO5,CM$2<CP5),((CM$2-CR5)*CQ5)+CS5,0),0) -> 0 | CN5: =IF($B$8="s",IF(AND(CN$2>CO5,CN$2<CP5),((CN$2-CR5)*CQ5)+CS5,0),0) -> 0 | CO5: 221 | CP5: =CO6+0.01 -> 808.01 | CQ5: 0.1 | CR5: =CO5 -> 221 | CU5: =IF($B$4="s",IF(AND(CU$2>CW5,CU$2<CX5),((CU$2-CZ5)*CY5)+DA5,0),0) -> 0 | CV5: =IF($B$8="s",IF(AND(CV$2>CW5,CV$2<CX5),((CV$2-CZ5)*CY5)+DA5,0),0) -> 0 | CW5: 221 | CX5: =CW6+0.01 -> 808.01 | CY5: 0.1 | CZ5: =CW5 -> 221 | DC5: =IF($B$4="s",IF(AND(DC$2>DE5,DC$2<DF5),((DC$2-DH5)*DG5)+DI5,0),0) -> 0 | DD5: =IF($B$8="s",IF(AND(DD$2>DE5,DD$2<DF5),((DD$2-DH5)*DG5)+DI5,0),0) -> 0 | DE5: 221 | DF5: =DE6+0.01 -> 817.01 | DG5: 0.1 | DH5: =DE5 -> 221 | DK5: =IF($B$4="s",IF(AND(DK$2>DM5,DK$2<DN5),((DK$2-DP5)*DO5)+DQ5,0),0) -> 0 | DL5: =IF($B$8="s",IF(AND(DL$2>DM5,DL$2<DN5),((DL$2-DP5)*DO5)+DQ5,0),0) -> 0 | DM5: 221 | DN5: =DM6+0.01 -> 833.01 | DO5: 0.1 | DP5: =DM5 -> 221 | DS5: =IF($B$4="s",IF(AND(DS$2>DU5,DS$2<DV5),((DS$2-DX5)*DW5)+DY5,0),0) -> 0 | DT5: =IF($B$8="s",IF(AND(DT$2>DU5,DT$2<DV5),((DT$2-DX5)*DW5)+DY5,0),0) -> 0 | DU5: 221 | DV5: =DU6+0.01 -> 843.01 | DW5: 0.1 | DX5: =DU5 -> 221 | EA5: =IF($B$4="s",IF(AND(EA$2>EC5,EA$2<ED5),((EA$2-EF5)*EE5)+EG5,0),0) -> 0 | EB5: =IF($B$8="s",IF(AND(EB$2>EC5,EB$2<ED5),((EB$2-EF5)*EE5)+EG5,0),0) -> 0 | EC5: 221 | ED5: =EC6+0.01 -> 858.01 | EE5: 0.1 | EF5: =EC5 -> 221 | EL5: =IF($B$4="s",IF(AND(EL$2>EN5,EL$2<EO5),((EL$2-EQ5)*EP5)+ER5,0),0) -> 0 | EM5: =IF($B$8="s",IF(AND(EM$2>EN5,EM$2<EO5),((EM$2-EQ5)*EP5)+ER5,0),0) -> 0 | EN5: 221 | EO5: =EN6+0.01 -> 867.01 | EP5: 0.1 | EQ5: =EN5 -> 221 | EW5: =IF($B$4="s",IF(AND(EW$2>EY5,EW$2<EZ5),((EW$2-FB5)*FA5)+FC5,0),0) -> 0 | EX5: =IF($B$8="s",IF(AND(EX$2>EY5,EX$2<EZ5),((EX$2-FB5)*FA5)+FC5,0),0) -> 0 | EY5: 598 | EZ5: =EY6+0.01 -> 867.01 | FA5: 0.1 | FB5: =EY5 -> 598 | FH5: =IF($B$4="s",IF(AND(FH$2>FJ5,FH$2<FK5),((FH$2-FM5)*FL5)+FN5,0),0) -> 0 | FI5: =IF($B$8="s",IF(AND(FI$2>FJ5,FI$2<FK5),((FI$2-FM5)*FL5)+FN5,0),0) -> 0 | FJ5: 504 | FK5: =FJ6+0.01 -> 869.01 | FL5: 0.1 | FM5: =FJ5 -> 504 | FS5: =IF($B$4="s",IF(AND(FS$2>FU5,FS$2<FV5),((FS$2-FX5)*FW5)+FY5,0),0) -> 0 | FT5: =IF($B$8="s",IF(AND(FT$2>FU5,FT$2<FV5),((FT$2-FX5)*FW5)+FY5,0),0) -> 0 | FU5: 175 | FV5: =FU6+0.01 -> 883.01 | FW5: 0.1 | FX5: =FU5 -> 175 | GD5: =IF($B$4="s",IF(AND(GD$2>GF5,GD$2<GG5),((GD$2-GI5)*GH5)+GJ5,0),0) -> 0 | GE5: =IF($B$8="s",IF(AND(GE$2>GF5,GE$2<GG5),((GE$2-GI5)*GH5)+GJ5,0),0) -> 0 | GF5: 179 | GG5: =GF6+0.01 -> 904.01 | GH5: 0.1 | GI5: =GF5 -> 179 | GO5: =IF($B$4="s",IF(AND(GO$2>GQ5,GO$2<GR5),((GO$2-GT5)*GS5)+GU5,0),0) -> 0 | GP5: =IF($B$8="s",IF(AND(GP$2>GQ5,GP$2<GR5),((GP$2-GT5)*GS5)+GU5,0),0) -> 0 | GQ5: 183 | GR5: =GQ6+0.01 -> 927.01 | GS5: 0.1 | GT5: =GQ5 -> 183 | GZ5: =IF($B$4="s",IF(AND(GZ$2>HB5,GZ$2<HC5),((GZ$2-HE5)*HD5)+HF5,0),0) -> 0 | HA5: =IF($B$8="s",IF(AND(HA$2>HB5,HA$2<HC5),((HA$2-HE5)*HD5)+HF5,0),0) -> 0 | HB5: 188 | HC5: =HB6+0.01 -> 944.01 | HD5: 0.1 | HE5: =HB5 -> 188 | HK5: =IF($B$4="s",IF(AND(HK$2>HM5,HK$2<HN5),((HK$2-HP5)*HO5)+HQ5,0),0) -> 0 | HL5: =IF($B$8="s",IF(AND(HL$2>HM5,HL$2<HN5),((HL$2-HP5)*HO5)+HQ5,0),0) -> 0 | HM5: 192 | HN5: =HM6+0.01 -> 960.01 | HO5: 0.1 | HP5: =HM5 -> 192 | HU5: =IF(HO5=HO15,"Yes","NO!") -> Yes | HW5: =IF($B$4="s",IF(AND(HW$2>HY5,HW$2<HZ5),((HW$2-IB5)*IA5)+IC5,0),0) -> 0 | HX5: =IF($B$8="s",IF(AND(HX$2>HY5,HX$2<HZ5),((HX$2-IB5)*IA5)+IC5,0),0) -> 0 | HY5: 188 | HZ5: =HY6+0.01 -> 960.01 | IA5: 0.1 | IB5: =HY5 -> 188 | IG5: =IF(IA5=IA15,"Yes","NO!") -> Yes | IJ5: =IF($B$4="s",IF(AND(IJ$2>IL5,IJ$2<IM5),((IJ$2-IO5)*IN5)+IP5,0),0) -> 0 | IK5: =IF($B$8="s",IF(AND(IK$2>IL5,IK$2<IM5),((IK$2-IO5)*IN5)+IP5,0),0) -> 0 | IL5: 192 | IM5: =IL6+0.01 -> 969.01 | IN5: 0.1 | IO5: =IL5 -> 192 | IT5: =IF(IN5=IN15,"Yes","NO!") -> Yes | IW5: =IF($B$4="s",IF(AND(IW$2>IY5,IW$2<IZ5),((IW$2-JB5)*JA5)+JC5,0),0) -> 0 | IX5: =IF($B$8="s",IF(AND(IX$2>IY5,IX$2<IZ5),((IX$2-JB5)*JA5)+JC5,0),0) -> 0 | IY5: 308 | IZ5: =IY6+0.01 -> 1102.01 | JA5: 0.1 | JB5: =IY5 -> 308 | JG5: =IF(JA5=JA15,"Yes","NO!") -> Yes | JI5: =IF($B$4="s",IF(AND(JI$2>JK5,JI$2<JL5),((JI$2-JN5)*JM5)+JO5,0),0) -> 0 | JJ5: =IF($B$8="s",IF(AND(JJ$2>JK5,JJ$2<JL5),((JJ$2-JN5)*JM5)+JO5,0),0) -> 0 | JK5: 317 | JL5: =JK6+0.01 -> 1125.01 | JM5: 0.1 | JN5: =JK5 -> 317 | JS5: =IF(JM5=JM15,"Yes","NO!") -> Yes | JU5: =IF($B$4="s",IF(AND(JU$2>JW5,JU$2<JX5),((JU$2-JZ5)*JY5)+KA5,0),0) -> 0 | JV5: =IF($B$8="s",IF(AND(JV$2>JW5,JV$2<JX5),((JV$2-JZ5)*JY5)+KA5,0),0) -> 0 | JW5: 0 | JX5: =JW6+0.01 -> 317.01 | JY5: 0 | JZ5: =JW5 -> 0 | KA5: 0 | KE5: =IF(JY5=JY15,"Yes","NO!") -> Yes | KG5: =IF($B$4="s",IF(AND(KG$2>KI5,KG$2<KJ5),((KG$2-KL5)*KK5)+KM5,0),0) -> 0 | KH5: =IF($B$8="s",IF(AND(KH$2>KI5,KH$2<KJ5),((KH$2-KL5)*KK5)+KM5,0),0) -> 0 | KI5: 0 | KJ5: =KI6+0.01 -> 329.01 | KK5: 0 | KL5: =KI5 -> 0 | KM5: 0 | KQ5: =IF(KK5=KK15,"Yes","NO!") -> Yes | KS5: =IF($B$4="s",IF(AND(KS$2>KU5,KS$2<KV5),((KS$2-KX5)*KW5)+KY5,0),0) -> 0 | KT5: =IF($B$8="s",IF(AND(KT$2>KU5,KT$2<KV5),((KT$2-KX5)*KW5)+KY5,0),0) -> 0 | KU5: 0 | KV5: =KU6+0.01 -> 329.01 | KW5: 0 | KX5: =KU5 -> 0 | KY5: 0 | LC5: =IF(KW5=KW15,"Yes","NO!") -> Yes | LF5: =IF($B$4="s",IF(AND(LF$2>LH5,LF$2<LI5),((LF$2-LK5)*LJ5)+LL5,0),0) -> 0 | LG5: =IF($B$8="s",IF(AND(LG$2>LH5,LG$2<LI5),((LG$2-LK5)*LJ5)+LL5,0),0) -> 0 | LH5: 0 | LI5: =LH6+0.01 -> 363.01 | LJ5: 0 | LK5: =LH5 -> 0 | LL5: 0 | LP5: =IF(LJ5=LJ15,"Yes","NO!") -> Yes | LS5: =IF($B$4="s",IF(AND(LS$2>LU5,LS$2<LV5),((LS$2-LX5)*LW5)+LY5,0),0) -> 0 | LT5: =IF($B$8="s",IF(AND(LT$2>LU5,LT$2<LV5),((LT$2-LX5)*LW5)+LY5,0),0) -> 0 | LU5: 0 | LV5: =LU6+0.01 -> 363.01 | LW5: 0 | LX5: =LU5 -> 0 | LY5: 0 | MC5: =IF(LW5=LW15,"Yes","NO!") -> Yes | MF5: =IF($B$4="s",IF(AND(MF$2>MH5,MF$2<MI5),((MF$2-MK5)*MJ5)+ML5,0),0) -> 0 | MG5: =IF($B$8="s",IF(AND(MG$2>MH5,MG$2<MI5),((MG$2-MK5)*MJ5)+ML5,0),0) -> 0 | MH5: 0 | MI5: =MH6+0.01 -> 438.01 | MJ5: 0 | MK5: =MH5 -> 0 | ML5: 0 | MP5: =IF(MJ5=MJ15,"Yes","NO!") -> Yes | MS5: =IF($B$4="s",IF(AND(MS$2>MU5,MS$2<MV5),((MS$2-MX5)*MW5)+MY5,0),0) -> 0 | MT5: =IF($B$8="s",IF(AND(MT$2>MU5,MT$2<MV5),((MT$2-MX5)*MW5)+MY5,0),0) -> 0 | MU5: 0 | MV5: =MU6+0.01 -> 438.01 | MW5: 0 | MX5: =MU5 -> 0 | MY5: 0 | NC5: =IF(MW5=MW15,"Yes","NO!") -> Yes | NF5: =IF($B$4="s",IF(AND(NF$2>NH5,NF$2<NI5),((NF$2-NK5)*NJ5)+NL5,0),0) -> 0 | NG5: =IF($B$8="s",IF(AND(NG$2>NH5,NG$2<NI5),((NG$2-NK5)*NJ5)+NL5,0),0) -> 0 | NH5: 0 | NI5: 500 | NJ5: 0 | NK5: =NH5 -> 0 | NL5: 0 | NP5: =IF(NJ5=NJ15,"Yes","NO!") -> Yes | NS5: =IF($B$4="s",IF(AND(NS$2>NU5,NS$2<NV5),((NS$2-NX5)*NW5)+NY5,0),0) -> 0 | NT5: =IF($B$8="s",IF(AND(NT$2>NU5,NT$2<NV5),((NT$2-NX5)*NW5)+NY5,0),0) -> 0 | NU5: 0 | NV5: =NU6+0.01 -> 500.01 | NW5: 0 | NX5: =NU5 -> 0 | NY5: 0 | OC5: =IF(NW5=NW15,"Yes","NO!") -> Yes | OE5: =IF($B$4="s",IF(AND(OE$2>OG5,OE$2<OH5),((OE$2-OJ5)*OI5)+OK5,0),0) -> 0 | OF5: =IF($B$8="s",IF(AND(OF$2>OG5,OF$2<OH5),((OF$2-OJ5)*OI5)+OK5,0),0) -> 0 | OG5: 0 | OH5: 533 | OI5: 0 | OJ5: =OG5 -> 0 | OK5: 0 | OO5: =IF(OI5=OI15,"Yes","NO!") -> Yes | OR5: =IF($B$4="s",IF(AND(OR$2>OT5,OR$2<OU5),((OR$2-OW5)*OV5)+OX5,0),0) -> 0 | OS5: =IF($B$8="s",IF(AND(OS$2>OT5,OS$2<OU5),((OS$2-OW5)*OV5)+OX5,0),0) -> 0 | OT5: 0 | OU5: 533 | OV5: 0 | OW5: =OT5 -> 0 | OX5: 0 | PB5: =IF(OV5=OV15,"Yes","NO!") -> Yes | PD5: =IF($B$4="s",IF(AND(PD$2>PF5,PD$2<PG5),((PD$2-PI5)*PH5)+PJ5,0),0) -> 0 | PE5: =IF($B$8="s",IF(AND(PE$2>PF5,PE$2<PG5),((PE$2-PI5)*PH5)+PJ5,0),0) -> 0 | PF5: 0 | PG5: 625 | PH5: 0 | PI5: =PF5 -> 0 | PJ5: 0 | PN5: =IF(PH5=PH15,"Yes","NO!") -> Yes | PQ5: =IF($B$4="s",IF(AND(PQ$2>PS5,PQ$2<PT5),((PQ$2-PV5)*PU5)+PW5,0),0) -> 0 | PR5: =IF($B$8="s",IF(AND(PR$2>PS5,PR$2<PT5),((PR$2-PV5)*PU5)+PW5,0),0) -> 0 | PS5: 0 | PT5: 625 | PU5: 0 | PV5: =PS5 -> 0 | PW5: 0 | QA5: =IF(PU5=PU15,"Yes","NO!") -> Yes
C6: =IF(B4="s",IF(AND(C2>2242,C2<4788.01),(C2-2242)*0.28+303.15,0),0) -> 0 | D6: =IF(B8="s",IF(AND(D2>2242,D2<4788.01),(D2-2242)*0.28+303.15,0),0) -> 0 | E6: =IF(B4="s",IF(AND(E2>2179,E2<4625.01),(E2-2179)*0.28+293.7,0),0) -> 0 | F6: =IF(B8="s",IF(AND(F2>2179,F2<4625.01),(F2-2179)*0.28+293.7,0),0) -> 0 | H6: =IF(B4="s",IF(AND(H2>2121,H2<4477.01),(H2-2121)*0.28+285.3,0),0) -> 0 | I6: =IF(B8="s",IF(AND(I2>2121,I2<4477.01),(I2-2121)*0.28+285.3,0),0) -> 0 | K6: =IF(B4="s",IF(AND(K2>2063,K2<4329.01),(K2-2063)*0.28+276.9,0),0) -> 0 | L6: =IF(B8="s",IF(AND(L2>2063,L2<4329.01),(L2-2063)*0.28+276.9,0),0) -> 0 | N6: =IF(B4="s",IF(AND(N2>2008,N2<4194.01),(N2-2008)*0.28+268.95,0),0) -> 0 | O6: =IF(B8="s",IF(AND(O2>2008,O2<4194.01),(O2-2008)*0.28+268.95,0),0) -> 0 | Q6: =IF(B4="s",IF(AND(Q2>1954,Q2<4081.01),(Q2-1954)*0.28+261.6,0),0) -> 0 | R6: =IF(B8="s",IF(AND(R2>1954,R2<4081.01),(R2-1954)*0.28+261.6,0),0) -> 0 | T6: =IF(B4="s",IF(AND(T2>1896,T2<3954.01),(T2-1896)*0.28+253.8,0),0) -> 0 | U6: =IF(B8="s",IF(AND(U2>1896,U2<3954.01),(U2-1896)*0.28+253.8,0),0) -> 0 | W6: =IF(B4="s",IF(AND(W2>1800,W2<4213.01),(W2-1800)*0.28+254.4,0),0) -> 0 | X6: =IF(B8="s",IF(AND(X2>1800,X2<4213.01),(X2-1800)*0.28+254.4,0),0) -> 0 | Z6: =IF(B4="s",IF(AND(Z2>1721,Z2<4021.01),(Z2-1721)*0.28+243.15,0),0) -> 0 | AA6: =IF(B8="s",IF(AND(AA2>1721,AA2<4021.01),(AA2-1721)*0.28+243.15,0),0) -> 0 | AC6: =IF(B4="s",IF(AND(AC2>1638,AC2<3833.01),(AC2-1638)*0.28+231.9,0),0) -> 0 | AD6: =IF(B8="s",IF(AND(AD2>1638,AD2<3833.01),(AD2-1638)*0.28+231.9,0),0) -> 0 | AF6: =IF(B4="s",IF(AND(AF2>203,AF2<1453.01),(AF2-203)*0.15+16.5,0),0) -> 0 | AG6: =IF(B8="s",IF(AND(AG2>203,AG2<1453.01),(AG2-203)*0.15+16.5,0),0) -> 0 | AI6: =IF(B4="s",IF(AND(AI2>203,AI2<1453.01),(AI2-203)*0.15+16.5,0),0) -> 0 | AJ6: =IF(B8="s",IF(AND(AJ2>203,AJ2<1453.01),(AJ2-203)*0.15+16.5,0),0) -> 0 | AL6: =IF(B4="s",IF(AND(AL2>375,AL2<833.01),(AL2-375)*0.15+30.24,0),0) -> 0 | AM6: =IF(B8="s",IF(AND(AM2>375,AM2<833.01),(AM2-375)*0.15+30.24,0),0) -> 0 | AO6: =IF(B4="s",IF(AND(AO2>364,AO2<800.01),(AO2-364)*0.15+29.52,0),0) -> 0 | AP6: =IF(B8="s",IF(AND(AP2>364,AP2<800.01),(AP2-364)*0.15+29.52,0),0) -> 0 | AR6: =IF(B4="s",IF(AND(AR2>342,AR2<792.01),(AR2-342)*0.15+27,0),0) -> 0 | AS6: =IF(B8="s",IF(AND(AS2>342,AS2<792.01),(AS2-342)*0.15+27,0),0) -> 0 | AU6: =IF(B4="s",IF(AND(AU2>267,AU2<742.01),(AU2-267)*0.16+18,0),0) -> 0 | AV6: =IF(B8="s",IF(AND(AV2>267,AV2<742.01),(AV2-267)*0.16+18,0),0) -> 0 | AX6: =IF(B4="s",IF(AND(AX2>267,AX2<742.01),(AX2-267)*0.16+18,0),0) -> 0 | AY6: =IF(B8="s",IF(AND(AY2>267,AY2<742.01),(AY2-267)*0.16+18,0),0) -> 0 | BA6: =IF(B4="s",IF(AND(BA2>2275,BA2<4875.01),(BA2-2275)*0.28+308.1,0),0) -> 0 | BB6: =IF(B8="s",IF(AND(BB2>2275,BB2<4875.01),(BB2-2275)*0.28+308.1,0),0) -> 0 | BD6: =IF($B4="s",IF(AND(BD2>2321,BD2<4992.01),(BD2-2321)*0.28+315,0),0) -> 0 | BE6: =IF($B8="s",IF(AND(BE2>2321,BE2<4992.01),(BE2-2321)*0.28+315,0),0) -> 0 | BG6: =IF($B$4="s",IF(AND($BG$2>BI6,$BG$2<BJ6),($BG$2-BL6)*BK6,0),0) -> 0 | BH6: =IF($B$8="s",IF(AND($BH$2>BI6,$BH$2<BJ6),($BH$2-BL6)*BK6,0),0) -> 0 | BI6: 2392 | BJ6: 5183.01 | BK6: 0.28 | BL6: 1228.96 | BN6: =IF($B$4="s",IF(AND(BN$2>BP6,BN$2<BQ6),((BN$2-BS6)*BR6)+BT6,0),0) -> 0 | BO6: =IF($B$8="s",IF(AND(BO$2>BP6,BO$2<BQ6),((BO$2-BS6)*BR6)+BT6,0),0) -> 0 | BP6: 2392 | BQ6: 5183.01 | BR6: 0.27 | BS6: =BP6 -> 2392 | BT6: 325.65 | BV6: =IF($B$4="s",IF(AND(BV$2>BX6,BV$2<BY6),((BV$2-CA6)*BZ6)+CB6,0),0) -> 0 | BW6: =IF($B$8="s",IF(AND(BW$2>BX6,BW$2<BY6),((BW$2-CA6)*BZ6)+CB6,0),0) -> 0 | BX6: 713 | BY6: =BX7+0.01 -> 2471.01 | BZ6: 0.15 | CA6: =BX6 -> 713 | CB6: 49.2 | CD6: =IF($B$4="s",IF(AND(CD$2>CF6,CD$2<CG6),((CD$2-CI6)*CH6)+CJ6,0),0) -> 0 | CE6: =IF($B$8="s",IF(AND(CE$2>CF6,CE$2<CG6),((CE$2-CI6)*CH6)+CJ6,0),0) -> 0 | CF6: 713 | CG6: =CF7+0.01 -> 2508.01 | CH6: 0.15 | CI6: 713 | CJ6: 49.2 | CM6: =IF($B$4="s",IF(AND(CM$2>CO6,CM$2<CP6),((CM$2-CR6)*CQ6)+CS6,0),0) -> 0 | CN6: =IF($B$8="s",IF(AND(CN$2>CO6,CN$2<CP6),((CN$2-CR6)*CQ6)+CS6,0),0) -> 0 | CO6: 808 | CP6: =CO7+0.01 -> 2567.01 | CQ6: 0.15 | CR6: 808 | CS6: 58.7 | CU6: =IF($B$4="s",IF(AND(CU$2>CW6,CU$2<CX6),((CU$2-CZ6)*CY6)+DA6,0),0) -> 0 | CV6: =IF($B$8="s",IF(AND(CV$2>CW6,CV$2<CX6),((CV$2-CZ6)*CY6)+DA6,0),0) -> 0 | CW6: 808 | CX6: =CW7+0.01 -> 2567.01 | CY6: 0.15 | CZ6: 808 | DA6: 58.7 | DC6: =IF($B$4="s",IF(AND(DC$2>DE6,DC$2<DF6),((DC$2-DH6)*DG6)+DI6,0),0) -> 0 | DD6: =IF($B$8="s",IF(AND(DD$2>DE6,DD$2<DF6),((DD$2-DH6)*DG6)+DI6,0),0) -> 0 | DE6: 817 | DF6: =DE7+0.01 -> 2625.01 | DG6: 0.15 | DH6: 817 | DI6: 59.6 | DK6: =IF($B$4="s",IF(AND(DK$2>DM6,DK$2<DN6),((DK$2-DP6)*DO6)+DQ6,0),0) -> 0 | DL6: =IF($B$8="s",IF(AND(DL$2>DM6,DL$2<DN6),((DL$2-DP6)*DO6)+DQ6,0),0) -> 0 | DM6: 833 | DN6: =DM7+0.01 -> 2687.01 | DO6: 0.15 | DP6: 833 | DQ6: 61.2 | DS6: =IF($B$4="s",IF(AND(DS$2>DU6,DS$2<DV6),((DS$2-DX6)*DW6)+DY6,0),0) -> 0 | DT6: =IF($B$8="s",IF(AND(DT$2>DU6,DT$2<DV6),((DT$2-DX6)*DW6)+DY6,0),0) -> 0 | DU6: 843 | DV6: =DU7+0.01 -> 2793.01 | DW6: 0.15 | DX6: 843 | DY6: 62.2 | EA6: =IF($B$4="s",IF(AND(EA$2>EC6,EA$2<ED6),((EA$2-EF6)*EE6)+EG6,0),0) -> 0 | EB6: =IF($B$8="s",IF(AND(EB$2>EC6,EB$2<ED6),((EB$2-EF6)*EE6)+EG6,0),0) -> 0 | EC6: 858 | ED6: =EC7+0.01 -> 2830.01 | EE6: 0.15 | EF6: 858 | EG6: 63.7 | EI6: =EE5*(EC6-EF5)+EG5 -> 63.7 | EJ6: =IF(EI6=EG6,"True","False") -> True | EL6: =IF($B$4="s",IF(AND(EL$2>EN6,EL$2<EO6),((EL$2-EQ6)*EP6)+ER6,0),0) -> 0 | EM6: =IF($B$8="s",IF(AND(EM$2>EN6,EM$2<EO6),((EM$2-EQ6)*EP6)+ER6,0),0) -> 0 | EN6: 867 | EO6: =EN7+0.01 -> 2950.01 | EP6: 0.15 | EQ6: 867 | ER6: 64.6 | ET6: =EP5*(EN6-EQ5)+ER5 -> 64.6 | EU6: =IF(ET6=ER6,"True","False") -> True | EW6: =IF($B$4="s",IF(AND(EW$2>EY6,EW$2<EZ6),((EW$2-FB6)*FA6)+FC6,0),0) -> 0 | EX6: =IF($B$8="s",IF(AND(EX$2>EY6,EX$2<EZ6),((EX$2-FB6)*FA6)+FC6,0),0) -> 0 | EY6: 867 | EZ6: =EY7+0.01 -> 3017.01 | FA6: 0.15 | FB6: 867 | FC6: 26.9 | FE6: =FA5*(EY6-FB5)+FC5 -> 26.9 | FF6: =IF(FE6=FC6,"True","False") -> True | FH6: 0 | FI6: 0 | FJ6: 869 | FK6: 3004.01 | FL6: 0.15 | FM6: 869 | FN6: 36.5 | FP6: =FL5*(FJ6-FM5)+FN5 -> 36.5 | FQ6: =IF(FP6=FN6,"True","False") -> True | FS6: =IF($B$4="s",IF(AND(FS$2>FU6,FS$2<FV6),((FS$2-FX6)*FW6)+FY6,0),0) -> 0 | FT6: =IF($B$8="s",IF(AND(FT$2>FU6,FT$2<FV6),((FT$2-FX6)*FW6)+FY6,0),0) -> 0 | FU6: 883 | FV6: =FU7+0.01 -> 3050.01 | FW6: 0.15 | FX6: 883 | FY6: 70.8 | GA6: =FW5*(FU6-FX5)+FY5 -> 70.8 | GB6: =IF(GA6=FY6,"True","False") -> True | GD6: =IF($B$4="s",IF(AND(GD$2>GF6,GD$2<GG6),((GD$2-GI6)*GH6)+GJ6,0),0) -> 0 | GE6: =IF($B$8="s",IF(AND(GE$2>GF6,GE$2<GG6),((GE$2-GI6)*GH6)+GJ6,0),0) -> 0 | GF6: 904 | GG6: =GF7+0.01 -> 3125.01 | GH6: 0.15 | GI6: 904 | GJ6: 72.5 | GL6: =GH5*(GF6-GI5)+GJ5 -> 72.5 | GM6: =IF(GL6=GJ6,"True","False") -> True | GO6: 0 | GP6: 0 | GQ6: 927 | GR6: 3204.01 | GS6: 0.15 | GT6: 927 | GU6: 74.4 | GW6: =GS5*(GQ6-GT5)+GU5 -> 74.4 | GX6: =IF(GW6=GU6,"True","False") -> True | GZ6: 0 | HA6: 0 | HB6: 944 | HC6: 3263.01 | HD6: 0.15 | HE6: 944 | HF6: 75.6 | HH6: =HD5*(HB6-HE5)+HF5 -> 75.6 | HI6: =IF(HH6=HF6,"True","False") -> True | HK6: 0 | HL6: 0 | HM6: 960 | HN6: 3313.01 | HO6: 0.15 | HP6: 960 | HQ6: 76.8 | HS6: =HO5*(HM6-HP5)+HQ5 -> 76.8 | HT6: =IF(HS6=HQ6,"True","False") -> True | HU6: =IF(HO6=HO16,"Yes","NO!") -> Yes | HW6: 0 | HX6: 0 | HY6: 960 | HZ6: 3325.01 | IA6: 0.15 | IB6: 960 | IC6: 77.2 | IE6: =IA5*(HY6-IB5)+IC5 -> 77.2 | IF6: =IF(IE6=IC6,"True","False") -> True | IG6: =IF(IA6=IA16,"Yes","NO!") -> Yes | IJ6: 0 | IK6: 0 | IL6: 969 | IM6: 3354.01 | IN6: 0.15 | IO6: 969 | IP6: 77.7 | IR6: =IN5*(IL6-IO5)+IP5 -> 77.7 | IS6: =IF(IR6=IP6,"True","False") -> True | IT6: =IF(IN6=IN16,"Yes","NO!") -> Yes | IW6: 0 | IX6: 0 | IY6: 1102 | IZ6: 3533.01 | JA6: 0.12 | JB6: 1102 | JC6: 79.4 | JE6: =JA5*(IY6-JB5)+JC5 -> 79.4 | JF6: =IF(JE6=JC6,"True","False") -> True | JG6: =IF(JA6=JA16,"Yes","NO!") -> Yes | JI6: 0 | JJ6: 0 | JK6: 1125 | JL6: 3606.01 | JM6: 0.12 | JN6: 1125 | JO6: 80.8 | JQ6: =JM5*(JK6-JN5)+JO5 -> 80.8 | JR6: =IF(JQ6=JO6,"True","False") -> True | JS6: =IF(JM6=JM16,"Yes","NO!") -> Yes | JU6: 0 | JV6: 0 | JW6: 317 | JX6: 1140.01 | JY6: 0.1 | JZ6: =JW6 -> 317 | KA6: 0 | KC6: =JY5*(JW6-JZ5)+KA5 -> 0 | KD6: =IF(KC6=KA6,"True","False") -> True | KE6: =IF(JY6=JY16,"Yes","NO!") -> Yes | KG6: 0 | KH6: 0 | KI6: 329 | KJ6: 1158.01 | KK6: 0.1 | KL6: =KI6 -> 329 | KM6: 0 | KO6: =KK5*(KI6-KL5)+KM5 -> 0 | KP6: =IF(KO6=KM6,"True","False") -> True | KQ6: =IF(KK6=KK16,"Yes","NO!") -> Yes | KS6: 0 | KT6: 0 | KU6: 329 | KV6: 1158.01 | KW6: 0.1 | KX6: =KU6 -> 329 | KY6: 0 | LA6: =KW5*(KU6-KX5)+KY5 -> 0 | LB6: =IF(LA6=KY6,"True","False") -> True | LC6: =IF(KW6=KW16,"Yes","NO!") -> Yes | LF6: 0 | LG6: 0 | LH6: 363 | LI6: 1219.01 | LJ6: 0.1 | LK6: =LH6 -> 363 | LL6: 0 | LN6: =LJ5*(LH6-LK5)+LL5 -> 0 | LO6: =IF(LN6=LL6,"True","False") -> True | LP6: =IF(LJ6=LJ16,"Yes","NO!") -> Yes | LS6: 0 | LT6: 0 | LU6: 363 | LV6: 1219.01 | LW6: 0.1 | LX6: =LU6 -> 363 | LY6: 0 | MA6: =LW5*(LU6-LX5)+LY5 -> 0 | MB6: =IF(MA6=LY6,"True","False") -> True | MC6: =IF(LW6=LW16,"Yes","NO!") -> Yes | MF6: 0 | MG6: 0 | MH6: 438 | MI6: 1354.01 | MJ6: 0.1 | MK6: =MH6 -> 438 | ML6: 0 | MN6: =MJ5*(MH6-MK5)+ML5 -> 0 | MO6: =IF(MN6=ML6,"True","False") -> True | MP6: =IF(MJ6=MJ16,"Yes","NO!") -> Yes | MS6: 0 | MT6: 0 | MU6: 438 | MV6: 1354.01 | MW6: 0.1 | MX6: =MU6 -> 438 | MY6: 0 | NA6: =MW5*(MU6-MX5)+MY5 -> 0 | NB6: =IF(NA6=MY6,"True","False") -> True | NC6: =IF(MW6=MW16,"Yes","NO!") -> Yes | NF6: 0 | NG6: 0 | NH6: 500 | NI6: 1467 | NJ6: 0.1 | NK6: =NH6 -> 500 | NL6: 0 | NN6: =NJ5*(NH6-NK5)+NL5 -> 0 | NO6: =IF(NN6=NL6,"True","False") -> True | NP6: =IF(NJ6=NJ16,"Yes","NO!") -> Yes | NS6: 0 | NT6: 0 | NU6: 500 | NV6: 1467.01 | NW6: 0.1 | NX6: =NU6 -> 500 | NY6: 0 | OA6: =NW5*(NU6-NX5)+NY5 -> 0 | OB6: =IF(OA6=NY6,"True","False") -> True | OC6: =IF(NW6=NW16,"Yes","NO!") -> Yes | OE6: 0 | OF6: 0 | OG6: 533 | OH6: 1527 | OI6: 0.1 | OJ6: =OG6 -> 533 | OK6: 0 | OM6: =OI5*(OG6-OJ5)+OK5 -> 0 | ON6: =IF(OM6=OK6,"True","False") -> True | OO6: =IF(OI6=OI16,"Yes","NO!") -> Yes | OR6: 0 | OS6: 0 | OT6: 533 | OU6: 1527 | OV6: 0.1 | OW6: =OT6 -> 533 | OX6: 0 | OZ6: =OV5*(OT6-OW5)+OX5 -> 0 | PA6: =IF(OZ6=OX6,"True","False") -> True | PB6: =IF(OV6=OV16,"Yes","NO!") -> Yes | PD6: 0 | PE6: 0 | PF6: 625 | PG6: 1658 | PH6: 0.1 | PI6: =PF6 -> 625 | PJ6: =PL6 -> 0 | PL6: =PH5*(PF6-PI5)+PJ5 -> 0 | PM6: =IF(PL6=PJ6,"True","False") -> True | PN6: =IF(PH6=PH16,"Yes","NO!") -> Yes | PQ6: 0 | PR6: 0 | PS6: 625 | PT6: 1658 | PU6: 0.1 | PV6: =PS6 -> 625 | PW6: =PY6 -> 0 | PY6: =PU5*(PS6-PV5)+PW5 -> 0 | PZ6: =IF(PY6=PW6,"True","False") -> True | QA6: =IF(PU6=PU16,"Yes","NO!") -> Yes
A7: Dad's Inc. | B7: =IF('Income Breakdown'!B23="YES",'Income Breakdown'!C20,Worksheet!C25) -> 2426.67 | C7: =IF(B4="s",IF(AND(C2>4788,C2<10804.01),(C2-4788)*0.31+1016.03,0),0) -> 0 | D7: =IF(B8="s",IF(AND(D2>4788,D2<10804.01),(D2-4788)*0.31+1016.03,0),0) -> 0 | E7: =IF(B4="s",IF(AND(E2>4625,E2<10513.01),(E2-4625)*0.31+978.58,0),0) -> 0 | F7: =IF(B8="s",IF(AND(F2>4625,F2<10513.01),(F2-4625)*0.31+978.58,0),0) -> 0 | H7: =IF(B4="s",IF(AND(H2>4477,H2<10229.01),(H2-4477)*0.31+944.98,0),0) -> 0 | I7: =IF(B8="s",IF(AND(I2>4477,I2<10229.01),(I2-4477)*0.31+944.98,0),0) -> 0 | K7: =IF(B4="s",IF(AND(K2>4329,K2<9946.01),(K2-4329)*0.31+911.38,0),0) -> 0 | L7: =IF(B8="s",IF(AND(L2>4329,L2<9946.01),(L2-4329)*0.31+911.38,0),0) -> 0 | N7: =IF(B4="s",IF(AND(N2>4194,N2<9696.01),(N2-4194)*0.31+881.03,0),0) -> 0 | O7: =IF(B8="s",IF(AND(O2>4194,O2<9696.01),(O2-4194)*0.31+881.03,0),0) -> 0 | Q7: =IF(B4="s",IF(Q2>4081,(Q2-4081)*0.31+857.16,0),0) -> 0 | R7: =IF(B8="s",IF(R2>4081,(R2-4081)*0.31+857.16,0),0) -> 0 | T7: =IF(B4="s",IF(T2>3954,(T2-3954)*0.31+830.04,0),0) -> 0 | U7: =IF(B8="s",IF(U2>3954,(U2-3954)*0.31+830.04,0),0) -> 0 | W7: =IF(B4="s",IF(W2>4213,(W2-4213)*0.31+930.04,0),0) -> 0 | X7: =IF(B8="s",IF(X2>4213,(X2-4213)*0.31+930.04,0),0) -> 0 | Z7: =IF(B4="s",IF(AND(Z2>4021,Z2<9192.01),(Z2-4021)*0.33+887.15,0),0) -> 0 | AA7: =IF(B8="s",IF(AND(AA2>4021,AA2<9192.01),(AA2-4021)*0.33+887.15,0),0) -> 0 | AC7: =IF(B4="s",IF(AND(AC2>3833,AC2<8786.01),(AC2-3833)*0.33+846.5,0),0) -> 0 | AD7: =IF(B8="s",IF(AND(AD2>3833,AD2<8786.01),(AD2-3833)*0.33+846.5,0),0) -> 0 | AF7: =IF(B4="s",IF(AND(AF2>1453,AF2<2303.01),(AF2-1453)*0.28+204,0),0) -> 0 | AG7: =IF(B8="s",IF(AND(AG2>1453,AG2<2303.01),(AG2-1453)*0.28+204,0),0) -> 0 | AI7: =IF(B4="s",IF(AND(AI2>1453,AI2<2303.01),(AI2-1453)*0.28+204,0),0) -> 0 | AJ7: =IF(B8="s",IF(AND(AJ2>1453,AJ2<2303.01),(AJ2-1453)*0.28+204,0),0) -> 0 | AL7: =IF(B4="s",IF(AND(AL2>833,AL2<1310.01),(AL2-833)*0.19+98.94,0),0) -> 0 | AM7: =IF(B8="s",IF(AND(AM2>833,AM2<1310.01),(AM2-833)*0.19+98.94,0),0) -> 0 | AO7: =IF(B4="s",IF(AND(AO2>800,AO2<1267.01),(AO2-800)*0.19+94.92,0),0) -> 0 | AP7: =IF(B8="s",IF(AND(AP2>800,AP2<1267.01),(AP2-800)*0.19+94.92,0),0) -> 0 | AR7: =IF(B4="s",IF(AND(AR2>792,AR2<1200.01),(AR2-792)*0.19+94.5,0),0) -> 0 | AS7: =IF(B8="s",IF(AND(AS2>792,AS2<1200.01),(AS2-792)*0.19+94.5,0),0) -> 0 | AU7: =IF(B4="s",IF(AND(AU2>742,AU2<1042.01),(AU2-742)*0.2+94,0),0) -> 0 | AV7: =IF(B8="s",IF(AND(AV2>742,AV2<1042.01),(AV2-742)*0.2+94,0),0) -> 0 | AX7: =IF(B4="s",IF(AND(AX2>742,AX2<1042.01),(AX2-742)*0.2+94,0),0) -> 0 | AY7: =IF(B8="s",IF(AND(AY2>742,AY2<1042.01),(AY2-742)*0.2+94,0),0) -> 0 | BA7: =IF(B4="s",IF(AND(BA2>4875,BA2<10983.01),(BA2-4875)*0.31+1036.1,0),0) -> 0 | BB7: =IF(B8="s",IF(AND(BB2>4875,BB2<10983.01),(BB2-4875)*0.31+1036.1,0),0) -> 0 | BD7: =IF($B4="s",IF(AND(BD2>4992,BD2<11183.01),(BD2-4992)*0.31+1062.88,0),0) -> 0 | BE7: =IF($B8="s",IF(AND(BE2>4992,BE2<11183.01),(BE2-4992)*0.31+1062.88,0),0) -> 0 | BG7: =IF($B$4="s",IF(AND($BG$2>BI7,$BG$2<BJ7),($BG$2-BL7)*BK7,0),0) -> 0 | BH7: =IF($B$8="s",IF(AND($BH$2>BI7,$BH$2<BJ7),($BH$2-BL7)*BK7,0),0) -> 0 | BI7: 5183 | BJ7: 11533.01 | BK7: 0.31 | BL7: 1611.61 | BN7: =IF($B$4="s",IF(AND(BN$2>BP7,BN$2<BQ7),((BN$2-BS7)*BR7)+BT7,0),0) -> 0 | BO7: =IF($B$8="s",IF(AND(BO$2>BP7,BO$2<BQ7),((BO$2-BS7)*BR7)+BT7,0),0) -> 0 | BP7: 5183 | BQ7: 11533.01 | BR7: 0.3 | BS7: =BP7 -> 5183 | BT7: 1079.22 | BV7: =IF($B$4="s",IF(AND(BV$2>BX7,BV$2<BY7),((BV$2-CA7)*BZ7)+CB7,0),0) -> 0 | BW7: =IF($B$8="s",IF(AND(BW$2>BX7,BW$2<BY7),((BW$2-CA7)*BZ7)+CB7,0),0) -> 0 | BX7: 2471 | BY7: =BX8+0.01 -> 5402.01 | BZ7: 0.27 | CA7: =BX7 -> 2471 | CB7: 312.9 | CD7: =IF($B$4="s",IF(AND(CD$2>CF7,CD$2<CG7),((CD$2-CI7)*CH7)+CJ7,0),0) -> 0 | CE7: =IF($B$8="s",IF(AND(CE$2>CF7,CE$2<CG7),((CE$2-CI7)*CH7)+CJ7,0),0) -> 0 | CF7: 2508 | CG7: =CF8+0.01 -> 5493.01 | CH7: 0.27 | CI7: 2508 | CJ7: 318.45 | CM7: =IF($B$4="s",IF(AND(CM$2>CO7,CM$2<CP7),((CM$2-CR7)*CQ7)+CS7,0),0) -> 0 | CN7: =IF($B$8="s",IF(AND(CN$2>CO7,CN$2<CP7),((CN$2-CR7)*CQ7)+CS7,0),0) -> 0 | CO7: 2567 | CP7: =CO8+0.01 -> 5708.01 | CQ7: 0.25 | CR7: 2567 | CS7: 322.55 | CU7: =IF($B$4="s",IF(AND(CU$2>CW7,CU$2<CX7),((CU$2-CZ7)*CY7)+DA7,0),0) -> 0 | CV7: =IF($B$8="s",IF(AND(CV$2>CW7,CV$2<CX7),((CV$2-CZ7)*CY7)+DA7,0),0) -> 0 | CW7: 2567 | CX7: =CW8+0.01 -> 5708.01 | CY7: 0.25 | CZ7: 2567 | DA7: 322.55 | DC7: =IF($B$4="s",IF(AND(DC$2>DE7,DC$2<DF7),((DC$2-DH7)*DG7)+DI7,0),0) -> 0 | DD7: =IF($B$8="s",IF(AND(DD$2>DE7,DD$2<DF7),((DD$2-DH7)*DG7)+DI7,0),0) -> 0 | DE7: 2625 | DF7: =DE8+0.01 -> 5813.01 | DG7: 0.25 | DH7: 2625 | DI7: 330.8 | DK7: =IF($B$4="s",IF(AND(DK$2>DM7,DK$2<DN7),((DK$2-DP7)*DO7)+DQ7,0),0) -> 0 | DL7: =IF($B$8="s",IF(AND(DL$2>DM7,DL$2<DN7),((DL$2-DP7)*DO7)+DQ7,0),0) -> 0 | DM7: 2687 | DN7: =DM8+0.01 -> 6104.01 | DO7: 0.25 | DP7: 2687 | DQ7: 339.3 | DS7: =IF($B$4="s",IF(AND(DS$2>DU7,DS$2<DV7),((DS$2-DX7)*DW7)+DY7,0),0) -> 0 | DT7: =IF($B$8="s",IF(AND(DT$2>DU7,DT$2<DV7),((DT$2-DX7)*DW7)+DY7,0),0) -> 0 | DU7: 2793 | DV7: =DU8+0.01 -> 6423.01 | DW7: 0.25 | DX7: 2793 | DY7: 354.7 | EA7: =IF($B$4="s",IF(AND(EA$2>EC7,EA$2<ED7),((EA$2-EF7)*EE7)+EG7,0),0) -> 0 | EB7: =IF($B$8="s",IF(AND(EB$2>EC7,EB$2<ED7),((EB$2-EF7)*EE7)+EG7,0),0) -> 0 | EC7: 2830 | ED7: =EC8+0.01 -> 6644.01 | EE7: 0.25 | EF7: 2830 | EG7: 359.5 | EI7: =EE6*(EC7-EF6)+EG6 -> 359.5 | EJ7: =IF(EI7=EG7,"True","False") -> True | EL7: =IF($B$4="s",IF(AND(EL$2>EN7,EL$2<EO7),((EL$2-EQ7)*EP7)+ER7,0),0) -> 0 | EM7: =IF($B$8="s",IF(AND(EM$2>EN7,EM$2<EO7),((EM$2-EQ7)*EP7)+ER7,0),0) -> 0 | EN7: 2950 | EO7: =EN8+0.01 -> 7025.01 | EP7: 0.25 | EQ7: 2950 | ER7: 377.05 | ET7: =EP6*(EN7-EQ6)+ER6 -> 377.05 | EU7: =IF(ET7=ER7,"True","False") -> True | EW7: =IF($B$4="s",IF(AND(EW$2>EY7,EW$2<EZ7),((EW$2-FB7)*FA7)+FC7,0),0) -> 0 | EX7: =IF($B$8="s",IF(AND(EX$2>EY7,EX$2<EZ7),((EX$2-FB7)*FA7)+FC7,0),0) -> 0 | EY7: 3017 | EZ7: =EY8+0.01 -> 5544.01 | FA7: 0.25 | FB7: 3017 | FC7: 349.4 | FE7: =FA6*(EY7-FB6)+FC6 -> 349.4 | FF7: =IF(FE7=FC7,"True","False") -> True | FH7: 0 | FI7: 0 | FJ7: 3004 | FK7: 5642.01 | FL7: 0.25 | FM7: 3004 | FN7: 356.75 | FP7: 356.75 | FQ7: True | FS7: =IF($B$4="s",IF(AND(FS$2>FU7,FS$2<FV7),((FS$2-FX7)*FW7)+FY7,0),0) -> 0 | FT7: =IF($B$8="s",IF(AND(FT$2>FU7,FT$2<FV7),((FT$2-FX7)*FW7)+FY7,0),0) -> 0 | FU7: 3050 | FV7: =FU8+0.01 -> 7142.01 | FW7: 0.25 | FX7: 3050 | FY7: 395.85 | GA7: =FW6*(FU7-FX6)+FY6 -> 395.85 | GB7: =IF(GA7=FY7,"True","False") -> True | GD7: =IF($B$4="s",IF(AND(GD$2>GF7,GD$2<GG7),((GD$2-GI7)*GH7)+GJ7,0),0) -> 0 | GE7: =IF($B$8="s",IF(AND(GE$2>GF7,GE$2<GG7),((GE$2-GI7)*GH7)+GJ7,0),0) -> 0 | GF7: 3125 | GG7: =GF8+0.01 -> 7317.01 | GH7: 0.25 | GI7: 3125 | GJ7: 405.65 | GL7: =GH6*(GF7-GI6)+GJ6 -> 405.65 | GM7: =IF(GL7=GJ7,"True","False") -> True | GO7: 0 | GP7: 0 | GQ7: 3204 | GR7: 7504.01 | GS7: 0.25 | GT7: 3204 | GU7: 415.95 | GW7: 415.95 | GX7: True | GZ7: 0 | HA7: 0 | HB7: 3263 | HC7: 7633.01 | HD7: 0.25 | HE7: 3263 | HF7: 423.45 | HH7: 423.45 | HI7: True | HK7: 0 | HL7: 0 | HM7: 3313 | HN7: 7754.01 | HO7: 0.25 | HP7: 3313 | HQ7: 429.75 | HS7: 429.75 | HT7: True | HU7: Yes | HW7: 0 | HX7: 0 | HY7: 3325 | HZ7: 7783.01 | IA7: 0.25 | IB7: 3325 | IC7: 431.95 | IE7: 431.95 | IF7: True | IG7: Yes | IJ7: 0 | IK7: 0 | IL7: 3354 | IM7: 7850.01 | IN7: 0.25 | IO7: 3354 | IP7: 435.45 | IR7: 435.45 | IS7: True | IT7: Yes | IW7: 0 | IX7: 0 | IY7: 3533 | IZ7: 7183.01 | JA7: 0.22 | JB7: 3533 | JC7: 371.12 | JE7: 371.12 | JF7: True | JG7: Yes | JI7: 0 | JJ7: 0 | JK7: 3606 | JL7: 7333.01 | JM7: 0.22 | JN7: 3606 | JO7: 378.52 | JQ7: 378.52 | JR7: True | JS7: Yes | JU7: 0 | JV7: 0 | JW7: 1140 | JX7: 3660.01 | JY7: 0.12 | JZ7: 1140 | KA7: 82.3 | KC7: =JY6*(JW7-JZ6)+KA6 -> 82.3 | KD7: True | KE7: Yes | KG7: 0 | KH7: 0 | KI7: 1158 | KJ7: 3706.01 | KK7: 0.12 | KL7: 1158 | KM7: 82.9 | KO7: =KK6*(KI7-KL6)+KM6 -> 82.9 | KP7: True | KQ7: Yes | KS7: 0 | KT7: 0 | KU7: 1158 | KV7: 3706.01 | KW7: 0.12 | KX7: 1158 | KY7: 82.9 | LA7: =KW6*(KU7-KX6)+KY6 -> 82.9 | LB7: True | LC7: Yes | LF7: 0 | LG7: 0 | LH7: 1219 | LI7: 3844.01 | LJ7: 0.12 | LK7: 1219 | LL7: 85.6 | LN7: =LJ6*(LH7-LK6)+LL6 -> 85.6 | LO7: True | LP7: Yes | LS7: 0 | LT7: 0 | LU7: 1219 | LV7: 3844.01 | LW7: 0.12 | LX7: 1219 | LY7: 85.6 | MA7: =LW6*(LU7-LX6)+LY6 -> 85.6 | MB7: True | MC7: Yes | MF7: 0 | MG7: 0 | MH7: 1354 | MI7: 4165.01 | MJ7: 0.12 | MK7: 1354 | ML7: 91.6 | MN7: =MJ6*(MH7-MK6)+ML6 -> 91.6 | MO7: True | MP7: Yes | MS7: 0 | MT7: 0 | MU7: 1354 | MV7: 4165.01 | MW7: 0.12 | MX7: 1354 | MY7: 91.6 | NA7: =MW6*(MU7-MX6)+MY6 -> 91.6 | NB7: True | NC7: Yes | NF7: 0 | NG7: 0 | NH7: 1467 | NI7: 4429 | NJ7: 0.12 | NK7: 1467 | NL7: 96.7 | NN7: =NJ6*(NH7-NK6)+NL6 -> 96.7 | NO7: True | NP7: Yes | NS7: 0 | NT7: 0 | NU7: 1467 | NV7: 4429.01 | NW7: 0.12 | NX7: 1467 | NY7: 96.7 | OA7: =NW6*(NU7-NX6)+NY6 -> 96.7 | OB7: True | OC7: Yes | OE7: 0 | OF7: 0 | OG7: 1527 | OH7: 4573 | OI7: 0.12 | OJ7: 1527 | OK7: 99.4 | OM7: =OI6*(OG7-OJ6)+OK6 -> 99.4 | ON7: True | OO7: Yes | OR7: 0 | OS7: 0 | OT7: 1527 | OU7: 4573 | OV7: 0.12 | OW7: 1527 | OX7: 99.4 | OZ7: =OV6*(OT7-OW6)+OX6 -> 99.4 | PA7: True | PB7: Yes | PD7: 109.6204 | PE7: 152.5804 | PF7: 1658 | PG7: 4825 | PH7: 0.12 | PI7: 1658 | PJ7: =PL7 -> 103.3 | PL7: =PH6*(PF7-PI6)+PJ6 -> 103.3 | PM7: True | PN7: Yes | PQ7: 0 | PR7: 0 | PS7: 1658 | PT7: 4825 | PU7: 0.12 | PV7: 1658 | PW7: =PY7 -> 103.3 | PY7: =PU6*(PS7-PV6)+PW6 -> 103.3 | PZ7: True | QA7: Yes
A8: Dad's Status | B8: =Worksheet!C17 -> s | C8: =IF(B4="s",IF(AND(C2>10804,C2<23333.01),(C2-10804)*0.36+2880.99,0),0) -> 0 | D8: =IF(B8="s",IF(AND(D2>10804,D2<23333.01),(D2-10804)*0.36+2880.99,0),0) -> 0 | E8: =IF(B4="s",IF(AND(E2>10513,E2<22713.01),(E2-10513)*0.36+2803.86,0),0) -> 0 | F8: =IF(B8="s",IF(AND(F2>10513,F2<22713.01),(F2-10513)*0.36+2803.86,0),0) -> 0 | H8: =IF(B4="s",IF(AND(H2>10229,H2<22100.01),(H2-10229)*0.36+2728.1,0),0) -> 0 | I8: =IF(B8="s",IF(AND(I2>10229,I2<22100.01),(I2-10229)*0.36+2728.1,0),0) -> 0 | K8: =IF(B4="s",IF(AND(K2>9946,K2<21492.01),(K2-9946)*0.36+2652.65,0),0) -> 0 | L8: =IF(B8="s",IF(AND(L2>9946,L2<21492.01),(L2-9946)*0.36+2652.65,0),0) -> 0 | N8: =IF(B4="s",IF(AND(N2>9696,N2<20946.01),(N2-9696)*0.36+2586.65,0),0) -> 0 | O8: =IF(B8="s",IF(AND(O2>9696,O2<20946.01),(O2-9696)*0.36+2586.65,0),0) -> 0 | Z8: =IF(B4="s",IF(Z2>9192,(Z2-9192)*0.28+2593.58,0),0) -> 0 | AA8: =IF(B8="s",IF(AA2>9192,(AA2-9192)*0.28+2593.58,0),0) -> 0 | AC8: =IF(B4="s",IF(AC2>8786,(AC2-8786)*0.28+2480.99,0),0) -> 0 | AD8: =IF(B8="s",IF(AD2>8786,(AD2-8786)*0.28+2480.99,0),0) -> 0 | AF8: =IF(B4="s",IF(AND(AF2>2303,AF2<4553.01),(AF2-2303)*0.35+442,0),0) -> 0 | AG8: =IF(B8="s",IF(AND(AG2>2303,AG2<4553.01),(AG2-2303)*0.35+442,0),0) -> 0 | AI8: =IF(B4="s",IF(AND(AI2>2303,AI2<4553.01),(AI2-2303)*0.35+442,0),0) -> 0 | AJ8: =IF(B8="s",IF(AND(AJ2>2303,AJ2<4553.01),(AJ2-2303)*0.35+442,0),0) -> 0 | AL8: =IF(B4="s",IF(AND(AL2>1310,AL2<1978.01),(AL2-1310)*0.25+189.57,0),0) -> 0 | AM8: =IF(B8="s",IF(AND(AM2>1310,AM2<1978.01),(AM2-1310)*0.25+189.57,0),0) -> 0 | AO8: =IF(B4="s",IF(AND(AO2>1267,AO2<1908.01),(AO2-1267)*0.25+183.65,0),0) -> 0 | AP8: =IF(B8="s",IF(AND(AP2>1267,AP2<1908.01),(AP2-1267)*0.25+183.65,0),0) -> 0 | AR8: =IF(B4="s",IF(AND(AR2>1200,AR2<1833.01),(AR2-1200)*0.25+172.02,0),0) -> 0 | AS8: =IF(B8="s",IF(AND(AS2>1200,AS2<1833.01),(AS2-1200)*0.25+172.02,0),0) -> 0 | AU8: =IF(B4="s",IF(AND(AU2>1042,AU2<1408.01),(AU2-1042)*0.24+154,0),0) -> 0 | AV8: =IF(B8="s",IF(AND(AV2>1042,AV2<1408.01),(AV2-1042)*0.24+154,0),0) -> 0 | AX8: =IF(B4="s",IF(AND(AX2>1042,AX2<1408.01),(AX2-1042)*0.24+154,0),0) -> 0 | AY8: =IF(B8="s",IF(AND(AY2>1042,AY2<1408.01),(AY2-1042)*0.24+154,0),0) -> 0 | BA8: =IF(B4="s",IF(AND(BA2>10983,BA2<23725.01),(BA2-10983)*0.36+2929.58,0),0) -> 0 | BB8: =IF(B8="s",IF(AND(BB2>10983,BB2<23725.01),(BB2-10983)*0.36+2929.58,0),0) -> 0 | BD8: =IF($B4="s",IF(AND(BD2>11183,BD2<24163.01),(BD2-11183)*0.36+2982.09,0),0) -> 0 | BE8: =IF($B8="s",IF(AND(BE2>11183,BE2<24163.01),(BE2-11183)*0.36+2982.09,0),0) -> 0 | BG8: =IF($B$4="s",IF(AND($BG$2>BI8,$BG$2<BJ8),($BG$2-BL8)*BK8,0),0) -> 0 | BH8: =IF($B$8="s",IF(AND($BH$2>BI8,$BH$2<BJ8),($BH$2-BL8)*BK8,0),0) -> 0 | BI8: 11533 | BJ8: 24917.01 | BK8: 0.36 | BL8: 2989.58 | BN8: =IF($B$4="s",IF(AND(BN$2>BP8,BN$2<BQ8),((BN$2-BS8)*BR8)+BT8,0),0) -> 0 | BO8: =IF($B$8="s",IF(AND(BO$2>BP8,BO$2<BQ8),((BO$2-BS8)*BR8)+BT8,0),0) -> 0 | BP8: 11533 | BQ8: 24917.01 | BR8: 0.35 | BS8: =BP8 -> 11533 | BT8: 2984.22 | BV8: =IF($B$4="s",IF(AND(BV$2>BX8,BV$2<BY8),((BV$2-CA8)*BZ8)+CB8,0),0) -> 0 | BW8: =IF($B$8="s",IF(AND(BW$2>BX8,BW$2<BY8),((BW$2-CA8)*BZ8)+CB8,0),0) -> 0 | BX8: 5402 | BY8: =BX9+0.01 -> 11913.01 | BZ8: 0.3 | CA8: =BX8 -> 5402 | CB8: 1104.27 | CD8: =IF($B$4="s",IF(AND(CD$2>CF8,CD$2<CG8),((CD$2-CI8)*CH8)+CJ8,0),0) -> 0 | CE8: =IF($B$8="s",IF(AND(CE$2>CF8,CE$2<CG8),((CE$2-CI8)*CH8)+CJ8,0),0) -> 0 | CF8: 5493 | CG8: =CF9+0.01 -> 12100.01 | CH8: 0.3 | CI8: 5493 | CJ8: 1124.4 | CM8: =IF($B$4="s",IF(AND(CM$2>CO8,CM$2<CP8),((CM$2-CR8)*CQ8)+CS8,0),0) -> 0 | CN8: =IF($B$8="s",IF(AND(CN$2>CO8,CN$2<CP8),((CN$2-CR8)*CQ8)+CS8,0),0) -> 0 | CO8: 5708 | CP8: =CO9+0.01 -> 12392.01 | CQ8: 0.28 | CR8: 5708 | CS8: 1107.8 | CU8: =IF($B$4="s",IF(AND(CU$2>CW8,CU$2<CX8),((CU$2-CZ8)*CY8)+DA8,0),0) -> 0 | CV8: =IF($B$8="s",IF(AND(CV$2>CW8,CV$2<CX8),((CV$2-CZ8)*CY8)+DA8,0),0) -> 0 | CW8: 5708 | CX8: =CW9+0.01 -> 12392.01 | CY8: 0.28 | CZ8: 5708 | DA8: 1107.8 | DC8: =IF($B$4="s",IF(AND(DC$2>DE8,DC$2<DF8),((DC$2-DH8)*DG8)+DI8,0),0) -> 0 | DD8: =IF($B$8="s",IF(AND(DD$2>DE8,DD$2<DF8),((DD$2-DH8)*DG8)+DI8,0),0) -> 0 | DE8: 5813 | DF8: =DE9+0.01 -> 12663.01 | DG8: 0.28 | DH8: 5813 | DI8: 1127.8 | DK8: =IF($B$4="s",IF(AND(DK$2>DM8,DK$2<DN8),((DK$2-DP8)*DO8)+DQ8,0),0) -> 0 | DL8: =IF($B$8="s",IF(AND(DL$2>DM8,DL$2<DN8),((DL$2-DP8)*DO8)+DQ8,0),0) -> 0 | DM8: 6104 | DN8: =DM9+0.01 -> 13054.01 | DO8: 0.28 | DP8: 6104 | DQ8: 1193.55 | DS8: =IF($B$4="s",IF(AND(DS$2>DU8,DS$2<DV8),((DS$2-DX8)*DW8)+DY8,0),0) -> 0 | DT8: =IF($B$8="s",IF(AND(DT$2>DU8,DT$2<DV8),((DT$2-DX8)*DW8)+DY8,0),0) -> 0 | DU8: 6423 | DV8: =DU9+0.01 -> 13567.01 | DW8: 0.28 | DX8: 6423 | DY8: 1262.2 | EA8: =IF($B$4="s",IF(AND(EA$2>EC8,EA$2<ED8),((EA$2-EF8)*EE8)+EG8,0),0) -> 0 | EB8: =IF($B$8="s",IF(AND(EB$2>EC8,EB$2<ED8),((EB$2-EF8)*EE8)+EG8,0),0) -> 0 | EC8: 6644 | ED8: =EC9+0.01 -> 13875.01 | EE8: 0.28 | EF8: 6644 | EG8: 1313 | EI8: =EE7*(EC8-EF7)+EG7 -> 1313 | EJ8: =IF(EI8=EG8,"True","False") -> True | EL8: =IF($B$4="s",IF(AND(EL$2>EN8,EL$2<EO8),((EL$2-EQ8)*EP8)+ER8,0),0) -> 0 | EM8: =IF($B$8="s",IF(AND(EM$2>EN8,EM$2<EO8),((EM$2-EQ8)*EP8)+ER8,0),0) -> 0 | EN8: 7025 | EO8: =EN9+0.01 -> 14467.01 | EP8: 0.28 | EQ8: 7025 | ER8: 1395.8 | ET8: =EP7*(EN8-EQ7)+ER7 -> 1395.8 | EU8: =IF(ET8=ER8,"True","False") -> True | EW8: =IF($B$4="s",IF(AND(EW$2>EY8,EW$2<EZ8),((EW$2-FB8)*FA8)+FC8,0),0) -> 0 | EX8: =IF($B$8="s",IF(AND(EX$2>EY8,EX$2<EZ8),((EX$2-FB8)*FA8)+FC8,0),0) -> 0 | EY8: 5544 | EZ8: =EY9+0.01 -> 14467.01 | FA8: 0.28 | FB8: 5544 | FC8: 981.15 | FE8: =FA7*(EY8-FB7)+FC7 -> 981.15 | FF8: =IF(FE8=FC8,"True","False") -> True | FH8: 0 | FI8: 0 | FJ8: 5642 | FK8: 7038.01 | FL8: 0.27 | FM8: 5642 | FN8: 1016.25 | FP8: 1016.25 | FQ8: True | FS8: =IF($B$4="s",IF(AND(FS$2>FU8,FS$2<FV8),((FS$2-FX8)*FW8)+FY8,0),0) -> 0 | FT8: =IF($B$8="s",IF(AND(FT$2>FU8,FT$2<FV8),((FT$2-FX8)*FW8)+FY8,0),0) -> 0 | FU8: 7142 | FV8: =FU9+0.01 -> 14708.01 | FW8: 0.28 | FX8: 7142 | FY8: 1418.85 | GA8: =FW7*(FU8-FX7)+FY7 -> 1418.85 | GB8: =IF(GA8=FY8,"True","False") -> True | GD8: =IF($B$4="s",IF(AND(GD$2>GF8,GD$2<GG8),((GD$2-GI8)*GH8)+GJ8,0),0) -> 0 | GE8: =IF($B$8="s",IF(AND(GE$2>GF8,GE$2<GG8),((GE$2-GI8)*GH8)+GJ8,0),0) -> 0 | GF8: 7317 | GG8: =GF9+0.01 -> 15067.01 | GH8: 0.28 | GI8: 7317 | GJ8: 1453.65 | GL8: =GH7*(GF8-GI7)+GJ7 -> 1453.65 | GM8: =IF(GL8=GJ8,"True","False") -> True | GO8: 0 | GP8: 0 | GQ8: 7504 | GR8: 15454.01 | GS8: 0.28 | GT8: 7504 | GU8: 1490.95 | GW8: 1490.95 | GX8: True | GZ8: 0 | HA8: 0 | HB8: 7633 | HC8: 15717.01 | HD8: 0.28 | HE8: 7633 | HF8: 1515.95 | HH8: 1515.95 | HI8: True | HK8: 0 | HL8: 0 | HM8: 7754 | HN8: 15967.01 | HO8: 0.28 | HP8: 7754 | HQ8: 1540 | HS8: 1540 | HT8: True | HU8: Yes | HW8: 0 | HX8: 0 | HY8: 7783 | HZ8: 16033.01 | IA8: 0.28 | IB8: 7783 | IC8: 1546.45 | IE8: 1546.45 | IF8: True | IG8: Yes | IJ8: 0 | IK8: 0 | IL8: 7850 | IM8: 16163.01 | IN8: 0.28 | IO8: 7850 | IP8: 1559.45 | IR8: 1559.45 | IS8: True | IT8: Yes | IW8: 0 | IX8: 0 | IY8: 7183 | IZ8: 13433.01 | JA8: 0.24 | JB8: 7183 | JC8: 1174.12 | JE8: 1174.12 | JF8: True | JG8: Yes | JI8: 0 | JJ8: 0 | JK8: 7333 | JL8: 13710.01 | JM8: 0.24 | JN8: 7333 | JO8: 1198.46 | JQ8: 1198.46 | JR8: True | JS8: Yes | JU8: 0 | JV8: 0 | JW8: 3660 | JX8: 7444.01 | JY8: 0.22 | JZ8: 3660 | KA8: 384.7 | KC8: 384.7 | KD8: True | KE8: Yes | KG8: 0 | KH8: 0 | KI8: 3706 | KJ8: 7527.01 | KK8: 0.22 | KL8: 3706 | KM8: 388.66 | KO8: 388.66 | KP8: True | KQ8: Yes | KS8: 0 | KT8: 0 | KU8: 3706 | KV8: 7527.01 | KW8: 0.22 | KX8: 3706 | KY8: 388.66 | LA8: 388.66 | LB8: True | LC8: Yes | LF8: 0 | LG8: 0 | LH8: 3844 | LI8: 7785.01 | LJ8: 0.22 | LK8: 3844 | LL8: 400.6 | LN8: 400.6 | LO8: True | LP8: Yes | LS8: 0 | LT8: 0 | LU8: 3844 | LV8: 7785.01 | LW8: 0.22 | LX8: 3844 | LY8: 400.6 | MA8: 400.6 | MB8: True | MC8: Yes | MF8: 0 | MG8: 0 | MH8: 4165 | MI8: 8385.01 | MJ8: 0.22 | MK8: 4165 | ML8: 428.92 | MN8: 428.92 | MO8: True | MP8: Yes | MS8: 0 | MT8: 0 | MU8: 4165 | MV8: 8385.01 | MW8: 0.22 | MX8: 4165 | MY8: 428.92 | NA8: 428.92 | NB8: True | NC8: Yes | NF8: 0 | NG8: 0 | NH8: 4429 | NI8: 8877 | NJ8: 0.22 | NK8: 4429 | NL8: 452.14 | NN8: 452.14 | NO8: True | NP8: Yes | NS8: 0 | NT8: 0 | NU8: 4429 | NV8: 8877.01 | NW8: 0.22 | NX8: 4429 | NY8: 452.14 | OA8: 452.14 | OB8: True | OC8: Yes | OE8: 0 | OF8: 0 | OG8: 4573 | OH8: 9146 | OI8: 0.22 | OJ8: 4573 | OK8: 464.92 | OM8: 464.92 | ON8: True | OO8: Yes | OR8: 0 | OS8: 0 | OT8: 4573 | OU8: 9146 | OV8: 0.22 | OW8: 4573 | OX8: 464.92 | OZ8: 464.92 | PA8: True | PB8: Yes | PD8: 0 | PE8: 0 | PF8: 4825 | PG8: 9433 | PH8: 0.22 | PI8: 4825 | PJ8: 483.34 | PL8: 483.34 | PM8: True | PN8: Yes | PQ8: 0 | PR8: 0 | PS8: 4825 | PT8: 9433 | PU8: 0.22 | PV8: 4825 | PW8: 483.34 | PY8: 483.34 | PZ8: True | QA8: Yes
A9: Dad's Exempts | B9: =Worksheet!C18 -> 1 | C9: =IF(B4="s",IF(C2>23333,(C2-23333)*0.396+7391.43,0),0) -> 0 | D9: =IF(B8="s",IF(D2>23333,(D2-23333)*0.396+7391.43,0),0) -> 0 | E9: =IF(B4="s",IF(E2>22713,(E2-22713)*0.396+7195.86,0),0) -> 0 | F9: =IF(B8="s",IF(F2>22713,(F2-22713)*0.396+7195.86,0),0) -> 0 | H9: =IF(B4="s",IF(H2>22100,(H2-22100)*0.396+7001.66,0),0) -> 0 | I9: =IF(B8="s",IF(I2>22100,(I2-22100)*0.396+7001.66,0),0) -> 0 | K9: =IF(B4="s",IF(K2>21492,(K2-21492)*0.396+6809.21,0),0) -> 0 | L9: =IF(B8="s",IF(L2>21492,(L2-21492)*0.396+6809.21,0),0) -> 0 | N9: =IF(B4="s",IF(N2>20946,(N2-20946)*0.396+6636.65,0),0) -> 0 | O9: =IF(B8="s",IF(O2>20946,(O2-20946)*0.396+6636.65,0),0) -> 0 | AF9: =IF(B4="s",IF(AF2>4553,(AF2-4553)*0.385+1229.5,0),0) -> 0 | AG9: =IF(B8="s",IF(AG2>4553,(AG2-4553)*0.385+1229.5,0),0) -> 0 | AI9: =IF(B4="s",IF(AI2>4553,(AI2-4553)*0.385+1229.5,0),0) -> 0 | AJ9: =IF(B8="s",IF(AJ2>4553,(AJ2-4553)*0.385+1229.5,0),0) -> 0 | AL9: =IF(B4="s",IF(AND(AL2>1978,AL2<2500.01),(AL2-1978)*0.3+356.57,0),0) -> 0 | AM9: =IF(B8="s",IF(AND(AM2>1978,AM2<2500.01),(AM2-1978)*0.3+356.57,0),0) -> 0 | AO9: =IF(B4="s",IF(AND(AO2>1908,AO2<2411.01),(AO2-1908)*0.3+343.9,0),0) -> 0 | AP9: =IF(B8="s",IF(AND(AP2>1908,AP2<2411.01),(AP2-1908)*0.3+343.9,0),0) -> 0 | AR9: =IF(B4="s",IF(AND(AR2>1833,AR2<2317.01),(AR2-1833)*0.3+330.27,0),0) -> 0 | AS9: =IF(B8="s",IF(AND(AS2>1833,AS2<2317.01),(AS2-1833)*0.3+330.27,0),0) -> 0 | AU9: =IF(B4="s",IF(AND(AU2>1408,AU2<1875.01),(AU2-1408)*0.3+241.84,0),0) -> 0 | AV9: =IF(B8="s",IF(AND(AV2>1408,AV2<1875.01),(AV2-1408)*0.3+241.84,0),0) -> 0 | AX9: =IF(B4="s",IF(AND(AX2>1408,AX2<1875.01),(AX2-1408)*0.3+241.84,0),0) -> 0 | AY9: =IF(B8="s",IF(AND(AY2>1408,AY2<1875.01),(AY2-1408)*0.3+241.84,0),0) -> 0 | BA9: =IF(B4="s",IF(BA2>23725,(BA2-23725)*0.396+7516.7,0),0) -> 0 | BB9: =IF(B8="s",IF(BB2>23725,(BB2-23725)*0.396+7516.7,0),0) -> 0 | BD9: =IF($B4="s",IF(BD2>24163,(BD2-24163)*0.396+7654.89,0),0) -> 0 | BE9: =IF($B8="s",IF(BE2>24163,(BE2-24163)*0.396+7654.89,0),0) -> 0 | BG9: =IF($B$4="s",IF($BG$2>BI9,($BG$2-BL9)*BK9,0),0) -> 0 | BH9: =IF($B$8="s",IF($BH$2>BI9,($BH$2-BL9)*BK9,0),0) -> 0 | BI9: 24917 | BK9: 0.396 | BL9: 4982.98 | BN9: =IF($B$4="s",IF(BN$2>BP9,((BN$2-BS9)*BR9)+BT9,0),0) -> 0 | BO9: =IF($B$8="s",IF(BO$2>BP9,((BO$2-BS9)*BR9)+BT9,0),0) -> 0 | BP9: 24917 | BR9: 0.386 | BS9: =BP9 -> 24917 | BT9: 7668.62 | BV9: =IF($B$4="s",IF(AND(BV$2>BX9,BV$2<BY9),((BV$2-CA9)*BZ9)+CB9,0),0) -> 0 | BW9: =IF($B$8="s",IF(AND(BW$2>BX9,BW$2<BY9),((BW$2-CA9)*BZ9)+CB9,0),0) -> 0 | BX9: 11913 | BY9: =BX10+0.01 -> 25729.01 | BZ9: 0.35 | CA9: =BX9 -> 11913 | CB9: 3057.57 | CD9: =IF($B$4="s",IF(AND(CD$2>CF9,CD$2<CG9),((CD$2-CI9)*CH9)+CJ9,0),0) -> 0 | CE9: =IF($B$8="s",IF(AND(CE$2>CF9,CE$2<CG9),((CE$2-CI9)*CH9)+CJ9,0),0) -> 0 | CF9: 12100 | CG9: =CF10+0.01 -> 26138.01 | CH9: 0.35 | CI9: 12100 | CJ9: 3106.5 | CM9: =IF($B$4="s",IF(AND(CM$2>CO9,CM$2<CP9),((CM$2-CR9)*CQ9)+CS9,0),0) -> 0 | CN9: =IF($B$8="s",IF(AND(CN$2>CO9,CN$2<CP9),((CN$2-CR9)*CQ9)+CS9,0),0) -> 0 | CO9: 12392 | CP9: =CO10+0.01 -> 26767.01 | CQ9: 0.33 | CR9: 12392 | CS9: 2979.32 | CU9: =IF($B$4="s",IF(AND(CU$2>CW9,CU$2<CX9),((CU$2-CZ9)*CY9)+DA9,0),0) -> 0 | CV9: =IF($B$8="s",IF(AND(CV$2>CW9,CV$2<CX9),((CV$2-CZ9)*CY9)+DA9,0),0) -> 0 | CW9: 12392 | CX9: =CW10+0.01 -> 26767.01 | CY9: 0.33 | CZ9: 12392 | DA9: 2979.32 | DC9: =IF($B$4="s",IF(AND(DC$2>DE9,DC$2<DF9),((DC$2-DH9)*DG9)+DI9,0),0) -> 0 | DD9: =IF($B$8="s",IF(AND(DD$2>DE9,DD$2<DF9),((DD$2-DH9)*DG9)+DI9,0),0) -> 0 | DE9: 12663 | DF9: =DE10+0.01 -> 27354.01 | DG9: 0.33 | DH9: 12663 | DI9: 3045.8 | DK9: =IF($B$4="s",IF(AND(DK$2>DM9,DK$2<DN9),((DK$2-DP9)*DO9)+DQ9,0),0) -> 0 | DL9: =IF($B$8="s",IF(AND(DL$2>DM9,DL$2<DN9),((DL$2-DP9)*DO9)+DQ9,0),0) -> 0 | DM9: 13054 | DN9: =DM10+0.01 -> 28200.01 | DO9: 0.33 | DP9: 13054 | DQ9: 3139.55 | DS9: =IF($B$4="s",IF(AND(DS$2>DU9,DS$2<DV9),((DS$2-DX9)*DW9)+DY9,0),0) -> 0 | DT9: =IF($B$8="s",IF(AND(DT$2>DU9,DT$2<DV9),((DT$2-DX9)*DW9)+DY9,0),0) -> 0 | DU9: 13567 | DV9: =DU10+0.01 -> 29304.01 | DW9: 0.33 | DX9: 13567 | DY9: 3262.52 | EA9: =IF($B$4="s",IF(AND(EA$2>EC9,EA$2<ED9),((EA$2-EF9)*EE9)+EG9,0),0) -> 0 | EB9: =IF($B$8="s",IF(AND(EB$2>EC9,EB$2<ED9),((EB$2-EF9)*EE9)+EG9,0),0) -> 0 | EC9: 13875 | ED9: =EC10+0.01 -> 29971.01 | EE9: 0.33 | EF9: 13875 | EG9: 3337.68 | EI9: =EE8*(EC9-EF8)+EG8 -> 3337.68 | EJ9: =IF(EI9=EG9,"True","False") -> True | EL9: =IF($B$4="s",IF(AND(EL$2>EN9,EL$2<EO9),((EL$2-EQ9)*EP9)+ER9,0),0) -> 0 | EM9: =IF($B$8="s",IF(AND(EM$2>EN9,EM$2<EO9),((EM$2-EQ9)*EP9)+ER9,0),0) -> 0 | EN9: 14467 | EO9: =EN10+0.01 -> 31250.01 | EP9: 0.33 | EQ9: 14467 | ER9: 3479.56 | ET9: =EP8*(EN9-EQ8)+ER8 -> 3479.56 | EU9: =IF(ET9=ER9,"True","False") -> True | EW9: =IF($B$4="s",IF(AND(EW$2>EY9,EW$2<EZ9),((EW$2-FB9)*FA9)+FC9,0),0) -> 0 | EX9: =IF($B$8="s",IF(AND(EX$2>EY9,EX$2<EZ9),((EX$2-FB9)*FA9)+FC9,0),0) -> 0 | EY9: 14467 | EZ9: =EY10+0.01 -> 31250.01 | FA9: 0.33 | FB9: 14467 | FC9: 3479.59 | FE9: =FA8*(EY9-FB8)+FC8 -> 3479.59 | FF9: =IF(FE9=FC9,"True","False") -> True | FH9: 0 | FI9: 0 | FJ9: 7038 | FK9: 7308.01 | FL9: 0.3 | FM9: 7038 | FN9: 1393.17 | FP9: 1393.17 | FQ9: True | FS9: =IF($B$4="s",IF(AND(FS$2>FU9,FS$2<FV9),((FS$2-FX9)*FW9)+FY9,0),0) -> 0 | FT9: =IF($B$8="s",IF(AND(FT$2>FU9,FT$2<FV9),((FT$2-FX9)*FW9)+FY9,0),0) -> 0 | FU9: 14708 | FV9: =FU10+0.01 -> 31771.01 | FW9: 0.33 | FX9: 14708 | FY9: 3537.33 | GA9: =FW8*(FU9-FX8)+FY8 -> 3537.33 | GB9: =IF(GA9=FY9,"True","False") -> True | GD9: =IF($B$4="s",IF(AND(GD$2>GF9,GD$2<GG9),((GD$2-GI9)*GH9)+GJ9,0),0) -> 0 | GE9: =IF($B$8="s",IF(AND(GE$2>GF9,GE$2<GG9),((GE$2-GI9)*GH9)+GJ9,0),0) -> 0 | GF9: 15067 | GG9: =GF10+0.01 -> 32542.01 | GH9: 0.33 | GI9: 15067 | GJ9: 3623.65 | GL9: =GH8*(GF9-GI8)+GJ8 -> 3623.65 | GM9: =IF(GL9=GJ9,"True","False") -> True | GO9: 0 | GP9: 0 | GQ9: 15454 | GR9: 33379.01 | GS9: 0.33 | GT9: 15454 | GU9: 3716.95 | GW9: 3716.95 | GX9: True | GZ9: 0 | HA9: 0 | HB9: 15717 | HC9: 33946.01 | HD9: 0.33 | HE9: 15717 | HF9: 3779.47 | HH9: 3779.47 | HI9: True | HK9: 0 | HL9: 0 | HM9: 15967 | HN9: 34483.01 | HO9: 0.33 | HP9: 15967 | HQ9: 3839.64 | HS9: 3839.64 | HT9: True | HU9: Yes | HW9: 0 | HX9: 0 | HY9: 16033 | HZ9: 34633.01 | IA9: 0.33 | IB9: 16033 | IC9: 3856.45 | IE9: 3856.45 | IF9: True | IG9: Yes | IJ9: 0 | IK9: 0 | IL9: 16163 | IM9: 34917.01 | IN9: 0.33 | IO9: 16163 | IP9: 3887.09 | IR9: 3887.09 | IS9: True | IT9: Yes | IW9: 0 | IX9: 0 | IY9: 13433 | IZ9: 16975.01 | JA9: 0.32 | JB9: 13433 | JC9: 2674.12 | JE9: 2674.12 | JF9: True | JG9: Yes | JI9: 0 | JJ9: 0 | JK9: 13710 | JL9: 17325.01 | JM9: 0.32 | JN9: 13710 | JO9: 2728.94 | JQ9: 2728.94 | JR9: True | JS9: Yes | JU9: 0 | JV9: 0 | JW9: 7444 | JX9: 13925.01 | JY9: 0.24 | JZ9: 7444 | KA9: 1217.18 | KC9: 1217.18 | KD9: True | KE9: Yes | KG9: 0 | KH9: 0 | KI9: 7527 | KJ9: 14073.01 | KK9: 0.24 | KL9: 7527 | KM9: 1229.28 | KO9: 1229.28 | KP9: True | KQ9: Yes | KS9: 0 | KT9: 0 | KU9: 7527 | KV9: 14073.01 | KW9: 0.24 | KX9: 7527 | KY9: 1229.28 | LA9: 1229.28 | LB9: True | LC9: Yes | LF9: 0 | LG9: 0 | LH9: 7785 | LI9: 14533.01 | LJ9: 0.24 | LK9: 7785 | LL9: 1267.62 | LN9: 1267.62 | LO9: True | LP9: Yes | LS9: 0 | LT9: 0 | LU9: 7785 | LV9: 14533.01 | LW9: 0.24 | LX9: 7785 | LY9: 1267.62 | MA9: 1267.62 | MB9: True | MC9: Yes | MF9: 0 | MG9: 0 | MH9: 8385 | MI9: 15613.01 | MJ9: 0.24 | MK9: 8385 | ML9: 1357.32 | MN9: 1357.32 | MO9: True | MP9: Yes | MS9: 0 | MT9: 0 | MU9: 8385 | MV9: 15613.01 | MW9: 0.24 | MX9: 8385 | MY9: 1357.32 | NA9: 1357.32 | NB9: True | NC9: Yes | NF9: 0 | NG9: 0 | NH9: 8877 | NI9: 16496 | NJ9: 0.24 | NK9: 8877 | NL9: 1430.7 | NN9: 1430.7 | NO9: True | NP9: Yes | NS9: 0 | NT9: 0 | NU9: 8877 | NV9: 16496.01 | NW9: 0.24 | NX9: 8877 | NY9: 1430.7 | OA9: 1430.7 | OB9: True | OC9: Yes | OE9: 0 | OF9: 0 | OG9: 9146 | OH9: 16975 | OI9: 0.24 | OJ9: 9146 | OK9: 1470.98 | OM9: 1470.98 | ON9: True | OO9: Yes | OR9: 0 | OS9: 0 | OT9: 9146 | OU9: 16975 | OV9: 0.24 | OW9: 9146 | OX9: 1470.98 | OZ9: 1470.98 | PA9: True | PB9: Yes | PD9: 0 | PE9: 0 | PF9: 9433 | PG9: 17440 | PH9: 0.24 | PI9: 9433 | PJ9: 1497.1 | PL9: 1497.1 | PM9: True | PN9: Yes | PQ9: 0 | PR9: 0 | PS9: 9433 | PT9: 17440 | PU9: 0.24 | PV9: 9433 | PW9: 1497.1 | PY9: 1497.1 | PZ9: True | QA9: Yes
AL10: =IF(B4="s",IF(AND(AL2>2500,AL2<2976.01),(AL2-2500)*0.34+513.17,0),0) -> 0 | AM10: =IF(B8="s",IF(AND(AM2>2500,AM2<2976.01),(AM2-2500)*0.34+513.17,0),0) -> 0 | AO10: =IF(B4="s",IF(AND(AO2>2411,AO2<2871.01),(AO2-2411)*0.34+494.8,0),0) -> 0 | AP10: =IF(B8="s",IF(AND(AP2>2411,AP2<2871.01),(AP2-2411)*0.34+494.8,0),0) -> 0 | AR10: =IF(B4="s",IF(AND(AR2>2317,AR2<2758.01),(AR2-2317)*0.34+475.47,0),0) -> 0 | AS10: =IF(B8="s",IF(AND(AS2>2317,AS2<2758.01),(AS2-2317)*0.34+475.47,0),0) -> 0 | AU10: =IF(B4="s",IF(AND(AU2>1875,AU2<2317.01),(AU2-1875)*0.34+381.94,0),0) -> 0 | AV10: =IF(B8="s",IF(AND(AV2>1875,AV2<2317.01),(AV2-1875)*0.34+381.94,0),0) -> 0 | AX10: =IF(B4="s",IF(AND(AX2>1875,AX2<2317.01),(AX2-1875)*0.34+381.94,0),0) -> 0 | AY10: =IF(B8="s",IF(AND(AY2>1875,AY2<2317.01),(AY2-1875)*0.34+381.94,0),0) -> 0 | BV10: =IF($B$4="s",IF(BV$2>BX10,((BV$2-CA10)*BZ10)+CB10,0),0) -> 0 | BW10: =IF($B$8="s",IF(BW$2>BX10,((BW$2-CA10)*BZ10)+CB10,0),0) -> 0 | BX10: 25729 | BZ10: 0.386 | CA10: 25729 | CB10: 7893.17 | CD10: =IF($B$4="s",IF(CD$2>CF10,((CD$2-CI10)*CH10)+CJ10,0),0) -> 0 | CE10: =IF($B$8="s",IF(CE$2>CF10,((CE$2-CI10)*CH10)+CJ10,0),0) -> 0 | CF10: 26138 | CH10: 0.386 | CI10: 26138 | CJ10: 8019.8 | CM10: =IF($B$4="s",IF(CM$2>CO10,((CM$2-CR10)*CQ10)+CS10,0),0) -> 0 | CN10: =IF($B$8="s",IF(CN$2>CO10,((CN$2-CR10)*CQ10)+CS10,0),0) -> 0 | CO10: 26767 | CQ10: 0.35 | CR10: 26767 | CS10: 7723.07 | CU10: =IF($B$4="s",IF(CU$2>CW10,((CU$2-CZ10)*CY10)+DA10,0),0) -> 0 | CV10: =IF($B$8="s",IF(CV$2>CW10,((CV$2-CZ10)*CY10)+DA10,0),0) -> 0 | CW10: 26767 | CY10: 0.35 | CZ10: 26767 | DA10: 7723.07 | DC10: =IF($B$4="s",IF(DC$2>DE10,((DC$2-DH10)*DG10)+DI10,0),0) -> 0 | DD10: =IF($B$8="s",IF(DD$2>DE10,((DD$2-DH10)*DG10)+DI10,0),0) -> 0 | DE10: 27354 | DG10: 0.35 | DH10: 27354 | DI10: 7893.83 | DK10: =IF($B$4="s",IF(DK$2>DM10,((DK$2-DP10)*DO10)+DQ10,0),0) -> 0 | DL10: =IF($B$8="s",IF(DL$2>DM10,((DL$2-DP10)*DO10)+DQ10,0),0) -> 0 | DM10: 28200 | DO10: 0.35 | DP10: 28200 | DQ10: 8137.73 | DS10: =IF($B$4="s",IF(DS$2>DU10,((DS$2-DX10)*DW10)+DY10,0),0) -> 0 | DT10: =IF($B$8="s",IF(DT$2>DU10,((DT$2-DX10)*DW10)+DY10,0),0) -> 0 | DU10: 29304 | DW10: 0.35 | DX10: 29304 | DY10: 8455.73 | EA10: =IF($B$4="s",IF(EA$2>EC10,((EA$2-EF10)*EE10)+EG10,0),0) -> 0 | EB10: =IF($B$8="s",IF(EB$2>EC10,((EB$2-EF10)*EE10)+EG10,0),0) -> 0 | EC10: 29971 | EE10: 0.35 | EF10: 29971 | EG10: 8649.36 | EI10: =EE9*(EC10-EF9)+EG9 -> 8649.36 | EJ10: =IF(EI10=EG10,"True","False") -> True | EL10: =IF($B$4="s",IF(EL$2>EN10,((EL$2-EQ10)*EP10)+ER10,0),0) -> 0 | EM10: =IF($B$8="s",IF(EM$2>EN10,((EM$2-EQ10)*EP10)+ER10,0),0) -> 0 | EN10: 31250 | EP10: 0.35 | EQ10: 31250 | ER10: 9017.95 | ET10: =EP9*(EN10-EQ9)+ER9 -> 9017.95 | EU10: =IF(ET10=ER10,"True","False") -> True | EW10: =IF($B$4="s",IF(EW$2>EY10,((EW$2-FB10)*FA10)+FC10,0),0) -> 0 | EX10: =IF($B$8="s",IF(EX$2>EY10,((EX$2-FB10)*FA10)+FC10,0),0) -> 0 | EY10: 31250 | FA10: 0.35 | FB10: 31250 | FC10: 9017.98 | FE10: =FA9*(EY10-FB9)+FC9 -> 9017.98 | FF10: =IF(FE10=FC10,"True","False") -> True | FH10: 0 | FI10: 0 | FJ10: 7308 | FK10: 14492.01 | FL10: 0.28 | FM10: 7308 | FN10: 1474.17 | FP10: 1474.17 | FQ10: True | FS10: =IF($B$4="s",IF(FS$2>FU10,((FS$2-FX10)*FW10)+FY10,0),0) -> 0 | FT10: =IF($B$8="s",IF(FT$2>FU10,((FT$2-FX10)*FW10)+FY10,0),0) -> 0 | FU10: 31771 | FW10: 0.35 | FX10: 31771 | FY10: 9168.12 | GA10: =FW9*(FU10-FX9)+FY9 -> 9168.12 | GB10: =IF(GA10=FY10,"True","False") -> True | GD10: =IF($B$4="s",IF(GD$2>GF10,((GD$2-GI10)*GH10)+GJ10,0),0) -> 0 | GE10: =IF($B$8="s",IF(GE$2>GF10,((GE$2-GI10)*GH10)+GJ10,0),0) -> 0 | GF10: 32542 | GH10: 0.35 | GI10: 32542 | GJ10: 9390.4 | GL10: =GH9*(GF10-GI9)+GJ9 -> 9390.4 | GM10: =IF(GL10=GJ10,"True","False") -> True | GO10: 0 | GP10: 0 | GQ10: 33379 | GR10: 33517.01 | GS10: 0.35 | GT10: 33379 | GU10: 9632.2 | GW10: 9632.2 | GX10: True | GZ10: 0 | HA10: 0 | HB10: 33946 | HC10: 34083.01 | HD10: 0.35 | HE10: 33946 | HF10: 9795.04 | HH10: 9795.04 | HI10: True | HK10: 0 | HL10: 0 | HM10: 34483 | HN10: 34625.01 | HO10: 0.35 | HP10: 34483 | HQ10: 9949.92 | HS10: 9949.92 | HT10: True | HU10: Yes | HW10: 0 | HX10: 0 | HY10: 34633 | HZ10: 34775.01 | IA10: 0.35 | IB10: 34633 | IC10: 9994.45 | IE10: 9994.45 | IF10: True | IG10: Yes | IJ10: 0 | IK10: 0 | IL10: 34917 | IM10: 35058.01 | IN10: 0.35 | IO10: 34917 | IP10: 10075.91 | IR10: 10075.91 | IS10: True | IT10: Yes | IW10: 0 | IX10: 0 | IY10: 16975 | IZ10: 41975.01 | JA10: 0.35 | JB10: 16975 | JC10: 3807.56 | JE10: 3807.56 | JF10: True | JG10: Yes | JI10: 0 | JJ10: 0 | JK10: 17325 | JL10: 42842.01 | JM10: 0.35 | JN10: 17325 | JO10: 3885.74 | JQ10: 3885.74 | JR10: True | JS10: Yes | JU10: 0 | JV10: 0 | JW10: 13925 | JX10: 17596.01 | JY10: 0.32 | JZ10: 13925 | KA10: 2772.62 | KC10: 2772.62 | KD10: True | KE10: Yes | KG10: 0 | KH10: 0 | KI10: 14073 | KJ10: 17781.01 | KK10: 0.32 | KL10: 14073 | KM10: 2800.32 | KO10: 2800.32 | KP10: True | KQ10: Yes | KS10: 0 | KT10: 0 | KU10: 14073 | KV10: 17781.01 | KW10: 0.32 | KX10: 14073 | KY10: 2800.32 | LA10: 2800.32 | LB10: True | LC10: Yes | LF10: 0 | LG10: 0 | LH10: 14533 | LI10: 18358.01 | LJ10: 0.32 | LK10: 14533 | LL10: 2887.14 | LN10: 2887.14 | LO10: True | LP10: Yes | LS10: 0 | LT10: 0 | LU10: 14533 | LV10: 18358.01 | LW10: 0.32 | LX10: 14533 | LY10: 2887.14 | MA10: 2887.14 | MB10: True | MC10: Yes | MF10: 0 | MG10: 0 | MH10: 15613 | MI10: 19708.01 | MJ10: 0.32 | MK10: 15613 | ML10: 3092.04 | MN10: 3092.04 | MO10: True | MP10: Yes | MS10: 0 | MT10: 0 | MU10: 15613 | MV10: 19708.01 | MW10: 0.32 | MX10: 15613 | MY10: 3092.04 | NA10: 3092.04 | NB10: True | NC10: Yes | NF10: 0 | NG10: 0 | NH10: 16496 | NI10: 20810 | NJ10: 0.32 | NK10: 16496 | NL10: 3259.26 | NN10: 3259.26 | NO10: True | NP10: Yes | NS10: 0 | NT10: 0 | NU10: 16496 | NV10: 20810.01 | NW10: 0.32 | NX10: 16496 | NY10: 3259.26 | OA10: 3259.26 | OB10: True | OC10: Yes | OE10: 0 | OF10: 0 | OG10: 16975 | OH10: 21410 | OI10: 0.32 | OJ10: 16975 | OK10: 3349.94 | OM10: 3349.94 | ON10: True | OO10: Yes | OR10: 0 | OS10: 0 | OT10: 16975 | OU10: 21410 | OV10: 0.32 | OW10: 16975 | OX10: 3349.94 | OZ10: 3349.94 | PA10: True | PB10: Yes | PD10: 0 | PE10: 0 | PF10: 17440 | PG10: 21977 | PH10: 0.32 | PI10: 17440 | PJ10: 3418.78 | PL10: 3418.78 | PM10: True | PN10: Yes | PQ10: 0 | PR10: 0 | PS10: 17440 | PT10: 21977 | PU10: 0.32 | PV10: 17440 | PW10: 3418.78 | PY10: 3418.78 | PZ10: True | QA10: Yes
AL11: =IF(B4="s",IF(AL2>2976,(AL2-2976)*0.37+675.01,0),0) -> 0 | AM11: =IF(B8="s",IF(AM2>2976,(AM2-2976)*0.37+675.01,0),0) -> 0 | AO11: =IF(B4="s",IF(AO2>2871,(AO2-2871)*0.37+651.2,0),0) -> 0 | AP11: =IF(B8="s",IF(AP2>2871,(AP2-2871)*0.37+651.2,0),0) -> 0 | AR11: =IF(B4="s",IF(AR2>2758,(AR2-2758)*0.37+625.41,0),0) -> 0 | AS11: =IF(B8="s",IF(AS2>2758,(AS2-2758)*0.37+625.41,0),0) -> 0 | AU11: =IF(B4="s",IF(AU2>2317,(AU2-2317)*0.37+532.22,0),0) -> 0 | AV11: =IF(B8="s",IF(AV2>2317,(AV2-2317)*0.37+532.22,0),0) -> 0 | AX11: =IF(B4="s",IF(AX2>2317,(AX2-2317)*0.37+532.22,0),0) -> 0 | AY11: =IF(B8="s",IF(AY2>2317,(AY2-2317)*0.37+532.22,0),0) -> 0 | FH11: 0 | FI11: 0 | FJ11: 14492 | FK11: 31308.01 | FL11: 0.33 | FM11: 14492 | FN11: 3485.69 | FP11: 3485.69 | FQ11: True | GO11: =IF($B$4="s",IF(GO$2>GQ11,((GO$2-GT11)*GS11)+GU11,0),0) -> 0 | GP11: =IF($B$8="s",IF(GP$2>GQ11,((GP$2-GT11)*GS11)+GU11,0),0) -> 0 | GQ11: 33517 | GS11: 0.396 | GT11: 33517 | GU11: 9680.5 | GW11: 9680.5 | GX11: True | GZ11: =IF($B$4="s",IF(GZ$2>HB11,((GZ$2-HE11)*HD11)+HF11,0),0) -> 0 | HA11: =IF($B$8="s",IF(HA$2>HB11,((HA$2-HE11)*HD11)+HF11,0),0) -> 0 | HB11: 34083 | HD11: 0.396 | HE11: 34083 | HF11: 9842.99 | HH11: 9842.99 | HI11: True | HK11: =IF($B$4="s",IF(HK$2>HM11,((HK$2-HP11)*HO11)+HQ11,0),0) -> 0 | HL11: =IF($B$8="s",IF(HL$2>HM11,((HL$2-HP11)*HO11)+HQ11,0),0) -> 0 | HM11: 34625 | HO11: 0.396 | HP11: 34625 | HQ11: 9999.62 | HS11: 9999.62 | HT11: True | HU11: Yes | HW11: =IF($B$4="s",IF(HW$2>HY11,((HW$2-IB11)*IA11)+IC11,0),0) -> 0 | HX11: =IF($B$8="s",IF(HX$2>HY11,((HX$2-IB11)*IA11)+IC11,0),0) -> 0 | HY11: 34775 | IA11: 0.396 | IB11: 34775 | IC11: 10044.15 | IE11: 10044.15 | IF11: True | IG11: Yes | IJ11: =IF($B$4="s",IF(IJ$2>IL11,((IJ$2-IO11)*IN11)+IP11,0),0) -> 0 | IK11: =IF($B$8="s",IF(IK$2>IL11,((IK$2-IO11)*IN11)+IP11,0),0) -> 0 | IL11: 35058 | IN11: 0.396 | IO11: 35058 | IP11: 10125.26 | IR11: 10125.26 | IS11: True | IT11: Yes | IW11: =IF($B$4="s",IF(IW$2>IY11,((IW$2-JB11)*JA11)+JC11,0),0) -> 0 | IX11: =IF($B$8="s",IF(IX$2>IY11,((IX$2-JB11)*JA11)+JC11,0),0) -> 0 | IY11: 41975 | JA11: 0.37 | JB11: 41975 | JC11: 12557.56 | JE11: 12557.56 | JF11: True | JG11: Yes | JI11: =IF($B$4="s",IF(JI$2>JK11,((JI$2-JN11)*JM11)+JO11,0),0) -> 0 | JJ11: =IF($B$8="s",IF(JJ$2>JK11,((JJ$2-JN11)*JM11)+JO11,0),0) -> 0 | JK11: 42842 | JM11: 0.37 | JN11: 42842 | JO11: 12816.69 | JQ11: 12816.69 | JR11: True | JS11: Yes | JU11: 0 | JV11: 0 | JW11: 17596 | JX11: 43517.01 | JY11: 0.35 | JZ11: 17596 | KA11: 3947.34 | KC11: 3947.34 | KD11: True | KE11: Yes | KG11: 0 | KH11: 0 | KI11: 17781 | KJ11: 43963.01 | KK11: 0.35 | KL11: 17781 | KM11: 3986.88 | KO11: 3986.88 | KP11: True | KQ11: Yes | KS11: 0 | KT11: 0 | KU11: 17781 | KV11: 43963.01 | KW11: 0.35 | KX11: 17781 | KY11: 3986.88 | LA11: 3986.88 | LB11: True | LC11: Yes | LF11: 0 | LG11: 0 | LH11: 18358 | LI11: 45354.01 | LJ11: 0.35 | LK11: 18358 | LL11: 4111.14 | LN11: 4111.14 | LO11: True | LP11: Yes | LS11: 0 | LT11: 0 | LU11: 18358 | LV11: 45354.01 | LW11: 0.35 | LX11: 18358 | LY11: 4111.14 | MA11: 4111.14 | MB11: True | MC11: Yes | MF11: 0 | MG11: 0 | MH11: 19708 | MI11: 48615.01 | MJ11: 0.35 | MK11: 19708 | ML11: 4402.44 | MN11: 4402.44 | MO11: True | MP11: Yes | MS11: 0 | MT11: 0 | MU11: 19708 | MV11: 48615.01 | MW11: 0.35 | MX11: 19708 | MY11: 4402.44 | NA11: 4402.44 | NB11: True | NC11: Yes | NF11: 0 | NG11: 0 | NH11: 20810 | NI11: 51279 | NJ11: 0.35 | NK11: 20810 | NL11: 4639.74 | NN11: 4639.74 | NO11: True | NP11: Yes | NS11: 0 | NT11: 0 | NU11: 20810 | NV11: 51279.01 | NW11: 0.35 | NX11: 20810 | NY11: 4639.74 | OA11: 4639.74 | OB11: True | OC11: Yes | OE11: 0 | OF11: 0 | OG11: 21410 | OH11: 52729 | OI11: 0.35 | OJ11: 21410 | OK11: 4769.14 | OM11: 4769.14 | ON11: True | OO11: Yes | OR11: 0 | OS11: 0 | OT11: 21410 | OU11: 52729 | OV11: 0.35 | OW11: 21410 | OX11: 4769.14 | OZ11: 4769.14 | PA11: True | PB11: Yes | PD11: 0 | PE11: 0 | PF11: 21977 | PG11: 54008 | PH11: 0.35 | PI11: 21977 | PJ11: 4870.62 | PL11: 4870.62 | PM11: True | PN11: Yes | PQ11: 0 | PR11: 0 | PS11: 21977 | PT11: 54008 | PU11: 0.35 | PV11: 21977 | PW11: 4870.62 | PY11: 4870.62 | PZ11: True | QA11: Yes
C12: Mom Mar. Tax | D12: Dad Mar. Tax | E12: Mom Mar. Tax | F12: Dad Mar. Tax | H12: Mom Mar. Tax | I12: Dad Mar. Tax | K12: Mom Mar. Tax | L12: Dad Mar. Tax | N12: Mom Mar. Tax | O12: Dad Mar. Tax | Q12: Mom Mar. Tax | R12: Dad Mar. Tax | T12: Mom Mar. Tax | U12: Dad Mar. Tax | W12: Mom Mar. Tax | X12: Dad Mar. Tax | Z12: Mom Mar. Tax | AA12: Dad Mar. Tax | AC12: Mom Mar. Tax | AD12: Dad Mar. Tax | AF12: Mom Mar. Tax | AG12: Dad Mar. Tax | AI12: Mom Mar. Tax | AJ12: Dad Mar. Tax | AL12: Mom Mar. Tax | AM12: Dad Mar. Tax | AO12: Mom Mar. Tax | AP12: Dad Mar. Tax | AR12: Mom Mar. Tax | AS12: Dad Mar. Tax | AU12: Mom Mar. Tax | AV12: Dad Mar. Tax | AX12: Mom Mar. Tax | AY12: Dad Mar. Tax | BA12: Mom Mar. Tax | BB12: Dad Mar. Tax | BD12: Mom Mar. Tax | BE12: Dad Mar. Tax | BG12: Mom Mar. Tax | BH12: Dad Mar. Tax | BN12: Mom Mar. Tax | BO12: Dad Mar. Tax | BV12: Mom Mar. Tax | BW12: Dad Mar. Tax | CD12: Mom Mar. Tax | CE12: Dad Mar. Tax | CM12: Mom Mar. Tax | CN12: Dad Mar. Tax | CU12: Mom Mar. Tax | CV12: Dad Mar. Tax | DC12: Mom Mar. Tax | DD12: Dad Mar. Tax | DK12: Mom Mar. Tax | DL12: Dad Mar. Tax | DS12: Mom Mar. Tax | DT12: Dad Mar. Tax | EA12: Mom Mar. Tax | EB12: Dad Mar. Tax | EL12: Mom Mar. Tax | EM12: Dad Mar. Tax | EW12: Mom Mar. Tax | EX12: Dad Mar. Tax | FH12: =IF($B$4="s",IF(FH$2>FJ12,((FH$2-FM12)*FL12)+FN12,0),0) -> 0 | FI12: =IF($B$8="s",IF(FI$2>FJ12,((FI$2-FM12)*FL12)+FN12,0),0) -> 0 | FJ12: 31308 | FL12: 0.35 | FM12: 31308 | FN12: 9034.97 | FP12: 9034.97 | FQ12: True | JU12: 0 | JV12: 0 | JW12: 43517 | JX12: 1e+11 | JY12: 0.37 | JZ12: 43517 | KA12: 13019.69 | KC12: 13019.69 | KD12: True | KE12: Yes | KG12: 0 | KH12: 0 | KI12: 43963 | KJ12: 1e+11 | KK12: 0.37 | KL12: 43963 | KM12: 13150.58 | KO12: 13150.58 | KP12: True | KQ12: Yes | KS12: 0 | KT12: 0 | KU12: 43963 | KV12: 1e+11 | KW12: 0.37 | KX12: 43963 | KY12: 13150.58 | LA12: 13150.58 | LB12: True | LC12: Yes | LF12: 0 | LG12: 0 | LH12: 45354 | LI12: 1e+11 | LJ12: 0.37 | LK12: 45354 | LL12: 13559.74 | LN12: 13559.74 | LO12: True | LP12: Yes | LS12: 0 | LT12: 0 | LU12: 45354 | LV12: 1e+11 | LW12: 0.37 | LX12: 45354 | LY12: 13559.74 | MA12: 13559.74 | MB12: True | MC12: Yes | MF12: 0 | MG12: 0 | MH12: 48615 | MI12: 1e+11 | MJ12: 0.37 | MK12: 48615 | ML12: 14519.89 | MN12: 14519.89 | MO12: True | MP12: Yes | MS12: 0 | MT12: 0 | MU12: 48615 | MV12: 1e+11 | MW12: 0.37 | MX12: 48615 | MY12: 14519.89 | NA12: 14519.89 | NB12: True | NC12: Yes | NF12: 0 | NG12: 0 | NH12: 51279 | NI12: 1e+11 | NJ12: 0.37 | NK12: 51279 | NL12: 15303.89 | NN12: 15303.89 | NO12: True | NP12: Yes | NS12: 0 | NT12: 0 | NU12: 51279 | NV12: 1e+11 | NW12: 0.37 | NX12: 51279 | NY12: 15303.89 | OA12: 15303.89 | OB12: True | OC12: Yes | OE12: 0 | OF12: 0 | OG12: 52729 | OH12: 1e+11 | OI12: 0.37 | OJ12: 52729 | OK12: 15730.79 | OM12: 15730.79 | ON12: True | OO12: Yes | OR12: 0 | OS12: 0 | OT12: 52729 | OU12: 1e+11 | OV12: 0.37 | OW12: 52729 | OX12: 15730.79 | OZ12: 15730.79 | PA12: True | PB12: Yes | PD12: 0 | PE12: 0 | PF12: 54008 | PG12: 1e+11 | PH12: 0.37 | PI12: 54008 | PJ12: 16081.47 | PL12: 16081.47 | PM12: True | PN12: Yes | PQ12: 0 | PR12: 0 | PS12: 54008 | PT12: 1e+11 | PU12: 0.37 | PV12: 54008 | PW12: 16081.47 | PY12: 16081.47 | PZ12: True | QA12: Yes
C13: =IF(B4="m",IF(AND(C2>538,C2<3896.01),(C2-538)*0.15,0),0) -> 0 | D13: =IF(B8="m",IF(AND(D2>538,D2<3896.01),(D2-538)*0.15,0),0) -> 0 | E13: =IF(B4="m",IF(AND(E2>538,E2<3788.01),(E2-538)*0.15,0),0) -> 0 | F13: =IF(B8="m",IF(AND(F2>538,F2<3788.01),(F2-538)*0.15,0),0) -> 0 | H13: =IF(B4="m",IF(AND(H2>535,H2<3688.01),(H2-535)*0.15,0),0) -> 0 | I13: =IF(B8="m",IF(AND(I2>535,I2<3688.01),(I2-535)*0.15,0),0) -> 0 | K13: =IF(B4="m",IF(AND(K2>533,K2<3588.01),(K2-533)*0.15,0),0) -> 0 | L13: =IF(B8="m",IF(AND(L2>533,L2<3588.01),(L2-533)*0.15,0),0) -> 0 | N13: =IF(B4="m",IF(AND(N2>529,N2<3492.01),(N2-529)*0.15,0),0) -> 0 | O13: =IF(B8="m",IF(AND(O2>529,O2<3492.01),(O2-529)*0.15,0),0) -> 0 | Q13: =IF(B4="m",IF(AND(Q2>517,Q2<3396.01),(Q2-517)*0.15,0),0) -> 0 | R13: =IF(B8="m",IF(AND(R2>517,R2<3396.01),(R2-517)*0.15,0),0) -> 0 | T13: =IF(B4="m",IF(AND(T2>500,T2<3292.01),(T2-500)*0.15,0),0) -> 0 | U13: =IF(B8="m",IF(AND(U2>500,U2<3292.01),(U2-500)*0.15,0),0) -> 0 | W13: =IF(B4="m",IF(AND(W2>296,W2<3129.01),(W2-296)*0.15,0),0) -> 0 | X13: =IF(B8="m",IF(AND(X2>296,X2<3129.01),(X2-296)*0.15,0),0) -> 0 | Z13: =IF(B4="m",IF(AND(Z2>283,Z2<2988.01),(Z2-283)*0.15,0),0) -> 0 | AA13: =IF(B8="m",IF(AND(AA2>283,AA2<2988.01),(AA2-283)*0.15,0),0) -> 0 | AC13: =IF(B4="m",IF(AND(AC2>267,AC2<2846.01),(AC2-267)*0.15,0),0) -> 0 | AD13: =IF(B8="m",IF(AND(AD2>267,AD2<2846.01),(AD2-267)*0.15,0),0) -> 0 | AF13: =IF(B4="m",IF(AND(AF2>155,AF2<405.01),(AF2-155)*0.11,0),0) -> 0 | AG13: =IF(B8="m",IF(AND(AG2>155,AG2<405.01),(AG2-155)*0.11,0),0) -> 0 | AI13: =IF(B4="m",IF(AND(AI2>155,AI2<405.01),(AI2-155)*0.11,0),0) -> 0 | AJ13: =IF(B8="m",IF(AND(AJ2>155,AJ2<405.01),(AJ2-155)*0.11,0),0) -> 0 | AL13: =IF(B4="m",IF(AND(AL2>217,AL2<863.01),(AL2-217)*0.12,0),0) -> 0 | AM13: =IF(B8="m",IF(AND(AM2>217,AM2<863.01),(AM2-217)*0.12,0),0) -> 0 | AO13: =IF(B4="m",IF(AND(AO2>208,AO2<833.01),(AO2-208)*0.12,0),0) -> 0 | AP13: =IF(B8="m",IF(AND(AP2>208,AP2<833.01),(AP2-208)*0.12,0),0) -> 0 | AR13: =IF(B4="m",IF(AND(AR2>200,AR2<800.01),(AR2-200)*0.12,0),0) -> 0 | AS13: =IF(B8="m",IF(AND(AS2>200,AS2<800.01),(AS2-200)*0.12,0),0) -> 0 | AU13: =IF(B4="m",IF(AND(AU2>200,AU2<506.01),(AU2-200)*0.12,0),0) -> 0 | AV13: =IF(B8="m",IF(AND(AV2>200,AV2<506.01),(AV2-200)*0.12,0),0) -> 0 | AX13: =IF(B4="m",IF(AND(AX2>200,AX2<506.01),(AX2-200)*0.12,0),0) -> 0 | AY13: =IF(B8="m",IF(AND(AY2>200,AY2<506.01),(AY2-200)*0.12,0),0) -> 0 | BA13: =IF(B4="m",IF(AND(BA2>538,BA2<3958.01),(BA2-538)*0.15,0),0) -> 0 | BB13: =IF(B8="m",IF(AND(BB2>538,BB2<3958.01),(BB2-538)*0.15,0),0) -> 0 | BD13: =IF($B4="m",IF(AND(BD2>538,BD2<4033.01),(BD2-538)*0.15,0),0) -> 0 | BE13: =IF($B8="m",IF(AND(BE2>538,BE2<4033.01),(BE2-538)*0.15,0),0) -> 0 | BG13: =IF($B$4="m",IF(AND($BG$2>BI13,$BG$2<BJ13),($BG$2-BL13)*BK13,0),0) -> 0 | BH13: =IF($B$8="m",IF(AND($BH$2>BI13,$BH$2<BJ13),($BH$2-BL13)*BK13,0),0) -> 0 | BI13: 538 | BJ13: 4158.01 | BK13: 0.15 | BL13: 538 | BN13: =IF($B$4="m",IF(AND(BN$2>BP13,BN$2<BQ13),((BN$2-BS13)*BR13)+BT13,0),0) -> 0 | BO13: =IF($B$8="m",IF(AND(BO$2>BP13,BO$2<BQ13),((BO$2-BS13)*BR13)+BT13,0),0) -> 0 | BP13: 538 | BQ13: 4158.01 | BR13: 0.15 | BS13: =BP13 -> 538 | BV13: =IF($B$4="m",IF(AND(BV$2>BX13,BV$2<BY13),((BV$2-CA13)*BZ13)+CB13,0),0) -> 0 | BW13: =IF($B$8="m",IF(AND(BW$2>BX13,BW$2<BY13),((BW$2-CA13)*BZ13)+CB13,0),0) -> 0 | BX13: 538 | BY13: =BX14+0.01 -> 1538.01 | BZ13: 0.1 | CA13: =BX13 -> 538 | CD13: =IF($B$4="m",IF(AND(CD$2>CF13,CD$2<CG13),((CD$2-CI13)*CH13)+CJ13,0),0) -> 0 | CE13: =IF($B$8="m",IF(AND(CE$2>CF13,CE$2<CG13),((CE$2-CI13)*CH13)+CJ13,0),0) -> 0 | CF13: 538 | CG13: =CF14+0.01 -> 1538.01 | CH13: 0.1 | CI13: =CF13 -> 538 | CM13: =IF($B$4="m",IF(AND(CM$2>CO13,CM$2<CP13),((CM$2-CR13)*CQ13)+CS13,0),0) -> 0 | CN13: =IF($B$8="m",IF(AND(CN$2>CO13,CN$2<CP13),((CN$2-CR13)*CQ13)+CS13,0),0) -> 0 | CO13: 667 | CP13: =CO14+0.01 -> 1858.01 | CQ13: 0.1 | CR13: =CO13 -> 667 | CU13: =IF($B$4="m",IF(AND(CU$2>CW13,CU$2<CX13),((CU$2-CZ13)*CY13)+DA13,0),0) -> 0 | CV13: =IF($B$8="m",IF(AND(CV$2>CW13,CV$2<CX13),((CV$2-CZ13)*CY13)+DA13,0),0) -> 0 | CW13: 667 | CX13: =CW14+0.01 -> 1858.01 | CY13: 0.1 | CZ13: =CW13 -> 667 | DC13: =IF($B$4="m",IF(AND(DC$2>DE13,DC$2<DF13),((DC$2-DH13)*DG13)+DI13,0),0) -> 0 | DD13: =IF($B$8="m",IF(AND(DD$2>DE13,DD$2<DF13),((DD$2-DH13)*DG13)+DI13,0),0) -> 0 | DE13: 667 | DF13: =DE14+0.01 -> 1883.01 | DG13: 0.1 | DH13: =DE13 -> 667 | DK13: =IF($B$4="m",IF(AND(DK$2>DM13,DK$2<DN13),((DK$2-DP13)*DO13)+DQ13,0),0) -> 0 | DL13: =IF($B$8="m",IF(AND(DL$2>DM13,DL$2<DN13),((DL$2-DP13)*DO13)+DQ13,0),0) -> 0 | DM13: 667 | DN13: =DM14+0.01 -> 1908.01 | DO13: 0.1 | DP13: =DM13 -> 667 | DS13: =IF($B$4="m",IF(AND(DS$2>DU13,DS$2<DV13),((DS$2-DX13)*DW13)+DY13,0),0) -> 0 | DT13: =IF($B$8="m",IF(AND(DT$2>DU13,DT$2<DV13),((DT$2-DX13)*DW13)+DY13,0),0) -> 0 | DU13: 667 | DV13: =DU14+0.01 -> 1946.01 | DW13: 0.1 | DX13: =DU13 -> 667 | EA13: =IF($B$4="m",IF(AND(EA$2>EC13,EA$2<ED13),((EA$2-EF13)*EE13)+EG13,0),0) -> 0 | EB13: =IF($B$8="m",IF(AND(EB$2>EC13,EB$2<ED13),((EB$2-EF13)*EE13)+EG13,0),0) -> 0 | EC13: 667 | ED13: =EC14+0.01 -> 1963.01 | EE13: 0.1 | EF13: =EC13 -> 667 | EL13: =IF($B$4="m",IF(AND(EL$2>EN13,EL$2<EO13),((EL$2-EQ13)*EP13)+ER13,0),0) -> 0 | EM13: =IF($B$8="m",IF(AND(EM$2>EN13,EM$2<EO13),((EM$2-EQ13)*EP13)+ER13,0),0) -> 0 | EN13: 667 | EO13: =EN14+0.01 -> 1996.01 | EP13: 0.1 | EQ13: =EN13 -> 667 | EW13: =IF($B$4="m",IF(AND(EW$2>EY13,EW$2<EZ13),((EW$2-FB13)*FA13)+FC13,0),0) -> 0 | EX13: =IF($B$8="m",IF(AND(EX$2>EY13,EX$2<EZ13),((EX$2-FB13)*FA13)+FC13,0),0) -> 0 | EY13: 1313 | EZ13: =EY14+0.01 -> 2038.01 | FA13: 0.1 | FB13: =EY13 -> 1313
A14: Mom's WH | B14: =SUM(C21:EX21)+SUM(FH25:PQ25) -> 109.6204 | C14: =IF(B4="m",IF(AND(C2>3896,C2<8038.01),(C2-3896)*0.28+503.7,0),0) -> 0 | D14: =IF(B8="m",IF(AND(D2>3896,D2<8038.01),(D2-3896)*0.28+503.7,0),0) -> 0 | E14: =IF(B4="m",IF(AND(E2>3788,E2<7738.01),(E2-3788)*0.28+487.5,0),0) -> 0 | F14: =IF(B8="m",IF(AND(F2>3788,F2<7738.01),(F2-3788)*0.28+487.5,0),0) -> 0 | H14: =IF(B4="m",IF(AND(H2>3688,H2<7476.01),(H2-3688)*0.28+472.95,0),0) -> 0 | I14: =IF(B8="m",IF(AND(I2>3688,I2<7476.01),(I2-3688)*0.28+472.95,0),0) -> 0 | K14: =IF(B4="m",IF(AND(K2>3588,K2<7213.01),(K2-3588)*0.28+458.25,0),0) -> 0 | L14: =IF(B8="m",IF(AND(L2>3588,L2<7213.01),(L2-3588)*0.28+458.25,0),0) -> 0 | N14: =IF(B4="m",IF(AND(N2>3492,N2<6958.01),(N2-3492)*0.28+444.45,0),0) -> 0 | O14: =IF(B8="m",IF(AND(O2>3492,O2<6958.01),(O2-3492)*0.28+444.45,0),0) -> 0 | Q14: =IF(B4="m",IF(AND(Q2>3396,Q2<6771.01),(Q2-3396)*0.28+431.85,0),0) -> 0 | R14: =IF(B8="m",IF(AND(R2>3396,R2<6771.01),(R2-3396)*0.28+431.85,0),0) -> 0 | T14: =IF(B4="m",IF(AND(T2>3292,T2<6558.01),(T2-3292)*0.28+418.8,0),0) -> 0 | U14: =IF(B8="m",IF(AND(U2>3292,U2<6558.01),(U2-3292)*0.28+418.8,0),0) -> 0 | W14: =IF(B4="m",IF(AND(W2>3129,W2<7142.01),(W2-3129)*0.28+424.95,0),0) -> 0 | X14: =IF(B8="m",IF(AND(X2>3129,X2<7142.01),(X2-3129)*0.28+424.95,0),0) -> 0 | Z14: =IF(B4="m",IF(AND(Z2>2988,Z2<6817.01),(Z2-2988)*0.28+405.75,0),0) -> 0 | AA14: =IF(B8="m",IF(AND(AA2>2988,AA2<6817.01),(AA2-2988)*0.28+405.75,0),0) -> 0 | AC14: =IF(B4="m",IF(AND(AC2>2846,AC2<6504.01),(AC2-2846)*0.28+386.85,0),0) -> 0 | AD14: =IF(B8="m",IF(AND(AD2>2846,AD2<6504.01),(AD2-2846)*0.28+386.85,0),0) -> 0 | AF14: =IF(B4="m",IF(AND(AF2>405,AF2<2488.01),(AF2-405)*0.15+27.5,0),0) -> 0 | AG14: =IF(B8="m",IF(AND(AG2>405,AG2<2488.01),(AG2-405)*0.15+27.5,0),0) -> 0 | AI14: =IF(B4="m",IF(AND(AI2>405,AI2<2488.01),(AI2-405)*0.15+27.5,0),0) -> 0 | AJ14: =IF(B8="m",IF(AND(AJ2>405,AJ2<2488.01),(AJ2-405)*0.15+27.5,0),0) -> 0 | AL14: =IF(B4="m",IF(AND(AL2>863,AL2<1723.01),(AL2-863)*0.17+77.52,0),0) -> 0 | AM14: =IF(B8="m",IF(AND(AM2>863,AM2<1723.01),(AM2-863)*0.17+77.52,0),0) -> 0 | AO14: =IF(B4="m",IF(AND(AO2>833,AO2<1663.01),(AO2-833)*0.17+75,0),0) -> 0 | AP14: =IF(B8="m",IF(AND(AP2>833,AP2<1663.01),(AP2-833)*0.17+75,0),0) -> 0 | AR14: =IF(B4="m",IF(AND(AR2>800,AR2<1598.01),(AR2-800)*0.17+72,0),0) -> 0 | AS14: =IF(B8="m",IF(AND(AS2>800,AS2<1598.01),(AS2-800)*0.17+72,0),0) -> 0 | AU14: =IF(B4="m",IF(AND(AU2>506,AU2<998.01),(AU2-506)*0.16+36.72,0),0) -> 0 | AV14: =IF(B8="m",IF(AND(AV2>506,AV2<998.01),(AV2-506)*0.16+36.72,0),0) -> 0 | AX14: =IF(B4="m",IF(AND(AX2>506,AX2<998.01),(AX2-506)*0.16+36.72,0),0) -> 0 | AY14: =IF(B8="m",IF(AND(AY2>506,AY2<998.01),(AY2-506)*0.16+36.72,0),0) -> 0 | BA14: =IF(B4="m",IF(AND(BA2>3958,BA2<8208.01),(BA2-3958)*0.28+513,0),0) -> 0 | BB14: =IF(B8="m",IF(AND(BB2>3958,BB2<8208.01),(BB2-3958)*0.28+513,0),0) -> 0 | BD14: =IF($B4="m",IF(AND(BD2>4033,BD2<8417.01),(BD2-4033)*0.28+524.25,0),0) -> 0 | BE14: =IF($B8="m",IF(AND(BE2>4033,BE2<8417.01),(BE2-4033)*0.28+524.25,0),0) -> 0 | BG14: =IF($B$4="m",IF(AND($BG$2>BI14,$BG$2<BJ14),($BG$2-BL14)*BK14,0),0) -> 0 | BH14: =IF($B$8="m",IF(AND($BH$2>BI14,$BH$2<BJ14),($BH$2-BL14)*BK14,0),0) -> 0 | BI14: 4158 | BJ14: 8767.01 | BK14: 0.28 | BL14: 2218.71 | BN14: =IF($B$4="m",IF(AND(BN$2>BP14,BN$2<BQ14),((BN$2-BS14)*BR14)+BT14,0),0) -> 0 | BO14: =IF($B$8="m",IF(AND(BO$2>BP14,BO$2<BQ14),((BO$2-BS14)*BR14)+BT14,0),0) -> 0 | BP14: 4158 | BQ14: 8767.01 | BR14: 0.27 | BS14: =BP14 -> 4158 | BT14: 543 | BV14: =IF($B$4="m",IF(AND(BV$2>BX14,BV$2<BY14),((BV$2-CA14)*BZ14)+CB14,0),0) -> 0 | BW14: =IF($B$8="m",IF(AND(BW$2>BX14,BW$2<BY14),((BW$2-CA14)*BZ14)+CB14,0),0) -> 0 | BX14: 1538 | BY14: =BX15+0.01 -> 4296.01 | BZ14: 0.15 | CA14: =BX14 -> 1538 | CB14: 100 | CD14: =IF($B$4="m",IF(AND(CD$2>CF14,CD$2<CG14),((CD$2-CI14)*CH14)+CJ14,0),0) -> 0 | CE14: =IF($B$8="m",IF(AND(CE$2>CF14,CE$2<CG14),((CE$2-CI14)*CH14)+CJ14,0),0) -> 0 | CF14: 1538 | CG14: =CF15+0.01 -> 4363.01 | CH14: 0.15 | CI14: 1538 | CJ14: 100 | CM14: =IF($B$4="m",IF(AND(CM$2>CO14,CM$2<CP14),((CM$2-CR14)*CQ14)+CS14,0),0) -> 0 | CN14: =IF($B$8="m",IF(AND(CN$2>CO14,CN$2<CP14),((CN$2-CR14)*CQ14)+CS14,0),0) -> 0 | CO14: 1858 | CP14: =CO15+0.01 -> 5396.01 | CQ14: 0.15 | CR14: 1858 | CS14: 119.1 | CU14: =IF($B$4="m",IF(AND(CU$2>CW14,CU$2<CX14),((CU$2-CZ14)*CY14)+DA14,0),0) -> 0 | CV14: =IF($B$8="m",IF(AND(CV$2>CW14,CV$2<CX14),((CV$2-CZ14)*CY14)+DA14,0),0) -> 0 | CW14: 1858 | CX14: =CW15+0.01 -> 5396.01 | CY14: 0.15 | CZ14: 1858 | DA14: 119.1 | DC14: =IF($B$4="m",IF(AND(DC$2>DE14,DC$2<DF14),((DC$2-DH14)*DG14)+DI14,0),0) -> 0 | DD14: =IF($B$8="m",IF(AND(DD$2>DE14,DD$2<DF14),((DD$2-DH14)*DG14)+DI14,0),0) -> 0 | DE14: 1883 | DF14: =DE15+0.01 -> 5517.01 | DG14: 0.15 | DH14: 1883 | DI14: 121.6 | DK14: =IF($B$4="m",IF(AND(DK$2>DM14,DK$2<DN14),((DK$2-DP14)*DO14)+DQ14,0),0) -> 0 | DL14: =IF($B$8="m",IF(AND(DL$2>DM14,DL$2<DN14),((DL$2-DP14)*DO14)+DQ14,0),0) -> 0 | DM14: 1908 | DN14: =DM15+0.01 -> 5670.01 | DO14: 0.15 | DP14: 1908 | DQ14: 124.1 | DS14: =IF($B$4="m",IF(AND(DS$2>DU14,DS$2<DV14),((DS$2-DX14)*DW14)+DY14,0),0) -> 0 | DT14: =IF($B$8="m",IF(AND(DT$2>DU14,DT$2<DV14),((DT$2-DX14)*DW14)+DY14,0),0) -> 0 | DU14: 1946 | DV14: =DU15+0.01 -> 5892.01 | DW14: 0.15 | DX14: 1946 | DY14: 127.9 | EA14: =IF($B$4="m",IF(AND(EA$2>EC14,EA$2<ED14),((EA$2-EF14)*EE14)+EG14,0),0) -> 0 | EB14: =IF($B$8="m",IF(AND(EB$2>EC14,EB$2<ED14),((EB$2-EF14)*EE14)+EG14,0),0) -> 0 | EC14: 1963 | ED14: =EC15+0.01 -> 6013.01 | EE14: 0.15 | EF14: 1963 | EG14: 129.6 | EI14: =EE13*(EC14-EF13)+EG13 -> 129.6 | EJ14: =IF(EI14=EG14,"True","False") -> True | EL14: =IF($B$4="m",IF(AND(EL$2>EN14,EL$2<EO14),((EL$2-EQ14)*EP14)+ER14,0),0) -> 0 | EM14: =IF($B$8="m",IF(AND(EM$2>EN14,EM$2<EO14),((EM$2-EQ14)*EP14)+ER14,0),0) -> 0 | EN14: 1996 | EO14: =EN15+0.01 -> 6304.01 | EP14: 0.15 | EQ14: 1996 | ER14: 132.9 | ET14: =EP13*(EN14-EQ13)+ER13 -> 132.9 | EU14: =IF(ET14=ER14,"True","False") -> True | EW14: =IF($B$4="m",IF(AND(EW$2>EY14,EW$2<EZ14),((EW$2-FB14)*FA14)+FC14,0),0) -> 0 | EX14: =IF($B$8="m",IF(AND(EX$2>EY14,EX$2<EZ14),((EX$2-FB14)*FA14)+FC14,0),0) -> 0 | EY14: 2038 | EZ14: =EY15+0.01 -> 6304.01 | FA14: 0.15 | FB14: 2038 | FC14: 72.5 | FE14: =FA13*(EY14-FB13)+FC13 -> 72.5 | FF14: =IF(FE14=FC14,"True","False") -> True | FH14: Mom Mar. Tax | FI14: Dad Mar. Tax | FS14: Mom Mar. Tax | FT14: Dad Mar. Tax | GD14: Mom Mar. Tax | GE14: Dad Mar. Tax | GO14: Mom Mar. Tax | GP14: Dad Mar. Tax | GZ14: Mom Mar. Tax | HA14: Dad Mar. Tax | HK14: Mom Mar. Tax | HL14: Dad Mar. Tax | HW14: Mom Mar. Tax | HX14: Dad Mar. Tax | IJ14: Mom Mar. Tax | IK14: Dad Mar. Tax | IW14: Mom Mar. Tax | IX14: Dad Mar. Tax | JI14: Mom Mar. Tax | JJ14: Dad Mar. Tax | JU14: Mom Mar. Tax | JV14: Dad Mar. Tax | KG14: Mom Mar. Tax | KH14: Dad Mar. Tax | KS14: Mom Mar. Tax | KT14: Dad Mar. Tax | LF14: Mom Mar. Tax | LG14: Dad Mar. Tax | LS14: Mom Mar. Tax | LT14: Dad Mar. Tax | MF14: Mom Mar. Tax | MG14: Dad Mar. Tax | MS14: Mom Mar. Tax | MT14: Dad Mar. Tax | NF14: Mom Mar. Tax | NG14: Dad Mar. Tax | NS14: Mom Mar. Tax | NT14: Dad Mar. Tax | OE14: Mom Mar. Tax | OF14: Dad Mar. Tax | OR14: Mom Mar. Tax | OS14: Dad Mar. Tax | PD14: Mom Mar. Tax | PE14: Dad Mar. Tax | PQ14: Mom Mar. Tax | PR14: Dad Mar. Tax
A15: Dad's WH | B15: =SUM(C22:EX22)+SUM(FI26:PR26) -> 152.5804 | C15: =IF(B4="m",IF(AND(C2>8038,C2<13363.01),(C2-8038)*0.31+1663.46,0),0) -> 0 | D15: =IF(B8="m",IF(AND(D2>8038,D2<13363.01),(D2-8038)*0.31+1663.46,0),0) -> 0 | E15: =IF(B4="m",IF(AND(E2>7738,E2<13000.01),(E2-7738)*0.31+1593.5,0),0) -> 0 | F15: =IF(B8="m",IF(AND(F2>7738,F2<13000.01),(F2-7738)*0.31+1593.5,0),0) -> 0 | H15: =IF(B4="m",IF(AND(H2>7476,H2<12654.01),(H2-7476)*0.31+1532.75,0),0) -> 0 | I15: =IF(B8="m",IF(AND(I2>7476,I2<12654.01),(I2-7476)*0.31+1532.75,0),0) -> 0 | K15: =IF(B4="m",IF(AND(K2>7213,K2<12304.01),(K2-7213)*0.31+1473.25,0),0) -> 0 | L15: =IF(B8="m",IF(AND(L2>7213,L2<12304.01),(L2-7213)*0.31+1473.25,0),0) -> 0 | N15: =IF(B4="m",IF(AND(N2>6958,N2<11992.01),(N2-6958)*0.31+1414.93,0),0) -> 0 | O15: =IF(B8="m",IF(AND(O2>6958,O2<11992.01),(O2-6958)*0.31+1414.93,0),0) -> 0 | Q15: =IF(B4="m",IF(Q2>6771,(Q2-6771)*0.31+1376.85,0),0) -> 0 | R15: =IF(B8="m",IF(R2>6771,(R2-6771)*0.31+1376.85,0),0) -> 0 | T15: =IF(B4="m",IF(T2>6558,(T2-6558)*0.31+1333.28,0),0) -> 0 | U15: =IF(B8="m",IF(U2>6558,(U2-6558)*0.31+1333.28,0),0) -> 0 | W15: =IF(B4="m",IF(W2>7142,(W2-7142)*0.31+1548.59,0),0) -> 0 | X15: =IF(B8="m",IF(X2>7142,(X2-7142)*0.31+1548.59,0),0) -> 0 | Z15: =IF(B4="m",IF(AND(Z2>6817,Z2<16718.01),(Z2-6817)*0.33+1477.87,0),0) -> 0 | AA15: =IF(B8="m",IF(AND(AA2>6817,AA2<16718.01),(AA2-6817)*0.33+1477.87,0),0) -> 0 | AC15: =IF(B4="m",IF(AND(AC2>6504,AC2<16010.01),(AC2-6504)*0.33+1411.09,0),0) -> 0 | AD15: =IF(B8="m",IF(AND(AD2>6504,AD2<16010.01),(AD2-6504)*0.33+1411.09,0),0) -> 0 | AF15: =IF(B4="m",IF(AND(AF2>2488,AF2<3905.01),(AF2-2488)*0.28+339.95,0),0) -> 0 | AG15: =IF(B8="m",IF(AND(AG2>2488,AG2<3905.01),(AG2-2488)*0.28+339.95,0),0) -> 0 | AI15: =IF(B4="m",IF(AND(AI2>2488,AI2<3905.01),(AI2-2488)*0.28+339.95,0),0) -> 0 | AJ15: =IF(B8="m",IF(AND(AJ2>2488,AJ2<3905.01),(AJ2-2488)*0.28+339.95,0),0) -> 0 | AL15: =IF(B4="m",IF(AND(AL2>1723,AL2<2123.01),(AL2-1723)*0.22+223.72,0),0) -> 0 | AM15: =IF(B8="m",IF(AND(AM2>1723,AM2<2123.01),(AM2-1723)*0.22+223.72,0),0) -> 0 | AO15: =IF(B4="m",IF(AND(AO2>1663,AO2<2047.01),(AO2-1663)*0.22+216.1,0),0) -> 0 | AP15: =IF(B8="m",IF(AND(AP2>1663,AP2<2047.01),(AP2-1663)*0.22+216.1,0),0) -> 0 | AR15: =IF(B4="m",IF(AND(AR2>1598,AR2<1967.01),(AR2-1598)*0.22+207.66,0),0) -> 0 | AS15: =IF(B8="m",IF(AND(AS2>1598,AS2<1967.01),(AS2-1598)*0.22+207.66,0),0) -> 0 | AU15: =IF(B4="m",IF(AND(AU2>998,AU2<1545.01),(AU2-998)*0.19+115.44,0),0) -> 0 | AV15: =IF(B8="m",IF(AND(AV2>998,AV2<1545.01),(AV2-998)*0.19+115.44,0),0) -> 0 | AX15: =IF(B4="m",IF(AND(AX2>998,AX2<1545.01),(AX2-998)*0.19+115.44,0),0) -> 0 | AY15: =IF(B8="m",IF(AND(AY2>998,AY2<1545.01),(AY2-998)*0.19+115.44,0),0) -> 0 | BA15: =IF(B4="m",IF(AND(BA2>8208,BA2<13583.01),(BA2-8208)*0.31+1703,0),0) -> 0 | BB15: =IF(B8="m",IF(AND(BB2>8208,BB2<13583.01),(BB2-8208)*0.31+1703,0),0) -> 0 | BD15: =IF($B4="m",IF(AND(BD2>8417,BD2<13833.01),(BD2-8417)*0.31+1751.77,0),0) -> 0 | BE15: =IF($B8="m",IF(AND(BE2>8417,BE2<13833.01),(BE2-8417)*0.31+1751.77,0),0) -> 0 | BG15: =IF($B$4="m",IF(AND($BG$2>BI15,$BG$2<BJ15),($BG$2-BL15)*BK15,0),0) -> 0 | BH15: =IF($B$8="m",IF(AND($BH$2>BI15,$BH$2<BJ15),($BH$2-BL15)*BK15,0),0) -> 0 | BI15: 8767 | BJ15: 14267.01 | BK15: 0.31 | BL15: 2852.42 | BN15: =IF($B$4="m",IF(AND(BN$2>BP15,BN$2<BQ15),((BN$2-BS15)*BR15)+BT15,0),0) -> 0 | BO15: =IF($B$8="m",IF(AND(BO$2>BP15,BO$2<BQ15),((BO$2-BS15)*BR15)+BT15,0),0) -> 0 | BP15: 8767 | BQ15: 14267.01 | BR15: 0.3 | BS15: =BP15 -> 8767 | BT15: 1787.43 | BV15: =IF($B$4="m",IF(AND(BV$2>BX15,BV$2<BY15),((BV$2-CA15)*BZ15)+CB15,0),0) -> 0 | BW15: =IF($B$8="m",IF(AND(BW$2>BX15,BW$2<BY15),((BW$2-CA15)*BZ15)+CB15,0),0) -> 0 | BX15: 4296 | BY15: =BX16+0.01 -> 9142.01 | BZ15: 0.27 | CA15: =BX15 -> 4296 | CB15: 513.7 | CD15: =IF($B$4="m",IF(AND(CD$2>CF15,CD$2<CG15),((CD$2-CI15)*CH15)+CJ15,0),0) -> 0 | CE15: =IF($B$8="m",IF(AND(CE$2>CF15,CE$2<CG15),((CE$2-CI15)*CH15)+CJ15,0),0) -> 0 | CF15: 4363 | CG15: =CF16+0.01 -> 9317.01 | CH15: 0.27 | CI15: 4363 | CJ15: 523.75 | CM15: =IF($B$4="m",IF(AND(CM$2>CO15,CM$2<CP15),((CM$2-CR15)*CQ15)+CS15,0),0) -> 0 | CN15: =IF($B$8="m",IF(AND(CN$2>CO15,CN$2<CP15),((CN$2-CR15)*CQ15)+CS15,0),0) -> 0 | CO15: 5396 | CP15: =CO16+0.01 -> 9838.01 | CQ15: 0.25 | CR15: 5396 | CS15: 649.8 | CU15: =IF($B$4="m",IF(AND(CU$2>CW15,CU$2<CX15),((CU$2-CZ15)*CY15)+DA15,0),0) -> 0 | CV15: =IF($B$8="m",IF(AND(CV$2>CW15,CV$2<CX15),((CV$2-CZ15)*CY15)+DA15,0),0) -> 0 | CW15: 5396 | CX15: =CW16+0.01 -> 9838.01 | CY15: 0.25 | CZ15: 5396 | DA15: 649.8 | DC15: =IF($B$4="m",IF(AND(DC$2>DE15,DC$2<DF15),((DC$2-DH15)*DG15)+DI15,0),0) -> 0 | DD15: =IF($B$8="m",IF(AND(DD$2>DE15,DD$2<DF15),((DD$2-DH15)*DG15)+DI15,0),0) -> 0 | DE15: 5517 | DF15: =DE16+0.01 -> 10063.01 | DG15: 0.25 | DH15: 5517 | DI15: 666.7 | DK15: =IF($B$4="m",IF(AND(DK$2>DM15,DK$2<DN15),((DK$2-DP15)*DO15)+DQ15,0),0) -> 0 | DL15: =IF($B$8="m",IF(AND(DL$2>DM15,DL$2<DN15),((DL$2-DP15)*DO15)+DQ15,0),0) -> 0 | DM15: 5670 | DN15: =DM16+0.01 -> 10575.01 | DO15: 0.25 | DP15: 5670 | DQ15: 688.4 | DS15: =IF($B$4="m",IF(AND(DS$2>DU15,DS$2<DV15),((DS$2-DX15)*DW15)+DY15,0),0) -> 0 | DT15: =IF($B$8="m",IF(AND(DT$2>DU15,DT$2<DV15),((DT$2-DX15)*DW15)+DY15,0),0) -> 0 | DU15: 5892 | DV15: =DU16+0.01 -> 11150.01 | DW15: 0.25 | DX15: 5892 | DY15: 719.8 | EA15: =IF($B$4="m",IF(AND(EA$2>EC15,EA$2<ED15),((EA$2-EF15)*EE15)+EG15,0),0) -> 0 | EB15: =IF($B$8="m",IF(AND(EB$2>EC15,EB$2<ED15),((EB$2-EF15)*EE15)+EG15,0),0) -> 0 | EC15: 6013 | ED15: =EC16+0.01 -> 11488.01 | EE15: 0.25 | EF15: 6013 | EG15: 737.1 | EI15: =EE14*(EC15-EF14)+EG14 -> 737.1 | EJ15: =IF(EI15=EG15,"True","False") -> True | EL15: =IF($B$4="m",IF(AND(EL$2>EN15,EL$2<EO15),((EL$2-EQ15)*EP15)+ER15,0),0) -> 0 | EM15: =IF($B$8="m",IF(AND(EM$2>EN15,EM$2<EO15),((EM$2-EQ15)*EP15)+ER15,0),0) -> 0 | EN15: 6304 | EO15: =EN16+0.01 -> 12067.01 | EP15: 0.25 | EQ15: 6304 | ER15: 779.1 | ET15: =EP14*(EN15-EQ14)+ER14 -> 779.1 | EU15: =IF(ET15=ER15,"True","False") -> True | EW15: =IF($B$4="m",IF(AND(EW$2>EY15,EW$2<EZ15),((EW$2-FB15)*FA15)+FC15,0),0) -> 0 | EX15: =IF($B$8="m",IF(AND(EX$2>EY15,EX$2<EZ15),((EX$2-FB15)*FA15)+FC15,0),0) -> 0 | EY15: 6304 | EZ15: =EY16+0.01 -> 9844.01 | FA15: 0.25 | FB15: 6304 | FC15: 712.4 | FE15: =FA14*(EY15-FB14)+FC14 -> 712.4 | FF15: =IF(FE15=FC15,"True","False") -> True | FH15: =IF($B$4="m",IF(AND(FH$2>FJ15,FH$2<FK15),((FH$2-FM15)*FL15)+FN15,0),0) -> 0 | FI15: =IF($B$8="m",IF(AND(FI$2>FJ15,FI$2<FK15),((FI$2-FM15)*FL15)+FN15,0),0) -> 0 | FJ15: 1146 | FK15: =FJ16+0.01 -> 2042.01 | FL15: =FL5 -> 0.1 | FM15: =FJ15 -> 1146 | FS15: =IF($B$4="m",IF(AND(FS$2>FU15,FS$2<FV15),((FS$2-FX15)*FW15)+FY15,0),0) -> 0 | FT15: =IF($B$8="m",IF(AND(FT$2>FU15,FT$2<FV15),((FT$2-FX15)*FW15)+FY15,0),0) -> 0 | FU15: 658 | FV15: =FU16+0.01 -> 2075.01 | FW15: =FW5 -> 0.1 | FX15: =FU15 -> 658 | GD15: =IF($B$4="m",IF(AND(GD$2>GF15,GD$2<GG15),((GD$2-GI15)*GH15)+GJ15,0),0) -> 0 | GE15: =IF($B$8="m",IF(AND(GE$2>GF15,GE$2<GG15),((GE$2-GI15)*GH15)+GJ15,0),0) -> 0 | GF15: 675 | GG15: =GF16+0.01 -> 2125.01 | GH15: =GH5 -> 0.1 | GI15: =GF15 -> 675 | GO15: =IF($B$4="m",IF(AND(GO$2>GQ15,GO$2<GR15),((GO$2-GT15)*GS15)+GU15,0),0) -> 0 | GP15: =IF($B$8="m",IF(AND(GP$2>GQ15,GP$2<GR15),((GP$2-GT15)*GS15)+GU15,0),0) -> 0 | GQ15: 692 | GR15: =GQ16+0.01 -> 2179.01 | GS15: =GS5 -> 0.1 | GT15: =GQ15 -> 692 | GZ15: =IF($B$4="m",IF(AND(GZ$2>HB15,GZ$2<HC15),((GZ$2-HE15)*HD15)+HF15,0),0) -> 0 | HA15: =IF($B$8="m",IF(AND(HA$2>HB15,HA$2<HC15),((HA$2-HE15)*HD15)+HF15,0),0) -> 0 | HB15: 704 | HC15: =HB16+0.01 -> 2217.01 | HD15: =HD5 -> 0.1 | HE15: =HB15 -> 704 | HK15: =IF($B$4="m",IF(AND(HK$2>HM15,HK$2<HN15),((HK$2-HP15)*HO15)+HQ15,0),0) -> 0 | HL15: =IF($B$8="m",IF(AND(HL$2>HM15,HL$2<HN15),((HL$2-HP15)*HO15)+HQ15,0),0) -> 0 | HM15: 717 | HN15: =HM16+0.01 -> 2254.01 | HO15: 0.1 | HP15: =HM15 -> 717 | HW15: =IF($B$4="m",IF(AND(HW$2>HY15,HW$2<HZ15),((HW$2-IB15)*IA15)+IC15,0),0) -> 0 | HX15: =IF($B$8="m",IF(AND(HX$2>HY15,HX$2<HZ15),((HX$2-IB15)*IA15)+IC15,0),0) -> 0 | HY15: 713 | HZ15: =HY16+0.01 -> 2258.01 | IA15: 0.1 | IB15: =HY15 -> 713 | IJ15: =IF($B$4="m",IF(AND(IJ$2>IL15,IJ$2<IM15),((IJ$2-IO15)*IN15)+IP15,0),0) -> 0 | IK15: =IF($B$8="m",IF(AND(IK$2>IL15,IK$2<IM15),((IK$2-IO15)*IN15)+IP15,0),0) -> 0 | IL15: 721 | IM15: =IL16+0.01 -> 2275.01 | IN15: 0.1 | IO15: =IL15 -> 721 | IW15: =IF($B$4="m",IF(AND(IW$2>IY15,IW$2<IZ15),((IW$2-JB15)*JA15)+JC15,0),0) -> 0 | IX15: =IF($B$8="m",IF(AND(IX$2>IY15,IX$2<IZ15),((IX$2-JB15)*JA15)+JC15,0),0) -> 0 | IY15: 963 | IZ15: =IY16+0.01 -> 2550.01 | JA15: =JA5 -> 0.1 | JB15: =IY15 -> 963 | JI15: =IF($B$4="m",IF(AND(JI$2>JK15,JI$2<JL15),((JI$2-JN15)*JM15)+JO15,0),0) -> 0 | JJ15: =IF($B$8="m",IF(AND(JJ$2>JK15,JJ$2<JL15),((JJ$2-JN15)*JM15)+JO15,0),0) -> 0 | JK15: 983 | JL15: =JK16+0.01 -> 2600.01 | JM15: =JM5 -> 0.1 | JN15: =JK15 -> 983 | JU15: =IF($B$4="m",IF(AND(JU$2>JW15,JU$2<JX15),((JU$2-JZ15)*JY15)+KA15,0),0) -> 0 | JV15: =IF($B$8="m",IF(AND(JV$2>JW15,JV$2<JX15),((JV$2-JZ15)*JY15)+KA15,0),0) -> 0 | JW15: 0 | JX15: =JW16+0.01 -> 992.01 | JY15: =JY5 -> 0 | JZ15: =JW15 -> 0 | KA15: 0 | KG15: =IF($B$4="m",IF(AND(KG$2>KI15,KG$2<KJ15),((KG$2-KL15)*KK15)+KM15,0),0) -> 0 | KH15: =IF($B$8="m",IF(AND(KH$2>KI15,KH$2<KJ15),((KH$2-KL15)*KK15)+KM15,0),0) -> 0 | KI15: 0 | KJ15: =KI16+0.01 -> 1017.01 | KK15: =KK5 -> 0 | KL15: =KI15 -> 0 | KM15: 0 | KS15: =IF($B$4="m",IF(AND(KS$2>KU15,KS$2<KV15),((KS$2-KX15)*KW15)+KY15,0),0) -> 0 | KT15: =IF($B$8="m",IF(AND(KT$2>KU15,KT$2<KV15),((KT$2-KX15)*KW15)+KY15,0),0) -> 0 | KU15: 0 | KV15: =KU16+0.01 -> 1017.01 | KW15: =KW5 -> 0 | KX15: =KU15 -> 0 | KY15: 0 | LF15: =IF($B$4="m",IF(AND(LF$2>LH15,LF$2<LI15),((LF$2-LK15)*LJ15)+LL15,0),0) -> 0 | LG15: =IF($B$8="m",IF(AND(LG$2>LH15,LG$2<LI15),((LG$2-LK15)*LJ15)+LL15,0),0) -> 0 | LH15: 0 | LI15: =LH16+0.01 -> 1083.01 | LJ15: =LJ5 -> 0 | LK15: =LH15 -> 0 | LL15: 0 | LS15: =IF($B$4="m",IF(AND(LS$2>LU15,LS$2<LV15),((LS$2-LX15)*LW15)+LY15,0),0) -> 0 | LT15: =IF($B$8="m",IF(AND(LT$2>LU15,LT$2<LV15),((LT$2-LX15)*LW15)+LY15,0),0) -> 0 | LU15: 0 | LV15: =LU16+0.01 -> 1083.01 | LW15: =LW5 -> 0 | LX15: =LU15 -> 0 | LY15: 0 | MF15: =IF($B$4="m",IF(AND(MF$2>MH15,MF$2<MI15),((MF$2-MK15)*MJ15)+ML15,0),0) -> 0 | MG15: =IF($B$8="m",IF(AND(MG$2>MH15,MG$2<MI15),((MG$2-MK15)*MJ15)+ML15,0),0) -> 0 | MH15: 0 | MI15: =MH16+0.01 -> 1233.01 | MJ15: =MJ5 -> 0 | MK15: =MH15 -> 0 | ML15: 0 | MS15: =IF($B$4="m",IF(AND(MS$2>MU15,MS$2<MV15),((MS$2-MX15)*MW15)+MY15,0),0) -> 0 | MT15: =IF($B$8="m",IF(AND(MT$2>MU15,MT$2<MV15),((MT$2-MX15)*MW15)+MY15,0),0) -> 0 | MU15: 0 | MV15: =MU16+0.01 -> 1233.01 | MW15: =MW5 -> 0 | MX15: =MU15 -> 0 | MY15: 0 | NF15: =IF($B$4="m",IF(AND(NF$2>NH15,NF$2<NI15),((NF$2-NK15)*NJ15)+NL15,0),0) -> 0 | NG15: =IF($B$8="m",IF(AND(NG$2>NH15,NG$2<NI15),((NG$2-NK15)*NJ15)+NL15,0),0) -> 0 | NH15: 0 | NI15: 1358 | NJ15: =NJ5 -> 0 | NK15: =NH15 -> 0 | NL15: 0 | NS15: =IF($B$4="m",IF(AND(NS$2>NU15,NS$2<NV15),((NS$2-NX15)*NW15)+NY15,0),0) -> 0 | NT15: =IF($B$8="m",IF(AND(NT$2>NU15,NT$2<NV15),((NT$2-NX15)*NW15)+NY15,0),0) -> 0 | NU15: 0 | NV15: =NU16+0.01 -> 1358.01 | NW15: =NW5 -> 0 | NX15: =NU15 -> 0 | NY15: 0 | OE15: =IF($B$4="m",IF(AND(OE$2>OG15,OE$2<OH15),((OE$2-OJ15)*OI15)+OK15,0),0) -> 0 | OF15: =IF($B$8="m",IF(AND(OF$2>OG15,OF$2<OH15),((OF$2-OJ15)*OI15)+OK15,0),0) -> 0 | OG15: 0 | OH15: 1425 | OI15: =OI5 -> 0 | OJ15: =OG15 -> 0 | OK15: 0 | OR15: =IF($B$4="m",IF(AND(OR$2>OT15,OR$2<OU15),((OR$2-OW15)*OV15)+OX15,0),0) -> 0 | OS15: =IF($B$8="m",IF(AND(OS$2>OT15,OS$2<OU15),((OS$2-OW15)*OV15)+OX15,0),0) -> 0 | OT15: 0 | OU15: 1425 | OV15: =OV5 -> 0 | OW15: =OT15 -> 0 | OX15: 0 | PD15: =IF($B$4="m",IF(AND(PD$2>PF15,PD$2<PG15),((PD$2-PI15)*PH15)+PJ15,0),0) -> 0 | PE15: =IF($B$8="m",IF(AND(PE$2>PF15,PE$2<PG15),((PE$2-PI15)*PH15)+PJ15,0),0) -> 0 | PF15: 0 | PG15: 1608 | PH15: =PH5 -> 0 | PI15: =PF15 -> 0 | PJ15: 0 | PQ15: =IF($B$4="m",IF(AND(PQ$2>PS15,PQ$2<PT15),((PQ$2-PV15)*PU15)+PW15,0),0) -> 0 | PR15: =IF($B$8="m",IF(AND(PR$2>PS15,PR$2<PT15),((PR$2-PV15)*PU15)+PW15,0),0) -> 0 | PS15: 0 | PT15: 1608 | PU15: =PU5 -> 0 | PV15: =PS15 -> 0 | PW15: 0
C16: =IF(B4="m",IF(AND(C2>13363,C2<23571.01),(C2-13363)*0.36+3314.21,0),0) -> 0 | D16: =IF(B8="m",IF(AND(D2>13363,D2<23571.01),(D2-13363)*0.36+3314.21,0),0) -> 0 | E16: =IF(B4="m",IF(AND(E2>13000,E2<22942.01),(E2-13000)*0.36+3224.72,0),0) -> 0 | F16: =IF(B8="m",IF(AND(F2>13000,F2<22942.01),(F2-13000)*0.36+3224.72,0),0) -> 0 | H16: =IF(B4="m",IF(AND(H2>12654,H2<22325.01),(H2-12654)*0.36+3138.86,0),0) -> 0 | I16: =IF(B8="m",IF(AND(I2>12654,I2<22325.01),(I2-12654)*0.36+3138.86,0),0) -> 0 | K16: =IF(B4="m",IF(AND(K2>12304,K2<21713.01),(K2-12304)*0.36+3051.46,0),0) -> 0 | L16: =IF(B8="m",IF(AND(L2>12304,L2<21713.01),(L2-12304)*0.36+3051.46,0),0) -> 0 | N16: =IF(B4="m",IF(AND(N2>11992,N2<21158.01),(N2-11992)*0.36+2975.47,0),0) -> 0 | O16: =IF(B8="m",IF(AND(O2>11992,O2<21158.01),(O2-11992)*0.36+2975.47,0),0) -> 0 | Z16: =IF(B4="m",IF(Z2>16718,(Z2-16718)*0.28+4745.2,0),0) -> 0 | AA16: =IF(B8="m",IF(AA2>16718,(AA2-16718)*0.28+4745.2,0),0) -> 0 | AC16: =IF(B4="m",IF(AC2>16010,(AC2-16010)*0.28+4548.07,0),0) -> 0 | AD16: =IF(B8="m",IF(AD2>16010,(AD2-16010)*0.28+4548.07,0),0) -> 0 | AF16: =IF(B4="m",IF(AND(AF2>3905,AF2<7655.01),(AF2-3905)*0.35+736.71,0),0) -> 0 | AG16: =IF(B8="m",IF(AND(AG2>3905,AG2<7655.01),(AG2-3905)*0.35+736.71,0),0) -> 0 | AI16: =IF(B4="m",IF(AND(AI2>3905,AI2<7655.01),(AI2-3905)*0.35+736.71,0),0) -> 0 | AJ16: =IF(B8="m",IF(AND(AJ2>3905,AJ2<7655.01),(AJ2-3905)*0.35+736.71,0),0) -> 0 | AL16: =IF(B4="m",IF(AND(AL2>2123,AL2<2598.01),(AL2-2123)*0.25+311.72,0),0) -> 0 | AM16: =IF(B8="m",IF(AND(AM2>2123,AM2<2598.01),(AM2-2123)*0.25+311.72,0),0) -> 0 | AO16: =IF(B4="m",IF(AND(AO2>2047,AO2<2507.01),(AO2-2047)*0.25+300.58,0),0) -> 0 | AP16: =IF(B8="m",IF(AND(AP2>2047,AP2<2507.01),(AP2-2047)*0.25+300.58,0),0) -> 0 | AR16: =IF(B4="m",IF(AND(AR2>1967,AR2<2408.01),(AR2-1967)*0.25+288.84,0),0) -> 0 | AS16: =IF(B8="m",IF(AND(AS2>1967,AS2<2408.01),(AS2-1967)*0.25+288.84,0),0) -> 0 | AU16: =IF(B4="m",IF(AND(AU2>1545,AU2<1967.01),(AU2-1545)*0.24+219.37,0),0) -> 0 | AV16: =IF(B8="m",IF(AND(AV2>1545,AV2<1967.01),(AV2-1545)*0.24+219.37,0),0) -> 0 | AX16: =IF(B4="m",IF(AND(AX2>1545,AX2<1967.01),(AX2-1545)*0.24+219.37,0),0) -> 0 | AY16: =IF(B8="m",IF(AND(AY2>1545,AY2<1967.01),(AY2-1545)*0.24+219.37,0),0) -> 0 | BA16: =IF(B4="m",IF(AND(BA2>13583,BA2<23967.01),(BA2-13583)*0.36+3369.25,0),0) -> 0 | BB16: =IF(B8="m",IF(AND(BB2>13583,BB2<23967.01),(BB2-13583)*0.36+3369.25,0),0) -> 0 | BD16: =IF($B4="m",IF(AND(BD2>13833,BD2<24408.01),(BD2-13833)*0.36+3430.73,0),0) -> 0 | BE16: =IF($B8="m",IF(AND(BE2>13833,BE2<24408.01),(BE2-13833)*0.36+3430.73,0),0) -> 0 | BG16: =IF($B$4="m",IF(AND($BG$2>BI16,$BG$2<BJ16),($BG$2-BL16)*BK16,0),0) -> 0 | BH16: =IF($B$8="m",IF(AND($BH$2>BI16,$BH$2<BJ16),($BH$2-BL16)*BK16,0),0) -> 0 | BI16: 14267 | BJ16: 25171.01 | BK16: 0.36 | BL16: 4437.78 | BN16: =IF($B$4="m",IF(AND(BN$2>BP16,BN$2<BQ16),((BN$2-BS16)*BR16)+BT16,0),0) -> 0 | BO16: =IF($B$8="m",IF(AND(BO$2>BP16,BO$2<BQ16),((BO$2-BS16)*BR16)+BT16,0),0) -> 0 | BP16: 14267 | BQ16: 25171.01 | BR16: 0.35 | BS16: =BP16 -> 14267 | BT16: 3437.43 | BV16: =IF($B$4="m",IF(AND(BV$2>BX16,BV$2<BY16),((BV$2-CA16)*BZ16)+CB16,0),0) -> 0 | BW16: =IF($B$8="m",IF(AND(BW$2>BX16,BW$2<BY16),((BW$2-CA16)*BZ16)+CB16,0),0) -> 0 | BX16: 9142 | BY16: =BX17+0.01 -> 14733.01 | BZ16: 0.3 | CA16: =BX16 -> 9142 | CB16: 1822.12 | CD16: =IF($B$4="m",IF(AND(CD$2>CF16,CD$2<CG16),((CD$2-CI16)*CH16)+CJ16,0),0) -> 0 | CE16: =IF($B$8="m",IF(AND(CE$2>CF16,CE$2<CG16),((CE$2-CI16)*CH16)+CJ16,0),0) -> 0 | CF16: 9317 | CG16: =CF17+0.01 -> 14967.01 | CH16: 0.3 | CI16: 9317 | CJ16: 1861.33 | CM16: =IF($B$4="m",IF(AND(CM$2>CO16,CM$2<CP16),((CM$2-CR16)*CQ16)+CS16,0),0) -> 0 | CN16: =IF($B$8="m",IF(AND(CN$2>CO16,CN$2<CP16),((CN$2-CR16)*CQ16)+CS16,0),0) -> 0 | CO16: 9838 | CP16: =CO17+0.01 -> 15463.01 | CQ16: 0.28 | CR16: 9838 | CS16: 1760.3 | CU16: =IF($B$4="m",IF(AND(CU$2>CW16,CU$2<CX16),((CU$2-CZ16)*CY16)+DA16,0),0) -> 0 | CV16: =IF($B$8="m",IF(AND(CV$2>CW16,CV$2<CX16),((CV$2-CZ16)*CY16)+DA16,0),0) -> 0 | CW16: 9838 | CX16: =CW17+0.01 -> 15463.01 | CY16: 0.28 | CZ16: 9838 | DA16: 1760.3 | DC16: =IF($B$4="m",IF(AND(DC$2>DE16,DC$2<DF16),((DC$2-DH16)*DG16)+DI16,0),0) -> 0 | DD16: =IF($B$8="m",IF(AND(DD$2>DE16,DD$2<DF16),((DD$2-DH16)*DG16)+DI16,0),0) -> 0 | DE16: 10063 | DF16: =DE17+0.01 -> 15800.01 | DG16: 0.28 | DH16: 10063 | DI16: 1803.2 | DK16: =IF($B$4="m",IF(AND(DK$2>DM16,DK$2<DN16),((DK$2-DP16)*DO16)+DQ16,0),0) -> 0 | DL16: =IF($B$8="m",IF(AND(DL$2>DM16,DL$2<DN16),((DL$2-DP16)*DO16)+DQ16,0),0) -> 0 | DM16: 10575 | DN16: =DM17+0.01 -> 16288.01 | DO16: 0.28 | DP16: 10575 | DQ16: 1914.65 | DS16: =IF($B$4="m",IF(AND(DS$2>DU16,DS$2<DV16),((DS$2-DX16)*DW16)+DY16,0),0) -> 0 | DT16: =IF($B$8="m",IF(AND(DT$2>DU16,DT$2<DV16),((DT$2-DX16)*DW16)+DY16,0),0) -> 0 | DU16: 11150 | DV16: =DU17+0.01 -> 16929.01 | DW16: 0.28 | DX16: 11150 | DY16: 2034.3 | EA16: =IF($B$4="m",IF(AND(EA$2>EC16,EA$2<ED16),((EA$2-EF16)*EE16)+EG16,0),0) -> 0 | EB16: =IF($B$8="m",IF(AND(EB$2>EC16,EB$2<ED16),((EB$2-EF16)*EE16)+EG16,0),0) -> 0 | EC16: 11488 | ED16: =EC17+0.01 -> 17308.01 | EE16: 0.28 | EF16: 11488 | EG16: 2105.85 | EI16: =EE15*(EC16-EF15)+EG15 -> 2105.85 | EJ16: =IF(EI16=EG16,"True","False") -> True | EL16: =IF($B$4="m",IF(AND(EL$2>EN16,EL$2<EO16),((EL$2-EQ16)*EP16)+ER16,0),0) -> 0 | EM16: =IF($B$8="m",IF(AND(EM$2>EN16,EM$2<EO16),((EM$2-EQ16)*EP16)+ER16,0),0) -> 0 | EN16: 12067 | EO16: =EN17+0.01 -> 18050.01 | EP16: 0.28 | EQ16: 12067 | ER16: 2219.85 | ET16: =EP15*(EN16-EQ15)+ER15 -> 2219.85 | EU16: =IF(ET16=ER16,"True","False") -> True | EW16: =IF($B$4="m",IF(AND(EW$2>EY16,EW$2<EZ16),((EW$2-FB16)*FA16)+FC16,0),0) -> 0 | EX16: =IF($B$8="m",IF(AND(EX$2>EY16,EX$2<EZ16),((EX$2-FB16)*FA16)+FC16,0),0) -> 0 | EY16: 9844 | EZ16: =EY17+0.01 -> 18050.01 | FA16: 0.28 | FB16: 9844 | FC16: 1597.4 | FE16: =FA15*(EY16-FB15)+FC15 -> 1597.4 | FF16: =IF(FE16=FC16,"True","False") -> True | FH16: 0 | FI16: 0 | FJ16: 2042 | FK16: =FJ17+0.01 -> 6313.01 | FL16: =FL6 -> 0.15 | FM16: 2042 | FN16: 89.6 | FP16: =FL15*(FJ16-FM15)+FN15 -> 89.6 | FQ16: =IF(FP16=FN16,"True","False") -> True | FS16: =IF($B$4="m",IF(AND(FS$2>FU16,FS$2<FV16),((FS$2-FX16)*FW16)+FY16,0),0) -> 0 | FT16: =IF($B$8="m",IF(AND(FT$2>FU16,FT$2<FV16),((FT$2-FX16)*FW16)+FY16,0),0) -> 0 | FU16: 2075 | FV16: =FU17+0.01 -> 6408.01 | FW16: =FW6 -> 0.15 | FX16: 2075 | FY16: 141.7 | GA16: =FW15*(FU16-FX15)+FY15 -> 141.7 | GB16: =IF(GA16=FY16,"True","False") -> True | GD16: =IF($B$4="m",IF(AND(GD$2>GF16,GD$2<GG16),((GD$2-GI16)*GH16)+GJ16,0),0) -> 0 | GE16: =IF($B$8="m",IF(AND(GE$2>GF16,GE$2<GG16),((GE$2-GI16)*GH16)+GJ16,0),0) -> 0 | GF16: 2125 | GG16: =GF17+0.01 -> 6567.01 | GH16: =GH6 -> 0.15 | GI16: 2125 | GJ16: 145 | GL16: =GH15*(GF16-GI15)+GJ15 -> 145 | GM16: =IF(GL16=GJ16,"True","False") -> True | GO16: 0 | GP16: 0 | GQ16: 2179 | GR16: 6733.01 | GS16: =GS6 -> 0.15 | GT16: 2179 | GU16: 148.7 | GW16: =GS15*(GQ16-GT15)+GU15 -> 148.7 | GX16: =IF(GW16=GU16,"True","False") -> True | GZ16: 0 | HA16: 0 | HB16: 2217 | HC16: 6854.01 | HD16: =HD6 -> 0.15 | HE16: 2217 | HF16: 151.3 | HH16: =HD15*(HB16-HE15)+HF15 -> 151.3 | HI16: =IF(HH16=HF16,"True","False") -> True | HK16: 0 | HL16: 0 | HM16: 2254 | HN16: 6958.01 | HO16: 0.15 | HP16: 2254 | HQ16: 153.7 | HS16: =HO15*(HM16-HP15)+HQ15 -> 153.7 | HT16: =IF(HS16=HQ16,"True","False") -> True | HW16: 0 | HX16: 0 | HY16: 2258 | HZ16: 6988.01 | IA16: 0.15 | IB16: 2258 | IC16: 154.5 | IE16: =IA15*(HY16-IB15)+IC15 -> 154.5 | IF16: =IF(IE16=IC16,"True","False") -> True | IJ16: 0 | IK16: 0 | IL16: 2275 | IM16: 7046.01 | IN16: 0.15 | IO16: 2275 | IP16: 155.4 | IR16: =IN15*(IL16-IO15)+IP15 -> 155.4 | IS16: =IF(IR16=IP16,"True","False") -> True | IW16: 0 | IX16: 0 | IY16: 2550 | IZ16: 7413.01 | JA16: 0.12 | JB16: 2550 | JC16: 158.7 | JE16: =JA15*(IY16-JB15)+JC15 -> 158.7 | JF16: =IF(JE16=JC16,"True","False") -> True | JI16: 0 | JJ16: 0 | JK16: 2600 | JL16: 7563.01 | JM16: 0.12 | JN16: 2600 | JO16: 161.7 | JQ16: =JM15*(JK16-JN15)+JO15 -> 161.7 | JR16: =IF(JQ16=JO16,"True","False") -> True | JU16: 0 | JV16: 0 | JW16: 992 | JX16: 2638.01 | JY16: 0.1 | JZ16: =JW16 -> 992 | KA16: 0 | KC16: =JY15*(JW16-JZ15)+KA15 -> 0 | KD16: =IF(KC16=KA16,"True","False") -> True | KG16: 0 | KH16: 0 | KI16: 1017 | KJ16: 2675.01 | KK16: 0.1 | KL16: =KI16 -> 1017 | KM16: 0 | KO16: =KK15*(KI16-KL15)+KM15 -> 0 | KP16: =IF(KO16=KM16,"True","False") -> True | KS16: 0 | KT16: 0 | KU16: 1017 | KV16: 2675.01 | KW16: 0.1 | KX16: =KU16 -> 1017 | KY16: 0 | LA16: =KW15*(KU16-KX15)+KY15 -> 0 | LB16: =IF(LA16=KY16,"True","False") -> True | LF16: 0 | LG16: 0 | LH16: 1083 | LI16: 2796.01 | LJ16: 0.1 | LK16: =LH16 -> 1083 | LL16: 0 | LN16: =LJ15*(LH16-LK15)+LL15 -> 0 | LO16: =IF(LN16=LL16,"True","False") -> True | LS16: 0 | LT16: 0 | LU16: 1083 | LV16: 2796.01 | LW16: 0.1 | LX16: =LU16 -> 1083 | LY16: 0 | MA16: =LW15*(LU16-LX15)+LY15 -> 0 | MB16: =IF(MA16=LY16,"True","False") -> True | MF16: 0 | MG16: 0 | MH16: 1233 | MI16: 3067.01 | MJ16: 0.1 | MK16: =MH16 -> 1233 | ML16: 0 | MN16: =MJ15*(MH16-MK15)+ML15 -> 0 | MO16: =IF(MN16=ML16,"True","False") -> True | MS16: 0 | MT16: 0 | MU16: 1233 | MV16: 3067.01 | MW16: 0.1 | MX16: =MU16 -> 1233 | MY16: 0 | NA16: =MW15*(MU16-MX15)+MY15 -> 0 | NB16: =IF(NA16=MY16,"True","False") -> True | NF16: 0 | NG16: 0 | NH16: 1358 | NI16: =NH17+0.01 -> 3292.01 | NJ16: 0.1 | NK16: =NH16 -> 1358 | NL16: 0 | NN16: =NJ15*(NH16-NK15)+NL15 -> 0 | NO16: =IF(NN16=NL16,"True","False") -> True | NS16: 0 | NT16: 0 | NU16: 1358 | NV16: 3292.01 | NW16: 0.1 | NX16: =NU16 -> 1358 | NY16: 0 | OA16: =NW15*(NU16-NX15)+NY15 -> 0 | OB16: =IF(OA16=NY16,"True","False") -> True | OE16: 0 | OF16: 0 | OG16: 1425 | OH16: 3413 | OI16: 0.1 | OJ16: =OG16 -> 1425 | OK16: 0 | OM16: =OI15*(OG16-OJ15)+OK15 -> 0 | ON16: =IF(OM16=OK16,"True","False") -> True | OR16: 0 | OS16: 0 | OT16: 1425 | OU16: 3413 | OV16: 0.1 | OW16: =OT16 -> 1425 | OX16: 0 | OZ16: =OV15*(OT16-OW15)+OX15 -> 0 | PA16: =IF(OZ16=OX16,"True","False") -> True | PD16: 0 | PE16: 0 | PF16: 1608 | PG16: 3675 | PH16: 0.1 | PI16: =PF16 -> 1608 | PJ16: =PL16 -> 0 | PL16: =PH15*(PF16-PI15)+PJ15 -> 0 | PM16: =IF(PL16=PJ16,"True","False") -> True | PQ16: 0 | PR16: 0 | PS16: 1608 | PT16: 3675 | PU16: 0.1 | PV16: =PS16 -> 1608 | PW16: =PY16 -> 0 | PY16: =PU15*(PS16-PV15)+PW15 -> 0 | PZ16: =IF(PY16=PW16,"True","False") -> True
C17: =IF(B4="m",IF(C2>23571,(C2-23571)*0.396+6989.09,0),0) -> 0 | D17: =IF(B8="m",IF(D2>23571,(D2-23571)*0.396+6989.09,0),0) -> 0 | E17: =IF(B4="m",IF(E2>22942,(E2-22942)*0.396+6803.84,0),0) -> 0 | F17: =IF(B8="m",IF(F2>22942,(F2-22942)*0.396+6803.84,0),0) -> 0 | H17: =IF(B4="m",IF(H2>22325,(H2-22325)*0.396+6620.42,0),0) -> 0 | I17: =IF(B8="m",IF(I2>22325,(I2-22325)*0.396+6620.42,0),0) -> 0 | K17: =IF(B4="m",IF(K2>21713,(K2-21713)*0.396+6438.7,0),0) -> 0 | L17: =IF(B8="m",IF(L2>21713,(L2-21713)*0.396+6438.7,0),0) -> 0 | N17: =IF(B4="m",IF(N2>21158,(N2-21158)*0.396+6275.23,0),0) -> 0 | O17: =IF(B8="m",IF(O2>21158,(O2-21158)*0.396+6275.23,0),0) -> 0 | AF17: =IF(B4="m",IF(AF2>7655,(AF2-7655)*0.385+2049.21,0),0) -> 0 | AG17: =IF(B8="m",IF(AG2>7655,(AG2-7655)*0.385+2049.21,0),0) -> 0 | AI17: =IF(B4="m",IF(AI2>7655,(AI2-7655)*0.385+2049.21,0),0) -> 0 | AJ17: =IF(B8="m",IF(AJ2>7655,(AJ2-7655)*0.385+2049.21,0),0) -> 0 | AL17: =IF(B4="m",IF(AND(AL2>2598,AL2<3075.01),(AL2-2598)*0.28+430.47,0),0) -> 0 | AM17: =IF(B8="m",IF(AND(AM2>2598,AM2<3075.01),(AM2-2598)*0.28+430.47,0),0) -> 0 | AO17: =IF(B4="m",IF(AND(AO2>2507,AO2<2966.01),(AO2-2507)*0.28+415.58,0),0) -> 0 | AP17: =IF(B8="m",IF(AND(AP2>2507,AP2<2966.01),(AP2-2507)*0.28+415.58,0),0) -> 0 | AR17: =IF(B4="m",IF(AND(AR2>2408,AR2<2850.01),(AR2-2408)*0.28+399.09,0),0) -> 0 | AS17: =IF(B8="m",IF(AND(AS2>2408,AS2<2850.01),(AS2-2408)*0.28+399.09,0),0) -> 0 | AU17: =IF(B4="m",IF(AND(AU2>1967,AU2<2408.01),(AU2-1967)*0.27+320.65,0),0) -> 0 | AV17: =IF(B8="m",IF(AND(AV2>1967,AV2<2408.01),(AV2-1967)*0.27+320.65,0),0) -> 0 | AX17: =IF(B4="m",IF(AND(AX2>1967,AX2<2408.01),(AX2-1967)*0.27+320.65,0),0) -> 0 | AY17: =IF(B8="m",IF(AND(AY2>1967,AY2<2408.01),(AY2-1967)*0.27+320.65,0),0) -> 0 | BA17: =IF(B4="m",IF(BA2>23967,(BA2-23967)*0.396+7107.49,0),0) -> 0 | BB17: =IF(B8="m",IF(BB2>23967,(BB2-23967)*0.396+7107.49,0),0) -> 0 | BD17: =IF($B4="m",IF(BD2>24408,(BD2-24408)*0.396+7237.73,0),0) -> 0 | BE17: =IF($B8="m",IF(BE2>24408,(BE2-24408)*0.396+7237.73,0),0) -> 0 | BG17: =IF($B$4="m",IF($BG$2>BI17,($BG$2-BL17)*BK17,0),0) -> 0 | BH17: =IF($B$8="m",IF($BH$2>BI17,($BH$2-BL17)*BK17,0),0) -> 0 | BI17: 25171 | BK17: 0.396 | BL17: 6322.62 | BN17: =IF($B$4="m",IF(BN$2>BP17,((BN$2-BS17)*BR17)+BT17,0),0) -> 0 | BO17: =IF($B$8="m",IF(BO$2>BP17,((BO$2-BS17)*BR17)+BT17,0),0) -> 0 | BP17: 25171 | BR17: 0.386 | BS17: =BP17 -> 25171 | BT17: 7253.83 | BV17: =IF($B$4="m",IF(AND(BV$2>BX17,BV$2<BY17),((BV$2-CA17)*BZ17)+CB17,0),0) -> 0 | BW17: =IF($B$8="m",IF(AND(BW$2>BX17,BW$2<BY17),((BW$2-CA17)*BZ17)+CB17,0),0) -> 0 | BX17: 14733 | BY17: =BX18+0.01 -> 25992.01 | BZ17: 0.35 | CA17: =BX17 -> 14733 | CB17: 3499.42 | CD17: =IF($B$4="m",IF(AND(CD$2>CF17,CD$2<CG17),((CD$2-CI17)*CH17)+CJ17,0),0) -> 0 | CE17: =IF($B$8="m",IF(AND(CE$2>CF17,CE$2<CG17),((CE$2-CI17)*CH17)+CJ17,0),0) -> 0 | CF17: 14967 | CG17: =CF18+0.01 -> 26404.01 | CH17: 0.35 | CI17: 14967 | CJ17: 3556.33 | CM17: =IF($B$4="m",IF(AND(CM$2>CO17,CM$2<CP17),((CM$2-CR17)*CQ17)+CS17,0),0) -> 0 | CN17: =IF($B$8="m",IF(AND(CN$2>CO17,CN$2<CP17),((CN$2-CR17)*CQ17)+CS17,0),0) -> 0 | CO17: 15463 | CP17: =CO18+0.01 -> 27175.01 | CQ17: 0.33 | CR17: 15463 | CS17: 3335.3 | CU17: =IF($B$4="m",IF(AND(CU$2>CW17,CU$2<CX17),((CU$2-CZ17)*CY17)+DA17,0),0) -> 0 | CV17: =IF($B$8="m",IF(AND(CV$2>CW17,CV$2<CX17),((CV$2-CZ17)*CY17)+DA17,0),0) -> 0 | CW17: 15463 | CX17: =CW18+0.01 -> 27175.01 | CY17: 0.33 | CZ17: 15463 | DA17: 3335.3 | DC17: =IF($B$4="m",IF(AND(DC$2>DE17,DC$2<DF17),((DC$2-DH17)*DG17)+DI17,0),0) -> 0 | DD17: =IF($B$8="m",IF(AND(DD$2>DE17,DD$2<DF17),((DD$2-DH17)*DG17)+DI17,0),0) -> 0 | DE17: 15800 | DF17: =DE18+0.01 -> 27771.01 | DG17: 0.33 | DH17: 15800 | DI17: 3409.56 | DK17: =IF($B$4="m",IF(AND(DK$2>DM17,DK$2<DN17),((DK$2-DP17)*DO17)+DQ17,0),0) -> 0 | DL17: =IF($B$8="m",IF(AND(DL$2>DM17,DL$2<DN17),((DL$2-DP17)*DO17)+DQ17,0),0) -> 0 | DM17: 16288 | DN17: =DM18+0.01 -> 28629.01 | DO17: 0.33 | DP17: 16288 | DQ17: 3514.29 | DS17: =IF($B$4="m",IF(AND(DS$2>DU17,DS$2<DV17),((DS$2-DX17)*DW17)+DY17,0),0) -> 0 | DT17: =IF($B$8="m",IF(AND(DT$2>DU17,DT$2<DV17),((DT$2-DX17)*DW17)+DY17,0),0) -> 0 | DU17: 16929 | DV17: =DU18+0.01 -> 29750.01 | DW17: 0.33 | DX17: 16929 | DY17: 3652.42 | EA17: =IF($B$4="m",IF(AND(EA$2>EC17,EA$2<ED17),((EA$2-EF17)*EE17)+EG17,0),0) -> 0 | EB17: =IF($B$8="m",IF(AND(EB$2>EC17,EB$2<ED17),((EB$2-EF17)*EE17)+EG17,0),0) -> 0 | EC17: 17308 | ED17: =EC18+0.01 -> 30425.01 | EE17: 0.33 | EF17: 17308 | EG17: 3735.45 | EI17: =EE16*(EC17-EF16)+EG16 -> 3735.45 | EJ17: =IF(EI17=EG17,"True","False") -> True | EL17: =IF($B$4="m",IF(AND(EL$2>EN17,EL$2<EO17),((EL$2-EQ17)*EP17)+ER17,0),0) -> 0 | EM17: =IF($B$8="m",IF(AND(EM$2>EN17,EM$2<EO17),((EM$2-EQ17)*EP17)+ER17,0),0) -> 0 | EN17: 18050 | EO17: =EN18+0.01 -> 31725.01 | EP17: 0.33 | EQ17: 18050 | ER17: 3895.09 | ET17: =EP16*(EN17-EQ16)+ER16 -> 3895.09 | EU17: =IF(ET17=ER17,"True","False") -> True | EW17: =IF($B$4="m",IF(AND(EW$2>EY17,EW$2<EZ17),((EW$2-FB17)*FA17)+FC17,0),0) -> 0 | EX17: =IF($B$8="m",IF(AND(EX$2>EY17,EX$2<EZ17),((EX$2-FB17)*FA17)+FC17,0),0) -> 0 | EY17: 18050 | EZ17: =EY18+0.01 -> 31725.01 | FA17: 0.33 | FB17: 18050 | FC17: 3895.08 | FE17: =FA16*(EY17-FB16)+FC16 -> 3895.08 | FF17: =IF(FE17=FC17,"True","False") -> True | FH17: 0 | FI17: 0 | FJ17: 6313 | FK17: 7838.01 | FL17: 0.25 | FM17: 6313 | FN17: 730.25 | FP17: =FL16*(FJ17-FM16)+FN16 -> 730.25 | FQ17: True | FS17: =IF($B$4="m",IF(AND(FS$2>FU17,FS$2<FV17),((FS$2-FX17)*FW17)+FY17,0),0) -> 0 | FT17: =IF($B$8="m",IF(AND(FT$2>FU17,FT$2<FV17),((FT$2-FX17)*FW17)+FY17,0),0) -> 0 | FU17: 6408 | FV17: =FU18+0.01 -> 12271.01 | FW17: =FW7 -> 0.25 | FX17: 6408 | FY17: 791.65 | GA17: =FW16*(FU17-FX16)+FY16 -> 791.65 | GB17: =IF(GA17=FY17,"True","False") -> True | GD17: =IF($B$4="m",IF(AND(GD$2>GF17,GD$2<GG17),((GD$2-GI17)*GH17)+GJ17,0),0) -> 0 | GE17: =IF($B$8="m",IF(AND(GE$2>GF17,GE$2<GG17),((GE$2-GI17)*GH17)+GJ17,0),0) -> 0 | GF17: 6567 | GG17: =GF18+0.01 -> 12567.01 | GH17: =GH7 -> 0.25 | GI17: 6567 | GJ17: 811.3 | GL17: =GH16*(GF17-GI16)+GJ16 -> 811.3 | GM17: =IF(GL17=GJ17,"True","False") -> True | GO17: 0 | GP17: 0 | GQ17: 6733 | GR17: 12892.01 | GS17: =GS7 -> 0.25 | GT17: 6733 | GU17: 831.8 | GW17: 831.8 | GX17: True | GZ17: 0 | HA17: 0 | HB17: 6854 | HC17: 13108.01 | HD17: =HD7 -> 0.25 | HE17: 6854 | HF17: 846.85 | HH17: 846.85 | HI17: True | HK17: 0 | HL17: 0 | HM17: 6958 | HN17: 13317.01 | HO17: 0.25 | HP17: 6958 | HQ17: 859.3 | HS17: 859.3 | HT17: True | HW17: 0 | HX17: 0 | HY17: 6988 | HZ17: 13371.01 | IA17: 0.25 | IB17: 6988 | IC17: 864 | IE17: 864 | IF17: True | IJ17: 0 | IK17: 0 | IL17: 7046 | IM17: 13479.01 | IN17: 0.25 | IO17: 7046 | IP17: 871.05 | IR17: 871.05 | IS17: True | IW17: 0 | IX17: 0 | IY17: 7413 | IZ17: 14713.01 | JA17: 0.22 | JB17: 7413 | JC17: 742.26 | JE17: 742.26 | JF17: True | JI17: 0 | JJ17: 0 | JK17: 7563 | JL17: 15017.01 | JM17: 0.22 | JN17: 7563 | JO17: 757.26 | JQ17: 757.26 | JR17: True | JU17: 0 | JV17: 0 | JW17: 2638 | JX17: 7679.01 | JY17: 0.12 | JZ17: 2638 | KA17: 164.6 | KC17: =JY16*(JW17-JZ16)+KA16 -> 164.6 | KD17: True | KG17: 0 | KH17: 0 | KI17: 2675 | KJ17: 7771.01 | KK17: 0.12 | KL17: 2675 | KM17: 165.8 | KO17: =KK16*(KI17-KL16)+KM16 -> 165.8 | KP17: True | KS17: 0 | KT17: 0 | KU17: 2675 | KV17: 7771.01 | KW17: 0.12 | KX17: 2675 | KY17: 165.8 | LA17: =KW16*(KU17-KX16)+KY16 -> 165.8 | LB17: True | LF17: 0 | LG17: 0 | LH17: 2796 | LI17: 8046.01 | LJ17: 0.12 | LK17: 2796 | LL17: 171.3 | LN17: =LJ16*(LH17-LK16)+LL16 -> 171.3 | LO17: True | LS17: 0 | LT17: 0 | LU17: 2796 | LV17: 8046.01 | LW17: 0.12 | LX17: 2796 | LY17: 171.3 | MA17: =LW16*(LU17-LX16)+LY16 -> 171.3 | MB17: True | MF17: 0 | MG17: 0 | MH17: 3067 | MI17: 8688.01 | MJ17: 0.12 | MK17: 3067 | ML17: 183.4 | MN17: =MJ16*(MH17-MK16)+ML16 -> 183.4 | MO17: True | MS17: 0 | MT17: 0 | MU17: 3067 | MV17: 8688.01 | MW17: 0.12 | MX17: 3067 | MY17: 183.4 | NA17: =MW16*(MU17-MX16)+MY16 -> 183.4 | NB17: True | NF17: 0 | NG17: 0 | NH17: 3292 | NI17: 9217.01 | NJ17: 0.12 | NK17: 3292 | NL17: 193.4 | NN17: =NJ16*(NH17-NK16)+NL16 -> 193.4 | NO17: True | NS17: 0 | NT17: 0 | NU17: 3292 | NV17: 9217.01 | NW17: 0.12 | NX17: 3292 | NY17: 193.4 | OA17: =NW16*(NU17-NX16)+NY16 -> 193.4 | OB17: True | OE17: 0 | OF17: 0 | OG17: 3413 | OH17: 9504 | OI17: 0.12 | OJ17: 3413 | OK17: 198.8 | OM17: =OI16*(OG17-OJ16)+OK16 -> 198.8 | ON17: True | OR17: 0 | OS17: 0 | OT17: 3413 | OU17: 9504 | OV17: 0.12 | OW17: 3413 | OX17: 198.8 | OZ17: =OV16*(OT17-OW16)+OX16 -> 198.8 | PA17: True | PD17: 0 | PE17: 0 | PF17: 3675 | PG17: 10008 | PH17: 0.12 | PI17: 3675 | PJ17: =PL17 -> 206.7 | PL17: =PH16*(PF17-PI16)+PJ16 -> 206.7 | PM17: True | PQ17: 0 | PR17: 0 | PS17: 3675 | PT17: 10008 | PU17: 0.12 | PV17: 3675 | PW17: =PY17 -> 206.7 | PY17: =PU16*(PS17-PV16)+PW16 -> 206.7 | PZ17: True
AL18: =IF(B4="m",IF(AND(AL2>3075,AL2<4028.01),(AL2-3075)*0.33+564.03,0),0) -> 0 | AM18: =IF(B8="m",IF(AND(AM2>3075,AM2<4028.01),(AM2-3075)*0.33+564.03,0),0) -> 0 | AO18: =IF(B4="m",IF(AND(AO2>2966,AO2<3885.01),(AO2-2966)*0.33+544.1,0),0) -> 0 | AP18: =IF(B8="m",IF(AND(AP2>2966,AP2<3885.01),(AP2-2966)*0.33+544.1,0),0) -> 0 | AR18: =IF(B4="m",IF(AND(AR2>2850,AR2<3733.01),(AR2-2850)*0.33+522.85,0),0) -> 0 | AS18: =IF(B8="m",IF(AND(AS2>2850,AS2<3733.01),(AS2-2850)*0.33+522.85,0),0) -> 0 | AU18: =IF(B4="m",IF(AND(AU2>2408,AU2<2850.01),(AU2-2408)*0.32+439.72,0),0) -> 0 | AV18: =IF(B8="m",IF(AND(AV2>2408,AV2<2850.01),(AV2-2408)*0.32+439.72,0),0) -> 0 | AX18: =IF(B4="m",IF(AND(AX2>2408,AX2<2850.01),(AX2-2408)*0.32+439.72,0),0) -> 0 | AY18: =IF(B8="m",IF(AND(AY2>2408,AY2<2850.01),(AY2-2408)*0.32+439.72,0),0) -> 0 | BV18: =IF($B$4="m",IF(BV$2>BX18,((BV$2-CA18)*BZ18)+CB18,0),0) -> 0 | BW18: =IF($B$8="m",IF(BW$2>BX18,((BW$2-CA18)*BZ18)+CB18,0),0) -> 0 | BX18: 25992 | BZ18: 0.386 | CA18: 25992 | CB18: 7440.07 | CD18: =IF($B$4="m",IF(CD$2>CF18,((CD$2-CI18)*CH18)+CJ18,0),0) -> 0 | CE18: =IF($B$8="m",IF(CE$2>CF18,((CE$2-CI18)*CH18)+CJ18,0),0) -> 0 | CF18: 26404 | CH18: 0.386 | CI18: 26404 | CJ18: 7559.28 | CM18: =IF($B$4="m",IF(CM$2>CO18,((CM$2-CR18)*CQ18)+CS18,0),0) -> 0 | CN18: =IF($B$8="m",IF(CN$2>CO18,((CN$2-CR18)*CQ18)+CS18,0),0) -> 0 | CO18: 27175 | CQ18: 0.35 | CR18: 27175 | CS18: 7200.26 | CU18: =IF($B$4="m",IF(CU$2>CW18,((CU$2-CZ18)*CY18)+DA18,0),0) -> 0 | CV18: =IF($B$8="m",IF(CV$2>CW18,((CV$2-CZ18)*CY18)+DA18,0),0) -> 0 | CW18: 27175 | CY18: 0.35 | CZ18: 27175 | DA18: 7200.26 | DC18: =IF($B$4="m",IF(DC$2>DE18,((DC$2-DH18)*DG18)+DI18,0),0) -> 0 | DD18: =IF($B$8="m",IF(DD$2>DE18,((DD$2-DH18)*DG18)+DI18,0),0) -> 0 | DE18: 27771 | DG18: 0.35 | DH18: 27771 | DI18: 7359.99 | DK18: =IF($B$4="m",IF(DK$2>DM18,((DK$2-DP18)*DO18)+DQ18,0),0) -> 0 | DL18: =IF($B$8="m",IF(DL$2>DM18,((DL$2-DP18)*DO18)+DQ18,0),0) -> 0 | DM18: 28629 | DO18: 0.35 | DP18: 28629 | DQ18: 7586.82 | DS18: =IF($B$4="m",IF(DS$2>DU18,((DS$2-DX18)*DW18)+DY18,0),0) -> 0 | DT18: =IF($B$8="m",IF(DT$2>DU18,((DT$2-DX18)*DW18)+DY18,0),0) -> 0 | DU18: 29750 | DW18: 0.35 | DX18: 29750 | DY18: 7883.35 | EA18: =IF($B$4="m",IF(EA$2>EC18,((EA$2-EF18)*EE18)+EG18,0),0) -> 0 | EB18: =IF($B$8="m",IF(EB$2>EC18,((EB$2-EF18)*EE18)+EG18,0),0) -> 0 | EC18: 30425 | EE18: 0.35 | EF18: 30425 | EG18: 8064.06 | EI18: =EE17*(EC18-EF17)+EG17 -> 8064.06 | EJ18: =IF(EI18=EG18,"True","False") -> True | EL18: =IF($B$4="m",IF(EL$2>EN18,((EL$2-EQ18)*EP18)+ER18,0),0) -> 0 | EM18: =IF($B$8="m",IF(EM$2>EN18,((EM$2-EQ18)*EP18)+ER18,0),0) -> 0 | EN18: 31725 | EP18: 0.35 | EQ18: 31725 | ER18: 8407.84 | ET18: =EP17*(EN18-EQ17)+ER17 -> 8407.84 | EU18: =IF(ET18=ER18,"True","False") -> True | EW18: =IF($B$4="m",IF(EW$2>EY18,((EW$2-FB18)*FA18)+FC18,0),0) -> 0 | EX18: =IF($B$8="m",IF(EX$2>EY18,((EX$2-FB18)*FA18)+FC18,0),0) -> 0 | EY18: 31725 | FA18: 0.35 | FB18: 31725 | FC18: 8407.83 | FE18: =FA17*(EY18-FB17)+FC17 -> 8407.83 | FF18: =IF(FE18=FC18,"True","False") -> True | FH18: 0 | FI18: 0 | FJ18: 7838 | FK18: 10338.01 | FL18: 0.27 | FM18: 7838 | FN18: 1111.5 | FP18: 1111.5 | FQ18: True | FS18: =IF($B$4="m",IF(AND(FS$2>FU18,FS$2<FV18),((FS$2-FX18)*FW18)+FY18,0),0) -> 0 | FT18: =IF($B$8="m",IF(AND(FT$2>FU18,FT$2<FV18),((FT$2-FX18)*FW18)+FY18,0),0) -> 0 | FU18: 12271 | FV18: =FU19+0.01 -> 18350.01 | FW18: =FW8 -> 0.28 | FX18: 12271 | FY18: 2257.4 | GA18: =FW17*(FU18-FX17)+FY17 -> 2257.4 | GB18: =IF(GA18=FY18,"True","False") -> True | GD18: =IF($B$4="m",IF(AND(GD$2>GF18,GD$2<GG18),((GD$2-GI18)*GH18)+GJ18,0),0) -> 0 | GE18: =IF($B$8="m",IF(AND(GE$2>GF18,GE$2<GG18),((GE$2-GI18)*GH18)+GJ18,0),0) -> 0 | GF18: 12567 | GG18: =GF19+0.01 -> 18796.01 | GH18: =GH8 -> 0.28 | GI18: 12567 | GJ18: 2311.3 | GL18: =GH17*(GF18-GI17)+GJ17 -> 2311.3 | GM18: =IF(GL18=GJ18,"True","False") -> True | GO18: 0 | GP18: 0 | GQ18: 12892 | GR18: 19279.01 | GS18: =GS8 -> 0.28 | GT18: 12892 | GU18: 2371.55 | GW18: 2371.55 | GX18: True | GZ18: 0 | HA18: 0 | HB18: 13108 | HC18: 19608.01 | HD18: =HD8 -> 0.28 | HE18: 13108 | HF18: 2410.35 | HH18: 2410.35 | HI18: True | HK18: 0 | HL18: 0 | HM18: 13317 | HN18: 19921.01 | HO18: 0.28 | HP18: 13317 | HQ18: 2449.05 | HS18: 2449.05 | HT18: True | HW18: 0 | HX18: 0 | HY18: 13371 | HZ18: 20000.01 | IA18: 0.28 | IB18: 13371 | IC18: 2459.75 | IE18: 2459.75 | IF18: True | IJ18: 0 | IK18: 0 | IL18: 13479 | IM18: 20167.01 | IN18: 0.28 | IO18: 13479 | IP18: 2479.3 | IR18: 2479.3 | IS18: True | IW18: 0 | IX18: 0 | IY18: 14713 | IZ18: 27213.01 | JA18: 0.24 | JB18: 14713 | JC18: 2348.26 | JE18: 2348.26 | JF18: True | JI18: 0 | JJ18: 0 | JK18: 15017 | JL18: 27771.01 | JM18: 0.24 | JN18: 15017 | JO18: 2397.14 | JQ18: 2397.14 | JR18: True | JU18: 0 | JV18: 0 | JW18: 7679 | JX18: 15246.01 | JY18: 0.22 | JZ18: 7679 | KA18: 769.52 | KC18: 769.52 | KD18: True | KG18: 0 | KH18: 0 | KI18: 7771 | KJ18: 15413.01 | KK18: 0.22 | KL18: 7771 | KM18: 777.32 | KO18: 777.32 | KP18: True | KS18: 0 | KT18: 0 | KU18: 7771 | KV18: 15413.01 | KW18: 0.22 | KX18: 7771 | KY18: 777.32 | LA18: 777.32 | LB18: True | LF18: 0 | LG18: 0 | LH18: 8046 | LI18: 15929.01 | LJ18: 0.22 | LK18: 8046 | LL18: 801.3 | LN18: 801.3 | LO18: True | LS18: 0 | LT18: 0 | LU18: 8046 | LV18: 15929.01 | LW18: 0.22 | LX18: 8046 | LY18: 801.3 | MA18: 801.3 | MB18: True | MF18: 0 | MG18: 0 | MH18: 8688 | MI18: 17129.01 | MJ18: 0.22 | MK18: 8688 | ML18: 857.92 | MN18: 857.92 | MO18: True | MS18: 0 | MT18: 0 | MU18: 8688 | MV18: 17129.01 | MW18: 0.22 | MX18: 8688 | MY18: 857.92 | NA18: 857.92 | NB18: True | NF18: 0 | NG18: 0 | NH18: 9217 | NI18: 18113.01 | NJ18: 0.22 | NK18: 9217 | NL18: 904.4 | NN18: 904.4 | NO18: True | NS18: 0 | NT18: 0 | NU18: 9217 | NV18: 18113.01 | NW18: 0.22 | NX18: 9217 | NY18: 904.4 | OA18: 904.4 | OB18: True | OE18: 0 | OF18: 0 | OG18: 9504 | OH18: 18650 | OI18: 0.22 | OJ18: 9504 | OK18: 929.72 | OM18: 929.72 | ON18: True | OR18: 0 | OS18: 0 | OT18: 9504 | OU18: 18650 | OV18: 0.22 | OW18: 9504 | OX18: 929.72 | OZ18: 929.72 | PA18: True | PD18: 0 | PE18: 0 | PF18: 10008 | PG18: 19225 | PH18: 0.22 | PI18: 10008 | PJ18: 966.66 | PL18: 966.66 | PM18: True | PQ18: 0 | PR18: 0 | PS18: 10008 | PT18: 19225 | PU18: 0.22 | PV18: 10008 | PW18: 966.66 | PY18: 966.66 | PZ18: True
AL19: =IF(B4="m",IF(AL2>4028,(AL2-4028)*0.37+878.52,0),0) -> 0 | AM19: =IF(B8="m",IF(AM2>4028,(AM2-4028)*0.37+878.52,0),0) -> 0 | AO19: =IF(B4="m",IF(AO2>3885,(AO2-3885)*0.37+847.37,0),0) -> 0 | AP19: =IF(B8="m",IF(AP2>3885,(AP2-3885)*0.37+847.37,0),0) -> 0 | AR19: =IF(B4="m",IF(AR2>3733,(AR2-3733)*0.37+814.24,0),0) -> 0 | AS19: =IF(B8="m",IF(AS2>3733,(AS2-3733)*0.37+814.24,0),0) -> 0 | AU19: =IF(B4="m",IF(AU2>2850,(AU2-2850)*0.37+581.16,0),0) -> 0 | AV19: =IF(B8="m",IF(AV2>2850,(AV2-2850)*0.37+581.16,0),0) -> 0 | AX19: =IF(B4="m",IF(AX2>2850,(AX2-2850)*0.37+581.16,0),0) -> 0 | AY19: =IF(B8="m",IF(AY2>2850,(AY2-2850)*0.37+581.16,0),0) -> 0 | FH19: 0 | FI19: 0 | FJ19: 10338 | FK19: 12088.01 | FL19: 0.25 | FM19: 10338 | FN19: 1786.5 | FP19: 1786.5 | FQ19: True | FS19: =IF($B$4="m",IF(AND(FS$2>FU19,FS$2<FV19),((FS$2-FX19)*FW19)+FY19,0),0) -> 0 | FT19: =IF($B$8="m",IF(AND(FT$2>FU19,FT$2<FV19),((FT$2-FX19)*FW19)+FY19,0),0) -> 0 | FU19: 18350 | FV19: =FU20+0.01 -> 32254.01 | FW19: 0.33 | FX19: 18350 | FY19: 3959.52 | GA19: =FW18*(FU19-FX18)+FY18 -> 3959.52 | GB19: =IF(GA19=FY19,"True","False") -> True | GD19: =IF($B$4="m",IF(AND(GD$2>GF19,GD$2<GG19),((GD$2-GI19)*GH19)+GJ19,0),0) -> 0 | GE19: =IF($B$8="m",IF(AND(GE$2>GF19,GE$2<GG19),((GE$2-GI19)*GH19)+GJ19,0),0) -> 0 | GF19: 18796 | GG19: =GF20+0.01 -> 33038.01 | GH19: 0.33 | GI19: 18796 | GJ19: 4055.42 | GL19: =GH18*(GF19-GI18)+GJ18 -> 4055.42 | GM19: =IF(GL19=GJ19,"True","False") -> True | GO19: 0 | GP19: 0 | GQ19: 19279 | GR19: 33888.01 | GS19: 0.33 | GT19: 19279 | GU19: 4159.91 | GW19: 4159.91 | GX19: True | GZ19: 0 | HA19: 0 | HB19: 19608 | HC19: 34463.01 | HD19: 0.33 | HE19: 19608 | HF19: 4230.35 | HH19: 4230.35 | HI19: True | HK19: 0 | HL19: 0 | HM19: 19921 | HN19: 35008.01 | HO19: 0.33 | HP19: 19921 | HQ19: 4298.17 | HS19: 4298.17 | HT19: True | HW19: 0 | HX19: 0 | HY19: 20000 | HZ19: 35158.01 | IA19: 0.33 | IB19: 20000 | IC19: 4315.87 | IE19: 4315.87 | IF19: True | IJ19: 0 | IK19: 0 | IL19: 20167 | IM19: 35446.01 | IN19: 0.33 | IO19: 20167 | IP19: 4351.94 | IR19: 4351.94 | IS19: True | IW19: 0 | IX19: 0 | IY19: 27213 | IZ19: 34296.01 | JA19: 0.32 | JB19: 27213 | JC19: 5348.26 | JE19: 5348.26 | JF19: True | JI19: 0 | JJ19: 0 | JK19: 27771 | JL19: 35000.01 | JM19: 0.32 | JN19: 27771 | JO19: 5458.1 | JQ19: 5458.1 | JR19: True | JU19: 0 | JV19: 0 | JW19: 15246 | JX19: 28208.01 | JY19: 0.24 | JZ19: 15246 | KA19: 2434.26 | KC19: 2434.26 | KD19: True | KG19: 0 | KH19: 0 | KI19: 15413 | KJ19: 28504.01 | KK19: 0.24 | KL19: 15413 | KM19: 2458.56 | KO19: 2458.56 | KP19: True | KS19: 0 | KT19: 0 | KU19: 15413 | KV19: 28504.01 | KW19: 0.24 | KX19: 15413 | KY19: 2458.56 | LA19: 2458.56 | LB19: True | LF19: 0 | LG19: 0 | LH19: 15929 | LI19: 29425.01 | LJ19: 0.24 | LK19: 15929 | LL19: 2535.56 | LN19: 2535.56 | LO19: True | LS19: 0 | LT19: 0 | LU19: 15929 | LV19: 29425.01 | LW19: 0.24 | LX19: 15929 | LY19: 2535.56 | MA19: 2535.56 | MB19: True | MF19: 0 | MG19: 0 | MH19: 17129 | MI19: 31583.01 | MJ19: 0.24 | MK19: 17129 | ML19: 2714.94 | MN19: 2714.94 | MO19: True | MS19: 0 | MT19: 0 | MU19: 17129 | MV19: 31583.01 | MW19: 0.24 | MX19: 17129 | MY19: 2714.94 | NA19: 2714.94 | NB19: True | NF19: 0 | NG19: 0 | NH19: 18113 | NI19: 33350.01 | NJ19: 0.24 | NK19: 18113 | NL19: 2861.52 | NN19: 2861.52 | NO19: True | NS19: 0 | NT19: 0 | NU19: 18113 | NV19: 33350.01 | NW19: 0.24 | NX19: 18113 | NY19: 2861.52 | OA19: 2861.52 | OB19: True | OE19: 0 | OF19: 0 | OG19: 18650 | OH19: 34308 | OI19: 0.24 | OJ19: 18650 | OK19: 2941.84 | OM19: 2941.84 | ON19: True | OR19: 0 | OS19: 0 | OT19: 18650 | OU19: 34308 | OV19: 0.24 | OW19: 18650 | OX19: 2941.84 | OZ19: 2941.84 | PA19: True | PD19: 0 | PE19: 0 | PF19: 19225 | PG19: 35238 | PH19: 0.24 | PI19: 19225 | PJ19: 2994.4 | PL19: 2994.4 | PM19: True | PQ19: 0 | PR19: 0 | PS19: 19225 | PT19: 35238 | PU19: 0.24 | PV19: 19225 | PW19: 2994.4 | PY19: 2994.4 | PZ19: True
C20: Mom's 98 WH | D20: Dad's 98 WH | E20: Mom's 97 WH | F20: Dad's 97 WH | H20: Mom's 96 WH | I20: Dad's 96 WH | K20: Mom's 95 WH | L20: Dad's 95 WH | N20: Mom's 94 WH | O20: Dad's 94 WH | Q20: Mom's 93 WH | R20: Dad's 93 WH | T20: Mom's 92 WH | U20: Dad's 92 WH | W20: Mom's 91 WH | X20: Dad's 91 WH | Z20: Mom's 90 WH | AA20: Dad's 90 WH | AC20: Mom's 89 WH | AD20: Dad's 89 WH | AF20: Mom's 88 WH | AG20: Dad's 88 WH | AI20: Mom's 87 WH | AJ20: Dad's 87 WH | AL20: Mom's 86 WH | AM20: Dad's 86 WH | AO20: Mom's 85 WH | AP20: Dad's 85 WH | AR20: Mom's 84 WH | AS20: Dad's 84 WH | AU20: Mom's 83 WH | AV20: Dad's 83 WH | AX20: Mom's 82 WH | AY20: Dad's 82 WH | BA20: Mom's 99 WH | BB20: Dad's 99 WH | BD20: Mom's 2000 WH | BE20: Dad's 2000 WH | BG20: Mom's 2001 WH | BH20: Dad's 2001 WH | BN20: Mom's 2001.1 WH | BO20: Dad's 2001.1 WH | BV20: Mom's 2002 WH | BW20: Dad's 2002 WH | CD20: Mom's 2003 WH | CE20: Dad's 2003 WH | CM20: Mom's 2003.1 WH | CN20: Dad's 2003.1 WH | CU20: Mom's 2004 WH | CV20: Dad's 2004 WH | DC20: Mom's 2005 WH | DD20: Dad's 2005 WH | DK20: Mom's 2006 WH | DL20: Dad's 2006 WH | DS20: Mom's 2007 WH | DT20: Dad's 2007 WH | EA20: Mom's 2008 WH | EB20: Dad's 2008 WH | EL20: Mom's 2009 WH | EM20: Dad's 2009 WH | EW20: Mom's 2009.4 WH | EX20: Dad's 2009.4 WH | FH20: 0 | FI20: 0 | FJ20: 12088 | FK20: 18083.01 | FL20: 0.28 | FM20: 12088 | FN20: 2224 | FP20: 2224 | FQ20: True | FS20: =IF($B$4="m",IF(FS$2>FU20,((FS$2-FX20)*FW20)+FY20,0),0) -> 0 | FT20: =IF($B$8="m",IF(FT$2>FU20,((FT$2-FX20)*FW20)+FY20,0),0) -> 0 | FU20: 32254 | FW20: =FW10 -> 0.35 | FX20: 32254 | FY20: 8547.84 | GA20: =FW19*(FU20-FX19)+FY19 -> 8547.84 | GB20: =IF(GA20=FY20,"True","False") -> True | GD20: =IF($B$4="m",IF(GD$2>GF20,((GD$2-GI20)*GH20)+GJ20,0),0) -> 0 | GE20: =IF($B$8="m",IF(GE$2>GF20,((GE$2-GI20)*GH20)+GJ20,0),0) -> 0 | GF20: 33038 | GH20: =GH10 -> 0.35 | GI20: 33038 | GJ20: 8755.28 | GL20: =GH19*(GF20-GI19)+GJ19 -> 8755.28 | GM20: =IF(GL20=GJ20,"True","False") -> True | GO20: 0 | GP20: 0 | GQ20: 33888 | GR20: 38192.01 | GS20: =GS10 -> 0.35 | GT20: 33888 | GU20: 8980.88 | GW20: 8980.88 | GX20: True | GZ20: 0 | HA20: 0 | HB20: 34463 | HC20: 38838.01 | HD20: =HD10 -> 0.35 | HE20: 34463 | HF20: 9132.5 | HH20: 9132.5 | HI20: True | HK20: 0 | HL20: 0 | HM20: 35008 | HN20: 39454.01 | HO20: 0.35 | HP20: 35008 | HQ20: 9276.88 | HS20: 9276.88 | HT20: True | HW20: 0 | HX20: 0 | HY20: 35158 | HZ20: 39625.01 | IA20: 0.35 | IB20: 35158 | IC20: 9318.01 | IE20: 9318.01 | IF20: True | IJ20: 0 | IK20: 0 | IL20: 35446 | IM20: 39946.01 | IN20: 0.35 | IO20: 35446 | IP20: 9394.01 | IR20: 9394.01 | IS20: True | IW20: 0 | IX20: 0 | IY20: 34296 | IZ20: 50963.01 | JA20: 0.35 | JB20: 34296 | JC20: 7614.82 | JE20: 7614.82 | JF20: True | JI20: 0 | JJ20: 0 | JK20: 35000 | JL20: 52013.01 | JM20: 0.35 | JN20: 35000 | JO20: 7771.38 | JQ20: 7771.38 | JR20: True | JU20: 0 | JV20: 0 | JW20: 28208 | JX20: 35550.01 | JY20: 0.32 | JZ20: 28208 | KA20: 5545.14 | KC20: 5545.14 | KD20: True | KG20: 0 | KH20: 0 | KI20: 28504 | KJ20: 35921.01 | KK20: 0.32 | KL20: 28504 | KM20: 5600.4 | KO20: 5600.4 | KP20: True | KS20: 0 | KT20: 0 | KU20: 28504 | KV20: 35921.01 | KW20: 0.32 | KX20: 28504 | KY20: 5600.4 | LA20: 5600.4 | LB20: True | LF20: 0 | LG20: 0 | LH20: 29425 | LI20: 37075.01 | LJ20: 0.32 | LK20: 29425 | LL20: 5774.6 | LN20: 5774.6 | LO20: True | LS20: 0 | LT20: 0 | LU20: 29425 | LV20: 37075.01 | LW20: 0.32 | LX20: 29425 | LY20: 5774.6 | MA20: 5774.6 | MB20: True | MF20: 0 | MG20: 0 | MH20: 31583 | MI20: 39775.01 | MJ20: 0.32 | MK20: 31583 | ML20: 6183.9 | MN20: 6183.9 | MO20: True | MS20: 0 | MT20: 0 | MU20: 31583 | MV20: 39775.01 | MW20: 0.32 | MX20: 31583 | MY20: 6183.9 | NA20: 6183.9 | NB20: True | NF20: 0 | NG20: 0 | NH20: 33350 | NI20: 41979.01 | NJ20: 0.32 | NK20: 33350 | NL20: 6518.4 | NN20: 6518.4 | NO20: True | NS20: 0 | NT20: 0 | NU20: 33350 | NV20: 41979.01 | NW20: 0.32 | NX20: 33350 | NY20: 6518.4 | OA20: 6518.4 | OB20: True | OE20: 0 | OF20: 0 | OG20: 34308 | OH20: 43179 | OI20: 0.32 | OJ20: 34308 | OK20: 6699.76 | OM20: 6699.76 | ON20: True | OR20: 0 | OS20: 0 | OT20: 34308 | OU20: 43179 | OV20: 0.32 | OW20: 34308 | OX20: 6699.76 | OZ20: 6699.76 | PA20: True | PD20: 0 | PE20: 0 | PF20: 35238 | PG20: 44313 | PH20: 0.32 | PI20: 35238 | PJ20: 6837.52 | PL20: 6837.52 | PM20: True | PQ20: 0 | PR20: 0 | PS20: 35238 | PT20: 44313 | PU20: 0.32 | PV20: 35238 | PW20: 6837.52 | PY20: 6837.52 | PZ20: True
C21: =SUM(C5:C17) -> 0 | E21: =SUM(E5:E17) -> 0 | H21: =SUM(H5:H17) -> 0 | K21: =SUM(K5:K17) -> 0 | N21: =SUM(N5:N17) -> 0 | Q21: =SUM(Q5:Q17) -> 0 | T21: =SUM(T5:T17) -> 0 | W21: =SUM(W5:W17) -> 0 | Z21: =SUM(Z5:Z17) -> 0 | AC21: =SUM(AC5:AC17) -> 0 | AF21: =SUM(AF5:AF17) -> 0 | AI21: =SUM(AI5:AI17) -> 0 | AL21: =SUM(AL5:AL19) -> 0 | AO21: =SUM(AO5:AO19) -> 0 | AR21: =SUM(AR5:AR19) -> 0 | AU21: =SUM(AU5:AU19) -> 0 | AX21: =SUM(AX5:AX19) -> 0 | BA21: =SUM(BA13:BA17,BA5:BA9) -> 0 | BD21: =SUM(BD13:BD17,BD5:BD9) -> 0 | BG21: =SUM(BG13:BG17,BG5:BG9) -> 0 | BN21: =SUM(BN13:BN17,BN5:BN9) -> 0 | BV21: =SUM(BV5:BV10,BV13:BV18) -> 0 | CD21: =SUM(CD5:CD10,CD13:CD18) -> 0 | CM21: =SUM(CM5:CM10,CM13:CM18) -> 0 | CU21: =SUM(CU5:CU10,CU13:CU18) -> 0 | DC21: =SUM(DC5:DC10,DC13:DC18) -> 0 | DK21: =SUM(DK5:DK10,DK13:DK18) -> 0 | DS21: =SUM(DS5:DS10,DS13:DS18) -> 0 | EA21: =SUM(EA5:EA10,EA13:EA18) -> 0 | EL21: =SUM(EL5:EL10,EL13:EL18) -> 0 | EW21: =SUM(EW5:EW10,EW13:EW18) -> 0 | FH21: 0 | FI21: 0 | FJ21: 18083 | FK21: 31783.01 | FL21: 0.33 | FM21: 18083 | FN21: 3902.6 | FP21: 3902.6 | FQ21: True | GO21: =IF($B$4="m",IF(GO$2>GQ21,((GO$2-GT21)*GS21)+GU21,0),0) -> 0 | GP21: =IF($B$8="m",IF(GP$2>GQ21,((GP$2-GT21)*GS21)+GU21,0),0) -> 0 | GQ21: 38192 | GS21: 0.396 | GT21: 38192 | GU21: 10487.28 | GW21: 10487.28 | GX21: True | GZ21: =IF($B$4="m",IF(GZ$2>HB21,((GZ$2-HE21)*HD21)+HF21,0),0) -> 0 | HA21: =IF($B$8="m",IF(HA$2>HB21,((HA$2-HE21)*HD21)+HF21,0),0) -> 0 | HB21: 38838 | HD21: 0.396 | HE21: 38838 | HF21: 10663.75 | HH21: 10663.75 | HI21: True | HK21: =IF($B$4="m",IF(HK$2>HM21,((HK$2-HP21)*HO21)+HQ21,0),0) -> 0 | HL21: =IF($B$8="m",IF(HL$2>HM21,((HL$2-HP21)*HO21)+HQ21,0),0) -> 0 | HM21: 39454 | HO21: 0.396 | HP21: 39454 | HQ21: 10832.98 | HS21: 10832.98 | HT21: True | HW21: =IF($B$4="m",IF(HW$2>HY21,((HW$2-IB21)*IA21)+IC21,0),0) -> 0 | HX21: =IF($B$8="m",IF(HX$2>HY21,((HX$2-IB21)*IA21)+IC21,0),0) -> 0 | HY21: 39625 | IA21: 0.396 | IB21: 39625 | IC21: 10881.46 | IE21: 10881.46 | IF21: True | IJ21: =IF($B$4="m",IF(IJ$2>IL21,((IJ$2-IO21)*IN21)+IP21,0),0) -> 0 | IK21: =IF($B$8="m",IF(IK$2>IL21,((IK$2-IO21)*IN21)+IP21,0),0) -> 0 | IL21: 39946 | IN21: 0.396 | IO21: 39946 | IP21: 10969.01 | IR21: 10969.01 | IS21: True | IW21: =IF($B$4="m",IF(IW$2>IY21,((IW$2-JB21)*JA21)+JC21,0),0) -> 0 | IX21: =IF($B$8="m",IF(IX$2>IY21,((IX$2-JB21)*JA21)+JC21,0),0) -> 0 | IY21: 50963 | JA21: 0.37 | JB21: 50963 | JC21: 13448.27 | JE21: 13448.27 | JF21: True | JI21: =IF($B$4="m",IF(JI$2>JK21,((JI$2-JN21)*JM21)+JO21,0),0) -> 0 | JJ21: =IF($B$8="m",IF(JJ$2>JK21,((JJ$2-JN21)*JM21)+JO21,0),0) -> 0 | JK21: 52013 | JM21: 0.37 | JN21: 52013 | JO21: 13725.93 | JQ21: 13725.93 | JR21: True | JU21: 0 | JV21: 0 | JW21: 35550 | JX21: 52829.01 | JY21: 0.35 | JZ21: 35550 | KA21: 7894.58 | KC21: 7894.58 | KD21: True | KG21: 0 | KH21: 0 | KI21: 35921 | KJ21: 53375.01 | KK21: 0.35 | KL21: 35921 | KM21: 7973.84 | KO21: 7973.84 | KP21: True | KS21: 0 | KT21: 0 | KU21: 35921 | KV21: 53375.01 | KW21: 0.35 | KX21: 35921 | KY21: 7973.84 | LA21: 7973.84 | LB21: True | LF21: 0 | LG21: 0 | LH21: 37075 | LI21: 55071.01 | LJ21: 0.35 | LK21: 37075 | LL21: 8222.6 | LN21: 8222.6 | LO21: True | LS21: 0 | LT21: 0 | LU21: 37075 | LV21: 55071.01 | LW21: 0.35 | LX21: 37075 | LY21: 8222.6 | MA21: 8222.6 | MB21: True | MF21: 0 | MG21: 0 | MH21: 39775 | MI21: 59046.01 | MJ21: 0.35 | MK21: 39775 | ML21: 8805.34 | MN21: 8805.34 | MO21: True | MS21: 0 | MT21: 0 | MU21: 39775 | MV21: 59046.01 | MW21: 0.35 | MX21: 39775 | MY21: 8805.34 | NA21: 8805.34 | NB21: True | NF21: 0 | NG21: 0 | NH21: 41979 | NI21: 62292.01 | NJ21: 0.35 | NK21: 41979 | NL21: 9279.68 | NN21: 9279.68 | NO21: True | NS21: 0 | NT21: 0 | NU21: 41979 | NV21: 62292.01 | NW21: 0.35 | NX21: 41979 | NY21: 9279.68 | OA21: 9279.68 | OB21: True | OE21: 0 | OF21: 0 | OG21: 43179 | OH21: 64058 | OI21: 0.35 | OJ21: 43179 | OK21: 9538.48 | OM21: 9538.48 | ON21: True | OR21: 0 | OS21: 0 | OT21: 43179 | OU21: 64058 | OV21: 0.35 | OW21: 43179 | OX21: 9538.48 | OZ21: 9538.48 | PA21: True | PD21: 0 | PE21: 0 | PF21: 44313 | PG21: 65667 | PH21: 0.35 | PI21: 44313 | PJ21: 9741.52 | PL21: 9741.52 | PM21: True | PQ21: 0 | PR21: 0 | PS21: 44313 | PT21: 65667 | PU21: 0.35 | PV21: 44313 | PW21: 9741.52 | PY21: 9741.52 | PZ21: True
D22: =SUM(D5:D17) -> 0 | F22: =SUM(F5:F17) -> 0 | I22: =SUM(I5:I17) -> 0 | L22: =SUM(L5:L17) -> 0 | O22: =SUM(O5:O17) -> 0 | R22: =SUM(R5:R17) -> 0 | U22: =SUM(U5:U17) -> 0 | X22: =SUM(X5:X17) -> 0 | AA22: =SUM(AA5:AA17) -> 0 | AD22: =SUM(AD5:AD17) -> 0 | AG22: =SUM(AG5:AG17) -> 0 | AJ22: =SUM(AJ5:AJ17) -> 0 | AM22: =SUM(AM5:AM19) -> 0 | AP22: =SUM(AP5:AP19) -> 0 | AS22: =SUM(AS5:AS19) -> 0 | AV22: =SUM(AV5:AV19) -> 0 | AY22: =SUM(AY5:AY19) -> 0 | BB22: =SUM(BB13:BB17,BB5:BB9) -> 0 | BE22: =SUM(BE13:BE17,BE5:BE9) -> 0 | BH22: =SUM(BH13:BH17,BH5:BH9) -> 0 | BO22: =SUM(BO13:BO17,BO5:BO9) -> 0 | BW22: =SUM(BW5:BW10,BW13:BW18) -> 0 | CE22: =SUM(CE5:CE10,CE13:CE18) -> 0 | CN22: =SUM(CN5:CN10,CN13:CN18) -> 0 | CV22: =SUM(CV5:CV10,CV13:CV18) -> 0 | DD22: =SUM(DD5:DD10,DD13:DD18) -> 0 | DL22: =SUM(DL5:DL10,DL13:DL18) -> 0 | DT22: =SUM(DT5:DT10,DT13:DT18) -> 0 | EB22: =SUM(EB5:EB10,EB13:EB18) -> 0 | EM22: =SUM(EM5:EM10,EM13:EM18) -> 0 | EX22: =SUM(EX5:EX10,EX13:EX18) -> 0 | FH22: =IF($B$4="m",IF(FH$2>FJ22,((FH$2-FM22)*FL22)+FN22,0),0) -> 0 | FI22: =IF($B$8="m",IF(FI$2>FJ22,((FI$2-FM22)*FL22)+FN22,0),0) -> 0 | FJ22: 31783 | FL22: 0.35 | FM22: 31783 | FN22: 8423.6 | FP22: 8423.6 | FQ22: True | JU22: 0 | JV22: 0 | JW22: 52829 | JX22: 1e+11 | JY22: 0.37 | JZ22: 52829 | KA22: 13942.23 | KC22: 13942.23 | KD22: True | KG22: 0 | KH22: 0 | KI22: 53375 | KJ22: 1e+11 | KK22: 0.37 | KL22: 53375 | KM22: 14082.74 | KO22: 14082.74 | KP22: True | KS22: 0 | KT22: 0 | KU22: 53375 | KV22: 1e+11 | KW22: 0.37 | KX22: 53375 | KY22: 14082.74 | LA22: 14082.74 | LB22: True | LF22: 0 | LG22: 0 | LH22: 55071 | LI22: 1e+11 | LJ22: 0.37 | LK22: 55071 | LL22: 14521.2 | LN22: 14521.2 | LO22: True | LS22: 0 | LT22: 0 | LU22: 55071 | LV22: 1e+11 | LW22: 0.37 | LX22: 55071 | LY22: 14521.2 | MA22: 14521.2 | MB22: True | MF22: 0 | MG22: 0 | MH22: 59046 | MI22: 1e+11 | MJ22: 0.37 | MK22: 59046 | ML22: 15550.19 | MN22: 15550.19 | MO22: True | MS22: 0 | MT22: 0 | MU22: 59046 | MV22: 1e+11 | MW22: 0.37 | MX22: 59046 | MY22: 15550.19 | NA22: 15550.19 | NB22: True | NF22: 0 | NG22: 0 | NH22: 62292 | NI22: 1e+11 | NJ22: 0.37 | NK22: 62292 | NL22: 16389.23 | NN22: 16389.23 | NO22: True | NS22: 0 | NT22: 0 | NU22: 62292 | NV22: 1e+11 | NW22: 0.37 | NX22: 62292 | NY22: 16389.23 | OA22: 16389.23 | OB22: True | OE22: 0 | OF22: 0 | OG22: 64058 | OH22: 1e+11 | OI22: 0.37 | OJ22: 64058 | OK22: 16846.13 | OM22: 16846.13 | ON22: True | OR22: 0 | OS22: 0 | OT22: 64058 | OU22: 1e+11 | OV22: 0.37 | OW22: 64058 | OX22: 16846.13 | OZ22: 16846.13 | PA22: True | PD22: 0 | PE22: 0 | PF22: 65667 | PG22: 1e+11 | PH22: 0.37 | PI22: 65667 | PJ22: 17215.42 | PL22: 17215.42 | PM22: True | PQ22: 0 | PR22: 0 | PS22: 65667 | PT22: 1e+11 | PU22: 0.37 | PV22: 65667 | PW22: 17215.42 | PY22: 17215.42 | PZ22: True
A24: mom's tax inc | B24: 0 | FH24: Mom's 2010 WH | FI24: Dad's 2010 WH | FS24: Mom's 2011 WH | FT24: Dad's 2011 WH | GD24: Mom's 2012 WH | GE24: Dad's 2012 WH | GO24: Mom's 2013 WH | GP24: Dad's 2013 WH | GZ24: Mom's 2014 WH | HA24: Dad's 2014 WH | HK24: Mom's 2015 WH | HL24: Dad's 2015 WH | HW24: Mom's 2016 WH | HX24: Dad's 2016 WH | IJ24: Mom's 2017 WH | IK24: Dad's 2017 WH | IW24: Mom's 2018 WH | IX24: Dad's 2018 WH | JI24: Mom's 2019 WH | JJ24: Dad's 2019 WH | JU24: Mom's 2020 WH | JV24: Dad's 2020 WH | KG24: Mom's 2021 WH | KH24: Dad's 2021 WH | KS24: Mom's 2021 WH | KT24: Dad's 2021 WH | LF24: Mom's 2022 WH | LG24: Dad's 2022 WH | LS24: Mom's 2022 WH | LT24: Dad's 2022 WH | MF24: Mom's 2023 WH | MG24: Dad's 2023 WH | MS24: Mom's 2023 WH | MT24: Dad's 2023 WH | NF24: Mom's 2024 WH | NG24: Dad's 2024 WH | NS24: Mom's 2024 WH | NT24: Dad's 2024 WH | OE24: Mom's 2025 WH | OF24: Dad's 2025 WH | OR24: Mom's 2025 WH | OS24: Dad's 2025 WH | PD24: Mom's 2026 WH | PE24: Dad's 2026 WH | PQ24: Mom's 2026 WH | PR24: Dad's 2026 WH
A25: dad's tax inc | B25: 0 | FH25: =SUM(FH5:FH12,FH15:FH22) -> 0 | FS25: =SUM(FS5:FS12,FS15:FS22) -> 0 | GD25: =SUM(GD5:GD12,GD15:GD22) -> 0 | GO25: =SUM(GO5:GO12,GO15:GO22) -> 0 | GZ25: =SUM(GZ5:GZ12,GZ15:GZ22) -> 0 | HK25: =SUM(HK5:HK12,HK15:HK22) -> 0 | HW25: =SUM(HW5:HW12,HW15:HW22) -> 0 | IJ25: =SUM(IJ5:IJ12,IJ15:IJ22) -> 0 | IW25: =SUM(IW5:IW12,IW15:IW22) -> 0 | JI25: =SUM(JI5:JI12,JI15:JI22) -> 0 | JU25: =SUM(JU5:JU12,JU15:JU22) -> 0 | KG25: =SUM(KG5:KG12,KG15:KG22) -> 0 | KS25: =SUM(KS5:KS12,KS15:KS22) -> 0 | LF25: =SUM(LF5:LF12,LF15:LF22) -> 0 | LS25: =SUM(LS5:LS12,LS15:LS22) -> 0 | MF25: =SUM(MF5:MF12,MF15:MF22) -> 0 | MS25: =SUM(MS5:MS12,MS15:MS22) -> 0 | NF25: =SUM(NF5:NF12,NF15:NF22) -> 0 | NS25: =SUM(NS5:NS12,NS15:NS22) -> 0 | OE25: =SUM(OE5:OE12,OE15:OE22) -> 0 | OR25: =SUM(OR5:OR12,OR15:OR22) -> 0 | PD25: =SUM(PD5:PD12,PD15:PD22) -> 109.6204 | PQ25: =SUM(PQ5:PQ12,PQ15:PQ22) -> 0
FI26: =SUM(FI5:FI12,FI15:FI22) -> 0 | FT26: =SUM(FT5:FT12,FT15:FT22) -> 0 | GE26: =SUM(GE5:GE12,GE15:GE22) -> 0 | GP26: =SUM(GP5:GP12,GP15:GP22) -> 0 | HA26: =SUM(HA5:HA12,HA15:HA22) -> 0 | HL26: =SUM(HL5:HL12,HL15:HL22) -> 0 | HX26: =SUM(HX5:HX12,HX15:HX22) -> 0 | IK26: =SUM(IK5:IK12,IK15:IK22) -> 0 | IX26: =SUM(IX5:IX12,IX15:IX22) -> 0 | JJ26: =SUM(JJ5:JJ12,JJ15:JJ22) -> 0 | JV26: =SUM(JV5:JV12,JV15:JV22) -> 0 | KH26: =SUM(KH5:KH12,KH15:KH22) -> 0 | KT26: =SUM(KT5:KT12,KT15:KT22) -> 0 | LG26: =SUM(LG5:LG12,LG15:LG22) -> 0 | LT26: =SUM(LT5:LT12,LT15:LT22) -> 0 | MG26: =SUM(MG5:MG12,MG15:MG22) -> 0 | MT26: =SUM(MT5:MT12,MT15:MT22) -> 0 | NG26: =SUM(NG5:NG12,NG15:NG22) -> 0 | NT26: =SUM(NT5:NT12,NT15:NT22) -> 0 | OF26: =SUM(OF5:OF12,OF15:OF22) -> 0 | OS26: =SUM(OS5:OS12,OS15:OS22) -> 0 | PE26: =SUM(PE5:PE12,PE15:PE22) -> 152.5804 | PR26: =SUM(PR5:PR12,PR15:PR22) -> 0

Sheet Income Breakdown
A2: Type of income | B2: Mom's Income | C2: Dad's Income | D2: Fed WH | E2: FICA | F2: self emp
A3: SALARY/WAGES | D3: Y | E3: Y | F3: N
A4: BONUSES, COMMISSIONS, OVERTIME, TIPS, ETC. | D4: Y | E4: Y | F4: N
A5: SELF-EMP./PARTNERSHIP/CLOSE CORP AND INDEPENDENT CONTRACTS | D5: Y | E5: N | F5: Y
A6: DISABILITY BENEFITS | D6: Y | E6: Y | F6: N
A7: WORKER'S COMPENSATION | D7: N | E7: Y | F7: N
A8: UNEMPLOYMENT COMP. | D8: Y | E8: Y | F8: N
A9: PENSION, RETIREMENTS, OR ANNUITY PAYMENT | D9: Y | E9: N | F9: N
A10: SOC. SEC. BENEFITS (don't include SS paid to child) | D10: N | E10: N | F10: N
A11: SPOUSAL SUPPORT | D11: Y | E11: N | F11: N
A12: INTEREST AND DIVIDENDS | D12: Y | E12: N | F12: N
A13: RENTAL INCOME | D13: Y | E13: N | F13: N
A14: INCOME FROM ROYALTIES, TRUSTS ESTATES | D14: Y | E14: N | F14: N
A15: REIMBURSED EXPENSES OR IN-KIND PAYMENTS TO THE EXTENT THAT THEY REDUCE EXPENSES | D15: Y | E15: N | F15: N
A16: CAPITAL GAINS ON SALE OR EXCHANGE OF PROPERTY UNLESS NON-RECURRING | D16: Y | E16: N | F16: N
A17: OTHER NON-TAXABLE INCOME | D17: N | E17: N | F17: N
A18: OTHER TAXABLE INCOME | D18: Y | E18: N | F18: N
A19: Total Income | B19: =SUM(B3:B18) -> 0 | C19: =SUM(C3:C18) -> 0
A20: Fed WH Wages | B20: =SUM(B3:B6,B8,B9,B11:B16,B18) -> 0 | C20: =SUM(C3:C6,C8,C9,C11:C16,C18) -> 0 | E20: Mom | F20: Dad
A21: FICA Wages | B21: =SUM(B3:B4,B6:B8) -> 0 | C21: =SUM(C3:C4,C6:C8) -> 0 | D21: Fed WH | E21: =Worksheet!B26 -> 109.62 | F21: =Worksheet!C26 -> 152.58
A22: Self Employed Wages | B22: =B5 -> 0 | C22: =C5 -> 0 | D22: FICA | E22: =Worksheet!B27 -> 185.64 | F22: =Worksheet!C27 -> 185.64
A23: Use this form for Guideline Calculation? | B23: =IF(COUNTBLANK(B3:C18)=32,"NO","YES") -> NO
A31: =IF('Data Entry'!B1="","",'Data Entry'!B1&" (Petitioner) vs. "&+'Data Entry'!B2&" (Respondent)") -> 
A32: =IF('Data Entry'!B3="","","Court Case Number: "&+'Data Entry'!B3) -> 

Sheet Retro Data
B1: *Please note: Enter all dates in | D1: From | F1: Thru | H1: Guideline Amt | I1: Add 1/2 | J1: # of | K1: Sub-
B2: YYYY format (M/DD/YYYY) | D2: MM | E2: YYYY | F2: MM | G2: YYYY | I2: month? | J2: Months | K2: Totals | P2: Y | R2: mom | S2: dad
A3: Date of Filing | J3: ='Retro WS'!D12 ->  | K3: ='Retro WS'!E12 ->  | P3: N | R3: =IF('Data Entry'!$P1>0,'Shared Parenting'!B53,IF('Data Entry'!$P2="Yes",'Split Custody'!B31,IF(AND('Low Income'!C9="YES",'Low Income'!C8="MOM"),'Low Income'!C24,Worksheet!B47))) -> 440.13 | S3: =IF('Data Entry'!$P1>0,'Shared Parenting'!C53,IF('Data Entry'!$P2="Yes",'Split Custody'!C31,IF(AND('Low Income'!C9="YES",'Low Income'!C8="DAD"),'Low Income'!C24,Worksheet!C47))) -> 422.87
A4: DOB / DOS | J4: ='Retro WS'!D13 ->  | K4: ='Retro WS'!E13 ->  | S4: ='Shared Parenting'!C53 -> 0
A5: 1st pay date | J5: ='Retro WS'!D14 ->  | K5: ='Retro WS'!E14 -> 
A6: NCP Payments to CP During Retro Period | J6: ='Retro WS'!D15 ->  | K6: ='Retro WS'!E15 -> 
J7: ='Retro WS'!D16 ->  | K7: ='Retro WS'!E16 -> 
J8: ='Retro WS'!D17 ->  | K8: ='Retro WS'!E17 -> 
A9: Incarceration | B9: From | C9: Thru | J9: ='Retro WS'!D18 ->  | K9: ='Retro WS'!E18 -> 
A10: *Note:Entry here | J10: ='Retro WS'!D19 ->  | K10: ='Retro WS'!E19 -> 
A11: will not deduct | J11: ='Retro WS'!D20 ->  | K11: ='Retro WS'!E20 -> 
A12: from retro, must | J12: ='Retro WS'!D21 ->  | K12: ='Retro WS'!E21 -> 
A13: be done manually | J13: ='Retro WS'!D22 ->  | K13: ='Retro WS'!E22 -> 
A14: (columns D-G). | J14: ='Retro WS'!D23 ->  | K14: ='Retro WS'!E23 -> 
A15: Co-Habitation | B15: From | C15: Thru | J15: ='Retro WS'!D24 ->  | K15: ='Retro WS'!E24 -> 
A16: *Note:Entry here | J16: ='Retro WS'!D25 ->  | K16: ='Retro WS'!E25 -> 
A17: will not deduct | J17: ='Retro WS'!D26 ->  | K17: ='Retro WS'!E26 -> 
A18: from retro, must | J18: ='Retro WS'!D27 ->  | K18: ='Retro WS'!E27 -> 
A19: be done manually | J19: ='Retro WS'!D28 ->  | K19: ='Retro WS'!E28 -> 
A20: (columns D-G). | J20: ='Retro WS'!D29 ->  | K20: ='Retro WS'!E29 -> 
H21: Totals: | I21: Totals: | J21: =SUM('Retro WS'!D12:D29) -> 0 | K21: ='Retro WS'!E30 -> 0
A22: Printed Copies | B22: ='Data Entry'!D3 -> 1
J23: Net Retro: | K23: ='Retro WS'!E32 -> 0
A31: ='Data Entry'!B20 -> 440.13 | B31: ='Data Entry'!C20 -> 422.87

Sheet Retro Data (wk)
B1: *Please note: Enter all dates in | D1: From | E1: Thru | F1: Wkly GL Amt | G1: # of | H1: Sub-
B2: YYYY format (M/DD/YYYY) | D2: mm/dd/yyyy | E2: mm/dd/yyyy | G2: Weeks | H2: Totals | R2: mom | S2: dad
A3: Date of Filing | G3: ='Retro WS (wk)'!D12 ->  | H3: ='Retro WS (wk)'!E12 ->  | R3: =IF('Data Entry'!$P1>0,'Shared Parenting'!B54,IF('Data Entry'!$P2="Yes",'Split Custody'!B32,IF(AND('Low Income'!C9="YES",'Low Income'!C8="MOM"),'Low Income'!C24,Worksheet!B48))) ->  | S3: =IF('Data Entry'!$P1>0,'Shared Parenting'!C54,IF('Data Entry'!$P2="Yes",'Split Custody'!C32,IF(AND('Low Income'!C9="YES",'Low Income'!C8="DAD"),'Low Income'!C24,Worksheet!C48))) -> 
A4: DOB / DOS | G4: ='Retro WS (wk)'!D13 ->  | H4: ='Retro WS (wk)'!E13 -> 
A5: 1st pay date | G5: ='Retro WS (wk)'!D14 ->  | H5: ='Retro WS (wk)'!E14 -> 
A6: NCP Payments to CP During Retro Period | G6: ='Retro WS (wk)'!D15 ->  | H6: ='Retro WS (wk)'!E15 -> 
G7: ='Retro WS (wk)'!D16 ->  | H7: ='Retro WS (wk)'!E16 -> 
G8: ='Retro WS (wk)'!D17 ->  | H8: ='Retro WS (wk)'!E17 -> 
A9: Incarceration | B9: From | C9: Thru | G9: ='Retro WS (wk)'!D18 ->  | H9: ='Retro WS (wk)'!E18 -> 
A10: *Note:Entry here | G10: ='Retro WS (wk)'!D19 ->  | H10: ='Retro WS (wk)'!E19 -> 
A11: will not deduct | G11: ='Retro WS (wk)'!D20 ->  | H11: ='Retro WS (wk)'!E20 -> 
A12: from retro, must | G12: ='Retro WS (wk)'!D21 ->  | H12: ='Retro WS (wk)'!E21 -> 
A13: be done manually | G13: ='Retro WS (wk)'!D22 ->  | H13: ='Retro WS (wk)'!E22 -> 
A14: (columns D-G). | G14: ='Retro WS (wk)'!D23 ->  | H14: ='Retro WS (wk)'!E23 -> 
A15: Co-Habitation | B15: From | C15: Thru | G15: ='Retro WS (wk)'!D24 ->  | H15: ='Retro WS (wk)'!E24 -> 
A16: *Note:Entry here | G16: ='Retro WS (wk)'!D25 ->  | H16: ='Retro WS (wk)'!E25 -> 
A17: will not deduct | G17: ='Retro WS (wk)'!D26 ->  | H17: ='Retro WS (wk)'!E26 -> 
A18: from retro, must | G18: ='Retro WS (wk)'!D27 ->  | H18: ='Retro WS (wk)'!E27 -> 
A19: be done manually | G19: ='Retro WS (wk)'!D28 ->  | H19: ='Retro WS (wk)'!E28 -> 
A20: (columns D-G). | G20: ='Retro WS (wk)'!D29 ->  | H20: ='Retro WS (wk)'!E29 -> 
F21: Totals: | G21: =SUM('Retro WS (wk)'!D12:D29) -> 0 | H21: ='Retro WS (wk)'!E30 -> 0
A22: Printed Copies | B22: ='Data Entry'!D3 -> 1
G23: Net Retro: | H23: ='Retro WS (wk)'!E32 -> 0
A31: ='Data Entry'!B20 -> 440.13 | B31: ='Data Entry'!C20 -> 422.87

Sheet SCWorksheet2 (hidden)
B1: FLORIDA DEPARTMENT OF REVENUE
B2: CHILD SUPPORT ENFORCEMENT PROGRAM
B3: CHILD SUPPORT GUIDELINES WORKSHEET
B4: ="IN THE CIRCUIT COURT OF THE "&+'Data Entry'!D1&" JUDICIAL CIRCUIT" -> IN THE CIRCUIT COURT OF THE 2nd JUDICIAL CIRCUIT
B5: ="IN AND FOR "&+'Data Entry'!D2&" COUNTY, FLORIDA" -> IN AND FOR Leon COUNTY, FLORIDA
A7: =IF('Data Entry'!B1="","",'Data Entry'!B1&", Petitioner") -> 
A8: vs. | C8: ="cc#: "&+'Data Entry'!B3 -> cc#:
A9: =IF('Data Entry'!B2="","",'Data Entry'!B2&", Respondent") -> 
A11: Legal/Alleged Obligor(s): [ ]Mother [ ]Legal/Alleged Father
A12: Obligee: [ ]Mother [ ]Legal/Alleged Father [ ]Nonparent Custodian
A14: Tax Year (**See Note Below) | B14: ='Data Entry'!B4 -> 01/01/2026-09/29/2026
A15: Number of Children | B15: ='Data Entry'!B5 -> 1
B16: MOTHER | C16: FATHER
A17: Filing Status (s = single, m = married) | B17: ='Data Entry'!B7 -> s | C17: ='Data Entry'!C7 -> s
A18: Withholding Allowances Claimed | B18: ='Data Entry'!B8 -> 2 | C18: ='Data Entry'!C8 -> 1
A20: 1. Child Care | B20: =ROUND('Data Entry'!B16,2) -> 0 | C20: =ROUND('Data Entry'!C16,2) -> 0
A21: 2. Health Care Cost for Children | B21: =ROUND('Data Entry'!B15,2) -> 0 | C21: =ROUND('Data Entry'!C15,2) -> 0
A22: 3. SSD Benefits Paid to Children | B22: =ROUND('Data Entry'!B17,2) -> 0 | C22: =ROUND('Data Entry'!C17,2) -> 0
A23: 4. Actual or Imputed Income | B23: =IF('Data Entry'!B6="MOM (Actual Income)","actual","imputed") -> actual | C23: =IF('Data Entry'!C6="DAD (Actual Income)","actual","imputed") -> actual
A24: 5. Gross Monthly (Non-Taxable) Income | B24: =IF('Income Breakdown'!B23="YES",0,ROUND('Data Entry'!B9,2)) -> 0 | C24: =IF('Income Breakdown'!B23="YES",0,ROUND('Data Entry'!C9,2)) -> 0
A25: 5a. Gross Monthly (Taxable) Income | B25: =IF('Income Breakdown'!B23="YES",'Income Breakdown'!B19,ROUND('Data Entry'!B10,2)) -> 2426.67 | C25: =IF('Income Breakdown'!B23="YES",'Income Breakdown'!C19,ROUND('Data Entry'!C10,2)) -> 2426.67
A26: 6. Federal Withholding | B26: =ROUND(Withholding!B14,2) -> 109.62 | C26: =ROUND(Withholding!B15,2) -> 152.58
A27: 7. FICA | B27: =ROUND(Tables!T3,2) -> 185.64 | C27: =ROUND(Tables!T5,2) -> 185.64
A28: 8. Health Care Costs (minus costs for child) | B28: =ROUND('Data Entry'!B14,2) -> 0 | C28: =ROUND('Data Entry'!C14,2) -> 0
A29: 9. Legally Ordered Child Support | B29: =ROUND('Data Entry'!B11,2) -> 0 | C29: =ROUND('Data Entry'!C11,2) -> 0
A30: 10. Other Allowable Deductions | B30: =ROUND('Data Entry'!B12,2) -> 0 | C30: =ROUND('Data Entry'!C12,2) -> 0
A31: 11. Self Employed? (yes: 1, no: 0) | B31: ='Data Entry'!B13 -> 0 | C31: ='Data Entry'!C13 -> 0
A32: 12. Net Monthly Inc. (add in #3) | B32: =SUM(B24:B25,B22)-SUM(B26:B30) -> 2131.41 | C32: =SUM(C24:C25,C22)-SUM(C26:C30) -> 2088.45
A33: 13. Combined Net Monthly Inc. | B33: =B32+C32 -> 4219.86 | C33: =B33 -> 4219.86
A34: 14. Share of Support (line 12 / line 13) | B34: =ROUND(B32/B33,3) -> 0.505 | C34: =ROUND(C32/C33,3) -> 0.495
A35: 15. Income Over $10,000 | B35: =IF(B33>10000,B33-10000,0) -> 0 | C35: =B35 -> 0
A37: 16. Table A Support Need | B37: =IF(B15>6,Tables!AQ18,Tables!B7) -> 863 | C37: =B37 -> 863
A38: 17. Add. Sup. Need For Inc. > $10,000 | B38: =ROUND(+IF(B15=1,B35*0.05,0)+IF(B15=2,B35*0.075,0)+IF(B15=3,B35*0.095,0)+IF(B15=4,B35*0.11,0)+IF(B15=5,B35*0.12,0)+IF(B15=6,B35*0.125,0),2) -> 0 | C38: =B38 -> 0
A39: 18. Basic Monthly Support Need | B39: =SUM(B37:B38) -> 863 | C39: =B39 -> 863
A41: 19. Basic Support Obligation (#18 x #14) | B41: =ROUND(B39*B34,2) -> 435.82 | C41: =ROUND(C39*C34,2) -> 427.19
A42: 20. Basic Obligation X 1.5 (#19 x 1.5) | B42: =B41*1.5 -> 653.73 | C42: =C41*1.5 -> 640.785
A43: 21. % "Overnight Stays" with other parent | B43: ='Data Entry'!C18 -> 0 | C43: ='Data Entry'!B18 -> 0
A44: 22. Adjusted for "Overnight Stays" (#20 x #21) | B44: =ROUND(B42*B43,2) -> 0 | C44: =ROUND(C42*C43,2) -> 0
A45: 23. Share of Child Care Expense (sum #1 x #14) | B45: =ROUND(+SUM(B20:C20)*B34,2) -> 0 | C45: =ROUND(+SUM(B20:C20)*C34,2) -> 0
A46: 24. Share of Child's Hlth Care Costs (sum #2 x #14) | B46: =ROUND(SUM(B21:C21)*B34,2) -> 0 | C46: =ROUND(SUM(B21:C21)*C34,2) -> 0
A47: 25. Credit For Insurance Provided | B47: =ROUND('Data Entry'!B15,2)*-1 -> 0 | C47: =ROUND('Data Entry'!C15,2)*-1 -> 0
A48: 26. Credit For Child Care Provided | B48: =B20*-1 -> 0 | C48: =C20*-1 -> 0
A49: 27. Credit For SSD Benefits to Child | B49: =B22*-1 -> 0 | C49: =C22*-1 -> 0
A50: 28. Total Adjustment for added expenses (add #23 thru #27, Negative number = 0) | B50: =IF(SUM(B45:B49)<0,0,SUM(B45:B49)) -> 0 | C50: =IF(SUM(C45:C49)<0,0,SUM(C45:C49)) -> 0
A51: 29. Total Monthly Obligation (#28 + #22) | B51: =B50+B44 -> 0 | C51: =C50+C44 -> 0
A52: 30. Diff from other parent's obligation | B52: =B51-C51 -> 0 | C52: =C51-B51 -> 0
A53: =IF(AND('Data Entry'!$D$4="Y",'Data Entry'!$A$20="Monthly Support Obligation"),"Monthly Support Obligation (rounded)","Monthly Child Support Obligation") -> Monthly Child Support Obligation | B53: =IF('Data Entry'!$A20="Weekly Support Obligation",B52,IF('Data Entry'!$D4="N",B52,ROUND(B52,0))) -> 0 | C53: =IF('Data Entry'!$A20="Weekly Support Obligation",C52,IF('Data Entry'!$D4="N",C52,ROUND(C52,0))) -> 0
A54: =IF('Data Entry'!A20="Weekly Support Obligation"," - Converted to Weekly Payments:","") ->  | B54: =IF('Data Entry'!$A20="Monthly Support Obligation","",IF('Data Entry'!$D4="N",ROUND(B53*12/52,2),ROUND(B53*12/52,0))) ->  | C54: =IF('Data Entry'!$A20="Monthly Support Obligation","",IF('Data Entry'!$D4="N",ROUND(C53*12/52,2),ROUND(C53*12/52,0))) -> 
A55: Name/Title:_______________________________________________ | C55: Date: | D55: =TODAY() -> 2026-01-07
A57: =IF('Pymt Convert'!C22=0,"","Old Monthly Obligation: $"&+'Pymt Convert'!C22) ->  | B57: =IF('Pymt Convert'!C22=0,"","New Monthly Obligation: $"&+ROUND('Pymt Convert'!C24,2)) ->  | D57: =IF('Pymt Convert'!C22=0,"","Change: "&+'Pymt Convert'!F22*100&"%") -> 
A58: **Please Note: This worksheet is based on the Florida Family Law Rules of Procedure Form 12.902(e), Child Support Guidelines Worksheet (10/2002).
A59: **Tax years entered as YYYY.X reflect a mid-year tax change.

Sheet Shared Parenting
B1: FLORIDA DEPARTMENT OF REVENUE
B2: CHILD SUPPORT PROGRAM
B3: CHILD SUPPORT GUIDELINES WORKSHEET
B4: ="IN THE CIRCUIT COURT OF THE "&+'Data Entry'!D1&" JUDICIAL CIRCUIT" -> IN THE CIRCUIT COURT OF THE 2nd JUDICIAL CIRCUIT
B5: ="IN AND FOR "&+'Data Entry'!D2&" COUNTY, FLORIDA" -> IN AND FOR Leon COUNTY, FLORIDA
A7: =IF('Data Entry'!B1="","",'Data Entry'!B1&", Petitioner") -> 
A8: vs. | C8: ="cc#: "&+'Data Entry'!B3 -> cc#:
A9: =IF('Data Entry'!B2="","",'Data Entry'!B2&", Respondent") -> 
A11: Legal/Alleged Obligor(s): [ ]Mother [ ]Legal/Alleged Father
A12: Obligee: [ ]Mother [ ]Legal/Alleged Father [ ]Nonparent Custodian
A14: Tax Year (**See Note Below) | B14: ='Data Entry'!B4 -> 01/01/2026-09/29/2026
A15: Number of Children | B15: ='Data Entry'!B5 -> 1
B16: MOTHER | C16: FATHER
A17: Filing Status (s = single, m = married) | B17: ='Data Entry'!B7 -> s | C17: ='Data Entry'!C7 -> s
A18: Withholding Allowances Claimed | B18: ='Data Entry'!B8 -> 2 | C18: ='Data Entry'!C8 -> 1
A20: 1. Child Care | B20: =ROUND('Data Entry'!B16,2) -> 0 | C20: =ROUND('Data Entry'!C16,2) -> 0
A21: 2. Health Ins. Cost for Children | B21: =ROUND('Data Entry'!B15,2) -> 0 | C21: =ROUND('Data Entry'!C15,2) -> 0
A22: 3. SSD/SSR Benefits Paid to Children | B22: =ROUND('Data Entry'!B17,2) -> 0 | C22: =ROUND('Data Entry'!C17,2) -> 0
A24: 4. Gross Monthly (Non-Taxable) Income | B24: =IF('Income Breakdown'!B23="YES",0,ROUND('Data Entry'!B9,2)) -> 0 | C24: =IF('Income Breakdown'!B23="YES",0,ROUND('Data Entry'!C9,2)) -> 0
A25: 5. Gross Monthly (Taxable) Income | B25: =IF('Income Breakdown'!B23="YES",'Income Breakdown'!B19,ROUND('Data Entry'!B10,2)) -> 2426.67 | C25: =IF('Income Breakdown'!B23="YES",'Income Breakdown'!C19,ROUND('Data Entry'!C10,2)) -> 2426.67
A26: 6. Federal Withholding | B26: =ROUND(Withholding!B14,2) -> 109.62 | C26: =ROUND(Withholding!B15,2) -> 152.58
A27: 7. FICA | B27: =ROUND(Tables!T3,2) -> 185.64 | C27: =ROUND(Tables!T5,2) -> 185.64
A28: 8. Health Care Costs (minus costs for child) | B28: =ROUND('Data Entry'!B14,2) -> 0 | C28: =ROUND('Data Entry'!C14,2) -> 0
A29: 9. Legally Ordered Child Support | B29: =ROUND('Data Entry'!B11,2) -> 0 | C29: =ROUND('Data Entry'!C11,2) -> 0
A30: 10. Other Allowable Deductions | B30: =ROUND('Data Entry'!B12,2) -> 0 | C30: =ROUND('Data Entry'!C12,2) -> 0
A31: 11. Self Employed? (yes: 1, no: 0) | B31: ='Data Entry'!B13 -> 0 | C31: ='Data Entry'!C13 -> 0
A32: 12. Net Monthly Inc. | B32: =SUM(B24:B25,B22)-SUM(B26:B30) -> 2131.41 | C32: =SUM(C24:C25,C22)-SUM(C26:C30) -> 2088.45
A33: 13. Combined Net Monthly Inc. | B33: =B32+C32 -> 4219.86 | C33: =B33 -> 4219.86
A34: 14. Share of Support (line 12 / line 13) | B34: =ROUND(B32/B33,Tables!BJ2) -> 0.51 | C34: =ROUND(C32/C33,Tables!BJ2) -> 0.49
A35: 15. Income Over $10,000 | B35: =IF(B33>10000,B33-10000,0) -> 0 | C35: =B35 -> 0
A37: 16. Table A Support Need | B37: =IF(B15>6,Tables!AQ18,Tables!B7) -> 863 | C37: =B37 -> 863
A38: 17. Add. Sup. Need For Inc. > $10,000 | B38: =ROUND(+IF(B15=1,B35*0.05,0)+IF(B15=2,B35*0.075,0)+IF(B15=3,B35*0.095,0)+IF(B15=4,B35*0.11,0)+IF(B15=5,B35*0.12,0)+IF(B15=6,B35*0.125,0),2) -> 0 | C38: =B38 -> 0
A39: 18. Basic Monthly Support Need | B39: =SUM(B37:B38) -> 863 | C39: =B39 -> 863
A41: 19. Basic Support Obligation (#18 x #14) | B41: =ROUND(B39*B34,2) -> 440.13 | C41: =ROUND(C39*C34,2) -> 422.87
A42: 20. Basic Obligation X 1.5 (#19 x 1.5) | B42: =B41*1.5 -> 660.195 | C42: =C41*1.5 -> 634.305
A43: 21. % "Overnight Stays" with other parent | B43: =ROUND('Data Entry'!C18,2) -> 0 | C43: =ROUND('Data Entry'!B18,2) -> 0
A44: 22. Adjusted for "Overnight Stays" (#20 x #21) | B44: =ROUND(B42*B43,2) -> 0 | C44: =ROUND(C42*C43,2) -> 0
A45: 23. Monthly Support (before expenses) | B45: =B44-C44 -> 0 | C45: =C44-B44 -> 0
A46: (the diff between each parent's oblig on line 22)
A47: 24. Share of Child Care Expense | B47: =ROUND(+SUM(B20:C20)*B34,2) -> 0 | C47: =ROUND(+SUM(B20:C20)*C34,2) -> 0
A48: 25. Share of Health Ins. Cost for Children | B48: =ROUND(SUM(B21:C21)*B34,2) -> 0 | C48: =ROUND(SUM(B21:C21)*C34,2) -> 0
A50: 26. Credit For Insurance | B50: =ROUND('Data Entry'!B15,2) -> 0 | C50: =ROUND('Data Entry'!C15,2) -> 0
A51: 27. Credit For Child Care | B51: =B20 -> 0 | C51: =C20 -> 0
A52: 28. Credit For SSD/SSR Benefits | B52: =B22 -> 0 | C52: =C22 -> 0
A53: =IF(AND('Data Entry'!$D$4="Y",'Data Entry'!$A$20="Monthly Support Obligation"),"29. Monthly Support Obligation (rounded)","29. Monthly Child Support Obligation") -> 29. Monthly Child Support Obligation | B53: =IF('Data Entry'!$A20="Weekly Support Obligation",SUM(B45:B48)-SUM(B50:B52),IF('Data Entry'!$D4="N",SUM(B45:B48)-SUM(B50:B52),ROUND(SUM(B45:B48)-SUM(B50:B52),0))) -> 0 | C53: =IF('Data Entry'!$A20="Weekly Support Obligation",SUM(C45:C48)-SUM(C50:C52),IF('Data Entry'!$D4="N",SUM(C45:C48)-SUM(C50:C52),ROUND(SUM(C45:C48)-SUM(C50:C52),0))) -> 0
A54: =IF('Data Entry'!A20="Weekly Support Obligation"," - Converted to Weekly Payments:","") ->  | B54: =IF('Data Entry'!$A20="Monthly Support Obligation","",IF('Data Entry'!$D4="N",ROUND(B53*12/52,2),ROUND(B53*12/52,0))) ->  | C54: =IF('Data Entry'!$A20="Monthly Support Obligation","",IF('Data Entry'!$D4="N",ROUND(C53*12/52,2),ROUND(C53*12/52,0))) -> 
A55: Name/Title:_______________________________________________ | C55: Date: | D55: =TODAY() -> 2026-01-07
A56: =IF(B33<800,"*Note: Combined net income less than $800. Table value based on DOR policy.","") -> 
A57: =IF('Pymt Convert'!C22=0,"","Old Monthly Obligation: $"&+'Pymt Convert'!C22) ->  | B57: =IF('Pymt Convert'!C22=0,"","New Monthly Obligation: $"&+ROUND('Pymt Convert'!C24,2)) ->  | D57: =IF('Pymt Convert'!C22=0,"","Change: "&+'Pymt Convert'!F22*100&"%") -> 
A59: **Tax years entered as YYYY.X reflect a mid-year tax change.

Sheet Split Custody (hidden)
A1: Split Custody Worksheet
A2: Per Rooney v. Rooney (750 So.2d 118)
A3: Should be accompanied by a standard guideline worksheet
A4: =IF('Data Entry'!B1="","",+'Data Entry'!B1&", Petitioner") -> 
A5: =IF('Data Entry'!B2="","",+'Data Entry'!B2&", Respondent") -> 
B7: MOM | C7: DAD
A8: Number of kids (of this action) in the household: | B8: ='Data Entry'!B19 -> 0 | C8: ='Data Entry'!C19 -> 0
A9: If you add the number of kids with the father to the number of kids with the mother, does it add up to the total number of kids on the guideline worksheet? | B9: =IF(B8+C8='Data Entry'!B5,"YES","NO") -> NO
A10: 1a. Mom's Day Care expense | B10: =ROUND('Data Entry'!B16,2) -> 0
A11: 1b. Dad's Day Care expense | B11: =ROUND('Data Entry'!C16,2) -> 0
A12: 2a. Mom's health care expense for child(ren) | B12: =ROUND('Data Entry'!B15,2) -> 0
A13: 2b. Dad's health care expense for child(ren) | B13: =ROUND('Data Entry'!C15,2) -> 0
A15: 3. Table A Support Need | B15: =Worksheet!B37 -> 863
A16: 4. Share: Based on # of kids in household | B16: =C8/'Data Entry'!B5 -> 0 | C16: =B8/'Data Entry'!B5 -> 0
A17: 5. Individual's share of Table A Support Need (#3 x #4) | B17: =ROUND(B15*B16,2) -> 0 | C17: =ROUND(B15*C16,2) -> 0
A19: 6. Share: Based on comparison of Net Income | B19: =ROUND(Worksheet!B34,Tables!BJ2) -> 0.51 | C19: =ROUND(Worksheet!C34,Tables!BJ2) -> 0.49
A20: 7. Basic obligation for child(ren) in other parents care (#5 x #6) | B20: =ROUND(B17*B19,2) -> 0 | C20: =ROUND(C17*C19,2) -> 0
A22: 8. The difference between each figure in line #7 | B22: =B20-C20 -> 0 | C22: =C20-B20 -> 0
A24: 9. Share of other parent's day care expense (#6 x #1) | B24: =ROUND(B19*B11,2) -> 0 | C24: =ROUND(C19*B10,2) -> 0
A25: 10. The difference between each figure in line #9 | B25: =B24-C24 -> 0 | C25: =C24-B24 -> 0
A27: 11. Share of other parent's health care expense (#6 x #2) | B27: =ROUND(B19*B13,2) -> 0 | C27: =ROUND(C19*B12,2) -> 0
A28: 12. The difference between each figure in line #11 | B28: =B27-C27 -> 0 | C28: =C27-B27 -> 0
A29: 13. Credit for SSD/SSR Benefits Paid to Children | B29: =Worksheet!B22 -> 0 | C29: =Worksheet!C22 -> 0
A31: 14. Total Support Obligation (#8 + #10 + #12 - #13) | B31: =B28+B25+B22-B29 -> 0 | C31: =C28+C25+C22-C29 -> 0
A32: =IF('Data Entry'!A20="Weekly Support Obligation"," - Converted to Weekly Payments:","") ->  | B32: =IF($A32="","",ROUND(B31*12/52,2)) ->  | C32: =IF($A32="","",ROUND(C31*12/52,2)) -> 

Sheet Low Income
A1: Low Income Worksheet
A2: Use when an obligor's net income is less than $800 per month
A3: Should be accompanied by a guideline worksheet
A4: =IF('Data Entry'!B1="","",+'Data Entry'!B1&", Petitioner") -> 
A5: =IF('Data Entry'!B2="","",+'Data Entry'!B2&", Respondent") -> 
A8: 1. | B8: Who is the payor of support (obligor)? | C8: ='Data Entry'!D5 -> 0
A9: 2. | B9: Does the obligor's net income meet the threshold for consideration? | C9: =IF(OR(AND(C8="DAD",Worksheet!C32<800),AND('Low Income'!C8="MOM",Worksheet!B32<800)),"YES","NO") -> NO
A10: 3. | B10: Tax Year | C10: =Worksheet!B14 -> 01/01/2026-09/29/2026
A11: 4. | B11: Poverty level for a single individual (monthly) | C11: =Tables!AY2 -> 1040.83
A12: 5. | B12: Obligor's Net Monthly Income | C12: =IF(C8="DAD",Worksheet!C32,Worksheet!B32) -> 2131.41
A13: 6. | B13: Difference between the poverty guidelines for the given year and the obligor's net income | C13: =C11-C12 -> -1090.58
B14: (subtract line 5 from line 4)
A15: 7. | B15: =IF('Data Entry'!D4="y","Monthly support obligation, by a comparing the obligor's net income, and current poverty guidelines, ROUNDED","Monthly support obligation indicated by a comparison of the obligor's net income, and current poverty guidelines") -> Monthly support obligation indicated by a comparison of the obligor's net income, and current poverty guidelines | C15: =IF('Data Entry'!D4="Y",ROUND(C13*0.9,0),ROUND(C13*0.9,2)) -> -981.52
B16: (multiply line 6 by ninety percent)
A19: 8. | B19: =IF('Data Entry'!D4="Y","Monthly support obligation indicated by guideline worksheet, ROUNDED","Monthly support obligation indicated by guideline worksheet") -> Monthly support obligation indicated by guideline worksheet | C19: =IF('Data Entry'!D4="Y",ROUND(IF(C8="DAD",'Data Entry'!N22,'Data Entry'!N24),0),IF(C8="DAD",'Data Entry'!N22,'Data Entry'!N24)) -> 440.13
A24: 9. | B24: Monthly Support Obligation | C24: =IF(C15<C19,C15,C19) -> -981.52
B25: (take the lesser of amounts from lines 7 and 8)
B26: =IF('Data Entry'!A$20="Weekly Support Obligation"," - Converted to Weekly Payments:","") ->  | C26: =IF('Data Entry'!$A$20="Monthly Support Obligation","",IF('Data Entry'!$D$4="N",ROUND(C24*12/52,2),ROUND(C24*12/52,0))) -> 

Sheet Retro WS
C1: Retroactive Child Support Calculations
A3: =IF('Data Entry'!B1="","",+'Data Entry'!B1&", Petitioner") ->  | D3: =IF('Data Entry'!B3="","",+"cc#: "&+'Data Entry'!B3) -> 
A4: =IF('Data Entry'!B2="","",+'Data Entry'!B2&", Respondent") -> 
C5: Date of Filing: | D5: =IF('Retro Data'!B3="","",'Retro Data'!B3) -> 
C6: Child's DOB / Parties Separation: | D6: =IF('Retro Data'!B4="","",'Retro Data'!B4) -> 
C7: Start Date of Court Ordered Support: | D7: =IF('Retro Data'!B5="","",'Retro Data'!B5) -> 
A9: RETROACTIVE CHILD SUPPORT
A11: From | B11: Thru | C11: Guideline Amt | D11: # of Months | E11: Total
A12: =IF('Retro Data'!D3="","",DATE('Retro Data'!E3,'Retro Data'!D3,1)) ->  | B12: =IF('Retro Data'!F3="","",DATE('Retro Data'!G3,'Retro Data'!F3,1)) ->  | C12: =ROUND('Retro Data'!H3,2) -> 0 | D12: =IF(B12="","",IF('Retro Data'!I3="Y",ROUND((B12-A12)/30.42,0)+1.5,ROUND((B12-A12)/30.42,0)+1)) ->  | E12: =IF(D12="","",C12*D12) -> 
A13: =IF('Retro Data'!D4="","",DATE('Retro Data'!E4,'Retro Data'!D4,1)) ->  | B13: =IF('Retro Data'!F4="","",DATE('Retro Data'!G4,'Retro Data'!F4,1)) ->  | C13: =IF('Retro Data'!H4="","",ROUND('Retro Data'!H4,2)) ->  | D13: =IF(B13="","",IF('Retro Data'!I4="Y",ROUND((B13-A13)/30.42,0)+1.5,ROUND((B13-A13)/30.42,0)+1)) ->  | E13: =IF(D13="","",C13*D13) -> 
A14: =IF('Retro Data'!D5="","",DATE('Retro Data'!E5,'Retro Data'!D5,1)) ->  | B14: =IF('Retro Data'!F5="","",DATE('Retro Data'!G5,'Retro Data'!F5,1)) ->  | C14: =IF('Retro Data'!H5="","",ROUND('Retro Data'!H5,2)) ->  | D14: =IF(B14="","",IF('Retro Data'!I5="Y",ROUND((B14-A14)/30.42,0)+1.5,ROUND((B14-A14)/30.42,0)+1)) -> 
A15: =IF('Retro Data'!D6="","",DATE('Retro Data'!E6,'Retro Data'!D6,1)) ->  | B15: =IF('Retro Data'!F6="","",DATE('Retro Data'!G6,'Retro Data'!F6,1)) ->  | C15: =IF('Retro Data'!H6="","",ROUND('Retro Data'!H6,2)) ->  | D15: =IF(B15="","",IF('Retro Data'!I6="Y",ROUND((B15-A15)/30.42,0)+1.5,ROUND((B15-A15)/30.42,0)+1)) -> 
A16: =IF('Retro Data'!D7="","",DATE('Retro Data'!E7,'Retro Data'!D7,1)) ->  | B16: =IF('Retro Data'!F7="","",DATE('Retro Data'!G7,'Retro Data'!F7,1)) ->  | C16: =IF('Retro Data'!H7="","",ROUND('Retro Data'!H7,2)) ->  | D16: =IF(B16="","",IF('Retro Data'!I7="Y",ROUND((B16-A16)/30.42,0)+1.5,ROUND((B16-A16)/30.42,0)+1)) -> 
A17: =IF('Retro Data'!D8="","",DATE('Retro Data'!E8,'Retro Data'!D8,1)) ->  | B17: =IF('Retro Data'!F8="","",DATE('Retro Data'!G8,'Retro Data'!F8,1)) ->  | C17: =IF('Retro Data'!H8="","",ROUND('Retro Data'!H8,2)) ->  | D17: =IF(B17="","",IF('Retro Data'!I8="Y",ROUND((B17-A17)/30.42,0)+1.5,ROUND((B17-A17)/30.42,0)+1)) -> 
A18: =IF('Retro Data'!D9="","",DATE('Retro Data'!E9,'Retro Data'!D9,1)) ->  | B18: =IF('Retro Data'!F9="","",DATE('Retro Data'!G9,'Retro Data'!F9,1)) ->  | C18: =IF('Retro Data'!H9="","",ROUND('Retro Data'!H9,2)) ->  | D18: =IF(B18="","",IF('Retro Data'!I9="Y",ROUND((B18-A18)/30.42,0)+1.5,ROUND((B18-A18)/30.42,0)+1)) -> 
A19: =IF('Retro Data'!D10="","",DATE('Retro Data'!E10,'Retro Data'!D10,1)) ->  | B19: =IF('Retro Data'!F10="","",DATE('Retro Data'!G10,'Retro Data'!F10,1)) ->  | C19: =IF('Retro Data'!H10="","",ROUND('Retro Data'!H10,2)) ->  | D19: =IF(B19="","",IF('Retro Data'!I10="Y",ROUND((B19-A19)/30.42,0)+1.5,ROUND((B19-A19)/30.42,0)+1)) -> 
A20: =IF('Retro Data'!D11="","",DATE('Retro Data'!E11,'Retro Data'!D11,1)) ->  | B20: =IF('Retro Data'!F11="","",DATE('Retro Data'!G11,'Retro Data'!F11,1)) ->  | C20: =IF('Retro Data'!H11="","",ROUND('Retro Data'!H11,2)) ->  | D20: =IF(B20="","",IF('Retro Data'!I11="Y",ROUND((B20-A20)/30.42,0)+1.5,ROUND((B20-A20)/30.42,0)+1)) -> 
A21: =IF('Retro Data'!D12="","",DATE('Retro Data'!E12,'Retro Data'!D12,1)) ->  | B21: =IF('Retro Data'!F12="","",DATE('Retro Data'!G12,'Retro Data'!F12,1)) ->  | C21: =IF('Retro Data'!H12="","",ROUND('Retro Data'!H12,2)) ->  | D21: =IF(B21="","",IF('Retro Data'!I12="Y",ROUND((B21-A21)/30.42,0)+1.5,ROUND((B21-A21)/30.42,0)+1)) -> 
A22: =IF('Retro Data'!D13="","",DATE('Retro Data'!E13,'Retro Data'!D13,1)) ->  | B22: =IF('Retro Data'!F13="","",DATE('Retro Data'!G13,'Retro Data'!F13,1)) ->  | C22: =IF('Retro Data'!H13="","",ROUND('Retro Data'!H13,2)) ->  | D22: =IF(B22="","",IF('Retro Data'!I13="Y",ROUND((B22-A22)/30.42,0)+1.5,ROUND((B22-A22)/30.42,0)+1)) -> 
A23: =IF('Retro Data'!D14="","",DATE('Retro Data'!E14,'Retro Data'!D14,1)) ->  | B23: =IF('Retro Data'!F14="","",DATE('Retro Data'!G14,'Retro Data'!F14,1)) ->  | C23: =IF('Retro Data'!H14="","",ROUND('Retro Data'!H14,2)) ->  | D23: =IF(B23="","",IF('Retro Data'!I14="Y",ROUND((B23-A23)/30.42,0)+1.5,ROUND((B23-A23)/30.42,0)+1)) -> 
A24: =IF('Retro Data'!D15="","",DATE('Retro Data'!E15,'Retro Data'!D15,1)) ->  | B24: =IF('Retro Data'!F15="","",DATE('Retro Data'!G15,'Retro Data'!F15,1)) ->  | C24: =IF('Retro Data'!H15="","",ROUND('Retro Data'!H15,2)) ->  | D24: =IF(B24="","",IF('Retro Data'!I15="Y",ROUND((B24-A24)/30.42,0)+1.5,ROUND((B24-A24)/30.42,0)+1)) -> 
A25: =IF('Retro Data'!D16="","",DATE('Retro Data'!E16,'Retro Data'!D16,1)) ->  | B25: =IF('Retro Data'!F16="","",DATE('Retro Data'!G16,'Retro Data'!F16,1)) ->  | C25: =IF('Retro Data'!H16="","",ROUND('Retro Data'!H16,2)) ->  | D25: =IF(B25="","",IF('Retro Data'!I16="Y",ROUND((B25-A25)/30.42,0)+1.5,ROUND((B25-A25)/30.42,0)+1)) -> 
A26: =IF('Retro Data'!D17="","",DATE('Retro Data'!E17,'Retro Data'!D17,1)) ->  | B26: =IF('Retro Data'!F17="","",DATE('Retro Data'!G17,'Retro Data'!F17,1)) ->  | C26: =IF('Retro Data'!H17="","",ROUND('Retro Data'!H17,2)) ->  | D26: =IF(B26="","",IF('Retro Data'!I17="Y",ROUND((B26-A26)/30.42,0)+1.5,ROUND((B26-A26)/30.42,0)+1)) -> 
A27: =IF('Retro Data'!D18="","",DATE('Retro Data'!E18,'Retro Data'!D18,1)) ->  | B27: =IF('Retro Data'!F18="","",DATE('Retro Data'!G18,'Retro Data'!F18,1)) ->  | C27: =IF('Retro Data'!H18="","",ROUND('Retro Data'!H18,2)) ->  | D27: =IF(B27="","",IF('Retro Data'!I18="Y",ROUND((B27-A27)/30.42,0)+1.5,ROUND((B27-A27)/30.42,0)+1)) -> 
A28: =IF('Retro Data'!D19="","",DATE('Retro Data'!E19,'Retro Data'!D19,1)) ->  | B28: =IF('Retro Data'!F19="","",DATE('Retro Data'!G19,'Retro Data'!F19,1)) ->  | C28: =IF('Retro Data'!H19="","",ROUND('Retro Data'!H19,2)) ->  | D28: =IF(B28="","",IF('Retro Data'!I19="Y",ROUND((B28-A28)/30.42,0)+1.5,ROUND((B28-A28)/30.42,0)+1)) -> 
A29: =IF('Retro Data'!D20="","",DATE('Retro Data'!E20,'Retro Data'!D20,1)) ->  | B29: =IF('Retro Data'!F20="","",DATE('Retro Data'!G20,'Retro Data'!F20,1)) ->  | C29: =IF('Retro Data'!H20="","",ROUND('Retro Data'!H20,2)) ->  | D29: =IF(B29="","",IF('Retro Data'!I20="Y",ROUND((B29-A29)/30.42,0)+1.5,ROUND((B29-A29)/30.42,0)+1)) -> 
A30: Sub-Total | E30: =SUM(E12:E29) -> 0
A31: Credit for Payments from Respondent to Petitioner | E31: ='Retro Data'!B7 -> 0
A32: Total Retroactive Support | E32: =E30-E31 -> 0
A34: Dates of Incarceration (Respondent) | D34: Dates Parties Resided Together
A35: From | B35: To | D35: From | E35: To
A36: =IF('Retro Data'!B10="","N/A",'Retro Data'!B10) -> N/A | B36: =IF('Retro Data'!C10="","N/A",'Retro Data'!C10) -> N/A | D36: =IF('Retro Data'!B16="","N/A",'Retro Data'!B16) -> N/A | E36: =IF('Retro Data'!C16="","N/A",'Retro Data'!C16) -> N/A
A37: =IF('Retro Data'!B11="","",'Retro Data'!B11) ->  | B37: =IF('Retro Data'!C11="","",'Retro Data'!C11) ->  | D37: =IF('Retro Data'!B17="","",'Retro Data'!B17) ->  | E37: =IF('Retro Data'!C17="","",'Retro Data'!C17) -> 
A38: =IF('Retro Data'!B12="","",'Retro Data'!B12) ->  | B38: =IF('Retro Data'!C12="","",'Retro Data'!C12) ->  | D38: =IF('Retro Data'!B18="","",'Retro Data'!B18) ->  | E38: =IF('Retro Data'!C18="","",'Retro Data'!C18) -> 
A39: =IF('Retro Data'!B13="","",'Retro Data'!B13) ->  | B39: =IF('Retro Data'!C13="","",'Retro Data'!C13) ->  | D39: =IF('Retro Data'!B19="","",'Retro Data'!B19) ->  | E39: =IF('Retro Data'!C19="","",'Retro Data'!C19) -> 
A40: =IF('Retro Data'!B14="","",'Retro Data'!B14) ->  | B40: =IF('Retro Data'!C14="","",'Retro Data'!C14) ->  | D40: =IF('Retro Data'!B20="","",'Retro Data'!B20) ->  | E40: =IF('Retro Data'!C20="","",'Retro Data'!C20) -> 

Sheet Retro WS (wk)
C1: Retroactive Child Support Calculations
A3: =IF('Data Entry'!B1="","",+'Data Entry'!B1&", Petitioner") ->  | D3: =IF('Data Entry'!B3="","",+"cc#: "&+'Data Entry'!B3) -> 
A4: =IF('Data Entry'!B2="","",+'Data Entry'!B2&", Respondent") -> 
C5: Date of Filing: | D5: =IF('Retro Data (wk)'!B3="","",'Retro Data (wk)'!B3) -> 
C6: Child's DOB / Parties Separation: | D6: =IF('Retro Data (wk)'!B4="","",'Retro Data (wk)'!B4) -> 
C7: Start Date of Court Ordered Support: | D7: =IF('Retro Data (wk)'!B5="","",'Retro Data (wk)'!B5) -> 
A9: RETROACTIVE CHILD SUPPORT
A11: From | B11: Thru | C11: Guideline Amt (wkly) | D11: # of Weeks | E11: Total
A12: =IF('Retro Data (wk)'!D3="","",'Retro Data (wk)'!D3) ->  | B12: =IF('Retro Data (wk)'!E3="","",'Retro Data (wk)'!E3) ->  | C12: =ROUND('Retro Data (wk)'!F3,2) -> 0 | D12: =IF(B12="","",ROUND((B12-A12+1)/7,0)) ->  | E12: =IF(D12="","",C12*D12) -> 
A13: =IF('Retro Data (wk)'!D4="","",'Retro Data (wk)'!D4) ->  | B13: =IF('Retro Data (wk)'!E4="","",'Retro Data (wk)'!E4) ->  | C13: =IF('Retro Data (wk)'!F4="","",ROUND('Retro Data (wk)'!F4,2)) ->  | D13: =IF(B13="","",ROUND((B13-A13+1)/7,0)) -> 
A14: =IF('Retro Data (wk)'!D5="","",'Retro Data (wk)'!D5) ->  | B14: =IF('Retro Data (wk)'!E5="","",'Retro Data (wk)'!E5) ->  | C14: =IF('Retro Data (wk)'!F5="","",ROUND('Retro Data (wk)'!F5,2)) ->  | D14: =IF(B14="","",ROUND((B14-A14+1)/7,0)) -> 
A15: =IF('Retro Data (wk)'!D6="","",'Retro Data (wk)'!D6) ->  | B15: =IF('Retro Data (wk)'!E6="","",'Retro Data (wk)'!E6) ->  | C15: =IF('Retro Data (wk)'!F6="","",ROUND('Retro Data (wk)'!F6,2)) -> 
A16: =IF('Retro Data (wk)'!D7="","",'Retro Data (wk)'!D7) ->  | B16: =IF('Retro Data (wk)'!E7="","",'Retro Data (wk)'!E7) ->  | C16: =IF('Retro Data (wk)'!F7="","",ROUND('Retro Data (wk)'!F7,2)) -> 
A17: =IF('Retro Data (wk)'!D8="","",'Retro Data (wk)'!D8) ->  | B17: =IF('Retro Data (wk)'!E8="","",'Retro Data (wk)'!E8) ->  | C17: =IF('Retro Data (wk)'!F8="","",ROUND('Retro Data (wk)'!F8,2)) -> 
A18: =IF('Retro Data (wk)'!D9="","",'Retro Data (wk)'!D9) ->  | B18: =IF('Retro Data (wk)'!E9="","",'Retro Data (wk)'!E9) ->  | C18: =IF('Retro Data (wk)'!F9="","",ROUND('Retro Data (wk)'!F9,2)) -> 
A19: =IF('Retro Data (wk)'!D10="","",'Retro Data (wk)'!D10) ->  | B19: =IF('Retro Data (wk)'!E10="","",'Retro Data (wk)'!E10) ->  | C19: =IF('Retro Data (wk)'!F10="","",ROUND('Retro Data (wk)'!F10,2)) -> 
A20: =IF('Retro Data (wk)'!D11="","",'Retro Data (wk)'!D11) ->  | B20: =IF('Retro Data (wk)'!E11="","",'Retro Data (wk)'!E11) ->  | C20: =IF('Retro Data (wk)'!F11="","",ROUND('Retro Data (wk)'!F11,2)) -> 
A21: =IF('Retro Data (wk)'!D12="","",'Retro Data (wk)'!D12) ->  | B21: =IF('Retro Data (wk)'!E12="","",'Retro Data (wk)'!E12) ->  | C21: =IF('Retro Data (wk)'!F12="","",ROUND('Retro Data (wk)'!F12,2)) -> 
A22: =IF('Retro Data (wk)'!D13="","",'Retro Data (wk)'!D13) ->  | B22: =IF('Retro Data (wk)'!E13="","",'Retro Data (wk)'!E13) ->  | C22: =IF('Retro Data (wk)'!F13="","",ROUND('Retro Data (wk)'!F13,2)) -> 
A23: =IF('Retro Data (wk)'!D14="","",'Retro Data (wk)'!D14) ->  | B23: =IF('Retro Data (wk)'!E14="","",'Retro Data (wk)'!E14) ->  | C23: =IF('Retro Data (wk)'!F14="","",ROUND('Retro Data (wk)'!F14,2)) -> 
A24: =IF('Retro Data (wk)'!D15="","",'Retro Data (wk)'!D15) ->  | B24: =IF('Retro Data (wk)'!E15="","",'Retro Data (wk)'!E15) ->  | C24: =IF('Retro Data (wk)'!F15="","",ROUND('Retro Data (wk)'!F15,2)) -> 
A25: =IF('Retro Data (wk)'!D16="","",'Retro Data (wk)'!D16) ->  | B25: =IF('Retro Data (wk)'!E16="","",'Retro Data (wk)'!E16) ->  | C25: =IF('Retro Data (wk)'!F16="","",ROUND('Retro Data (wk)'!F16,2)) -> 
A26: =IF('Retro Data (wk)'!D17="","",'Retro Data (wk)'!D17) ->  | B26: =IF('Retro Data (wk)'!E17="","",'Retro Data (wk)'!E17) ->  | C26: =IF('Retro Data (wk)'!F17="","",ROUND('Retro Data (wk)'!F17,2)) -> 
A27: =IF('Retro Data (wk)'!D18="","",'Retro Data (wk)'!D18) ->  | B27: =IF('Retro Data (wk)'!E18="","",'Retro Data (wk)'!E18) ->  | C27: =IF('Retro Data (wk)'!F18="","",ROUND('Retro Data (wk)'!F18,2)) -> 
A28: =IF('Retro Data (wk)'!D19="","",'Retro Data (wk)'!D19) ->  | B28: =IF('Retro Data (wk)'!E19="","",'Retro Data (wk)'!E19) ->  | C28: =IF('Retro Data (wk)'!F19="","",ROUND('Retro Data (wk)'!F19,2)) -> 
A29: =IF('Retro Data (wk)'!D20="","",'Retro Data (wk)'!D20) ->  | B29: =IF('Retro Data (wk)'!E20="","",'Retro Data (wk)'!E20) ->  | C29: =IF('Retro Data (wk)'!F20="","",ROUND('Retro Data (wk)'!F20,2)) ->  | D29: =IF(B29="","",ROUND((B29-A29+1)/7,0)) -> 
A30: Sub-Total | E30: =SUM(E12:E29) -> 0
A31: Credit for Payments from Respondent to Petitioner | E31: ='Retro Data (wk)'!B7 -> 0
A32: Total Retroactive Support | E32: =E30-E31 -> 0
A34: Dates of Incarceration (Respondent) | D34: Dates Parties Resided Together
A35: From | B35: To | D35: From | E35: To
A36: =IF('Retro Data (wk)'!B10="","N/A",'Retro Data (wk)'!B10) -> N/A | B36: =IF('Retro Data (wk)'!C10="","N/A",'Retro Data (wk)'!C10) -> N/A | D36: =IF('Retro Data (wk)'!B16="","N/A",'Retro Data (wk)'!B16) -> N/A | E36: =IF('Retro Data (wk)'!C16="","N/A",'Retro Data (wk)'!C16) -> N/A
A37: =IF('Retro Data (wk)'!B11="","",'Retro Data (wk)'!B11) ->  | B37: =IF('Retro Data (wk)'!C11="","",'Retro Data (wk)'!C11) ->  | D37: =IF('Retro Data (wk)'!B17="","",'Retro Data (wk)'!B17) ->  | E37: =IF('Retro Data (wk)'!C17="","",'Retro Data (wk)'!C17) -> 
A38: =IF('Retro Data (wk)'!B12="","",'Retro Data (wk)'!B12) ->  | B38: =IF('Retro Data (wk)'!C12="","",'Retro Data (wk)'!C12) ->  | D38: =IF('Retro Data (wk)'!B18="","",'Retro Data (wk)'!B18) ->  | E38: =IF('Retro Data (wk)'!C18="","",'Retro Data (wk)'!C18) -> 
A39: =IF('Retro Data (wk)'!B13="","",'Retro Data (wk)'!B13) ->  | B39: =IF('Retro Data (wk)'!C13="","",'Retro Data (wk)'!C13) ->  | D39: =IF('Retro Data (wk)'!B19="","",'Retro Data (wk)'!B19) ->  | E39: =IF('Retro Data (wk)'!C19="","",'Retro Data (wk)'!C19) -> 
A40: =IF('Retro Data (wk)'!B14="","",'Retro Data (wk)'!B14) ->  | B40: =IF('Retro Data (wk)'!C14="","",'Retro Data (wk)'!C14) ->  | D40: =IF('Retro Data (wk)'!B20="","",'Retro Data (wk)'!B20) ->  | E40: =IF('Retro Data (wk)'!C20="","",'Retro Data (wk)'!C20) -> 

Sheet Pymt Convert
A1: Mom Pays: | D1: Dad Pays: | F1: ='Data Entry'!D4 -> N | G1: Arrears / Retro Payback:
G2: 0.2 | H2: 0.15 | I2: 0.1 | J2: 0.05
A3: Monthly Obligation | D3: Monthly Obligation | G3: 0.2
B4: Current Support: | C4: =IF('Data Entry'!P1>0,'Shared Parenting'!B53,IF('Data Entry'!P2="Yes",'Split Custody'!B31,IF(AND('Low Income'!C9="YES",'Low Income'!C8="MOM"),'Low Income'!C24,Worksheet!B47))) -> 440.13 | E4: Current Support: | F4: =IF('Data Entry'!P1>0,'Shared Parenting'!C53,IF('Data Entry'!P2="Yes",'Split Custody'!C31,IF(AND('Low Income'!C9="YES",'Low Income'!C8="DAD"),'Low Income'!C24,Worksheet!C47))) -> 422.87
B5: =TEXT($G$3,"0%")&" Arrears Payment: " -> 20% Arrears Payment: | C5: =IF($F$1="N",ROUND(C4*$G$3,2),ROUND(C4*$G$3,0)) -> 88.03 | E5: =TEXT($G$3,"0%")&" Arrears Payment: " -> 20% Arrears Payment: | F5: =IF($F$1="N",ROUND(F4*$G$3,2),ROUND(F4*$G$3,0)) -> 84.57
B6: Total: | C6: =C5+C4 -> 528.16 | E6: Total: | F6: =F5+F4 -> 507.44
A7: Semi-monthly Obligation | D7: Semi-monthly Obligation
B8: Current Support: | C8: =IF($F1="N",C4/2,ROUND(C4/2,0)) -> 220.065 | E8: Current Support: | F8: =IF($F1="N",F4/2,ROUND(F4/2,0)) -> 211.435
B9: =TEXT($G$3,"0%")&" Arrears Payment: " -> 20% Arrears Payment: | C9: =IF($F$1="N",ROUND(C8*$G$3,2),ROUND(C8*$G$3,0)) -> 44.01 | E9: =TEXT($G$3,"0%")&" Arrears Payment: " -> 20% Arrears Payment: | F9: =IF($F$1="N",ROUND(F8*$G$3,2),ROUND(F8*$G$3,0)) -> 42.29
B10: Total: | C10: =C9+C8 -> 264.075 | E10: Total: | F10: =F9+F8 -> 253.725
A11: Bi-weekly Obligation | D11: Bi-weekly Obligation
B12: Current Support: | C12: =IF($F1="N",ROUND(C4*12/26,2),ROUND(C4*12/26,0)) -> 203.14 | E12: Current Support: | F12: =IF($F1="N",ROUND(F4*12/26,2),ROUND(F4*12/26,0)) -> 195.17
B13: =TEXT($G$3,"0%")&" Arrears Payment: " -> 20% Arrears Payment: | C13: =IF($F$1="N",ROUND(C12*$G$3,2),ROUND(C12*$G$3,0)) -> 40.63 | E13: =TEXT($G$3,"0%")&" Arrears Payment: " -> 20% Arrears Payment: | F13: =IF($F$1="N",ROUND(F12*$G$3,2),ROUND(F12*$G$3,0)) -> 39.03
B14: Total: | C14: =C13+C12 -> 243.77 | E14: Total: | F14: =F13+F12 -> 234.2
A15: Weekly Obligation | D15: Weekly Obligation
B16: Current Support: | C16: =IF($F1="N",ROUND(C4*12/52,2),ROUND(C4*12/52,0)) -> 101.57 | E16: Current Support: | F16: =IF($F1="N",ROUND(F4*12/52,2),ROUND(F4*12/52,0)) -> 97.59
B17: =TEXT($G$3,"0%")&" Arrears Payment: " -> 20% Arrears Payment: | C17: =IF($F$1="N",ROUND(C16*$G$3,2),ROUND(C16*$G$3,0)) -> 20.31 | E17: =TEXT($G$3,"0%")&" Arrears Payment: " -> 20% Arrears Payment: | F17: =IF($F$1="N",ROUND(F16*$G$3,2),ROUND(F16*$G$3,0)) -> 19.52
B18: Total: | C18: =C17+C16 -> 121.88 | E18: Total: | F18: =F17+F16 -> 117.11
A19: Modification Reviews: | H19: Percentage of overnight stays:
A20: Current Oblig | B20: Freq.:
B21: Amt: | H21: Number of overnights: | I21: Mom | K21: Dad
B22: Converted to Monthly: | C22: =IF(C20=1,ROUND(C21*52/12,2),IF(C20=2,ROUND(C21*26/12,2),IF(C20=3,C21*2,IF(OR(C20=4,C20=""),C21)))) -> 0 | E22: Percent Change: | F22: =IF(C22=0,0,ROUND(C24/C22-1,2)) -> 0
A24: New Oblig | B24: Amt / MN: | H24: Over… | I24: two weeks
A25: Monthly Wage Calculator | H25: Percentage: | I25: =Tables!BN11 -> 0 | K25: =Tables!BO11 -> 0
A26: Hourly Rate | I26: =IF(AND(I22<>"",K22<>""),Tables!BM13,"") -> 
A27: Regular Hours per week
A28: OT Hours per week | D28: OT Multiplier | E28: 1.5
A29: Gross Monthly Income | B29: =IF(OR(B26="",B27=""),"",ROUND((B26*B27*52/12)+(B26*$E28*B28*52/12),2)) ->  | C29: =IF(OR(C26="",C27=""),"",ROUND((C26*C27*52/12)+(C26*$E28*C28*52/12),2)) -> 

Sheet Stip Data Entry (hidden)
A1: Stipulation Data | F1: Information from current worksheet | O1: 0.05 | P1: X | Q1: Yes | R1: Week
D2: DOB | E2: CS Step-down | H2: Mom | I2: Dad | O2: 0.1 | P2: N/A | Q2: No | R2: Biweekly
G3: ='Data Entry'!M14&+" Obligation" -> Monthly Obligation | H3: ='Pymt Convert'!C4 -> 440.13 | I3: ='Pymt Convert'!F4 -> 422.87 | O3: 0.15 | P3: Reserved | R3: Semi-Monthly
A4: =IF(OR(D4="",B4=""),"",IF(D3>D4," - OUT OF ORDER! - ","")) ->  | G4: 0.1 | H4: =IF('Data Entry'!$D4="Y",ROUND('Stip Data Entry'!H3*'Stip Data Entry'!$G4,0),ROUND('Stip Data Entry'!H3*'Stip Data Entry'!$G4,2)) -> 44.01 | I4: =IF('Data Entry'!$D4="Y",ROUND('Stip Data Entry'!I3*'Stip Data Entry'!$G4,0),ROUND('Stip Data Entry'!I3*'Stip Data Entry'!$G4,2)) -> 42.29 | O4: 0.2 | R4: Month
A5: =IF(OR(D5="",B5=""),"",IF(D4>D5," - OUT OF ORDER! - ","")) ->  | G5: total: | H5: =SUM(H3:H4) -> 484.14 | I5: =SUM(I3:I4) -> 465.16
A6: =IF(OR(D6="",B6=""),"",IF(D5>D6," - OUT OF ORDER! - ","")) -> 
A7: =IF(OR(D7="",B7=""),"",IF(D6>D7," - OUT OF ORDER! - ","")) -> 
A8: =IF(OR(D8="",B8=""),"",IF(D7>D8," - OUT OF ORDER! - ","")) -> 
A9: Paternity: | B9: X | O9: NCEP Offices
A10: Sup pymts ordered? | B10: X | O10: 4140 49th St N, St. Petersburg, FL 33709. Ph # 727-524-4344
A11: Current Support Pymt | D11: Frequency | O11: 4440 Grand Blvd, New Port Richey, FL 34652. Ph # 727-816-1714 | R11: =IF(Q10=8,"August",IF(Q10=9,"September",IF(Q10=10,"October",IF(Q10=11,"November",IF(Q10=12,"December ",""))))) -> 
A12: Retro Payment | D12: Total Retro | F12: from: | I12: To:
A13: Arrears Payment | D13: Total Arrs | F13: as of:
A14: First Payment Due | E14: Self Terminating | F14: X
A15: Lump sum? | B15: N/A | C15: Amt | E15: Due by:
A16: Costs? | B16: Reserved | C16: Amt | E16: Prev Costs: | G16: DNA: | I16: Due:
A17: Notice prov.? | B17: X | D17: COC Address: | E17: 315 Court Street, Clearwater, FL 33756
A18: IDO? | B18: X | D18: DOR Address: | E18: 19361 U.S. 19 North, Clearwater, FL 33764
A19: Medical prov? | B19: X | D19: =Worksheet!B34 -> 0.51 | F19: =Worksheet!C34 -> 0.49
A20: Uncovered HI? | B20: X | C20: Pet%: | E20: Resp%:
A21: UC? | B21: X
A22: Job search? | B22: X
A23: NCEP? | B23: N/A | C23: NCEP Address: | E23: 4140 49th St N, St. Petersburg, FL 33709. Ph # 727-524-4344
A24: Atty? | B24: No | C24: NCP Atty name:
A25: Speed/Smith Calc? | B25: N/A | C25: DOR LSP: | E25: Office of Attorney General, State of Florida
A26: Amt of Speed adj. | B26: 0 | C26: **NOTE: ALL BOLD ITEMS SHOULD BE ADDRESSED ("N/A", "X","RESERVED")

Sheet Stip (hidden)
A1: Florida Department of Revenue | F1: In The Circuit Court For
A2: On Behalf Of | F2: ='Data Entry'!D2 & " County, Florida" -> Leon County, Florida
A4: =IF('Data Entry'!B1="","",'Data Entry'!B1) ->  | F4: Case Number: | G4: =IF('Data Entry'!B3="","",'Data Entry'!B3) -> 
A5: Petitioner,
A7: =IF('Data Entry'!B2="","",'Data Entry'!B2) ->  | G7: STIPULATION
A8: Respondent.
A10: I, | B10: =A7 ->  | F10: , do swear that I am the Respondent in this cause, and recognize
B11: my duty to provide support for the dependent(s) named: | N11: Emancipation
A12: Name: | B12: =IF('Stip Data Entry'!B3="","",'Stip Data Entry'!B3) ->  | G12: Date of Birth: | H12: =IF('Stip Data Entry'!D3="","",'Stip Data Entry'!D3) ->  | N12: =DATE(YEAR(H12)+18,MONTH(H12),DAY(H12)) -> 
A13: Name: | B13: =IF('Stip Data Entry'!B4="","",'Stip Data Entry'!B4) ->  | G13: Date of Birth: | H13: =IF('Stip Data Entry'!D4="","",'Stip Data Entry'!D4) -> 
A14: Name: | B14: =IF('Stip Data Entry'!B5="","",'Stip Data Entry'!B5) ->  | G14: Date of Birth: | H14: =IF('Stip Data Entry'!D5="","",'Stip Data Entry'!D5) -> 
A15: Name: | B15: =IF('Stip Data Entry'!B6="","",'Stip Data Entry'!B6) ->  | G15: Date of Birth: | H15: =IF('Stip Data Entry'!D6="","",'Stip Data Entry'!D6) -> 
A16: Name: | B16: =IF('Stip Data Entry'!B7="","",'Stip Data Entry'!B7) ->  | G16: Date of Birth: | H16: =IF('Stip Data Entry'!D7="","",'Stip Data Entry'!D7) -> 
A17: Name: | B17: =IF('Stip Data Entry'!B8="","",'Stip Data Entry'!B8) ->  | G17: Date of Birth: | H17: =IF('Stip Data Entry'!D8="","",'Stip Data Entry'!D8) -> 
A19: =IF('Stip Data Entry'!B9="","",'Stip Data Entry'!B9) -> X | B19: I swear that I am the natural father of the above child(ren).
A21: =IF('Stip Data Entry'!B10="","",'Stip Data Entry'!B10) -> X | B21: I agree to payment of:
B22: =IF('Stip Data Entry'!B11="","",'Stip Data Entry'!B11) ->  | C22: per | D22: =IF('Stip Data Entry'!E11="","",'Stip Data Entry'!E11) ->  | F22: as current child support; plus
B23: =IF('Stip Data Entry'!B13="","",'Stip Data Entry'!B13) ->  | C23: towards the arrears of | E23: =IF('Stip Data Entry'!E13="","",'Stip Data Entry'!E13) ->  | G23: as of | H23: =IF('Stip Data Entry'!H13="","",'Stip Data Entry'!H13) ->  | J23: ; plus
B24: =IF('Stip Data Entry'!B12="","",'Stip Data Entry'!B12) ->  | C24: towards the retroactive child support of | G24: =IF('Stip Data Entry'!E12="","",'Stip Data Entry'!E12) -> 
B25: for the period of | D25: =IF('Stip Data Entry'!G12="","",'Stip Data Entry'!G12) ->  | F25: to | G25: =IF('Stip Data Entry'!J12="","",'Stip Data Entry'!J12) ->  | I25: ; for a total payment of
B26: =IF(AND(ISNUMBER('Stip Data Entry'!B11)=FALSE,ISNUMBER('Stip Data Entry'!E13)=FALSE,ISNUMBER('Stip Data Entry'!B12)=FALSE),"",IF(ISNUMBER('Stip Data Entry'!B11)=TRUE,'Stip Data Entry'!B11,0)+IF(ISNUMBER('Stip Data Entry'!E13)=TRUE,'Stip Data Entry'!E13,0)+IF(ISNUMBER('Stip Data Entry'!B12)=TRUE,'Stip Data Entry'!B12,0)) ->  | C26: per | D26: =IF('Stip Data Entry'!E11="","",'Stip Data Entry'!E11) ->  | F26: commencing | H26: =IF('Stip Data Entry'!B14="","",'Stip Data Entry'!B14) -> 
B27: All payments shall be made through and payable to:
E29: State of Florida Disbursement Unit
E30: P.O. Box 8500
E31: Tallahassee, FL 32314-8500
A33: Duration of Order. This Order stays in effect until:
B34: 1) Vacated, modified, suspended or abated by a circuit court of this state; or
B35: 2) Vacated or reversed on appeal.
A37: Payments shall commence on | D37: =H26 ->  | G37: . The current support obligation is reduced according
A38: to the schedule below as each child reaches age 18, dies, marries, or otherwise emancipates, unless the child is dependent in fact, between the ages of 18 and 19, still in high school and performing in good faith with a reasonable expectation of graduating before the age of 19. If payable beyond the age of 18, the current support obligation ends when the child graduates from high school.
A40: =IF(B12="","N/A","X") -> N/A | B40: ="Current support for " & IF(B12="","N/A",B12) & " is scheduled to end on " & IF(B12="","N/A",TEXT(N12-1,"mm/dd/yyyy")) & ", or date of high school graduation according to the conditions above, at which time the Respondent shall pay:" -> Current support for N/A is scheduled to end on N/A, or date of high school graduation according to the conditions above, at which time the Respondent shall pay:
B42: =IF(A40="N/A","$ N/A",IF(B13="","$0.00",TEXT('Stip Data Entry'!E4,"$0.00"))) & " per month Current support." -> $ N/A per month Current support.
A44: =IF(B13="","N/A","X") -> N/A | B44: ="Current support for " & IF(B13="","N/A",B13) & " is scheduled to end on " & IF(B13="","N/A",TEXT(N13-1,"mm/dd/yyyy")) & ", or date of high school graduation according to the conditions above, at which time the Respondent shall pay:" -> Current support for N/A is scheduled to end on N/A, or date of high school graduation according to the conditions above, at which time the Respondent shall pay:
B46: =IF(A44="N/A","$ N/A",IF(B14="","$0.00",TEXT('Stip Data Entry'!E5,"$0.00"))) & " per month Current support." -> $ N/A per month Current support.
A48: =IF(B14="","N/A","X") -> N/A | B48: ="Current support for " & IF(B14="","N/A",B14) & " is scheduled to end on " & IF(B14="","N/A",TEXT(N14-1,"mm/dd/yyyy")) & ", or date of high school graduation according to the conditions above, at which time the Respondent shall pay:" -> Current support for N/A is scheduled to end on N/A, or date of high school graduation according to the conditions above, at which time the Respondent shall pay:
B50: =IF(A48="N/A","$ N/A",IF(B15="","$0.00",TEXT('Stip Data Entry'!E6,"$0.00"))) & " per month Current support." -> $ N/A per month Current support.
A52: =IF(B15="","N/A","X") -> N/A | B52: ="Current support for " & IF(B15="","N/A",B15) & " is scheduled to end on " & IF(B15="","N/A",TEXT(N15-1,"mm/dd/yyyy")) & ", or date of high school graduation according to the conditions above, at which time the Respondent shall pay:" -> Current support for N/A is scheduled to end on N/A, or date of high school graduation according to the conditions above, at which time the Respondent shall pay:
B54: =IF(A52="N/A","$ N/A",IF(B16="","$0.00",TEXT('Stip Data Entry'!E7,"$0.00"))) & " per month Current support." -> $ N/A per month Current support.
A56: =IF(B16="","N/A","X") -> N/A | B56: ="Current support for " & IF(B16="","N/A",B16) & " is scheduled to end on " & IF(B16="","N/A",TEXT(N16-1,"mm/dd/yyyy")) & ", or date of high school graduation according to the conditions above, at which time the Respondent shall pay:" -> Current support for N/A is scheduled to end on N/A, or date of high school graduation according to the conditions above, at which time the Respondent shall pay:
B58: =IF(A56="N/A","$ N/A",IF(B17="","$0.00",TEXT('Stip Data Entry'!E8,"$0.00"))) & " per month Current support." -> $ N/A per month Current support.
A60: =IF(B17="","N/A","X") -> N/A | B60: ="Current support for " & IF(B17="","N/A",B17) & " is scheduled to end on " & IF(B17="","N/A",TEXT(N17-1,"mm/dd/yyyy")) & ", or date of high school graduation according to the conditions above, at which time the Respondent shall pay:" -> Current support for N/A is scheduled to end on N/A, or date of high school graduation according to the conditions above, at which time the Respondent shall pay:
B62: =IF(A60="N/A","$ N/A","$0.00") & " per month Current support." -> $ N/A per month Current support.
A64: =IF('Stip Data Entry'!F14="","",'Stip Data Entry'!F14) -> X | B64: At such time as current support terminates by emancipation of the minor child, and in the event there are any arrears in past due and unpaid support, the amount set herein as current support shall continue to be paid and shall be applied to satisfy said arrears in past due and unpaid child support, in the same periodic payment as set forth herein, until the arrears are paid in full.
A69: The agreed current support obligation is the amount mandated by Florida Law.
A71: N/A | B71: The Respondent has 60 days from the date of the order approving this stipulation to file a request for credit and to present proof of payments to the Court for credit against the retro-active support.
A74: ='Stip Data Entry'!B15 -> N/A | B74: I agree to make a lump sum payment of | H74: on or before
A76: X | B76: I agree that this court shall reserve jurisdiction over any and all arrears due and owing, if any.
A78: ='Stip Data Entry'!B16 -> Reserved | B78: I agree to pay administrative costs, by money order or cashiers check, in the amount of | I78: =IF('Stip Data Entry'!D16="","",'Stip Data Entry'!D16) -> 
F79: previously ordered costs of | G79: =IF('Stip Data Entry'!F16="","",'Stip Data Entry'!F16) -> 
F80: genetic testing costs of | G80: =IF('Stip Data Entry'!H16="","",'Stip Data Entry'!H16) -> 
F81: for a total payment of | G81: =IF(AND('Stip Data Entry'!D16="",'Stip Data Entry'!F16="",'Stip Data Entry'!H16=""),"",'Stip Data Entry'!D16+'Stip Data Entry'!F16+'Stip Data Entry'!H16) ->  | I81: within | J81: =IF('Stip Data Entry'!J16="","",'Stip Data Entry'!J16) ->  | K81: days to
B83: Florida Department of Revenue, Child Support Enforcement Program at:
B84: ='Stip Data Entry'!E18 -> 19361 U.S. 19 North, Clearwater, FL 33764
A86: ='Stip Data Entry'!B17 -> X | B86: ="I agree to notify DOR, in writing, of my change of address or change of employment, including additional employment or loss of employment, within five (5) days, at: Florida Department of Revenue, Child Support Enforcement Program, " & 'Stip Data Entry'!E18 -> I agree to notify DOR, in writing, of my change of address or change of employment, including additional employment or loss of employment, within five (5) days, at: Florida Department of Revenue, Child Support Enforcement Program, 19361 U.S. 19 North, Clearwater, FL 33764
A90: ='Stip Data Entry'!B17 -> X | B90: ="I agree to notify the Clerk of Court, in writing, of any change of address or change of employment, within five (5) days, at: " & 'Stip Data Entry'!E17 -> I agree to notify the Clerk of Court, in writing, of any change of address or change of employment, within five (5) days, at: 315 Court Street, Clearwater, FL 33756
A93: ='Stip Data Entry'!B18 -> X | B93: I agree to entry of an Income Deduction Order effective immediately. l understand that it is my obligation to pay child support when it is not being deducted from my paycheck.
A96: ='Stip Data Entry'!B19 -> X | B96: I agree to provide health insurance for the minor child(ren) if available at a reasonable rate, and provide written notice of coverage or non-availability of coverage within thirty (30) days of the entry of order approving this stipulation or reimburse the petitioner for the cost of health care coverage of the minor child.
A100: ='Stip Data Entry'!B20 -> X | B100: Any medical expenses not covered by health insurance incurred on behalf of the minor child(ren) shall be paid
B101: as follows: | C101: =IF('Stip Data Entry'!D20="","",'Stip Data Entry'!D20) ->  | D101: by the petitioner, | F101: =IF('Stip Data Entry'!F20="","",'Stip Data Entry'!F20) ->  | G101: by the respondent.
B102: Any payments made by the respondent for medical expenses not covered by health insurance are to be made directly to the custodial parent.
A105: RESERVED | B105: I agree to maintain a life insurance policy in the amount of $ N/A or as available at a reasonable rate, for the benefit of the dependent child(ren), and to provide written notice of coverage to the Florida Department of Revenue within thirty (30) days of the entry of order approving this stipulation.
A109: ='Stip Data Entry'!B21 -> X | B109: I agree that the Florida Department of Revenue shall be entitled to deduct 40% from any unemployment compensation benefits that the Respondent may be entitled, not to exceed the ongoing support and/or any past due support amount owed as allowed by s.443.051 (b)(2), Florida Statutes, up to the legal percentage permitted by law.
A114: ='Stip Data Entry'!B22 -> X | B114: If I become unemployed or under-employed, I agree that I shall use my best efforts to secure employment as soon as possible, and in order to do so I agree to put in at least thirty (30) job applications within the next thirty (30) days with prospective employers and I agree to report to Florida Department of Revenue, Child Support Enforcement Program, the results of any job search within one (1) week of the end of the thirty-day period, at the following address,
B120: ='Stip Data Entry'!E18 -> 19361 U.S. 19 North, Clearwater, FL 33764
B122: and if I am not successful in my job search in thirty (30) days, l agree to continue this schedule from month to month until I do secure employment. At the time I secure employment, l agree that I will furnish notice to the Florida Department of Revenue, Child Support Enforcement Program, at the above address within two (2) days of securing employment.
A127: ='Stip Data Entry'!B23 -> N/A | B127: I am currently unemployed or under-employed and I agree to participate in the Non-Custodial Parent Employment Project (NCEP). I agree to call or report to the NCEP Office within 30 days of the date of this stipulation. If I do not secure full-time employment on my own during the next 30 days, I agree to cooperate with the NCEP Office in order to become gainfully employed at a full-time position by participating in orientation, job search or job training as deemed appropriate by the NCEP Employment Specialist. I agree to report the name and address of my employer to the NCEP Office. I agree to report all changes in my residential and/or mailing address to the NCEP Office for as long as I am in the NCEP Program. I understand that I will not be released from the Non-Custodial Parent Employment Project until I have satisfactorily completed the program by securing and maintaining full-time employment and paying my child support for a period of 180 days under the supervision of the NCEP Office. I understand that if I fail to cooperate and participate in the NCEP program without good cause, such failure may result in my being incarcerated for Contempt of Court.
B141: =IF('Stip Data Entry'!E23="","",'Data Entry'!D2 & " County NCEP Office") -> Leon County NCEP Office
B142: =IF('Stip Data Entry'!E23="","",'Stip Data Entry'!E23) -> 4140 49th St N, St. Petersburg, FL 33709. Ph # 727-524-4344
A145: ='Stip Data Entry'!B25 -> N/A | B145: ="Smith/Speed Credit: I understand I am entitled to a " & TEXT('Stip Data Entry'!B26,"$0.00") & " credit for the child(ren) living in my home," -> Smith/Speed Credit: I understand I am entitled to a $0.00 credit for the child(ren) living in my home,
B146: pursuant to Florida Department of Revenue v. Smith, 716 So.2d 333 (2nd DCA 1998) and Speed v. Department of Revenue, 749 So.2d 510 (2nd DCA 1999). This credit has been factored into the child support guideline calculation set forth above, and if applicable, factored into the retroactive support obligation set forth above.
A150: =IF('Stip Data Entry'!B24="Yes","X","N/A") -> N/A | B150: I am represented by an attorney or have been advised by an attorney, whose name is:
B151: =IF('Stip Data Entry'!E24="","",'Stip Data Entry'!E24) ->  | F151: , and I am entering into this Stipulation with the full knowledge
B152: that my attorney has advised me of my rights and responsibilities.
A154: =IF('Stip Data Entry'!B24="No","X","N/A") -> X | B154: ="I am not represented by an attorney, and I have negotiated this Stipulation of my own free will; I have not been advised in any way of my rights or responsibilities by " & 'Stip Data Entry'!E25 & ", whom I understand are attorneys representing the Department of Revenue, and they have not directly given me any advice regarding my rights under the law." -> I am not represented by an attorney, and I have negotiated this Stipulation of my own free will; I have not been advised in any way of my rights or responsibilities by Office of Attorney General, State of Florida, whom I understand are attorneys representing the Department of Revenue, and they have not directly given me any advice regarding my rights under the law.
B159: I have discussed this affidavit/stipulation with representatives of the petitioners and I acknowledge they have not compelled me against my will to enter into this stipulation or sign this agreement, and they have informed me of my right to a hearing before the Court if I do not wish to enter into this stipulation.
B163: I have herein executed this Stipulation freely and voluntarily, and with full knowledge of its contents. I am not under the influence of any alcoholic beverage, drug or medicine at the time of the signing of this stipulation, and I am not suffering from any mental problems which affect my understanding of these stipulations. I also agree to the entry of an order incorporating the terms of this Stipulation without further notice to me or further proceedings.
A170: ="STATE OF FLORIDA, COUNTY OF " & 'Data Entry'!D2 -> STATE OF FLORIDA, COUNTY OF Leon
A172: The foregoing instrument was acknowledged before me this | G172: Respondent Signature
A174: =Tables!BE4 -> 7th | B174: day of | C174: =Tables!BE8 -> January, 2026
A175: by | B175: =IF(A7="","",A7) ->  | G175: Address
B177: Notary Signature for RESPONDENT | G177: Telephone
G179: Social Security Number (Your social security number
G180: is required by s. 61.13(7b), F.S., and will be used
G181: only for the purposes directly connected with child support)
B182: Print, type or stamp name of notary
D184: Personally Known | G184: Employer
D185: Or Produced Identification
D186: Type of Identification Produced | G186: Address
